Workbook

Sheet AVERTISSEMENT

Sheet ENTREES
I1: résidentiel | J1: professionnel
H2: résidentiel | I2: 1 | J2: 0
A3: type d'opérateur | H3: "entreprises" | I3: 0 | J3: 1
H4: mixte : résidentiel + "entreprises" | I4: 1 | J4: 1
A5: marché cible : | B5: mixte : résidentiel + "entreprises"
H6: retenu | I6: =VLOOKUP($B$5,$H$2:$J$4,2,FALSE) -> 1 | J6: =VLOOKUP($B$5,$H$2:$J$4,3,FALSE) -> 1
A8: part de marché
A10: durée pour atteindre la pdm cible : | B10: 5 | C10: ans
A12: pdm à l'arrivée en dégroupage : | B12: 0.1
A13: ="pdm cible au bout de "&B$10&" an(s) :" -> pdm cible au bout de 5 an(s) : | B13: 0.25
A16: NRA dégroupés
B18: code NRA | C18: date dégroupage
A19: 1 | B19: 75112DID | C19: 2003-01-01 | D19: <= NRA renseignés à titre d'exemple
A20: 2 | B20: 75110NOR | C20: 2003-01-02
A21: 3 | B21: 75111PHA | C21: 2003-01-03
A22: 4 | B22: 75118MON | C22: 2003-01-04
A23: 5 | B23: 92035CHA | C23: 2003-01-05
A24: 6 | B24: 92049MAR | C24: 2003-01-06
A25: 7 | B25: 94002ALF | C25: 2003-01-07
A26: 8 | B26: 75111VOL | C26: 2003-01-08
A27: 9 | B27: 92023MIC | C27: 2003-01-09
A28: 10 | B28: 93055VIL | C28: 2003-01-10
A29: 11 | B29: 75103BDV | C29: 2003-01-11
A30: 12 | B30: 93066STD | C30: 2003-01-12
A31: 13 | B31: 59606VAL | C31: 2003-01-13
A32: 14 | B32: 75110JEM | C32: 2003-01-14
A33: 15 | B33: 94068GRA | C33: 2003-01-15
A34: 16 | B34: 75109TRU | C34: 2003-01-16
A35: 17 | B35: 92044PER | C35: 2003-01-17
A36: 18 | B36: 75113MNA | C36: 2003-01-18
A37: 19 | B37: 75117CAR | C37: 2003-01-19
A38: 20 | B38: 75115VAU | C38: 2003-01-20
A39: 21 | B39: 75116AUT | C39: 2003-01-21
A40: 22 | B40: 75105DAN | C40: 2003-01-22
A41: 23 | B41: 93048MTL | C41: 2003-01-23
A42: 24 | B42: 94016CAC | C42: 2003-01-24
A43: 25 | B43: 42218FAU | C43: 2003-01-25
A44: 26 | B44: 59178DOU | C44: 2003-01-26
A45: 27 | B45: 69388BAC | C45: 2003-01-27
A46: 28 | B46: 92026DEF | C46: 2003-01-28
A47: 29 | B47: 59350BLE | C47: 2003-01-29
A48: 30 | B48: 92071ROB | C48: 2003-01-30
A49: 31 | B49: 69383MNE | C49: 2003-01-31
A50: 32 | B50: 69387PAR | C50: 2003-02-01
A51: 33 | B51: 91687VIR | C51: 2003-02-02
A52: 34 | B52: 92012MOL | C52: 2003-02-03
A53: 35 | B53: 69384CXR | C53: 2003-02-04
A54: 36 | B54: 78646VER | C54: 2003-02-05
A55: 37 | B55: 95018ART | C55: 2003-02-06
A56: 38 | B56: 75114BNE | C56: 2003-02-07
A57: 39 | B57: 83137TCA | C57: 2003-02-08
A58: 40 | B58: 44109GLO | C58: 2003-02-09
A59: 41 | B59: 75107SEG | C59: 2003-02-10
A60: 42 | B60: 76540ROA | C60: 2003-02-11
A61: 43 | B61: 94041IVR | C61: 2003-02-12
A62: 44 | B62: 78586SAT | C62: 2003-02-13
A63: 45 | B63: 92004GRE | C63: 2003-02-14
A64: 46 | B64: 94033FNY | C64: 2003-02-15
A65: 47 | B65: 75120MEN | C65: 2003-02-16
A66: 48 | B66: 76540ROB | C66: 2003-02-17
A67: 49 | B67: 92063RUE | C67: 2003-02-18
A68: 50 | B68: 94080DAU | C68: 2003-02-19
A69: 51 | B69: 95127CRJ | C69: 2003-02-20
A70: 52 | B70: 75101GUT | C70: 2003-02-21
A71: 53 | B71: 75105GOB | C71: 2003-02-22
A72: 54 | B72: 75118MAR | C72: 2003-02-23
A73: 55 | B73: 92051NEY | C73: 2003-02-24
A74: 56 | B74: 93064RNY | C74: 2003-02-25
A75: 57 | B75: 42187JMA | C75: 2003-02-26
A76: 58 | B76: 75114RAS | C76: 2003-02-27
A77: 59 | B77: 93010BDY | C77: 2003-02-28
A78: 60 | B78: 31555LAN | C78: 2003-03-01
A79: 61 | B79: 59512RSA | C79: 2003-03-02
A80: 62 | B80: 75108BEA | C80: 2003-03-03
A81: 63 | B81: 92062PUT | C81: 2003-03-04
A82: 64 | B82: 92073LON | C82: 2003-03-05
A83: 65 | B83: 93001FLA | C83: 2003-03-06
A84: 66 | B84: 93008BNY | C84: 2003-03-07
A85: 67 | B85: 95598SOY | C85: 2003-03-08
A86: 68 | B86: 62498LEC | C86: 2003-03-09
A87: 69 | B87: 75113BOB | C87: 2003-03-10
A88: 70 | B88: 92002BNY | C88: 2003-03-11
A89: 71 | B89: 92050NAN | C89: 2003-03-12
A90: 72 | B90: 95585SAR | C90: 2003-03-13
A91: 73 | B91: 06029NIC | C91: 2003-03-14
A92: 74 | B92: 06088BAR | C92: 2003-03-15
A93: 75 | B93: 06088CAR | C93: 2003-03-16
A94: 76 | B94: 33063CHE | C94: 2003-03-17
A95: 77 | B95: 69266VIL | C95: 2003-03-18
A96: 78 | B96: 78297GUY | C96: 2003-03-19
A97: 79 | B97: 92023CLA | C97: 2003-03-20
A98: 80 | B98: 31555LAF | C98: 2003-03-21
A99: 81 | B99: 44109LGP | C99: 2003-03-22
A100: 82 | B100: 59350LIB | C100: 2003-03-23
A101: 83 | B101: 59512PIL | C101: 2003-03-24
A102: 84 | B102: 72181JAU | C102: 2003-03-25
A103: 85 | B103: 74012CHA | C103: 2003-03-26
A104: 86 | B104: 75101TUI | C104: 2003-03-27
A105: 87 | B105: 93047MFL | C105: 2003-03-28
A106: 88 | B106: 94076RAM | C106: 2003-03-29
A107: 89 | B107: 95491PLB | C107: 2003-03-30
A108: 90 | B108: 06088BAU | C108: 2003-03-31
A109: 91 | B109: 13203NAP | C109: 2003-04-01
A110: 92 | B110: 543954AA | C110: 2003-04-02
A111: 93 | B111: 92036GEN | C111: 2003-04-03
A112: 94 | B112: 93051NSG | C112: 2003-04-04
A113: 95 | B113: 94022CHO | C113: 2003-04-05
A114: 96 | B114: 38185MUT | C114: 2003-04-06
A115: 97 | B115: 62160BOL | C115: 2003-04-07
A116: 98 | B116: 91228EVR | C116: 2003-04-08
A117: 99 | B117: 93005AUL | C117: 2003-04-09
A118: 100 | B118: 94081VIT | C118: 2003-04-10
A119: 101 | B119: 13205GAR | C119: 2003-04-11
A120: 102 | B120: 26362VAF | C120: 2003-04-12
A121: 103 | B121: 37261BR1 | C121: 2003-04-13
A122: 104 | B122: 45234GAS | C122: 2003-04-14
A123: 105 | B123: 69266TOK | C123: 2003-04-15
A124: 106 | B124: 75106LIT | C124: 2003-04-16
A125: 107 | B125: 75107INV | C125: 2003-04-17
A126: 108 | B126: 75115RKE | C126: 2003-04-18
A127: 109 | B127: 93071SEV | C127: 2003-04-19
A128: 110 | B128: 06027CAG | C128: 2003-04-20
A129: 111 | B129: 06083MEN | C129: 2003-04-21
A130: 112 | B130: 24322PER | C130: 2003-04-22
A131: 113 | B131: 34172FAC | C131: 2003-04-23
A132: 114 | B132: 36044CHX | C132: 2003-04-24
A133: 115 | B133: 44109MAR | C133: 2003-04-25
A134: 116 | B134: 51108CHA | C134: 2003-04-26
A135: 117 | B135: 545474VA | C135: 2003-04-27
A136: 118 | B136: 57463SAB | C136: 2003-04-28
A137: 119 | B137: 69264VFC | C137: 2003-04-29
A138: 120 | B138: 69382GAI | C138: 2003-04-30
A139: 121 | B139: 75109PRO | C139: 2003-05-01
A140: 122 | B140: 77108CHE | C140: 2003-05-02
A141: 123 | B141: 77258LOG | C141: 2003-05-03
A142: 124 | B142: 77284MEA | C142: 2003-05-04
A143: 125 | B143: 90010STR | C143: 2003-05-05
A144: 126 | B144: 93027COU | C144: 2003-05-06
A145: 127 | B145: 94021CHY | C145: 2003-05-07
A146: 128 | B146: 97120PAP | C146: 2003-05-08
A147: 129 | B147: 06088CRR | C147: 2003-05-09
A148: 130 | B148: 06123LAU | C148: 2003-05-10
A149: 131 | B149: 13210MEN | C149: 2003-05-11
A150: 132 | B150: 21231STA | C150: 2003-05-12
A151: 133 | B151: 31555BON | C151: 2003-05-13
A152: 134 | B152: 33063MEK | C152: 2003-05-14
A153: 135 | B153: 38185DRA | C153: 2003-05-15
A154: 136 | B154: 62193CAB | C154: 2003-05-16
A155: 137 | B155: 75108LAB | C155: 2003-05-17
A156: 138 | B156: 78621TRA | C156: 2003-05-18
A157: 139 | B157: 82121COU | C157: 2003-05-19
A158: 140 | B158: 92012BGN | C158: 2003-05-20
A159: 141 | B159: 94017CPY | C159: 2003-05-21
A160: 142 | B160: 06029CAN | C160: 2003-05-22
A161: 143 | B161: 06088LAM | C161: 2003-05-23
A162: 144 | B162: 13001AX1 | C162: 2003-05-24
A163: 145 | B163: 13213SJU | C163: 2003-05-25
A164: 146 | B164: 28085CHB | C164: 2003-05-26
A165: 147 | B165: 31555MIR | C165: 2003-05-27
A166: 148 | B166: 35238SUD | C166: 2003-05-28
A167: 149 | B167: 38185PAS | C167: 2003-05-29
A168: 150 | B168: 38185VIG | C168: 2003-05-30
A169: 151 | B169: 59646WAS | C169: 2003-05-31
A170: 152 | B170: 72181PAS | C170: 2003-06-01
A171: 153 | B171: 76351EYR | C171: 2003-06-02
A172: 154 | B172: 91122BUR | C172: 2003-06-03
A173: 155 | B173: 92048OBS | C173: 2003-06-04
A174: 156 | B174: 94019CNV | C174: 2003-06-05
A175: 157 | B175: 95424MTG | C175: 2003-06-06
A176: 158 | B176: 06004VAU | C176: 2003-06-07
A177: 159 | B177: 13214SMT | C177: 2003-06-08
A178: 160 | B178: 26281ROM | C178: 2003-06-09
A179: 161 | B179: 51454CER | C179: 2003-06-10
A180: 162 | B180: 543954BE | C180: 2003-06-11
A181: 163 | B181: 58194NLA | C181: 2003-06-12
A182: 164 | B182: 59122CAM | C182: 2003-06-13
A183: 165 | B183: 59350CAN | C183: 2003-06-14
A184: 166 | B184: 75108ANJ | C184: 2003-06-15
A185: 167 | B185: 75116PAS | C185: 2003-06-16
A186: 168 | B186: 85191RCH | C186: 2003-06-17
A187: 169 | B187: 93006BGL | C187: 2003-06-18
A188: 170 | B188: 94028CRE | C188: 2003-06-19
A189: 171 | B189: 95607TVN | C189: 2003-06-20
A190: 172 | B190: 97209FDF | C190: 2003-06-21
A191: 173 | B191: 13004ARL | C191: 2003-06-22
A192: 174 | B192: 13117VIT | C192: 2003-06-23
A193: 175 | B193: 27229EVR | C193: 2003-06-24
A194: 176 | B194: 31555CAP | C194: 2003-06-25
A195: 177 | B195: 33063AQU | C195: 2003-06-26
A196: 178 | B196: 33063BDN | C196: 2003-06-27
A197: 179 | B197: 35238MAL | C197: 2003-06-28
A198: 180 | B198: 35238PAT | C198: 2003-06-29
A199: 181 | B199: 44109XBN | C199: 2003-06-30
A200: 182 | B200: 45208MON | C200: 2003-07-01
A201: 183 | B201: 59183MAI | C201: 2003-07-02
A202: 184 | B202: 63113DEL | C202: 2003-07-03
A203: 185 | B203: 69383MON | C203: 2003-07-04
A204: 186 | B204: 76351BLE | C204: 2003-07-05
A205: 187 | B205: 78361MAA | C205: 2003-07-06
A206: 188 | B206: 83137TRO | C206: 2003-07-07
... 4812 more rows

Sheet PARAMETRES
A3: Conditions de marché
B5: caractéristiques NRA par défaut
C6: éligibilité au haut débit DSL | E6: 0.99
C7: taux de lignes "entreprises" (= établissements de + de 10 salariés) | E7: 0.015
B9: pénétration haut débit DSL
E10: résidentiel | F10: "entreprises"
C11: a | E11: 0.85 | F11: 1
C12: b | E12: 0.0011 | F12: 0.0011
C13: c | E13: 1550 | F13: -400
C14: d | E14: 0.1 | F14: 0
B16: composition panier résidentiel
C17: taux d'accès dégroupage Total | E17: 1
C18: taux d'accès dégroupage Partiel | E18: =1-E17 -> 0
B21: composition panier "entreprises"
C22: taux d'accès ADSL | E22: 0.2
C23: taux d'accès SDSL | E23: =1-E22 -> 0.8
C25: taux d'accès SDSL mono-paire | E25: 0.6
C26: taux d'accès SDSL bi-paires | E26: 0.35
C27: taux d'accès SDSL quadri-paires | E27: =1-E26-E25 -> 0.05
C28: nb moyen de paires par accès SDSL | E28: =E25+2*E26+4*E27 -> 1.5
B30: comportement clients | E30: résidentiel | F30: "entreprises"
C31: taux de churn annuel | E31: 0.1 | F31: 0.05
C32: taux de churn trimestriel | E32: =(1+E31)^(1/4)-1 -> 0.02411368908 | F32: =(1+F31)^(1/4)-1 -> 0.01227223443
C33: taux de churn mensuel | E33: =(1+E31)^(1/12)-1 -> 0.007974140429 | F33: =(1+F31)^(1/12)-1 -> 0.004074123784
C35: taux de résiliations facturées | E35: 0.15 | F35: 1
C37: taux de commandes non conformes | E37: 0.05
C39: taux de signalisation annuel | F39: 0.1
C40: taux de signalisation trimestriel | F40: =(1+F39)^(1/4)-1 -> 0.02411368908
C41: taux de signalisation mensuel | F41: =(1+F39)^(1/12)-1 -> 0.007974140429
A44: Dimensionnement du trafic
B46: trafic Internet résidentiel
C47: débit moyen à l'heure de pointe | E47: 100 | F47: kbit/s
B49: téléphonie sur IP
C50: débit d'une conversation téléphonique | E50: 100 | F50: kbit/s
C51: erlang à l'heure de pointe | E51: 0.12
B53: télévision sur IP
C54: débit d'un flux TV définition standard | E54: 3500 | F54: kbit/s
C55: nombre de flux TV disponibles | E55: 200
C56: nombre de télespectateurs regardant la moitié des chaines disponibles | E56: 1000
C57: erlang à l'heure de pointe | E57: 0.2
B59: vidéo à la demande
C60: débit d'un flux vidéo | E60: 2000 | F60: kbit/s
C61: erlang à l'heure de pointe | E61: 0.01
B63: débit moyen accès "entreprises"
C64: accès ADSL | E64: 200 | F64: kbit/s
C65: accès SDSL mono-paire | E65: 500 | F65: kbit/s
C66: accès SDSL bi-paires | E66: 1000 | F66: kbit/s
C67: accès SDSL quadri-paires | E67: 2000 | F67: kbit/s
C68: débit moyen SDSL | E68: =SUMPRODUCT(E25:E27,E65:E67) -> 750 | F68: kbit/s
A70: Dimensionnement prestations connexes dégroupage
B72: type d'hébergements
E73: date publication | F73: type emplacement
C74: salle cohab. | E74: ='ODR DEGROUPAGE'!E3 -> 2002-09-01 | F74: 600 x 600
C75: esp. dédié | E75: ='ODR DEGROUPAGE'!E3 -> 2002-09-01 | F75: 600 x 600
C76: esp. restreint | E76: ='ODR DEGROUPAGE'!F3 -> 2004-01-01 | F76: 300 x 600
C77: TPS | E77: ='ODR DEGROUPAGE'!I3 -> 2005-06-01 | F77: 300 x 600
C78: HPS | E78: ='ODR DEGROUPAGE'!T3 -> 2011-09-01 | F78: 300 x 600
C79: NRA MeD | E79: ='ODR DEGROUPAGE'!T3 -> 2011-09-01 | F79: SU
C80: NRA armoire | E80: ='ODR DEGROUPAGE'!T3 -> 2011-09-01 | F80: SU
C81: NRA ZO | E81: 2008-01-01 | F81: SU
C82: loc. dist. | E82: ='ODR DEGROUPAGE'!E3 -> 2002-09-01 | F82: 300 x 600
B84: solution d'hébergement par défaut
E85: avant 01/09/2011 | F85: après 01/09/2011
B86: 0 | C86: ="NRA de "&B86&" à "&B87&" LP" -> NRA de 0 à 1500 LP | E86: esp. restreint | F86: HPS
B87: 1500 | C87: ="NRA de "&B87&" à "&B88&" LP" -> NRA de 1500 à 5000 LP | E87: esp. restreint | F87: esp. restreint
B88: 5000 | C88: ="NRA de plus de "&B88&" LP" -> NRA de plus de 5000 LP | E88: esp. dédié | F88: esp. dédié
B90: emplacement / équipements
C91: nombre de DSLAM par emplacement 600 x 600 | E91: 4
C92: nombre de DSLAM par emplacement 300 x 600 | E92: 2
C93: nombre de SU par micro-DSLAM | E93: 2 | F93: SU
C95: capacité du châssis DSLAM | E95: 16 | F95: cartes
C96: capacité du châssis micro-DSLAM | E96: 6 | F96: cartes
C98: capacité d'une carte DSLAM ADSL | E98: 48 | F98: ports/carte
C99: capacité d'une carte DSLAM SDSL | E99: 24 | F99: ports/carte
C101: taux annuel coût de la maintenance (% de l'investissement) | E101: 0.1
C102: taux trimestriel coût de la maintenance (% de l'investissement) | E102: =(E101+1)^(1/4)-1 -> 0.02411368908
B104: LIB
C105: nombre de LIB | E105: 2
B107: énergie
C108: consommation par DSLAM | E108: 200 | F108: W
C109: consommation par micro-DSLAM | E109: 50 | F109: W
C110: consommation par carte ADSL / SDSL | E110: 50 | F110: W
C112: nombre de co-investisseurs en cas de climatisation opérateur tiers | E112: 3
B114: localisation distante
C115: dimensionnement des CdR distants (par rapport au nb de LP du NRA) | E115: 0.5
C116: distance entre chambre 0 et répartiteur | E116: 20 | F116: m
C117: distance entre chambre 0 et armoire de rue | E117: 20 | F117: m
C118: nombre d'heures avec agent France Télécom | E118: 3 | F118: h
A121: Caractéristiques technologie de collecte
B123: ATM
C124: trafic IP utile sur un STM-1 | E124: 126 | F124: Mbit/s
C125: trafic IP utile sur un STM-4 | E125: =4*E124 -> 504 | F125: Mbit/s
C126: trafic IP utile sur un STM-16 | E126: 2016 | F126: Mbit/s
C128: seuil de migration STM-1 -> STM-4 | E128: =2*E124 -> 252 | F128: Mbps
C129: seuil de migration STM-4 -> STM-16 | E129: =2*E125 -> 1008 | F129: Mbps
B131: Ethernet
C132: seuil de migration 1GE -> 10GE | E132: 2 | F132: Gbps
B134: migration ATM -> Ethernet
C135: date arrêt installation nouveaux équipements ATM | E135: 2010-01-01
C136: durée migration ATM -> Ethernet (en années) | E136: 5 | F136: ans
C137: durée migration ATM -> Ethernet (en trimestres) | E137: =E136*4 -> 20 | F137: trimestres
A140: Dimensionnement des équipements de collecte - Nœuds de raccordement d'abonnés (NRA)
B142: DSLAM - Ethernet
C143: utilisation maximale des ports | E143: 0.8
B145: DSLAM - ATM
C146: utilisation maximale des ports | E146: 0.8
B148: CWDM - NRA -> NA
C149: nombre de couleurs sur un système | E149: 8 | F149: couleurs
A152: Dimensionnement des équipements de collecte - Nœuds d'agrégation (NA)
B154: switch d'agrégation - Ethernet
C155: capacité des cartes 1GE | E155: 48 | F155: ports
C156: capacité des cartes 10GE | E156: 12 | F156: ports
C157: capacité des chassis | E157: 6 | F157: cartes
B159: routeur - Ethernet
C160: utilisation maximale des ports | E160: 0.6
C161: nombre minimum de ports sortants déployés pour résilience | E161: 2 | F161: ports
C162: capacité des cartes 1GE | E162: 4 | F162: ports
C163: capacité des cartes 10GE | E163: 2 | F163: ports
C164: capacité des chassis | E164: 12 | F164: cartes
B166: brasseur - ATM
C167: utilisation maximale des ports | E167: 0.6
C168: capacité des chassis | E168: 96 | F168: ports
B170: CWDM - NA -> NCR
C171: nombre de couleurs sur un système | E171: 8 | F171: couleurs
A174: Dimensionnement des équipements de collecte - Nœuds de concentration régionale (NCR)
B176: routeur - Ethernet
C177: nombre minimum de ports sortants déployés pour résilience | E177: 2 | F177: ports
C178: capacité des cartes 1GE | E178: 2 | F178: ports
C179: capacité des cartes 10GE | E179: 2 | F179: ports
C180: capacité des chassis | E180: 12 | F180: cartes
B182: brasseur - ATM
C183: capacité des chassis | E183: 96 | F183: ports
A186: Dimensionnement des équipements de collecte - Nœuds de cœur (NC)
B188: routeur - Ethernet
C189: utilisation maximale des ports | E189: 0.4
C190: nombre minimum de ports sortants déployés pour résilience | E190: 2 | F190: ports
C191: capacité des cartes 10GE | E191: 4 | F191: ports
C192: capacité des chassis | E192: 8 | F192: cartes
C193: facteur de redondance des chassis et cartes | E193: 2
B195: DWDM - NCR -> NC
C196: nombre de couleurs sur un système | E196: 40 | F196: couleurs
A199: Paramètres financiers
B201: coût du capital
E202: taux annuel | F202: taux trimestriel | G202: taux mensuel
C203: taux de rémunération du capital (taux nominal) | E203: 0.099 | F203: =(1+E203)^(1/4)-1 -> 0.02388085658 | G203: =(1+E203)^(1/12)-1 -> 0.007897746916
C204: taux de progrès technique | E204: 0.05 | F204: =(1+E204)^(1/4)-1 -> 0.01227223443 | G204: =(1+E204)^(1/12)-1 -> 0.004074123784
C205: taux composite | E205: =(1+E203)*(1+E204)-1 -> 0.15395 | F205: =(1+F203)*(1+F204)-1 -> 0.03644616248 | G205: 0.0120040471
B207: durée d'amortissement
E208: années | F208: trimestres | G208: mois
C209: FAS de ligne | E209: 3 | F209: =E209*4 -> 12 | G209: =E209*12 -> 36
C210: FAS emplacements / CdR / LIB / LD | E210: 5 | F210: =E210*4 -> 20 | G210: =E210*12 -> 60
C211: DSLAM | E211: 5 | F211: =E211*4 -> 20 | G211: 60
C212: loc. distante : génie civil, armoire, câbles cuivre | E212: 10 | F212: =E212*4 -> 40 | G212: 120
A215: Coûts propres de l'opérateur - accès - référence 2012
B217: accès "entreprises"
C218: FAS installation accès "entreprises" | D218: €/accès | E218: 200
C219: frais d'intervention pour signalisation | D219: €/intervention | E219: 300
C221: tarif mensuel supervision | D221: €/mois/accès | E221: 0.8
B223: DSLAM
C224: châssis DSLAM | D224: €/châssis | E224: 1500
C225: châssis micro-DSLAM | D225: €/châssis | E225: 500
C226: carte DSLAM ADSL | D226: €/carte | E226: 500
C227: carte DSLAM SDSL | D227: €/carte | E227: 500
B229: énergie
C230: achat et installation climatiseur | D230: €/climatiseur | E230: 10000
B232: localisation distante
C233: installation armoire | D233: €/armoire | E233: 11000
C234: dalle / percement chambre 0 | D234: €/site | E234: 5000
C235: génie civil fourreaux | D235: €/m | E235: 50
C236: Raccordement énergie | D236: €/site | E236: 2000
C237: Prix par mètre câble cuivre 112p | D237: €/m | E237: 10
C238: Prix par mètre câble cuivre 224p | D238: €/m | E238: 15
C239: Prix par mètre câble cuivre 448p | D239: €/m | E239: 25
C240: Prix par mètre câble cuivre 896p | D240: €/m | E240: 45
C242: maintenance | D242: €/mois/site | E242: 40
C243: location terrain | D243: €/mois/site | E243: 25
C245: abonnement mensuel énergie 3 kW | D245: €/mois | E245: 4.46
C246: tarif mensuel par kWh consommé | D246: €/mois/kWh | E246: 79
B248: emplacement NRA ZO
C249: FAS emplacement NRA ZO | D249: €/emplacement | E249: 500
C250: tarif mensuel emplacement et électricité | D250: €/mois/SU | E250: 200
B252: coûts communs
C253: = % des coûts techniques hors reversements à France Télécom | E253: 0.0537822103
B255: coûts d'ingénierie
C256: = % des reversements à France Télécom | E256: 0.11
A259: Coûts propres de l'opérateur - collecte
B261: reconstruction fibre optique de collecte
C262: reconstruction génie civil de collecte | D262: €/m.l | E262: 40
E265: durée de vie économique | F265: coût achat en 2012 | G265: maintenance annuelle | H265: taux progrès technique | I265: ="coût achat ramené en "&YEAR('COLLECTE - RESULTATS'!E4) -> coût achat ramené en 2012 | J265: Taux composite | K265: amortissement coût achat | L265: coût annuel
E266: années | F266: € | G266: % coût achat | I266: € | K266: €/an | L266: k€/an
B267: site NRA
C268: carte DSLAM 1GE | E268: 8 | F268: 1000 | G268: 0.1 | H268: 0.05 | I268: =F268/((1+H268)^(YEAR('COLLECTE - RESULTATS'!$E$4)-2012)) -> 1000 | J268: =(1+$E$203)*(1+H268)-1 -> 0.15395 | K268: =I268*(1+$E$203)*(1-1/(1+J268))/(1-1/(1+J268)^E268) -> 215.0017046 | L268: =(K268+G268*F268)/1000 -> 0.3150017046
C269: carte DSLAM 10GE | E269: 8 | F269: 2000 | G269: 0.1 | H269: 0.05 | I269: =F269/((1+H269)^(YEAR('COLLECTE - RESULTATS'!$E$4)-2012)) -> 2000 | J269: =(1+$E$203)*(1+H269)-1 -> 0.15395 | K269: =I269*(1+$E$203)*(1-1/(1+J269))/(1-1/(1+J269)^E269) -> 430.0034092 | L269: =(K269+G269*F269)/1000 -> 0.6300034092
C270: carte DSLAM STM-1 | E270: 8 | F270: 800 | G270: 0.1 | H270: 0.05 | I270: =F270/((1+H270)^(YEAR('COLLECTE - RESULTATS'!$E$4)-2012)) -> 800 | J270: 0.15395 | K270: 172.0013637 | L270: 0.2520013637
C271: carte DSLAM STM-4 | E271: 8 | F271: 1600 | G271: 0.1 | H271: 0.05 | I271: =F271/((1+H271)^(YEAR('COLLECTE - RESULTATS'!$E$4)-2012)) -> 1600 | J271: 0.15395 | K271: 344.0027274 | L271: 0.5040027274
C273: ADM - STM-1 | E273: 8 | F273: 5000 | G273: 0.1 | H273: 0.07 | I273: =F273/((1+H273)^(YEAR('COLLECTE - RESULTATS'!$E$4)-2012)) -> 5000 | J273: 0.17593 | K273: 1131.584756 | L273: 1.631584756
C274: ADM - STM-4 | E274: 8 | F274: 10000 | G274: 0.1 | H274: 0.07 | I274: =F274/((1+H274)^(YEAR('COLLECTE - RESULTATS'!$E$4)-2012)) -> 10000 | J274: 0.17593 | K274: 2263.169511 | L274: 3.263169511
B276: site Nœud d'agrégation
C277: site - acquisition, préparation et maintenance | E277: 40 | F277: 100000 | G277: 0.06 | H277: 0.02 | I277: =F277/((1+H277)^(YEAR('COLLECTE - RESULTATS'!$E$4)-2012)) -> 100000 | J277: 0.12098 | K277: 11985.1582 | L277: 17.9851582
C278: site - climatisation | E278: 8 | F278: 10000 | G278: 0.04 | H278: 0 | I278: =F278/((1+H278)^(YEAR('COLLECTE - RESULTATS'!$E$4)-2012)) -> 10000 | J278: 0.099 | K278: 1867.621772 | L278: 2.267621772
... 48 more rows

Sheet ODR DEGROUPAGE
C2: date publication Offre de Référence de France Télécom | E2: 2002-06-14 | F2: 2003-12-12 | G2: 2004-10-20 | H2: 2005-02-01 | I2: 2005-04-15 | J2: 2005-07-27 | K2: 2006-01-19 | L2: 2006-06-30 | M2: 2006-10-27 | N2: 2007-06-11 | O2: 2007-12-19 | P2: 2008-05-15 | Q2: 2009-11-27 | R2: 2010-02-19 | S2: 2011-01-24 | T2: 2011-07-29 | U2: 2012-01-20 | V2: 2012-06-28
C3: date application | E3: 2002-09-01 | F3: 2004-01-01 | G3: 2004-12-01 | H3: 2005-03-01 | I3: 2005-06-01 | J3: 2005-08-01 | K3: 2006-02-01 | L3: 2006-09-01 | M3: 2006-11-01 | N3: 2007-09-01 | O3: 2008-02-01 | P3: 2008-07-01 | Q3: 2010-01-01 | R3: 2010-04-01 | S3: 2011-03-01 | T3: 2011-09-01 | U3: 2012-01-01 | V3: 2012-07-01
A5: Ligne
C6: FAS accès Total | D6: €/accès | E6: 78.7 | F6: 78.7 | G6: 78.7 | H6: 50 | I6: 50 | J6: 50 | K6: 50 | L6: 50 | M6: 50 | N6: 50 | O6: 50 | P6: 50 | Q6: 50 | R6: 50 | S6: 50 | T6: 50 | U6: 56 | V6: 56
C7: FAS accès Total mono-paire - construction de ligne | D7: €/accès | E7: 364.39 | F7: 364.39 | G7: 364.39 | H7: 209.92 | I7: 209.92 | J7: 209.92 | K7: 209.92 | L7: 50 | M7: 50 | N7: 50 | O7: 50 | P7: 50 | Q7: 50 | R7: 50 | S7: 50 | T7: 50 | U7: 56 | V7: 56
C8: FAS accès Total bi-paires - construction de ligne | D8: €/accès | E8: =2*E6+(E7-E6) -> 443.09 | F8: =2*F6+(F7-F6) -> 443.09 | G8: 443.09 | H8: 259.92 | I8: 259.92 | J8: 295.24 | K8: 295.24 | L8: 78 | M8: 78 | N8: 78 | O8: 78 | P8: 78 | Q8: 78 | R8: 78 | S8: 78 | T8: 78 | U8: 88 | V8: 88
C9: FAS accès Total quadri-paires - construction de ligne | D9: €/accès | E9: =4*E6+(E7-E6) -> 600.49 | F9: =4*F6+(F7-F6) -> 600.49 | G9: 600.49 | H9: 359.92 | I9: 359.92 | J9: 465.88 | K9: 465.88 | L9: 132 | M9: 132 | N9: 132 | O9: 132 | P9: 132 | Q9: 132 | R9: 132 | S9: 132 | T9: 132 | U9: 148 | V9: 148
C10: FAS accès Partiel | D10: €/accès | E10: 75.7 | F10: 78.7 | G10: 78.7 | H10: 55 | I10: 55 | J10: 55 | K10: 55 | L10: 55 | M10: 55 | N10: 60 | O10: 60 | P10: 60 | Q10: 60 | R10: 60 | S10: 60 | T10: 60 | U10: 66 | V10: 66
C12: Frais de résilliation accès Total | D12: €/accès | E12: 40.7 | F12: 40.7 | G12: 40.7 | H12: 30 | I12: 30 | J12: 30 | K12: 30 | L12: 30 | M12: 30 | N12: 30 | O12: 30 | P12: 15 | Q12: 15 | R12: 15 | S12: 15 | T12: 15 | U12: 20 | V12: 20
C13: Frais de résilliation accès Partiel | D13: €/accès | E13: 40.7 | F13: 40.7 | G13: 40.7 | H13: 35 | I13: 35 | J13: 35 | K13: 35 | L13: 35 | M13: 35 | N13: 35 | O13: 35 | P13: 35 | Q13: 35 | R13: 35 | S13: 35 | T13: 35 | U13: 35 | V13: 35
C15: Frais de commande non conforme | D15: €/accès | E15: 59.46 | F15: 59.46 | G15: 59.46 | H15: 41 | I15: 41 | J15: 41 | K15: 41 | L15: 41 | M15: 41 | N15: 41 | O15: 41 | P15: 41 | Q15: 41 | R15: 41 | S15: 41 | T15: 41 | U15: 41 | V15: 41
C17: Tarif mensuel accès Total | D17: €/mois/accès | E17: 10.5 | F17: 10.5 | G17: 10.5 | H17: 10.5 | I17: 9.5 | J17: 9.5 | K17: 9.5 | L17: 9.29 | M17: 9.29 | N17: 9.29 | O17: 9.29 | P17: 9.29 | Q17: 9 | R17: 9 | S17: 9 | T17: 9 | U17: 8.8 | V17: 8.8
C18: Tarif mensuel accès Partiel | D18: €/mois/accès | E18: 2.86 | F18: 2.9 | G18: 2.9 | H18: 2.9 | I18: 2.9 | J18: 2.9 | K18: 2.9 | L18: 2.9 | M18: 2.9 | N18: 2.9 | O18: 2.9 | P18: 2.9 | Q18: 2.9 | R18: 2.9 | S18: 1.7 | T18: 1.7 | U18: 1.57 | V18: 1.57
C20: Tarif mensuel GTR 4h ouvrées - accès mono-paire | D20: €/mois/accès | E20: 5.95 | F20: 5.95 | G20: 5.95 | H20: 5.95 | I20: 5.95 | J20: 5.95 | K20: 5.95 | L20: 13.95 | M20: 8 | N20: 8 | O20: 8 | P20: 8 | Q20: 8 | R20: 8 | S20: 8 | T20: 8 | U20: 8 | V20: 8
C21: Tarif mensuel GTR 4h ouvrées - accès bi-paires | D21: €/mois/accès | E21: =2*E20 -> 11.9 | F21: =2*F20 -> 11.9 | G21: 11.9 | H21: 11.9 | I21: 11.9 | J21: 11.9 | K21: 18.5 | L21: 18.5 | M21: 10.61 | N21: 10.61 | O21: 10.61 | P21: 10.61 | Q21: 10.61 | R21: 10.61 | S21: 10.61 | T21: 10.61 | U21: 10.61 | V21: 10.61
C22: Tarif mensuel GTR 4h ouvrées - accès quadri-paires | D22: €/mois/accès | E22: =4*E20 -> 23.8 | F22: =4*F20 -> 23.8 | G22: 23.8 | H22: 23.8 | I22: 23.8 | J22: 23.8 | K22: 23 | L22: 23 | M22: 13.19 | N22: 13.19 | O22: 13.19 | P22: 13.19 | Q22: 13.19 | R22: 13.19 | S22: 13.19 | T22: 13.19 | U22: 13.19 | V22: 13.19
C23: Tarif mensuel GTR 4h 24/24 & 7/7 - accès mono-paire | D23: €/mois/accès | E23: 20 | F23: 20 | G23: 20 | H23: 20 | I23: 20 | J23: 20 | K23: 20 | L23: 28 | M23: 22 | N23: 22 | O23: 22 | P23: 22 | Q23: 22 | R23: 22 | S23: 22 | T23: 22 | U23: 22 | V23: 22
C24: Tarif mensuel GTR 4h 24/24 & 7/7 - accès bi-paires | D24: €/mois/accès | E24: =2*E23 -> 40 | F24: =2*F23 -> 40 | G24: 40 | H24: 40 | I24: 40 | J24: 40 | K24: 37.2 | L24: 37.2 | M24: 29.23 | N24: 29.23 | O24: 29.23 | P24: 29.23 | Q24: 29.23 | R24: 29.23 | S24: 29.23 | T24: 29.23 | U24: 29.23 | V24: 29.23
C25: Tarif mensuel GTR 4h 24/24 & 7/7 - accès quadri-paires | D25: €/mois/accès | E25: =4*E23 -> 80 | F25: =4*F23 -> 80 | G25: 80 | H25: 80 | I25: 80 | J25: 80 | K25: 46.4 | L25: 46.4 | M25: 36.46 | N25: 36.46 | O25: 36.46 | P25: 36.46 | Q25: 36.46 | R25: 36.46 | S25: 36.46 | T25: 36.46 | U25: 36.46 | V25: 36.46
C27: Tarif mensuel protection accès sensible | D27: €/mois/accès | N27: 0.5 | O27: 0.5 | P27: 0.1 | Q27: 0.1 | R27: 0.1 | S27: 0.1 | T27: 0.1 | U27: 0.1 | V27: 0.1
A29: Salle de cohabitation
B30: Emplacement
C31: Frais de mise à disposition d'un emplacement | D31: €/emplacement | E31: 3353.88 | F31: 2450 | G31: 2450 | H31: 2450 | I31: 2450 | J31: 1782.4 | K31: 1782.4 | L31: 1782.4 | M31: 1782.4 | N31: 1782.4 | O31: 1782.4 | P31: 1782.4 | Q31: 1782.4 | R31: 1782.4 | S31: 1782.4 | T31: 1782.4 | U31: 1782.4 | V31: 1782.4
C33: Tarif mensuel emplacement zone 1 | D33: €/mois/emplacement | E33: 130.8516667 | F33: 119.8 | G33: 119.8 | H33: 119.8 | I33: 119.8 | J33: 125.43 | K33: 125.43 | L33: 125.43 | M33: 125.43 | N33: 125.43 | O33: 125.43 | P33: 125.43 | Q33: 125.43 | R33: 125.43 | S33: 125.43 | T33: 125.43 | U33: 125.43 | V33: 125.43
C34: Tarif mensuel emplacement zone 2 | D34: €/mois/emplacement | E34: 67.96666667 | F34: 73.35 | G34: 73.35 | H34: 73.35 | I34: 73.35 | J34: 83.39 | K34: 83.39 | L34: 83.39 | M34: 83.39 | N34: 83.39 | O34: 83.39 | P34: 83.39 | Q34: 83.39 | R34: 83.39 | S34: 83.39 | T34: 83.39 | U34: 83.39 | V34: 83.39
C35: Tarif mensuel emplacement zone 3 | D35: €/mois/emplacement | E35: 55.89833333 | F35: 62.52 | G35: 62.52 | H35: 62.52 | I35: 62.52 | J35: 67.44 | K35: 67.44 | L35: 67.44 | M35: 67.44 | N35: 67.44 | O35: 67.44 | P35: 67.44 | Q35: 67.44 | R35: 67.44 | S35: 67.44 | T35: 67.44 | U35: 67.44 | V35: 67.44
C36: Tarif mensuel emplacement zone 4 | D36: €/mois/emplacement | E36: 35.06333333 | F36: 47.61 | G36: 47.61 | H36: 47.61 | I36: 47.61 | J36: 55.34 | K36: 55.34 | L36: 55.34 | M36: 55.34 | N36: 55.34 | O36: 55.34 | P36: 55.34 | Q36: 55.34 | R36: 55.34 | S36: 55.34 | T36: 55.34 | U36: 55.34 | V36: 55.34
C37: Tarif mensuel emplacement zone 5 | D37: €/mois/emplacement | E37: 32.77666667 | F37: 47.61 | G37: 47.61 | H37: 47.61 | I37: 47.61 | J37: 55.34 | K37: 55.34 | L37: 55.34 | M37: 55.34 | N37: 55.34 | O37: 55.34 | P37: 55.34 | Q37: 55.34 | R37: 55.34 | S37: 55.34 | T37: 55.34 | U37: 55.34 | V37: 55.34
C39: Charges mensuelles spécifiques | D39: €/mois/emplacement | E39: 27.88 | F39: 27.88 | G39: 27.88 | H39: 27.88 | I39: 27.88 | J39: 38.3 | K39: 38.3 | L39: 38.3 | M39: 38.3 | N39: 38.3 | O39: 38.3 | P39: 38.3 | Q39: 38.3 | R39: 38.3 | S39: 38.3 | T39: 38.3 | U39: 38.3 | V39: 38.3
B41: Energie
C42: Tarif mensuel par kW commandé 48V | D42: €/mois/kW | E42: 200.4333333 | F42: 200.43 | G42: 200.43 | H42: 200.43 | I42: 200.43 | J42: 122.9 | K42: 122.9 | L42: 122.9 | M42: 122.9 | N42: 122.9 | O42: 122.9 | P42: 122.9 | Q42: 122.9 | R42: 122.9 | S42: 119.0925 | T42: 119.0925 | U42: 119.0925 | V42: 165
C43: Tarif mensuel par kW commandé 48V avec ventilation mécanique | D43: €/mois/kW | E43: 205.6416667 | F43: 205.64 | G43: 205.64 | H43: 205.64 | I43: 205.64 | J43: 155.1 | K43: 155.1 | L43: 155.1 | M43: 155.1 | N43: 155.1 | O43: 155.1 | P43: 155.1 | Q43: 155.1 | R43: 155.1 | S43: 144.5491667 | T43: 144.5491667 | U43: 144.5491667 | V43: 165
C44: Tarif mensuel par kW commandé 48V avec climatisation opérateur | D44: €/mois/kW | E44: 266.545 | F44: 266.54 | G44: 266.54 | H44: 266.54 | I44: 266.54 | J44: 179.57 | K44: 179.57 | L44: 179.57 | M44: 179.57 | N44: 179.57 | O44: 179.57 | P44: 179.57 | Q44: 179.57 | R44: 179.57 | S44: 165.915 | T44: 165.915 | U44: 165.915 | V44: 165
B46: Câble de renvoi
C47: FAS CdR mono-module | D47: €/câble | E47: 0 | F47: 0 | G47: 0 | H47: 0 | I47: 0 | J47: 0 | K47: 0 | L47: 0 | M47: 0 | N47: 0 | O47: 0 | P47: 1967 | Q47: 1967 | R47: 1967 | S47: 1968 | T47: 1968 | U47: 1968 | V47: 1968
C48: FAS CdR multi-modules | D48: €/câble | E48: 600 | F48: 600 | G48: 600 | H48: 600 | I48: 600 | J48: 0 | K48: 0 | L48: 0 | M48: 0 | N48: 0 | O48: 0 | P48: 3195 | Q48: 3195 | R48: 3195 | S48: 3224 | T48: 3224 | U48: 3224 | V48: 3224
C50: Tarif mensuel CdR mono-module | D50: €/mois/câble | E50: 131 | F50: 104.41 | G50: 104.41 | H50: 104.41 | I50: 104.41 | J50: 71.75 | K50: 71.75 | L50: 71.75 | M50: 71.75 | N50: 71.75 | O50: 71.75 | P50: 11.5 | Q50: 11.5 | R50: 11.5 | S50: 5.6 | T50: 5.6 | U50: 5.6 | V50: 5.6
C51: Tarif mensuel CdR multi-modules | D51: €/mois/câble | E51: 180 | F51: 180 | G51: 180 | H51: 180 | I51: 180 | J51: 116.94 | K51: 116.94 | L51: 116.94 | M51: 116.94 | N51: 116.94 | O51: 116.94 | P51: 18.1 | Q51: 18.1 | R51: 18.1 | S51: 8.1 | T51: 8.1 | U51: 8.1 | V51: 8.1
B53: Câble de renvoi installé avant le 01/07/2008
C54: Tarif mensuel CdR mono-module + de 5 ans | D54: €/mois/câble | P54: 53.5 | Q54: 53.5 | R54: 53.5 | S54: 47.3 | T54: 47.3 | U54: 47.3 | V54: 47.3
C55: Tarif mensuel CdR multi-modules + de 5 ans | D55: €/mois/câble | P55: 87.3 | Q55: 87.3 | R55: 87.3 | S55: 77.2 | T55: 77.2 | U55: 77.2 | V55: 77.2
C57: Tarif mensuel CdR mono-module - de 5 ans | D57: €/mois/câble | P57: 11.5 | Q57: 11.5 | R57: 11.5 | S57: 5.6 | T57: 5.6 | U57: 5.6 | V57: 5.6
C58: Tarif mensuel CdR multi-modules - de 5 ans | D58: €/mois/câble | P58: 18.1 | Q58: 18.1 | R58: 18.1 | S58: 8.1 | T58: 8.1 | U58: 8.1 | V58: 8.1
A60: Espace dédié
B61: Emplacement
C62: Frais d'aménagement de l'espace | D62: €/emplacement | E62: 4000 | F62: 4200 | G62: 4200 | H62: 4200 | I62: 4200 | J62: 2200 | K62: 2200 | L62: 2200 | M62: 2200 | N62: 2200 | O62: 2200 | P62: 2200 | Q62: 2200 | R62: 2200 | S62: 2200 | T62: 3957 | U62: 3957 | V62: 3957
C63: Frais de mise à disposition d'un emplacement | D63: €/emplacement | E63: 3353.88 | F63: 2450 | G63: 2450 | H63: 2450 | I63: 2450 | J63: 1782.4 | K63: 1782.4 | L63: 1782.4 | M63: 1782.4 | N63: 1782.4 | O63: 1782.4 | P63: 1782.4 | Q63: 1782.4 | R63: 1782.4 | S63: 1782.4 | T63: 1782.4 | U63: 1782.4 | V63: 1782.4
C65: Tarif mensuel emplacement zone 1 | D65: €/mois/emplacement | E65: 398.01 | F65: 419.4 | G65: 419.4 | H65: 419.4 | I65: 419.4 | J65: 249.42 | K65: 249.42 | L65: 249.42 | M65: 249.42 | N65: 249.42 | O65: 249.42 | P65: 268.21 | Q65: 268.21 | R65: 268.21 | S65: 268.21 | T65: 133.02 | U65: 133.02 | V65: 133.02
C66: Tarif mensuel emplacement zone 2 | D66: €/mois/emplacement | E66: 350.67 | F66: 370.41 | G66: 370.41 | H66: 370.41 | I66: 370.41 | J66: 205.72 | K66: 205.72 | L66: 205.72 | M66: 205.72 | N66: 205.72 | O66: 205.72 | P66: 218.21 | Q66: 218.21 | R66: 218.21 | S66: 218.21 | T66: 98.96 | U66: 98.96 | V66: 98.96
C67: Tarif mensuel emplacement zone 3 | D67: €/mois/emplacement | E67: 339.63 | F67: 358.98 | G67: 358.98 | H67: 358.98 | I67: 358.98 | J67: 192.05 | K67: 192.05 | L67: 192.05 | M67: 192.05 | N67: 192.05 | O67: 192.05 | P67: 202.15 | Q67: 202.15 | R67: 202.15 | S67: 202.15 | T67: 86.03 | U67: 86.03 | V67: 86.03
C68: Tarif mensuel emplacement zone 4 | D68: €/mois/emplacement | E68: 325.06 | F68: 343.26 | G68: 343.26 | H68: 343.26 | I68: 343.26 | J68: 181.68 | K68: 181.68 | L68: 181.68 | M68: 181.68 | N68: 181.68 | O68: 181.68 | P68: 189.97 | Q68: 189.97 | R68: 189.97 | S68: 189.97 | T68: 76.23 | U68: 76.23 | V68: 76.23
C69: Tarif mensuel emplacement zone 5 | D69: €/mois/emplacement | E69: 325.06 | F69: 343.26 | G69: 343.26 | H69: 343.26 | I69: 343.26 | J69: 181.68 | K69: 181.68 | L69: 181.68 | M69: 181.68 | N69: 181.68 | O69: 181.68 | P69: 189.97 | Q69: 189.97 | R69: 189.97 | S69: 189.97 | T69: 76.23 | U69: 76.23 | V69: 76.23
B71: Energie
C72: Tarif mensuel par emplacement équipé à 2 kW | D72: €/mois/emplacement | E72: 0 | F72: 159.75 | G72: 159.75 | H72: 159.75 | I72: 159.75 | J72: 134.4 | K72: 134.4 | L72: 134.4 | M72: 134.4 | N72: 134.4 | O72: 134.4 | P72: 134.4 | Q72: 134.4 | R72: 134.4 | S72: 126.4266667 | T72: 126.4266667 | U72: 126.4266667 | V72: 180
C73: Tarif mensuel par emplacement équipé à 2 kW avec ventilation | D73: €/mois/emplacement | E73: 0 | F73: 251.66 | G73: 251.66 | H73: 251.66 | I73: 251.66 | J73: 216.15 | K73: 216.15 | L73: 216.15 | M73: 216.15 | N73: 216.15 | O73: 216.15 | P73: 216.15 | Q73: 216.15 | R73: 216.15 | S73: 199.0333333 | T73: 199.0333333 | U73: 199.0333333 | V73: 180
C74: Tarif mensuel par emplacement équipé à 2 kW avec climatisation France Télécom | D74: €/mois/emplacement | E74: 0 | F74: 257.08 | G74: 257.08 | H74: 257.08 | I74: 257.08 | J74: 249.67 | K74: 249.67 | L74: 249.67 | M74: 249.67 | N74: 249.67 | O74: 249.67 | P74: 249.67 | Q74: 249.67 | R74: 249.67 | S74: 227.0891667 | T74: 227.0891667 | U74: 227.0891667 | V74: 180
C75: Tarif mensuel par emplacement équipé à 2 kW avec climatisation opérateur | D75: €/mois/emplacement | E75: 0 | F75: 168.25 | G75: 168.25 | H75: 168.25 | I75: 168.25 | J75: 166.76 | K75: 166.76 | L75: 166.76 | M75: 166.76 | N75: 166.76 | O75: 166.76 | P75: 166.76 | Q75: 166.76 | R75: 166.76 | S75: 158.6691667 | T75: 158.6691667 | U75: 158.6691667 | V75: 180
C76: Tarif mensuel par emplacement équipé à 4 kW | D76: €/mois/emplacement | E76: 0 | F76: 319.5 | G76: 319.5 | H76: 319.5 | I76: 319.5 | J76: 268.8 | K76: 268.8 | L76: 268.8 | M76: 268.8 | N76: 268.8 | O76: 268.8 | P76: 268.8 | Q76: 268.8 | R76: 268.8 | S76: 252.8533333 | T76: 252.8533333 | U76: 252.8533333 | V76: 360
C77: Tarif mensuel par emplacement équipé à 4 kW avec ventilation | D77: €/mois/emplacement | E77: 0 | F77: 503.33 | G77: 503.33 | H77: 503.33 | I77: 503.33 | J77: 432.3 | K77: 432.3 | L77: 432.3 | M77: 432.3 | N77: 432.3 | O77: 432.3 | P77: 432.3 | Q77: 432.3 | R77: 432.3 | S77: 398.0675 | T77: 398.0675 | U77: 398.0675 | V77: 360
C78: Tarif mensuel par emplacement équipé à 4 kW avec climatisation France Télécom | D78: €/mois/emplacement | E78: 0 | F78: 514.16 | G78: 514.16 | H78: 514.16 | I78: 514.16 | J78: 499.34 | K78: 499.34 | L78: 499.34 | M78: 499.34 | N78: 499.34 | O78: 499.34 | P78: 499.34 | Q78: 499.34 | R78: 499.34 | S78: 454.1783333 | T78: 454.1783333 | U78: 454.1783333 | V78: 360
C79: Tarif mensuel par emplacement équipé à 4 kW avec climatisation opérateur | D79: €/mois/emplacement | E79: 0 | F79: 336.5 | G79: 336.5 | H79: 336.5 | I79: 336.5 | J79: 333.52 | K79: 333.52 | L79: 333.52 | M79: 333.52 | N79: 333.52 | O79: 333.52 | P79: 333.52 | Q79: 333.52 | R79: 333.52 | S79: 317.3383333 | T79: 317.3383333 | U79: 317.3383333 | V79: 360
C81: Tarif mensuel par kW commandé 48V | D81: €/mois/kW | E81: 221.9125 | F81: 134.16 | G81: 134.16 | H81: 134.16 | I81: 134.16 | J81: 93.36 | K81: 93.36 | L81: 93.36 | M81: 93.36 | N81: 93.36 | O81: 93.36 | P81: 93.36 | Q81: 93.36 | R81: 93.36 | S81: 96.72083333 | T81: 96.72083333 | U81: 96.72083333 | V81: 107
C82: Tarif mensuel par kW commandé 48V avec ventilation mécanique | D82: €/mois/kW | E82: 229.6491667 | F82: 155.41 | G82: 155.41 | H82: 155.41 | I82: 155.41 | J82: 96.03 | K82: 96.03 | L82: 96.03 | M82: 96.03 | N82: 96.03 | O82: 96.03 | P82: 96.03 | Q82: 96.03 | R82: 96.03 | S82: 99.5075 | T82: 99.5075 | U82: 99.5075 | V82: 107
C83: Tarif mensuel par kW commandé 48V avec climatisation | D83: €/mois/kW | E83: 289.7233333 | F83: 199.75 | G83: 199.75 | H83: 199.75 | I83: 199.75 | J83: 116.78 | K83: 116.78 | L83: 116.78 | M83: 116.78 | N83: 116.78 | O83: 116.78 | P83: 116.78 | Q83: 116.78 | R83: 116.78 | S83: 121.1025 | T83: 121.1025 | U83: 121.1025 | V83: 107
B85: Câble de renvoi
C86: FAS CdR mono-module | D86: €/câble | E86: 0 | F86: 0 | G86: 0 | H86: 0 | I86: 0 | J86: 0 | K86: 0 | L86: 0 | M86: 0 | N86: 0 | O86: 0 | P86: 1723 | Q86: 1723 | R86: 1723 | S86: 1575 | T86: 1575 | U86: 1575 | V86: 1575
C87: FAS CdR multi-modules | D87: €/câble | E87: 600 | F87: 600 | G87: 600 | H87: 600 | I87: 600 | J87: 0 | K87: 0 | L87: 0 | M87: 0 | N87: 0 | O87: 0 | P87: 2951 | Q87: 2951 | R87: 2951 | S87: 2831 | T87: 2831 | U87: 2831 | V87: 2831
C89: Tarif mensuel CdR mono-module | D89: €/mois/câble | E89: 82 | F89: 78.05 | G89: 78.05 | H89: 78.05 | I89: 78.05 | J89: 57.22 | K89: 57.22 | L89: 57.22 | M89: 57.22 | N89: 57.22 | O89: 57.22 | P89: 10.2 | Q89: 10.2 | R89: 10.2 | S89: 4.8 | T89: 4.8 | U89: 4.8 | V89: 4.8
C90: Tarif mensuel CdR multi-modules | D90: €/mois/câble | E90: 180 | F90: 180 | G90: 180 | H90: 180 | I90: 180 | J90: 102.42 | K90: 102.42 | L90: 102.42 | M90: 102.42 | N90: 102.42 | O90: 102.42 | P90: 16.8 | Q90: 16.8 | R90: 16.8 | S90: 7.3 | T90: 7.3 | U90: 7.3 | V90: 7.3
B92: Câble de renvoi installé avant le 01/07/2008
C93: Tarif mensuel CdR mono-module + de 5 ans | D93: €/mois/câble | P93: 47 | Q93: 47 | R93: 47 | S93: 38.2 | T93: 38.2 | U93: 38.2 | V93: 38.2
C94: Tarif mensuel CdR multi-modules + de 5 ans | D94: €/mois/câble | P94: 80.8 | Q94: 80.8 | R94: 80.8 | S94: 68.1 | T94: 68.1 | U94: 68.1 | V94: 68.1
C96: Tarif mensuel CdR mono-module - de 5 ans | D96: €/mois/câble | P96: 10.2 | Q96: 10.2 | R96: 10.2 | S96: 4.8 | T96: 4.8 | U96: 4.8 | V96: 4.8
C97: Tarif mensuel CdR multi-modules - de 5 ans | D97: €/mois/câble | P97: 16.8 | Q97: 16.8 | R97: 16.8 | S97: 7.3 | T97: 7.3 | U97: 7.3 | V97: 7.3
A99: Espace restreint
B100: Emplacement
C101: Frais d'aménagement de l'espace | D101: €/emplacement | F101: 3800 | G101: 3800 | H101: 3800 | I101: 3800 | J101: 2000 | K101: 2000 | L101: 2000 | M101: 2000 | N101: 2000 | O101: 2000 | P101: 2000 | Q101: 2000 | R101: 2000 | S101: 2000 | T101: 4763 | U101: 4763 | V101: 4763
C102: Frais de mise à disposition d'un emplacement | D102: €/emplacement | F102: 2450 | G102: 2450 | H102: 2450 | I102: 2450 | J102: 1782.4 | K102: 1782.4 | L102: 1782.4 | M102: 1782.4 | N102: 1782.4 | O102: 1782.4 | P102: 1782.4 | Q102: 1782.4 | R102: 1782.4 | S102: 1782.4 | T102: 1782.4 | U102: 1782.4 | V102: 1782.4
C104: Tarif mensuel emplacement zone 1 | D104: €/mois/emplacement | F104: 361.21 | G104: 361.21 | H104: 361.21 | I104: 361.21 | J104: 201.05 | K104: 201.05 | L104: 201.05 | M104: 201.05 | N104: 201.05 | O104: 201.05 | P104: 216.71 | Q104: 216.71 | R104: 216.71 | S104: 216.71 | T104: 107.7 | U104: 107.7 | V104: 107.7
C105: Tarif mensuel emplacement zone 2 | D105: €/mois/emplacement | F105: 323.42 | G105: 323.42 | H105: 323.42 | I105: 323.42 | J105: 171.02 | K105: 171.02 | L105: 171.02 | M105: 171.02 | N105: 171.02 | O105: 171.02 | P105: 181.43 | Q105: 181.43 | R105: 181.43 | S105: 181.43 | T105: 80.69 | U105: 80.69 | V105: 80.69
C106: Tarif mensuel emplacement zone 3 | D106: €/mois/emplacement | F106: 314.6 | G106: 314.6 | H106: 314.6 | I106: 314.6 | J106: 159.62 | K106: 159.62 | L106: 159.62 | M106: 159.62 | N106: 159.62 | O106: 159.62 | P106: 168.04 | Q106: 168.04 | R106: 168.04 | S106: 168.04 | T106: 70.44 | U106: 70.44 | V106: 70.44
C107: Tarif mensuel emplacement zone 4 | D107: €/mois/emplacement | F107: 302.48 | G107: 302.48 | H107: 302.48 | I107: 302.48 | J107: 150.98 | K107: 150.98 | L107: 150.98 | M107: 150.98 | N107: 150.98 | O107: 150.98 | P107: 157.89 | Q107: 157.89 | R107: 157.89 | S107: 157.89 | T107: 62.67 | U107: 62.67 | V107: 62.67
C108: Tarif mensuel emplacement zone 5 | D108: €/mois/emplacement | F108: 302.48 | G108: 302.48 | H108: 302.48 | I108: 302.48 | J108: 150.98 | K108: 150.98 | L108: 150.98 | M108: 150.98 | N108: 150.98 | O108: 150.98 | P108: 157.89 | Q108: 157.89 | R108: 157.89 | S108: 157.89 | T108: 62.67 | U108: 62.67 | V108: 62.67
B110: Energie
C111: Tarif mensuel par emplacement équipé à 2 kW | D111: €/mois/emplacement | F111: 159.75 | G111: 159.75 | H111: 159.75 | I111: 159.75 | J111: 134.4 | K111: 134.4 | L111: 134.4 | M111: 134.4 | N111: 134.4 | O111: 134.4 | P111: 134.4 | Q111: 134.4 | R111: 134.4 | S111: 126.4266667 | T111: 126.4266667 | U111: 126.4266667 | V111: 180
C112: Tarif mensuel par emplacement équipé à 2 kW avec ventilation | D112: €/mois/emplacement | F112: 251.66 | G112: 251.66 | H112: 251.66 | I112: 251.66 | J112: 216.15 | K112: 216.15 | L112: 216.15 | M112: 216.15 | N112: 216.15 | O112: 216.15 | P112: 216.15 | Q112: 216.15 | R112: 216.15 | S112: 199.0333333 | T112: 199.0333333 | U112: 199.0333333 | V112: 180
C113: Tarif mensuel par emplacement équipé à 2 kW avec climatisation France Télécom | D113: €/mois/emplacement | F113: 257.08 | G113: 257.08 | H113: 257.08 | I113: 257.08 | J113: 249.67 | K113: 249.67 | L113: 249.67 | M113: 249.67 | N113: 249.67 | O113: 249.67 | P113: 249.67 | Q113: 249.67 | R113: 249.67 | S113: 227.0891667 | T113: 227.0891667 | U113: 227.0891667 | V113: 180
C114: Tarif mensuel par emplacement équipé à 2 kW avec climatisation opérateur | D114: €/mois/emplacement | F114: 168.25 | G114: 168.25 | H114: 168.25 | I114: 168.25 | J114: 166.76 | K114: 166.76 | L114: 166.76 | M114: 166.76 | N114: 166.76 | O114: 166.76 | P114: 166.76 | Q114: 166.76 | R114: 166.76 | S114: 158.6691667 | T114: 158.6691667 | U114: 158.6691667 | V114: 180
C116: Tarif mensuel par kW commandé 48V | D116: €/mois/kW | F116: 134.16 | G116: 134.16 | H116: 134.16 | I116: 134.16 | J116: 93.36 | K116: 93.36 | L116: 93.36 | M116: 93.36 | N116: 93.36 | O116: 93.36 | P116: 93.36 | Q116: 93.36 | R116: 93.36 | S116: 96.72083333 | T116: 96.72083333 | U116: 96.72083333 | V116: 85
C117: Tarif mensuel par kW commandé 48V avec ventilation mécanique | D117: €/mois/kW | F117: 155.41 | G117: 155.41 | H117: 155.41 | I117: 155.41 | J117: 96.03 | K117: 96.03 | L117: 96.03 | M117: 96.03 | N117: 96.03 | O117: 96.03 | P117: 96.03 | Q117: 96.03 | R117: 96.03 | S117: 99.5075 | T117: 99.5075 | U117: 99.5075 | V117: 85
C118: Tarif mensuel par kW commandé 48V avec climatisation | D118: €/mois/kW | F118: 199.75 | G118: 199.75 | H118: 199.75 | I118: 199.75 | J118: 116.78 | K118: 116.78 | L118: 116.78 | M118: 116.78 | N118: 116.78 | O118: 116.78 | P118: 116.78 | Q118: 116.78 | R118: 116.78 | S118: 121.1025 | T118: 121.1025 | U118: 121.1025 | V118: 85
B120: Câble de renvoi
C121: FAS CdR mono-module | D121: €/câble | F121: 0 | G121: 0 | H121: 0 | I121: 0 | J121: 0 | K121: 0 | L121: 0 | M121: 0 | N121: 0 | O121: 0 | P121: 1723 | Q121: 1723 | R121: 1723 | S121: 1575 | T121: 1575 | U121: 1575 | V121: 1575
C122: FAS CdR multi-modules | D122: €/câble | F122: 600 | G122: 600 | H122: 600 | I122: 600 | J122: 0 | K122: 0 | L122: 0 | M122: 0 | N122: 0 | O122: 0 | P122: 2951 | Q122: 2951 | R122: 2951 | S122: 2831 | T122: 2831 | U122: 2831 | V122: 2831
C124: Tarif mensuel CdR mono-module | D124: €/mois/câble | F124: 78.05 | G124: 78.05 | H124: 78.05 | I124: 78.05 | J124: 57.22 | K124: 57.22 | L124: 57.22 | M124: 57.22 | N124: 57.22 | O124: 57.22 | P124: 10.2 | Q124: 10.2 | R124: 10.2 | S124: 4.8 | T124: 4.8 | U124: 4.8 | V124: 4.8
C125: Tarif mensuel CdR multi-modules | D125: €/mois/câble | F125: 180 | G125: 180 | H125: 180 | I125: 180 | J125: 102.42 | K125: 102.42 | L125: 102.42 | M125: 102.42 | N125: 102.42 | O125: 102.42 | P125: 16.8 | Q125: 16.8 | R125: 16.8 | S125: 7.3 | T125: 7.3 | U125: 7.3 | V125: 7.3
B127: Câble de renvoi installé avant le 01/07/2008
C128: Tarif mensuel CdR mono-module + de 5 ans | D128: €/mois/câble | P128: 47 | Q128: 47 | R128: 47 | S128: 38.2 | T128: 38.2 | U128: 38.2 | V128: 38.2
C129: Tarif mensuel CdR multi-modules + de 5 ans | D129: €/mois/câble | P129: 80.8 | Q129: 80.8 | R129: 80.8 | S129: 68.1 | T129: 68.1 | U129: 68.1 | V129: 68.1
C131: Tarif mensuel CdR mono-module - de 5 ans | D131: €/mois/câble | P131: 10.2 | Q131: 10.2 | R131: 10.2 | S131: 4.8 | T131: 4.8 | U131: 4.8 | V131: 4.8
C132: Tarif mensuel CdR multi-modules - de 5 ans | D132: €/mois/câble | P132: 16.8 | Q132: 16.8 | R132: 16.8 | S132: 7.3 | T132: 7.3 | U132: 7.3 | V132: 7.3
A134: Espace Très Petit Site
B135: Emplacement
C136: Frais d'aménagement de l'espace | D136: €/emplacement | I136: 3100 | J136: 1800 | K136: 1800 | L136: 1800 | M136: 1800 | N136: 1800 | O136: 1800 | P136: 1800 | Q136: 1800 | R136: 1800 | S136: 1800 | T136: 5297 | U136: 5297 | V136: 5297
C137: Frais de mise à disposition d'un emplacement | D137: €/emplacement | I137: 2450 | J137: 1782.4 | K137: 1782.4 | L137: 1782.4 | M137: 1782.4 | N137: 1782.4 | O137: 1782.4 | P137: 1782.4 | Q137: 1782.4 | R137: 1782.4 | S137: 1782.4 | T137: 1782.4 | U137: 1782.4 | V137: 1782.4
C139: Tarif mensuel emplacement zone 1 | D139: €/mois/emplacement | I139: 304.01 | J139: 180.94 | K139: 180.94 | L139: 180.94 | M139: 180.94 | N139: 180.94 | O139: 180.94 | P139: 180.94 | Q139: 180.94 | R139: 180.94 | S139: 180.94 | T139: 75.86 | U139: 75.86 | V139: 75.86
C140: Tarif mensuel emplacement zone 2 | D140: €/mois/emplacement | I140: 274.14 | J140: 153.92 | K140: 153.92 | L140: 153.92 | M140: 153.92 | N140: 153.92 | O140: 153.92 | P140: 153.92 | Q140: 153.92 | R140: 153.92 | S140: 153.92 | T140: 53.53 | U140: 53.53 | V140: 53.53
C141: Tarif mensuel emplacement zone 3 | D141: €/mois/emplacement | I141: 267.18 | J141: 143.66 | K141: 143.66 | L141: 143.66 | M141: 143.66 | N141: 143.66 | O141: 143.66 | P141: 143.66 | Q141: 143.66 | R141: 143.66 | S141: 143.66 | T141: 45.05 | U141: 45.05 | V141: 45.05
C142: Tarif mensuel emplacement zone 4 | D142: €/mois/emplacement | I142: 257.6 | J142: 135.88 | K142: 135.88 | L142: 135.88 | M142: 135.88 | N142: 135.88 | O142: 135.88 | P142: 135.88 | Q142: 135.88 | R142: 135.88 | S142: 135.88 | T142: 38.63 | U142: 38.63 | V142: 38.63
C143: Tarif mensuel emplacement zone 5 | D143: €/mois/emplacement | I143: 257.6 | J143: 135.88 | K143: 135.88 | L143: 135.88 | M143: 135.88 | N143: 135.88 | O143: 135.88 | P143: 135.88 | Q143: 135.88 | R143: 135.88 | S143: 135.88 | T143: 38.63 | U143: 38.63 | V143: 38.63
B145: Energie
C146: Tarif mensuel par emplacement équipé à 1 kW | D146: €/mois/emplacement | I146: 138.33 | J146: 123.29 | K146: 123.29 | L146: 123.29 | M146: 123.29 | N146: 123.29 | O146: 123.29 | P146: 123.29 | Q146: 123.29 | R146: 123.29 | S146: 110.3391667 | T146: 110.3391667 | U146: 110.3391667 | V146: 90
C147: Tarif mensuel par emplacement équipé à 1 kW avec ventilation | D147: €/mois/emplacement | I147: 212.32 | J147: 163.99 | K147: 163.99 | L147: 163.99 | M147: 163.99 | N147: 163.99 | O147: 163.99 | P147: 163.99 | Q147: 163.99 | R147: 163.99 | S147: 148.9233333 | T147: 148.9233333 | U147: 148.9233333 | V147: 90
C148: Tarif mensuel par emplacement équipé à 2 kW | D148: €/mois/emplacement | I148: =I146*2 -> 276.66 | J148: 246.58 | K148: 246.58 | L148: 246.58 | M148: 246.58 | N148: 246.58 | O148: 246.58 | P148: =P146*2 -> 246.58 | Q148: 246.585 | R148: 246.585 | S148: 220.6783333 | T148: 220.6783333 | U148: 220.6783333 | V148: 180
C149: Tarif mensuel par emplacement équipé à 2 kW avec ventilation | D149: €/mois/emplacement | I149: =I147*2 -> 424.64 | J149: 327.98 | K149: 327.98 | L149: 327.98 | M149: 327.98 | N149: 327.98 | O149: 327.98 | P149: =P147*2 -> 327.98 | Q149: 327.985 | R149: 327.985 | S149: 297.8466667 | T149: 297.8466667 | U149: 297.8466667 | V149: 180
C151: Tarif mensuel par kW commandé 48V | D151: €/mois/kW | I151: 134.16 | J151: 95.33 | K151: 95.33 | L151: 95.33 | M151: 95.33 | N151: 95.33 | O151: 95.33 | P151: 95.33 | Q151: 95.33 | R151: 95.33 | S151: 94.04666667 | T151: 94.04666667 | U151: 94.04666667 | V151: 70
C152: Tarif mensuel par kW commandé 48V avec ventilation mécanique | D152: €/mois/kW | I152: 134.16 | J152: 97.73 | K152: 97.73 | L152: 97.73 | M152: 97.73 | N152: 97.73 | O152: 97.73 | P152: 97.73 | Q152: 97.73 | R152: 97.73 | S152: 96.40916667 | T152: 96.40916667 | U152: 96.40916667 | V152: 70
B154: Réglette de renvoi
C155: FAS bloc de réglette de renvoi 128 paires | D155: €/réglette | I155: 0 | J155: 0 | K155: 0 | L155: 0 | M155: 0 | N155: 0 | O155: 0 | P155: 0 | Q155: 0 | R155: 0 | S155: 0 | T155: 0 | U155: 0 | V155: 0
C156: Tarif mensuel de réglette de renvoi 128 paires | D156: €/mois/réglette | I156: 29.94 | J156: 29.94 | K156: 29.94 | L156: 29.94 | M156: 29.94 | N156: 29.94 | O156: 29.94 | P156: 29.94 | Q156: 29.94 | R156: 29.94 | S156: 29.94 | T156: 29.94 | U156: 29.94 | V156: 29.94
A158: Espace Hyper Petit Site
B159: Emplacement
C160: Frais d'aménagement de l'espace | D160: €/emplacement | T160: 2495 | U160: 2495 | V160: 2495
C161: Frais de mise à disposition d'un emplacement | D161: €/emplacement | T161: 1782.4 | U161: 1782.4 | V161: 1782.4
C163: Tarif mensuel emplacement zone 1 | D163: €/mois/emplacement | T163: 35.12 | U163: 35.12 | V163: 35.12
C164: Tarif mensuel emplacement zone 2 | D164: €/mois/emplacement | T164: 26.64 | U164: 26.64 | V164: 26.64
C165: Tarif mensuel emplacement zone 3 | D165: €/mois/emplacement | T165: 23.43 | U165: 23.43 | V165: 23.43
C166: Tarif mensuel emplacement zone 4 | D166: €/mois/emplacement | T166: 20.99 | U166: 20.99 | V166: 20.99
C167: Tarif mensuel emplacement zone 5 | D167: €/mois/emplacement | T167: 20.99 | U167: 20.99 | V167: 20.99
B169: Energie
C170: Tarif mensuel par emplacement équipé à 0,5 kW | D170: €/mois/emplacement | T170: 54.19 | U170: 54.19 | V170: 45
C171: Tarif mensuel par emplacement équipé à 0,5 kW avec ventilation | D171: €/mois/emplacement | T171: 112.07 | U171: 112.07 | V171: 45
C173: Tarif mensuel par kW commandé 48V | D173: €/mois/kW | T173: 94.05 | U173: 94.05 | V173: 70
C174: Tarif mensuel par kW commandé 48V avec ventilation mécanique | D174: €/mois/kW | T174: 96.41 | U174: 96.41 | V174: 70
B176: Réglette de renvoi
C177: FAS bloc de réglette de renvoi 64 paires | D177: €/réglette | T177: 754 | U177: 754 | V177: 754
C178: Tarif mensuel de réglette de renvoi 64 paires | D178: €/mois/réglette | T178: 1.37 | U178: 1.37 | V178: 1.37
A180: NRA Montée en Débit
B181: Emplacement + Energie
C182: Frais de mise à disposition d'un emplacement | D182: €/emplacement | T182: 851 | U182: 851 | V182: 851
B184: 0 | C184: ="Tarif mensuel emplacement MeD - SR de "&B184&" à "&B185&" LP" -> Tarif mensuel emplacement MeD - SR de 0 à 100 LP | D184: €/mois/emplacement | T184: 20 | U184: 20 | V184: 20
B185: 100 | C185: Tarif mensuel emplacement MeD - SR de 100 à 200 LP | D185: €/mois/emplacement | T185: 50 | U185: 50 | V185: 50
B186: 200 | C186: Tarif mensuel emplacement MeD - SR de 200 à 300 LP | D186: €/mois/emplacement | T186: 80 | U186: 80 | V186: 80
B187: 300 | C187: Tarif mensuel emplacement MeD - SR de 300 à 450 LP | D187: €/mois/emplacement | T187: 120 | U187: 120 | V187: 120
B188: 450 | C188: Tarif mensuel emplacement MeD - SR de 450 à 600 LP | D188: €/mois/emplacement | T188: 170 | U188: 170 | V188: 170
B189: 600 | C189: Tarif mensuel emplacement MeD - SR de 600 à 750 LP | D189: €/mois/emplacement | T189: 230 | U189: 230 | V189: 230
B190: 750 | C190: ="Tarif mensuel emplacement MeD - SR de plus de "&B190&" LP" -> Tarif mensuel emplacement MeD - SR de plus de 750 LP | D190: €/mois/emplacement | T190: 230 | U190: 230 | V190: 230
T191: 230 | U191: 230 | V191: 230
B192: Réglette de renvoi
C193: FAS bloc de réglette de renvoi à la commande de l'emplacement | D193: €/réglette | T193: 53 | U193: 53 | V193: 53
C194: FAS bloc de réglette de renvoi si postérieur à la commande initiale | D194: €/réglette | T194: 508 | U194: 508 | V194: 508
C195: Tarif mensuel par bloc de réglette de renvoi | D195: €/mois/réglette | T195: 1.24 | U195: 1.24 | V195: 1.24
A197: NRA armoire
B198: Emplacement
C199: Frais d'aménagement de l'espace | D199: €/SU | T199: 996 | U199: 996 | V199: 996
C200: Frais de mise à disposition d'un emplacement | D200: €/emplacement | T200: 851 | U200: 851 | V200: 851
C202: Tarif mensuel emplacement | D202: €/mois/SU | T202: 1.82 | U202: 1.82 | V202: 1.82
B204: Energie
C205: Frais d'accès au service départ 48V | D205: €/emplacement | T205: 4264 | U205: 4264 | V205: 4264
C207: Tarif mensuel par départ 48V avec ventilation | D207: €/mois/emplacement | T207: 5.166666667 | U207: 5.16 | V207: 5.16
C208: Tarif mensuel par kW commandé | D208: €/mois/kW | T208: 77.75 | U208: 77.75 | V208: 70
B210: Réglette de renvoi
C211: FAS bloc de réglette de renvoi à la commande de l'emplacement | D211: €/réglette | T211: 53 | U211: 53 | V211: 53
C212: FAS bloc de réglette de renvoi si postérieur à la commande initiale | D212: €/réglette | T212: 508 | U212: 508 | V212: 508
C213: Tarif mensuel par bloc de réglette de renvoi | D213: €/mois/réglette | T213: 1.24 | U213: 1.24 | V213: 1.24
A215: Localisation Distante
C216: Etude | D216: €/étude | E216: 445 | F216: 445 | G216: 445 | H216: 445 | I216: 445 | J216: 400.79 | K216: 400.79 | L216: 400.79 | M216: 400.79 | N216: 400.79 | O216: 400.79 | P216: 400.79 | Q216: 400.79 | R216: 400.79 | S216: 400.79 | T216: 400.79 | U216: 400.79 | V216: 400.79
C217: Pénétration de câble dans chambre 0 | D217: €/câble | E217: 1113 | F217: 1113 | G217: 1113 | H217: 1113 | I217: 1113 | J217: 1684 | K217: 1684 | L217: 1684 | M217: 1684 | N217: 1684 | O217: 1684 | P217: 1684 | Q217: 1684 | R217: 1684 | S217: 1684 | T217: 1684 | U217: 1684 | V217: 1684
C218: Tirage de câble par France Télécom | D218: €/m | E218: 10.67 | F218: 10.67 | G218: 10.67 | H218: 10.67 | I218: 10.67 | J218: 6.62 | K218: 6.62 | L218: 6.62 | M218: 6.62 | N218: 6.62 | O218: 6.62 | P218: 6.62 | Q218: 6.75 | R218: 6.75 | S218: 6.75 | T218: 6.75 | U218: 6.75 | V218: 6.75
C219: Tête de câble (raccordement et chemins de câbles) 112 paires | D219: €/câble | E219: 1131.7 | F219: 1131.7 | G219: 1131.7 | H219: 1131.7 | I219: 1131.7 | J219: =J220 -> 1676.56 | K219: =K220 -> 1676.56 | L219: 1676.56 | M219: 1676.56 | N219: 1676.56 | O219: 1676.56 | P219: 1676.56 | Q219: 979.05 | R219: 979.05 | S219: 979.05 | T219: 863.53 | U219: 863.53 | V219: 863.53
C220: Tête de câble (raccordement et chemins de câbles) 224 paires | D220: €/câble | E220: =E221 -> 1624.5 | F220: =F221 -> 1624.5 | G220: =G221 -> 1624.5 | H220: 1624.5 | I220: 1624.5 | J220: 1676.56 | K220: 1676.56 | L220: 1676.56 | M220: 1676.56 | N220: 1676.56 | O220: 1676.56 | P220: 1676.56 | Q220: 1505 | R220: 1505 | S220: 1505 | T220: 1509.62 | U220: 1509.62 | V220: 1509.62
C221: Tête de câble (raccordement et chemins de câbles) 448 paires | D221: €/câble | E221: 1624.5 | F221: 1624.5 | G221: 1624.5 | H221: 1624.5 | I221: 1624.5 | J221: 3033.68 | K221: 3033.68 | L221: 3033.68 | M221: 3033.68 | N221: 3033.68 | O221: 3033.68 | P221: 3033.68 | Q221: 2675 | R221: 2675 | S221: 2675 | T221: 2748.12 | U221: 2748.12 | V221: 2748.12
C222: Tête de câble (raccordement et chemins de câbles) 896 paires | D222: €/câble | E222: =E221*2 -> 3249 | F222: =F221*2 -> 3249 | G222: =G221*2 -> 3249 | H222: 3249 | I222: 3249 | J222: 6067.36 | K222: 6067.36 | L222: 6067.36 | M222: 6067.36 | N222: 6067.36 | O222: 6067.36 | P222: 6067.36 | Q222: 4747 | R222: 4747 | S222: 4747 | T222: 4979.1 | U222: 4979.1 | V222: 4979.1
C224: Génie civil entre chambre 0 et infra-répartiteur | D224: €/mois/m | E224: 1.95 | F224: 1.95 | G224: 1.95 | H224: 1.95 | I224: 1.95 | J224: 0.41 | K224: 0.41 | L224: 0.41 | M224: 0.41 | N224: 0.41 | O224: 0.41 | P224: 0.41 | Q224: 0.41 | R224: 0.41 | S224: 0.41 | T224: 0.4108333333 | U224: 0.4108333333 | V224: 0.4108333333
C225: Pénétration chambre 0 et conduite | D225: €/mois/site | E225: 304.41 | F225: 304.41 | G225: 304.41 | H225: 304.41 | I225: 304.41 | J225: 9.64 | K225: 9.64 | L225: 9.64 | M225: 9.64 | N225: 9.64 | O225: 9.64 | P225: 9.64 | Q225: 9.64 | R225: 9.64 | S225: 9.64 | T225: 9.64 | U225: 9.64 | V225: 9.64
C226: Exploitation et maintenance pénétration chambre 0 | D226: €/mois/site | E226: 5.84 | F226: 5.84 | G226: 5.84 | H226: 5.84 | I226: 5.84 | J226: 0.63 | K226: 0.63 | L226: 0.63 | M226: 0.63 | N226: 0.63 | O226: 0.63 | P226: 0.63 | Q226: 0.63 | R226: 0.63 | S226: 0.63 | T226: 0.63 | U226: 0.63 | V226: 0.63
C227: Tête de câble (raccordement et chemins de câbles) 112 paires | D227: €/mois/câble | E227: 0 | F227: 0 | G227: 0 | H227: 0 | I227: 0 | J227: =J228 -> 3.14 | K227: =K228 -> 3.14 | L227: 3.14 | M227: 3.14 | N227: 3.14 | O227: 3.14 | P227: 3.14 | Q227: 1.056666667 | R227: 1.056666667 | S227: 1.056666667 | T227: 1.435833333 | U227: 1.435833333 | V227: 1.435833333
C228: Tête de câble (raccordement et chemins de câbles) 224 paires | D228: €/mois/câble | E228: =E229 -> 0 | F228: =F229 -> 0 | G228: =G229 -> 0 | H228: 0 | I228: 0 | J228: 3.14 | K228: 3.14 | L228: 3.14 | M228: 3.14 | N228: 3.14 | O228: 3.14 | P228: 3.14 | Q228: 1.796666667 | R228: 1.796666667 | S228: 1.796666667 | T228: 2.346666667 | U228: 2.346666667 | V228: 2.346666667
C229: Tête de câble (raccordement et chemins de câbles) 448 paires | D229: €/mois/câble | E229: 0 | F229: 0 | G229: 0 | H229: 0 | I229: 0 | J229: 4.68 | K229: 4.68 | L229: 4.68 | M229: 4.68 | N229: 4.68 | O229: 4.68 | P229: 4.68 | Q229: 3.425 | R229: 3.425 | S229: 3.425 | T229: 4.028333333 | U229: 4.028333333 | V229: 4.028333333
C230: Tête de câble (raccordement et chemins de câbles) 896 paires | D230: €/mois/câble | E230: =E229*2 -> 0 | F230: =F229*2 -> 0 | G230: 0 | H230: 0 | I230: 0 | J230: 9.36 | K230: 9.36 | L230: 9.36 | M230: 9.36 | N230: 9.36 | O230: 9.36 | P230: =P229*2 -> 9.36 | Q230: 6.565833333 | R230: 6.565833333 | S230: 6.565833333 | T230: 6.993333333 | U230: 6.993333333 | V230: 6.993333333
A232: Liens Intra Bâtiment
B233: LIB
C234: FAS LIB | D234: €/LIB | E234: 1105 | F234: 1105 | G234: 1105 | H234: 1105 | I234: 1105 | J234: 350 | K234: 350 | L234: 350 | M234: 350 | N234: 350 | O234: 350 | P234: 1431.8 | Q234: 1431.8 | R234: 1431.8 | S234: 1363.94 | T234: 1364 | U234: 1364 | V234: 1364
C235: Tarif mensuel LIB | D235: €/mois/LIB | E235: 118.33 | F235: 118.33 | G235: 118.33 | H235: 118.33 | I235: 118.33 | J235: 40.58 | K235: 40.58 | L235: 40.58 | M235: 40.58 | N235: 40.58 | O235: 40.58 | P235: 6.79 | Q235: 6.79 | R235: 6.79 | S235: 1.465 | T235: 1.465 | U235: 1.465 | V235: 1.465
B237: LIB installé avant le 01/07/2008
C238: Tarif mensuel LIB + de 5 ans | D238: €/mois/LIB | P238: 31 | Q238: 31 | R238: 31 | S238: 23.9825 | T238: 23.9825 | U238: 23.9825 | V238: 23.9825
C239: Tarif mensuel LIB - de 5 ans | D239: €/mois/LIB | P239: 6.79 | Q239: 6.79 | R239: 6.79 | S239: 1.465 | T239: 1.465 | U239: 1.465 | V239: 1.465
A241: Tarifs divers
B242: 0 | C242: Tarif mensuel de l'accès du personnel autorisé | D242: €/mois/site | E242: 125 | F242: 125 | G242: 125 | H242: 125 | I242: 125 | J242: 125 | K242: 125 | L242: 125 | M242: 125 | N242: 125 | O242: 87.5 | P242: 87.5 | Q242: 87.5 | R242: 87.5 | S242: 87.5 | T242: 87.5 | U242: 87.5 | V242: 22.5
B243: 750 | C243: Tarif mensuel de l'accès du personnel autorisé | D243: €/mois/site | E243: 125 | F243: 125 | G243: 125 | H243: 125 | I243: 125 | J243: 125 | K243: 125 | L243: 125 | M243: 125 | N243: 125 | O243: 87.5 | P243: 87.5 | Q243: 87.5 | R243: 87.5 | S243: 87.5 | T243: 87.5 | U243: 87.5 | V243: 42.5
B244: 1500 | C244: Tarif mensuel de l'accès du personnel autorisé | D244: €/mois/site | E244: 125 | F244: 125 | G244: 125 | H244: 125 | I244: 125 | J244: 125 | K244: 125 | L244: 125 | M244: 125 | N244: 125 | O244: 87.5 | P244: 87.5 | Q244: 87.5 | R244: 87.5 | S244: 87.5 | T244: 87.5 | U244: 87.5 | V244: 72.5
B245: 5000 | C245: Tarif mensuel de l'accès du personnel autorisé | D245: €/mois/site | E245: 125 | F245: 125 | G245: 125 | H245: 125 | I245: 125 | J245: 125 | K245: 125 | L245: 125 | M245: 125 | N245: 125 | O245: 87.5 | P245: 87.5 | Q245: 87.5 | R245: 87.5 | S245: 87.5 | T245: 87.5 | U245: 87.5 | V245: 87.5
C247: Frais de modification de la puissance commandée 48V | D247: €/modifcation | E247: 457.35 | F247: 100 | G247: 100 | H247: 100 | I247: 100 | J247: 100 | K247: 100 | L247: 100 | M247: 100 | N247: 100 | O247: 100 | P247: 100 | Q247: 100 | R247: 100 | S247: 100 | T247: 100 | U247: 100 | V247: 100
C248: Frais de l'extension 2kW -> 4kW | D248: €/extension | E248: 400 | F248: 400 | G248: 400 | H248: 400 | I248: 400 | J248: 400 | K248: 400 | L248: 400 | M248: 400 | N248: 400 | O248: 400 | P248: 400 | Q248: 400 | R248: 400 | S248: 400 | T248: 400 | U248: 400 | V248: 400
C250: Tarif horaire accompagnement agent FT - livraison loc. distante | D250: €/heure | E250: 59.5 | F250: 62.3 | G250: 62.3 | H250: 62.3 | I250: 62.3 | J250: 62.3 | K250: 62.3 | L250: 62.3 | M250: 62.3 | N250: 79.4 | O250: 79.4 | P250: 79.4 | Q250: 79.4 | R250: 79.4 | S250: 79.4 | T250: 79.4 | U250: 79.4 | V250: 79.4
A252: offre Lien Fibre Optique (LFO)
C254: Frais de mise à disposition | D254: €/lien | L254: 2000 | M254: 2000 | N254: 2000 | O254: 2000 | P254: 2000 | Q254: 2000 | R254: 2000 | S254: 2000 | T254: 2000 | U254: 2000 | V254: 2000
B255: 0 | C255: ="Tarif annuel pour NRA de "&B255&" à "&B256&" LP" -> Tarif annuel pour NRA de 0 à 1150 LP | D255: €/an/m.l. | L255: 1.5 | M255: 1.5 | N255: 1.5 | O255: 1.5 | P255: 1.5 | Q255: 1.5 | R255: 1.5 | S255: 1.5 | T255: 0.6 | U255: 0.6 | V255: 0.6
B256: 1150 | C256: ="Tarif annuel pour NRA de "&B256&" à "&B257&" LP" -> Tarif annuel pour NRA de 1150 à 1500 LP | D256: €/an/m.l. | L256: 1.5 | M256: 1.5 | N256: 1.5 | O256: 1.5 | P256: 1.5 | Q256: 1.5 | R256: 1.5 | S256: 1.5 | T256: 0.9 | U256: 0.9 | V256: 0.9
B257: 1500 | C257: ="Tarif annuel pour NRA de "&B257&" à "&B258&" LP" -> Tarif annuel pour NRA de 1500 à 2000 LP | D257: €/an/m.l. | L257: 1.5 | M257: 1.5 | N257: 1.5 | O257: 1.5 | P257: 1.5 | Q257: 1.5 | R257: 1.5 | S257: 1.5 | T257: 1.1 | U257: 1.1 | V257: 1.1
... 4 more rows

Sheet ACCES - RESULTATS
A3: Paramètres de contrôle
B5: choix du NRA
C6: rang du NRA | D6: 1000
A8: =MATCH(D8,'BASE NRA 2012'!$A$2:$A$15051,0) -> 1822 | C8: code NRA | D8: =IF(ISNA(MATCH(INDEX(ENTREES!$B$19:$B$100000,D6),'BASE NRA 2012'!$A$2:$A$15051,0)),"NRA non renseigné",INDEX(ENTREES!$B$19:$B$100000,D6)) -> 13021CAR
C9: type NRA | D9: =INDEX('BASE NRA 2012'!$F$2:$F$15051,$A$8) -> -
C10: nb de lignes cuivre | D10: =INDEX('BASE NRA 2012'!$C$2:$C$15051,$A$8) -> 7000 | E10: <--- référence NRA
C11: date de dégroupage | D11: =INDEX(ENTREES!$C$19:$C$100000,D6) -> 2005-09-26 | E11: <--- référence NRA
C12: type d'hébergement | D12: =INDEX('BASE NRA 2012'!$J$2:$J$15051,$A$8) -> Esp. dédié | E12: <--- référence NRA
C13: zone de tarification emplacement | D13: =INDEX('BASE NRA 2012'!$H$2:$H$15051,$A$8) -> 5 | E13: <--- référence NRA
C14: type de climatisation | D14: =INDEX('BASE NRA 2012'!$I$2:$I$15051,$A$8) -> ventilation mécanique | E14: <--- référence NRA
C15: nb de modules câbles de renvoi | D15: =INDEX('BASE NRA 2012'!$G$2:$G$15051,$A$8) -> 1 | E15: <--- référence NRA
B17: type d'accès
A18: =MATCH(D18,B54:B58,0) -> 5 | C18: type accès | D18: accès "entreprises" SDSL quadri-paires
A20: =MATCH(D20,B49:B51,0) -> 1 | C20: type de GTR - accès "entreprises" | D20: sans GTR
A23: Résultats
F25: T1-2003 | G25: T2-2003 | H25: T3-2003 | I25: T4-2003 | J25: T1-2004 | K25: T2-2004 | L25: T3-2004 | M25: T4-2004 | N25: T1-2005 | O25: T2-2005 | P25: T3-2005 | Q25: T4-2005 | R25: T1-2006 | S25: T2-2006 | T25: T3-2006 | U25: T4-2006 | V25: T1-2007 | W25: T2-2007 | X25: T3-2007 | Y25: T4-2007 | Z25: T1-2008 | AA25: T2-2008 | AB25: T3-2008 | AC25: T4-2008 | AD25: T1-2009 | AE25: T2-2009 | AF25: T3-2009 | AG25: T4-2009 | AH25: T1-2010 | AI25: T2-2010 | AJ25: T3-2010 | AK25: T4-2010 | AL25: T1-2011 | AM25: T2-2011 | AN25: T3-2011 | AO25: T4-2011 | AP25: T1-2012 | AQ25: T2-2012 | AR25: T3-2012 | AS25: T4-2012 | AT25: T1-2013 | AU25: T2-2013 | AV25: T3-2013 | AW25: T4-2013 | AX25: T1-2014 | AY25: T2-2014 | AZ25: T3-2014 | BA25: T4-2014 | BB25: T1-2015 | BC25: T2-2015 | BD25: T3-2015 | BE25: T4-2015 | BF25: T1-2016 | BG25: T2-2016 | BH25: T3-2016 | BI25: T4-2016 | BJ25: T1-2017
B26: coûts de la ligne | D26: FAS / installation | F26: =OFFSET('ACCES - CALCULS'!E222,($A$18-1)*14,0) -> 0 | G26: =OFFSET('ACCES - CALCULS'!F222,($A$18-1)*14,0) -> 0 | H26: =OFFSET('ACCES - CALCULS'!G222,($A$18-1)*14,0) -> 0 | I26: =OFFSET('ACCES - CALCULS'!H222,($A$18-1)*14,0) -> 0 | J26: =OFFSET('ACCES - CALCULS'!I222,($A$18-1)*14,0) -> 0 | K26: =OFFSET('ACCES - CALCULS'!J222,($A$18-1)*14,0) -> 0 | L26: =OFFSET('ACCES - CALCULS'!K222,($A$18-1)*14,0) -> 0 | M26: =OFFSET('ACCES - CALCULS'!L222,($A$18-1)*14,0) -> 0 | N26: =OFFSET('ACCES - CALCULS'!M222,($A$18-1)*14,0) -> 0 | O26: =OFFSET('ACCES - CALCULS'!N222,($A$18-1)*14,0) -> 0 | P26: =OFFSET('ACCES - CALCULS'!O222,($A$18-1)*14,0) -> 0 | Q26: =OFFSET('ACCES - CALCULS'!P222,($A$18-1)*14,0) -> 21.409907 | R26: =OFFSET('ACCES - CALCULS'!Q222,($A$18-1)*14,0) -> 21.409907 | S26: =OFFSET('ACCES - CALCULS'!R222,($A$18-1)*14,0) -> 21.409907 | T26: =OFFSET('ACCES - CALCULS'!S222,($A$18-1)*14,0) -> 21.409907 | U26: =OFFSET('ACCES - CALCULS'!T222,($A$18-1)*14,0) -> 10.67472987 | V26: =OFFSET('ACCES - CALCULS'!U222,($A$18-1)*14,0) -> 10.67472987 | W26: =OFFSET('ACCES - CALCULS'!V222,($A$18-1)*14,0) -> 10.67472987 | X26: =OFFSET('ACCES - CALCULS'!W222,($A$18-1)*14,0) -> 10.67472987 | Y26: =OFFSET('ACCES - CALCULS'!X222,($A$18-1)*14,0) -> 10.67472987 | Z26: =OFFSET('ACCES - CALCULS'!Y222,($A$18-1)*14,0) -> 10.67472987 | AA26: =OFFSET('ACCES - CALCULS'!Z222,($A$18-1)*14,0) -> 10.67472987 | AB26: =OFFSET('ACCES - CALCULS'!AA222,($A$18-1)*14,0) -> 10.67472987 | AC26: =OFFSET('ACCES - CALCULS'!AB222,($A$18-1)*14,0) -> 10.67472987 | AD26: =OFFSET('ACCES - CALCULS'!AC222,($A$18-1)*14,0) -> 10.67472987 | AE26: =OFFSET('ACCES - CALCULS'!AD222,($A$18-1)*14,0) -> 10.67472987 | AF26: =OFFSET('ACCES - CALCULS'!AE222,($A$18-1)*14,0) -> 10.67472987 | AG26: =OFFSET('ACCES - CALCULS'!AF222,($A$18-1)*14,0) -> 10.67472987 | AH26: =OFFSET('ACCES - CALCULS'!AG222,($A$18-1)*14,0) -> 10.67472987 | AI26: =OFFSET('ACCES - CALCULS'!AH222,($A$18-1)*14,0) -> 10.67472987 | AJ26: =OFFSET('ACCES - CALCULS'!AI222,($A$18-1)*14,0) -> 10.67472987 | AK26: =OFFSET('ACCES - CALCULS'!AJ222,($A$18-1)*14,0) -> 10.67472987 | AL26: =OFFSET('ACCES - CALCULS'!AK222,($A$18-1)*14,0) -> 10.67472987 | AM26: =OFFSET('ACCES - CALCULS'!AL222,($A$18-1)*14,0) -> 10.67472987 | AN26: =OFFSET('ACCES - CALCULS'!AM222,($A$18-1)*14,0) -> 10.67472987 | AO26: =OFFSET('ACCES - CALCULS'!AN222,($A$18-1)*14,0) -> 10.67472987 | AP26: =OFFSET('ACCES - CALCULS'!AO222,($A$18-1)*14,0) -> 11.18917468 | AQ26: =OFFSET('ACCES - CALCULS'!AP222,($A$18-1)*14,0) -> 11.18917468 | AR26: =OFFSET('ACCES - CALCULS'!AQ222,($A$18-1)*14,0) -> 11.18917468 | AS26: =OFFSET('ACCES - CALCULS'!AR222,($A$18-1)*14,0) -> 11.18917468 | AT26: =OFFSET('ACCES - CALCULS'!AS222,($A$18-1)*14,0) -> 11.18917468 | AU26: =OFFSET('ACCES - CALCULS'!AT222,($A$18-1)*14,0) -> 11.18917468 | AV26: =OFFSET('ACCES - CALCULS'!AU222,($A$18-1)*14,0) -> 11.18917468 | AW26: =OFFSET('ACCES - CALCULS'!AV222,($A$18-1)*14,0) -> 11.18917468 | AX26: =OFFSET('ACCES - CALCULS'!AW222,($A$18-1)*14,0) -> 11.18917468 | AY26: =OFFSET('ACCES - CALCULS'!AX222,($A$18-1)*14,0) -> 11.18917468 | AZ26: =OFFSET('ACCES - CALCULS'!AY222,($A$18-1)*14,0) -> 11.18917468 | BA26: =OFFSET('ACCES - CALCULS'!AZ222,($A$18-1)*14,0) -> 11.18917468 | BB26: =OFFSET('ACCES - CALCULS'!BA222,($A$18-1)*14,0) -> 11.18917468 | BC26: =OFFSET('ACCES - CALCULS'!BB222,($A$18-1)*14,0) -> 11.18917468 | BD26: =OFFSET('ACCES - CALCULS'!BC222,($A$18-1)*14,0) -> 11.18917468 | BE26: =OFFSET('ACCES - CALCULS'!BD222,($A$18-1)*14,0) -> 11.18917468 | BF26: =OFFSET('ACCES - CALCULS'!BE222,($A$18-1)*14,0) -> 11.18917468 | BG26: =OFFSET('ACCES - CALCULS'!BF222,($A$18-1)*14,0) -> 11.18917468 | BH26: =OFFSET('ACCES - CALCULS'!BG222,($A$18-1)*14,0) -> 11.18917468 | BI26: =OFFSET('ACCES - CALCULS'!BH222,($A$18-1)*14,0) -> 11.18917468 | BJ26: =OFFSET('ACCES - CALCULS'!BI222,($A$18-1)*14,0) -> 11.18917468
D27: récurrent mensuel | F27: =OFFSET('ACCES - CALCULS'!E223,($A$18-1)*14,0) -> 0 | G27: =OFFSET('ACCES - CALCULS'!F223,($A$18-1)*14,0) -> 0 | H27: =OFFSET('ACCES - CALCULS'!G223,($A$18-1)*14,0) -> 0 | I27: =OFFSET('ACCES - CALCULS'!H223,($A$18-1)*14,0) -> 0 | J27: =OFFSET('ACCES - CALCULS'!I223,($A$18-1)*14,0) -> 0 | K27: =OFFSET('ACCES - CALCULS'!J223,($A$18-1)*14,0) -> 0 | L27: =OFFSET('ACCES - CALCULS'!K223,($A$18-1)*14,0) -> 0 | M27: =OFFSET('ACCES - CALCULS'!L223,($A$18-1)*14,0) -> 0 | N27: =OFFSET('ACCES - CALCULS'!M223,($A$18-1)*14,0) -> 0 | O27: =OFFSET('ACCES - CALCULS'!N223,($A$18-1)*14,0) -> 0 | P27: =OFFSET('ACCES - CALCULS'!O223,($A$18-1)*14,0) -> 0 | Q27: =OFFSET('ACCES - CALCULS'!P223,($A$18-1)*14,0) -> 38 | R27: =OFFSET('ACCES - CALCULS'!Q223,($A$18-1)*14,0) -> 38 | S27: =OFFSET('ACCES - CALCULS'!R223,($A$18-1)*14,0) -> 38 | T27: =OFFSET('ACCES - CALCULS'!S223,($A$18-1)*14,0) -> 38 | U27: =OFFSET('ACCES - CALCULS'!T223,($A$18-1)*14,0) -> 37.16 | V27: =OFFSET('ACCES - CALCULS'!U223,($A$18-1)*14,0) -> 37.16 | W27: =OFFSET('ACCES - CALCULS'!V223,($A$18-1)*14,0) -> 37.16 | X27: =OFFSET('ACCES - CALCULS'!W223,($A$18-1)*14,0) -> 37.16 | Y27: =OFFSET('ACCES - CALCULS'!X223,($A$18-1)*14,0) -> 37.16 | Z27: =OFFSET('ACCES - CALCULS'!Y223,($A$18-1)*14,0) -> 37.16 | AA27: =OFFSET('ACCES - CALCULS'!Z223,($A$18-1)*14,0) -> 37.16 | AB27: =OFFSET('ACCES - CALCULS'!AA223,($A$18-1)*14,0) -> 37.16 | AC27: =OFFSET('ACCES - CALCULS'!AB223,($A$18-1)*14,0) -> 37.16 | AD27: =OFFSET('ACCES - CALCULS'!AC223,($A$18-1)*14,0) -> 37.16 | AE27: =OFFSET('ACCES - CALCULS'!AD223,($A$18-1)*14,0) -> 37.16 | AF27: =OFFSET('ACCES - CALCULS'!AE223,($A$18-1)*14,0) -> 37.16 | AG27: =OFFSET('ACCES - CALCULS'!AF223,($A$18-1)*14,0) -> 37.16 | AH27: =OFFSET('ACCES - CALCULS'!AG223,($A$18-1)*14,0) -> 36 | AI27: =OFFSET('ACCES - CALCULS'!AH223,($A$18-1)*14,0) -> 36 | AJ27: =OFFSET('ACCES - CALCULS'!AI223,($A$18-1)*14,0) -> 36 | AK27: =OFFSET('ACCES - CALCULS'!AJ223,($A$18-1)*14,0) -> 36 | AL27: =OFFSET('ACCES - CALCULS'!AK223,($A$18-1)*14,0) -> 36 | AM27: =OFFSET('ACCES - CALCULS'!AL223,($A$18-1)*14,0) -> 36 | AN27: =OFFSET('ACCES - CALCULS'!AM223,($A$18-1)*14,0) -> 36 | AO27: =OFFSET('ACCES - CALCULS'!AN223,($A$18-1)*14,0) -> 36 | AP27: =OFFSET('ACCES - CALCULS'!AO223,($A$18-1)*14,0) -> 35.2 | AQ27: =OFFSET('ACCES - CALCULS'!AP223,($A$18-1)*14,0) -> 35.2 | AR27: =OFFSET('ACCES - CALCULS'!AQ223,($A$18-1)*14,0) -> 35.2 | AS27: =OFFSET('ACCES - CALCULS'!AR223,($A$18-1)*14,0) -> 35.2 | AT27: =OFFSET('ACCES - CALCULS'!AS223,($A$18-1)*14,0) -> 35.2 | AU27: =OFFSET('ACCES - CALCULS'!AT223,($A$18-1)*14,0) -> 35.2 | AV27: =OFFSET('ACCES - CALCULS'!AU223,($A$18-1)*14,0) -> 35.2 | AW27: =OFFSET('ACCES - CALCULS'!AV223,($A$18-1)*14,0) -> 35.2 | AX27: =OFFSET('ACCES - CALCULS'!AW223,($A$18-1)*14,0) -> 35.2 | AY27: =OFFSET('ACCES - CALCULS'!AX223,($A$18-1)*14,0) -> 35.2 | AZ27: =OFFSET('ACCES - CALCULS'!AY223,($A$18-1)*14,0) -> 35.2 | BA27: =OFFSET('ACCES - CALCULS'!AZ223,($A$18-1)*14,0) -> 35.2 | BB27: =OFFSET('ACCES - CALCULS'!BA223,($A$18-1)*14,0) -> 35.2 | BC27: =OFFSET('ACCES - CALCULS'!BB223,($A$18-1)*14,0) -> 35.2 | BD27: =OFFSET('ACCES - CALCULS'!BC223,($A$18-1)*14,0) -> 35.2 | BE27: =OFFSET('ACCES - CALCULS'!BD223,($A$18-1)*14,0) -> 35.2 | BF27: =OFFSET('ACCES - CALCULS'!BE223,($A$18-1)*14,0) -> 35.2 | BG27: =OFFSET('ACCES - CALCULS'!BF223,($A$18-1)*14,0) -> 35.2 | BH27: =OFFSET('ACCES - CALCULS'!BG223,($A$18-1)*14,0) -> 35.2 | BI27: =OFFSET('ACCES - CALCULS'!BH223,($A$18-1)*14,0) -> 35.2 | BJ27: =OFFSET('ACCES - CALCULS'!BI223,($A$18-1)*14,0) -> 35.2
D28: GTR / supervision / protection / intervention | F28: =OFFSET('ACCES - CALCULS'!E224,($A$18-1)*14,0) -> 0 | G28: =OFFSET('ACCES - CALCULS'!F224,($A$18-1)*14,0) -> 0 | H28: =OFFSET('ACCES - CALCULS'!G224,($A$18-1)*14,0) -> 0 | I28: =OFFSET('ACCES - CALCULS'!H224,($A$18-1)*14,0) -> 0 | J28: =OFFSET('ACCES - CALCULS'!I224,($A$18-1)*14,0) -> 0 | K28: =OFFSET('ACCES - CALCULS'!J224,($A$18-1)*14,0) -> 0 | L28: =OFFSET('ACCES - CALCULS'!K224,($A$18-1)*14,0) -> 0 | M28: =OFFSET('ACCES - CALCULS'!L224,($A$18-1)*14,0) -> 0 | N28: =OFFSET('ACCES - CALCULS'!M224,($A$18-1)*14,0) -> 0 | O28: =OFFSET('ACCES - CALCULS'!N224,($A$18-1)*14,0) -> 0 | P28: =OFFSET('ACCES - CALCULS'!O224,($A$18-1)*14,0) -> 0 | Q28: =OFFSET('ACCES - CALCULS'!P224,($A$18-1)*14,0) -> 3.192242129 | R28: =OFFSET('ACCES - CALCULS'!Q224,($A$18-1)*14,0) -> 3.192242129 | S28: =OFFSET('ACCES - CALCULS'!R224,($A$18-1)*14,0) -> 3.192242129 | T28: =OFFSET('ACCES - CALCULS'!S224,($A$18-1)*14,0) -> 3.192242129 | U28: =OFFSET('ACCES - CALCULS'!T224,($A$18-1)*14,0) -> 3.192242129 | V28: =OFFSET('ACCES - CALCULS'!U224,($A$18-1)*14,0) -> 3.192242129 | W28: =OFFSET('ACCES - CALCULS'!V224,($A$18-1)*14,0) -> 3.192242129 | X28: =OFFSET('ACCES - CALCULS'!W224,($A$18-1)*14,0) -> 3.192242129 | Y28: =OFFSET('ACCES - CALCULS'!X224,($A$18-1)*14,0) -> 3.692242129 | Z28: =OFFSET('ACCES - CALCULS'!Y224,($A$18-1)*14,0) -> 3.692242129 | AA28: =OFFSET('ACCES - CALCULS'!Z224,($A$18-1)*14,0) -> 3.692242129 | AB28: =OFFSET('ACCES - CALCULS'!AA224,($A$18-1)*14,0) -> 3.292242129 | AC28: =OFFSET('ACCES - CALCULS'!AB224,($A$18-1)*14,0) -> 3.292242129 | AD28: =OFFSET('ACCES - CALCULS'!AC224,($A$18-1)*14,0) -> 3.292242129 | AE28: =OFFSET('ACCES - CALCULS'!AD224,($A$18-1)*14,0) -> 3.292242129 | AF28: =OFFSET('ACCES - CALCULS'!AE224,($A$18-1)*14,0) -> 3.292242129 | AG28: =OFFSET('ACCES - CALCULS'!AF224,($A$18-1)*14,0) -> 3.292242129 | AH28: =OFFSET('ACCES - CALCULS'!AG224,($A$18-1)*14,0) -> 3.292242129 | AI28: =OFFSET('ACCES - CALCULS'!AH224,($A$18-1)*14,0) -> 3.292242129 | AJ28: =OFFSET('ACCES - CALCULS'!AI224,($A$18-1)*14,0) -> 3.292242129 | AK28: =OFFSET('ACCES - CALCULS'!AJ224,($A$18-1)*14,0) -> 3.292242129 | AL28: =OFFSET('ACCES - CALCULS'!AK224,($A$18-1)*14,0) -> 3.292242129 | AM28: =OFFSET('ACCES - CALCULS'!AL224,($A$18-1)*14,0) -> 3.292242129 | AN28: =OFFSET('ACCES - CALCULS'!AM224,($A$18-1)*14,0) -> 3.292242129 | AO28: =OFFSET('ACCES - CALCULS'!AN224,($A$18-1)*14,0) -> 3.292242129 | AP28: =OFFSET('ACCES - CALCULS'!AO224,($A$18-1)*14,0) -> 3.292242129 | AQ28: =OFFSET('ACCES - CALCULS'!AP224,($A$18-1)*14,0) -> 3.292242129 | AR28: =OFFSET('ACCES - CALCULS'!AQ224,($A$18-1)*14,0) -> 3.292242129 | AS28: =OFFSET('ACCES - CALCULS'!AR224,($A$18-1)*14,0) -> 3.292242129 | AT28: =OFFSET('ACCES - CALCULS'!AS224,($A$18-1)*14,0) -> 3.292242129 | AU28: =OFFSET('ACCES - CALCULS'!AT224,($A$18-1)*14,0) -> 3.292242129 | AV28: =OFFSET('ACCES - CALCULS'!AU224,($A$18-1)*14,0) -> 3.292242129 | AW28: =OFFSET('ACCES - CALCULS'!AV224,($A$18-1)*14,0) -> 3.292242129 | AX28: =OFFSET('ACCES - CALCULS'!AW224,($A$18-1)*14,0) -> 3.292242129 | AY28: =OFFSET('ACCES - CALCULS'!AX224,($A$18-1)*14,0) -> 3.292242129 | AZ28: =OFFSET('ACCES - CALCULS'!AY224,($A$18-1)*14,0) -> 3.292242129 | BA28: =OFFSET('ACCES - CALCULS'!AZ224,($A$18-1)*14,0) -> 3.292242129 | BB28: =OFFSET('ACCES - CALCULS'!BA224,($A$18-1)*14,0) -> 3.292242129 | BC28: =OFFSET('ACCES - CALCULS'!BB224,($A$18-1)*14,0) -> 3.292242129 | BD28: =OFFSET('ACCES - CALCULS'!BC224,($A$18-1)*14,0) -> 3.292242129 | BE28: =OFFSET('ACCES - CALCULS'!BD224,($A$18-1)*14,0) -> 3.292242129 | BF28: =OFFSET('ACCES - CALCULS'!BE224,($A$18-1)*14,0) -> 3.292242129 | BG28: =OFFSET('ACCES - CALCULS'!BF224,($A$18-1)*14,0) -> 3.292242129 | BH28: =OFFSET('ACCES - CALCULS'!BG224,($A$18-1)*14,0) -> 3.292242129 | BI28: =OFFSET('ACCES - CALCULS'!BH224,($A$18-1)*14,0) -> 3.292242129 | BJ28: =OFFSET('ACCES - CALCULS'!BI224,($A$18-1)*14,0) -> 3.292242129
B29: coûts des prestations connexes | D29: emplacement | F29: =OFFSET('ACCES - CALCULS'!E225,($A$18-1)*14,0) -> 0 | G29: =OFFSET('ACCES - CALCULS'!F225,($A$18-1)*14,0) -> 0 | H29: =OFFSET('ACCES - CALCULS'!G225,($A$18-1)*14,0) -> 0 | I29: =OFFSET('ACCES - CALCULS'!H225,($A$18-1)*14,0) -> 0 | J29: =OFFSET('ACCES - CALCULS'!I225,($A$18-1)*14,0) -> 0 | K29: =OFFSET('ACCES - CALCULS'!J225,($A$18-1)*14,0) -> 0 | L29: =OFFSET('ACCES - CALCULS'!K225,($A$18-1)*14,0) -> 0 | M29: =OFFSET('ACCES - CALCULS'!L225,($A$18-1)*14,0) -> 0 | N29: =OFFSET('ACCES - CALCULS'!M225,($A$18-1)*14,0) -> 0 | O29: =OFFSET('ACCES - CALCULS'!N225,($A$18-1)*14,0) -> 0 | P29: =OFFSET('ACCES - CALCULS'!O225,($A$18-1)*14,0) -> 0 | Q29: =OFFSET('ACCES - CALCULS'!P225,($A$18-1)*14,0) -> 5.114145647 | R29: =OFFSET('ACCES - CALCULS'!Q225,($A$18-1)*14,0) -> 4.748849529 | S29: =OFFSET('ACCES - CALCULS'!R225,($A$18-1)*14,0) -> 4.19016135 | T29: =OFFSET('ACCES - CALCULS'!S225,($A$18-1)*14,0) -> 3.727812618 | U29: =OFFSET('ACCES - CALCULS'!T225,($A$18-1)*14,0) -> 3.162239687 | V29: =OFFSET('ACCES - CALCULS'!U225,($A$18-1)*14,0) -> 2.855779844 | W29: =OFFSET('ACCES - CALCULS'!V225,($A$18-1)*14,0) -> 2.485379193 | X29: =OFFSET('ACCES - CALCULS'!W225,($A$18-1)*14,0) -> 2.263281478 | Y29: =OFFSET('ACCES - CALCULS'!X225,($A$18-1)*14,0) -> 2.163877067 | Z29: =OFFSET('ACCES - CALCULS'!Y225,($A$18-1)*14,0) -> 1.996778778 | AA29: =OFFSET('ACCES - CALCULS'!Z225,($A$18-1)*14,0) -> 1.782350281 | AB29: =OFFSET('ACCES - CALCULS'!AA225,($A$18-1)*14,0) -> 1.714654043 | AC29: =OFFSET('ACCES - CALCULS'!AB225,($A$18-1)*14,0) -> 1.549297026 | AD29: =OFFSET('ACCES - CALCULS'!AC225,($A$18-1)*14,0) -> 1.498782819 | AE29: =OFFSET('ACCES - CALCULS'!AD225,($A$18-1)*14,0) -> 1.407778657 | AF29: =OFFSET('ACCES - CALCULS'!AE225,($A$18-1)*14,0) -> 1.330606084 | AG29: =OFFSET('ACCES - CALCULS'!AF225,($A$18-1)*14,0) -> 1.224520266 | AH29: =OFFSET('ACCES - CALCULS'!AG225,($A$18-1)*14,0) -> 1.194527793 | AI29: =OFFSET('ACCES - CALCULS'!AH225,($A$18-1)*14,0) -> 1.139816381 | AJ29: =OFFSET('ACCES - CALCULS'!AI225,($A$18-1)*14,0) -> 1.086203193 | AK29: =OFFSET('ACCES - CALCULS'!AJ225,($A$18-1)*14,0) -> 0.7028694758 | AL29: =OFFSET('ACCES - CALCULS'!AK225,($A$18-1)*14,0) -> 0.6916733249 | AM29: =OFFSET('ACCES - CALCULS'!AL225,($A$18-1)*14,0) -> 0.6826121023 | AN29: =OFFSET('ACCES - CALCULS'!AM225,($A$18-1)*14,0) -> 0.6737852217 | AO29: =OFFSET('ACCES - CALCULS'!AN225,($A$18-1)*14,0) -> 0.2673759591 | AP29: =OFFSET('ACCES - CALCULS'!AO225,($A$18-1)*14,0) -> 0.2644451939 | AQ29: =OFFSET('ACCES - CALCULS'!AP225,($A$18-1)*14,0) -> 0.2620150376 | AR29: =OFFSET('ACCES - CALCULS'!AQ225,($A$18-1)*14,0) -> 0.2666203474 | AS29: =OFFSET('ACCES - CALCULS'!AR225,($A$18-1)*14,0) -> 0.2584355972 | AT29: =OFFSET('ACCES - CALCULS'!AS225,($A$18-1)*14,0) -> 0.2567519777 | AU29: =OFFSET('ACCES - CALCULS'!AT225,($A$18-1)*14,0) -> 0.2550901526 | AV29: =OFFSET('ACCES - CALCULS'!AU225,($A$18-1)*14,0) -> 0.2534497014 | AW29: =OFFSET('ACCES - CALCULS'!AV225,($A$18-1)*14,0) -> 0.2520315176 | AX29: =OFFSET('ACCES - CALCULS'!AW225,($A$18-1)*14,0) -> 0.2508285032 | AY29: =OFFSET('ACCES - CALCULS'!AX225,($A$18-1)*14,0) -> 0.2496369189 | AZ29: =OFFSET('ACCES - CALCULS'!AY225,($A$18-1)*14,0) -> 0.2486525462 | BA29: =OFFSET('ACCES - CALCULS'!AZ225,($A$18-1)*14,0) -> 0.2478706199 | BB29: =OFFSET('ACCES - CALCULS'!BA225,($A$18-1)*14,0) -> 0.2469001007 | BC29: =OFFSET('ACCES - CALCULS'!BB225,($A$18-1)*14,0) -> 0.2461291402 | BD29: =OFFSET('ACCES - CALCULS'!BC225,($A$18-1)*14,0) -> 0.2455540721 | BE29: =OFFSET('ACCES - CALCULS'!BD225,($A$18-1)*14,0) -> 0.244981685 | BF29: =OFFSET('ACCES - CALCULS'!BE225,($A$18-1)*14,0) -> 0.2444119601 | BG29: =OFFSET('ACCES - CALCULS'!BF225,($A$18-1)*14,0) -> 0.243844879 | BH29: =OFFSET('ACCES - CALCULS'!BG225,($A$18-1)*14,0) -> 0.2434682846 | BI29: =OFFSET('ACCES - CALCULS'!BH225,($A$18-1)*14,0) -> 0.242905569 | BJ29: =OFFSET('ACCES - CALCULS'!BI225,($A$18-1)*14,0) -> 0.2425318681
D30: câbles de renvoi / réglettes | F30: =OFFSET('ACCES - CALCULS'!E226,($A$18-1)*14,0) -> 0 | G30: =OFFSET('ACCES - CALCULS'!F226,($A$18-1)*14,0) -> 0 | H30: =OFFSET('ACCES - CALCULS'!G226,($A$18-1)*14,0) -> 0 | I30: =OFFSET('ACCES - CALCULS'!H226,($A$18-1)*14,0) -> 0 | J30: =OFFSET('ACCES - CALCULS'!I226,($A$18-1)*14,0) -> 0 | K30: =OFFSET('ACCES - CALCULS'!J226,($A$18-1)*14,0) -> 0 | L30: =OFFSET('ACCES - CALCULS'!K226,($A$18-1)*14,0) -> 0 | M30: =OFFSET('ACCES - CALCULS'!L226,($A$18-1)*14,0) -> 0 | N30: =OFFSET('ACCES - CALCULS'!M226,($A$18-1)*14,0) -> 0 | O30: =OFFSET('ACCES - CALCULS'!N226,($A$18-1)*14,0) -> 0 | P30: =OFFSET('ACCES - CALCULS'!O226,($A$18-1)*14,0) -> 0 | Q30: =OFFSET('ACCES - CALCULS'!P226,($A$18-1)*14,0) -> 2.200769231 | R30: =OFFSET('ACCES - CALCULS'!Q226,($A$18-1)*14,0) -> 2.043571429 | S30: =OFFSET('ACCES - CALCULS'!R226,($A$18-1)*14,0) -> 3.606302521 | T30: =OFFSET('ACCES - CALCULS'!S226,($A$18-1)*14,0) -> 3.208377654 | U30: =OFFSET('ACCES - CALCULS'!T226,($A$18-1)*14,0) -> 2.721611891 | V30: =OFFSET('ACCES - CALCULS'!U226,($A$18-1)*14,0) -> 2.45785429 | W30: =OFFSET('ACCES - CALCULS'!V226,($A$18-1)*14,0) -> 2.139065421 | X30: =OFFSET('ACCES - CALCULS'!W226,($A$18-1)*14,0) -> 1.947914894 | Y30: =OFFSET('ACCES - CALCULS'!X226,($A$18-1)*14,0) -> 2.793542302 | Z30: =OFFSET('ACCES - CALCULS'!Y226,($A$18-1)*14,0) -> 2.577820187 | AA30: =OFFSET('ACCES - CALCULS'!Z226,($A$18-1)*14,0) -> 2.300995275 | AB30: =OFFSET('ACCES - CALCULS'!AA226,($A$18-1)*14,0) -> 1.763265306 | AC30: =OFFSET('ACCES - CALCULS'!AB226,($A$18-1)*14,0) -> 1.593220339 | AD30: =OFFSET('ACCES - CALCULS'!AC226,($A$18-1)*14,0) -> 1.541274029 | AE30: =OFFSET('ACCES - CALCULS'!AD226,($A$18-1)*14,0) -> 1.926695354 | AF30: =OFFSET('ACCES - CALCULS'!AE226,($A$18-1)*14,0) -> 1.82107645 | AG30: =OFFSET('ACCES - CALCULS'!AF226,($A$18-1)*14,0) -> 1.675886685 | AH30: =OFFSET('ACCES - CALCULS'!AG226,($A$18-1)*14,0) -> 1.634838785 | AI30: =OFFSET('ACCES - CALCULS'!AH226,($A$18-1)*14,0) -> 1.559960378 | AJ30: =OFFSET('ACCES - CALCULS'!AI226,($A$18-1)*14,0) -> 1.85617244 | AK30: =OFFSET('ACCES - CALCULS'!AJ226,($A$18-1)*14,0) -> 1.461510961 | AL30: =OFFSET('ACCES - CALCULS'!AK226,($A$18-1)*14,0) -> 1.438230255 | AM30: =OFFSET('ACCES - CALCULS'!AL226,($A$18-1)*14,0) -> 0.9364543131 | AN30: =OFFSET('ACCES - CALCULS'!AM226,($A$18-1)*14,0) -> 0.9243449901 | AO30: =OFFSET('ACCES - CALCULS'!AN226,($A$18-1)*14,0) -> 0.9141007575 | AP30: =OFFSET('ACCES - CALCULS'!AO226,($A$18-1)*14,0) -> 0.9040811033 | AQ30: =OFFSET('ACCES - CALCULS'!AP226,($A$18-1)*14,0) -> 0.8957729228 | AR30: =OFFSET('ACCES - CALCULS'!AQ226,($A$18-1)*14,0) -> 0.9115174841 | AS30: =OFFSET('ACCES - CALCULS'!AR226,($A$18-1)*14,0) -> 0.6570696571 | AT30: =OFFSET('ACCES - CALCULS'!AS226,($A$18-1)*14,0) -> 0.652789073 | AU30: =OFFSET('ACCES - CALCULS'!AT226,($A$18-1)*14,0) -> 0.648563901 | AV30: =OFFSET('ACCES - CALCULS'!AU226,($A$18-1)*14,0) -> 0.6443930721 | AW30: =OFFSET('ACCES - CALCULS'!AV226,($A$18-1)*14,0) -> 0.6407873555 | AX30: =OFFSET('ACCES - CALCULS'!AW226,($A$18-1)*14,0) -> 0.6377287046 | AY30: =OFFSET('ACCES - CALCULS'!AX226,($A$18-1)*14,0) -> 0.3959444156 | AZ30: =OFFSET('ACCES - CALCULS'!AY226,($A$18-1)*14,0) -> 0.3943831206 | BA30: =OFFSET('ACCES - CALCULS'!AZ226,($A$18-1)*14,0) -> 0.3931429221 | BB30: =OFFSET('ACCES - CALCULS'!BA226,($A$18-1)*14,0) -> 0.3916035998 | BC30: =OFFSET('ACCES - CALCULS'!BB226,($A$18-1)*14,0) -> 0.6365567514 | BD30: =OFFSET('ACCES - CALCULS'!BC226,($A$18-1)*14,0) -> 0.4002196369 | BE30: =OFFSET('ACCES - CALCULS'!BD226,($A$18-1)*14,0) -> 0.399286724 | BF30: =OFFSET('ACCES - CALCULS'!BE226,($A$18-1)*14,0) -> 0.3983581502 | BG30: =OFFSET('ACCES - CALCULS'!BF226,($A$18-1)*14,0) -> 0.3974338854 | BH30: =OFFSET('ACCES - CALCULS'!BG226,($A$18-1)*14,0) -> 0.3968200879 | BI30: =OFFSET('ACCES - CALCULS'!BH226,($A$18-1)*14,0) -> 0.3959029382 | BJ30: =OFFSET('ACCES - CALCULS'!BI226,($A$18-1)*14,0) -> 0.3952938568
D31: LIB | F31: =OFFSET('ACCES - CALCULS'!E227,($A$18-1)*14,0) -> 0 | G31: =OFFSET('ACCES - CALCULS'!F227,($A$18-1)*14,0) -> 0 | H31: =OFFSET('ACCES - CALCULS'!G227,($A$18-1)*14,0) -> 0 | I31: =OFFSET('ACCES - CALCULS'!H227,($A$18-1)*14,0) -> 0 | J31: =OFFSET('ACCES - CALCULS'!I227,($A$18-1)*14,0) -> 0 | K31: =OFFSET('ACCES - CALCULS'!J227,($A$18-1)*14,0) -> 0 | L31: =OFFSET('ACCES - CALCULS'!K227,($A$18-1)*14,0) -> 0 | M31: =OFFSET('ACCES - CALCULS'!L227,($A$18-1)*14,0) -> 0 | N31: =OFFSET('ACCES - CALCULS'!M227,($A$18-1)*14,0) -> 0 | O31: =OFFSET('ACCES - CALCULS'!N227,($A$18-1)*14,0) -> 0 | P31: =OFFSET('ACCES - CALCULS'!O227,($A$18-1)*14,0) -> 0 | Q31: =OFFSET('ACCES - CALCULS'!P227,($A$18-1)*14,0) -> 1.845574787 | R31: =OFFSET('ACCES - CALCULS'!Q227,($A$18-1)*14,0) -> 1.713748016 | S31: =OFFSET('ACCES - CALCULS'!R227,($A$18-1)*14,0) -> 1.512130602 | T31: =OFFSET('ACCES - CALCULS'!S227,($A$18-1)*14,0) -> 1.345279828 | U31: =OFFSET('ACCES - CALCULS'!T227,($A$18-1)*14,0) -> 1.14117787 | V31: =OFFSET('ACCES - CALCULS'!U227,($A$18-1)*14,0) -> 1.030583726 | W31: =OFFSET('ACCES - CALCULS'!V227,($A$18-1)*14,0) -> 0.8969148495 | X31: =OFFSET('ACCES - CALCULS'!W227,($A$18-1)*14,0) -> 0.8167650119 | Y31: =OFFSET('ACCES - CALCULS'!X227,($A$18-1)*14,0) -> 0.7808922999 | Z31: =OFFSET('ACCES - CALCULS'!Y227,($A$18-1)*14,0) -> 0.7205904606 | AA31: =OFFSET('ACCES - CALCULS'!Z227,($A$18-1)*14,0) -> 0.6432082631 | AB31: =OFFSET('ACCES - CALCULS'!AA227,($A$18-1)*14,0) -> 0.4802702563 | AC31: =OFFSET('ACCES - CALCULS'!AB227,($A$18-1)*14,0) -> 0.4339541746 | AD31: =OFFSET('ACCES - CALCULS'!AC227,($A$18-1)*14,0) -> 0.4198052729 | AE31: =OFFSET('ACCES - CALCULS'!AD227,($A$18-1)*14,0) -> 0.3943152378 | AF31: =OFFSET('ACCES - CALCULS'!AE227,($A$18-1)*14,0) -> 0.3726993954 | AG31: =OFFSET('ACCES - CALCULS'!AF227,($A$18-1)*14,0) -> 0.3429850263 | AH31: =OFFSET('ACCES - CALCULS'!AG227,($A$18-1)*14,0) -> 0.3345842106 | AI31: =OFFSET('ACCES - CALCULS'!AH227,($A$18-1)*14,0) -> 0.3192596827 | AJ31: =OFFSET('ACCES - CALCULS'!AI227,($A$18-1)*14,0) -> 0.3042427644 | AK31: =OFFSET('ACCES - CALCULS'!AJ227,($A$18-1)*14,0) -> 0.05024460432 | AL31: =OFFSET('ACCES - CALCULS'!AK227,($A$18-1)*14,0) -> 0.04944424779 | AM31: =OFFSET('ACCES - CALCULS'!AL227,($A$18-1)*14,0) -> 0.01052825951 | AN31: =OFFSET('ACCES - CALCULS'!AM227,($A$18-1)*14,0) -> 0.01039211823 | AO31: =OFFSET('ACCES - CALCULS'!AN227,($A$18-1)*14,0) -> 0.01027694556 | AP31: =OFFSET('ACCES - CALCULS'!AO227,($A$18-1)*14,0) -> 0.01016429776 | AQ31: =OFFSET('ACCES - CALCULS'!AP227,($A$18-1)*14,0) -> 0.01007089151 | AR31: =OFFSET('ACCES - CALCULS'!AQ227,($A$18-1)*14,0) -> 0.01024790263 | AS31: =OFFSET('ACCES - CALCULS'!AR227,($A$18-1)*14,0) -> 0.009933311029 | AT31: =OFFSET('ACCES - CALCULS'!AS227,($A$18-1)*14,0) -> 0.009868598905 | AU31: =OFFSET('ACCES - CALCULS'!AT227,($A$18-1)*14,0) -> 0.009804724479 | AV31: =OFFSET('ACCES - CALCULS'!AU227,($A$18-1)*14,0) -> 0.009741671588 | AW31: =OFFSET('ACCES - CALCULS'!AV227,($A$18-1)*14,0) -> 0.009687161835 | AX31: =OFFSET('ACCES - CALCULS'!AW227,($A$18-1)*14,0) -> 0.009640922399 | AY31: =OFFSET('ACCES - CALCULS'!AX227,($A$18-1)*14,0) -> 0.009595122293 | AZ31: =OFFSET('ACCES - CALCULS'!AY227,($A$18-1)*14,0) -> 0.009557286637 | BA31: =OFFSET('ACCES - CALCULS'!AZ227,($A$18-1)*14,0) -> 0.009527232277 | BB31: =OFFSET('ACCES - CALCULS'!BA227,($A$18-1)*14,0) -> 0.009489929096 | BC31: =OFFSET('ACCES - CALCULS'!BB227,($A$18-1)*14,0) -> 0.009460296218 | BD31: =OFFSET('ACCES - CALCULS'!BC227,($A$18-1)*14,0) -> 0.009438192723 | BE31: =OFFSET('ACCES - CALCULS'!BD227,($A$18-1)*14,0) -> 0.009416192273 | BF31: =OFFSET('ACCES - CALCULS'!BE227,($A$18-1)*14,0) -> 0.009394294152 | BG31: =OFFSET('ACCES - CALCULS'!BF227,($A$18-1)*14,0) -> 0.009372497646 | BH31: =OFFSET('ACCES - CALCULS'!BG227,($A$18-1)*14,0) -> 0.009358022746 | BI31: =OFFSET('ACCES - CALCULS'!BH227,($A$18-1)*14,0) -> 0.009336394034 | BJ31: =OFFSET('ACCES - CALCULS'!BI227,($A$18-1)*14,0) -> 0.009322030351
D32: énergie | F32: =OFFSET('ACCES - CALCULS'!E228,($A$18-1)*14,0) -> 0 | G32: =OFFSET('ACCES - CALCULS'!F228,($A$18-1)*14,0) -> 0 | H32: =OFFSET('ACCES - CALCULS'!G228,($A$18-1)*14,0) -> 0 | I32: =OFFSET('ACCES - CALCULS'!H228,($A$18-1)*14,0) -> 0 | J32: =OFFSET('ACCES - CALCULS'!I228,($A$18-1)*14,0) -> 0 | K32: =OFFSET('ACCES - CALCULS'!J228,($A$18-1)*14,0) -> 0 | L32: =OFFSET('ACCES - CALCULS'!K228,($A$18-1)*14,0) -> 0 | M32: =OFFSET('ACCES - CALCULS'!L228,($A$18-1)*14,0) -> 0 | N32: =OFFSET('ACCES - CALCULS'!M228,($A$18-1)*14,0) -> 0 | O32: =OFFSET('ACCES - CALCULS'!N228,($A$18-1)*14,0) -> 0 | P32: =OFFSET('ACCES - CALCULS'!O228,($A$18-1)*14,0) -> 0 | Q32: =OFFSET('ACCES - CALCULS'!P228,($A$18-1)*14,0) -> 5.634115385 | R32: =OFFSET('ACCES - CALCULS'!Q228,($A$18-1)*14,0) -> 5.231678571 | S32: =OFFSET('ACCES - CALCULS'!R228,($A$18-1)*14,0) -> 4.616186975 | T32: =OFFSET('ACCES - CALCULS'!S228,($A$18-1)*14,0) -> 4.271099462 | U32: =OFFSET('ACCES - CALCULS'!T228,($A$18-1)*14,0) -> 3.623100625 | V32: =OFFSET('ACCES - CALCULS'!U228,($A$18-1)*14,0) -> 3.2719777 | W32: =OFFSET('ACCES - CALCULS'!V228,($A$18-1)*14,0) -> 2.957115858 | X32: =OFFSET('ACCES - CALCULS'!W228,($A$18-1)*14,0) -> 2.692862952 | Y32: =OFFSET('ACCES - CALCULS'!X228,($A$18-1)*14,0) -> 2.669944372 | Z32: =OFFSET('ACCES - CALCULS'!Y228,($A$18-1)*14,0) -> 2.4637667 | AA32: =OFFSET('ACCES - CALCULS'!Z228,($A$18-1)*14,0) -> 2.277730597 | AB32: =OFFSET('ACCES - CALCULS'!AA228,($A$18-1)*14,0) -> 2.12497726 | AC32: =OFFSET('ACCES - CALCULS'!AB228,($A$18-1)*14,0) -> 1.986257017 | AD32: =OFFSET('ACCES - CALCULS'!AC228,($A$18-1)*14,0) -> 1.921495905 | AE32: =OFFSET('ACCES - CALCULS'!AD228,($A$18-1)*14,0) -> 1.963581789 | AF32: =OFFSET('ACCES - CALCULS'!AE228,($A$18-1)*14,0) -> 1.912802662 | AG32: =OFFSET('ACCES - CALCULS'!AF228,($A$18-1)*14,0) -> 1.7602998 | AH32: =OFFSET('ACCES - CALCULS'!AG228,($A$18-1)*14,0) -> 1.768231051 | AI32: =OFFSET('ACCES - CALCULS'!AH228,($A$18-1)*14,0) -> 1.68724305 | AJ32: =OFFSET('ACCES - CALCULS'!AI228,($A$18-1)*14,0) -> 1.654298305 | AK32: =OFFSET('ACCES - CALCULS'!AJ228,($A$18-1)*14,0) -> 1.545255733 | AL32: =OFFSET('ACCES - CALCULS'!AK228,($A$18-1)*14,0) -> 1.52064104 | AM32: =OFFSET('ACCES - CALCULS'!AL228,($A$18-1)*14,0) -> 1.506314803 | AN32: =OFFSET('ACCES - CALCULS'!AM228,($A$18-1)*14,0) -> 1.479332639 | AO32: =OFFSET('ACCES - CALCULS'!AN228,($A$18-1)*14,0) -> 1.462937648 | AP32: =OFFSET('ACCES - CALCULS'!AO228,($A$18-1)*14,0) -> 1.446902075 | AQ32: =OFFSET('ACCES - CALCULS'!AP228,($A$18-1)*14,0) -> 1.467807928 | AR32: =OFFSET('ACCES - CALCULS'!AQ228,($A$18-1)*14,0) -> 1.452043806 | AS32: =OFFSET('ACCES - CALCULS'!AR228,($A$18-1)*14,0) -> 1.334918291 | AT32: =OFFSET('ACCES - CALCULS'!AS228,($A$18-1)*14,0) -> 1.326221755 | AU32: =OFFSET('ACCES - CALCULS'!AT228,($A$18-1)*14,0) -> 1.310557987 | AV32: =OFFSET('ACCES - CALCULS'!AU228,($A$18-1)*14,0) -> 1.302129961 | AW32: =OFFSET('ACCES - CALCULS'!AV228,($A$18-1)*14,0) -> 1.287848943 | AX32: =OFFSET('ACCES - CALCULS'!AW228,($A$18-1)*14,0) -> 1.281701693 | AY32: =OFFSET('ACCES - CALCULS'!AX228,($A$18-1)*14,0) -> 1.26868439 | AZ32: =OFFSET('ACCES - CALCULS'!AY228,($A$18-1)*14,0) -> 1.256780552 | BA32: =OFFSET('ACCES - CALCULS'!AZ228,($A$18-1)*14,0) -> 1.252828412 | BB32: =OFFSET('ACCES - CALCULS'!BA228,($A$18-1)*14,0) -> 1.241070553 | BC32: =OFFSET('ACCES - CALCULS'!BB228,($A$18-1)*14,0) -> 1.278574178 | BD32: =OFFSET('ACCES - CALCULS'!BC228,($A$18-1)*14,0) -> 1.268771712 | BE32: =OFFSET('ACCES - CALCULS'!BD228,($A$18-1)*14,0) -> 1.265814203 | BF32: =OFFSET('ACCES - CALCULS'!BE228,($A$18-1)*14,0) -> 1.262870449 | BG32: =OFFSET('ACCES - CALCULS'!BF228,($A$18-1)*14,0) -> 1.253172649 | BH32: =OFFSET('ACCES - CALCULS'!BG228,($A$18-1)*14,0) -> 1.251237247 | BI32: =OFFSET('ACCES - CALCULS'!BH228,($A$18-1)*14,0) -> 1.248345327 | BJ32: =OFFSET('ACCES - CALCULS'!BI228,($A$18-1)*14,0) -> 1.246424796
D33: localisation distante | F33: =OFFSET('ACCES - CALCULS'!E229,($A$18-1)*14,0) -> 0 | G33: =OFFSET('ACCES - CALCULS'!F229,($A$18-1)*14,0) -> 0 | H33: =OFFSET('ACCES - CALCULS'!G229,($A$18-1)*14,0) -> 0 | I33: =OFFSET('ACCES - CALCULS'!H229,($A$18-1)*14,0) -> 0 | J33: =OFFSET('ACCES - CALCULS'!I229,($A$18-1)*14,0) -> 0 | K33: =OFFSET('ACCES - CALCULS'!J229,($A$18-1)*14,0) -> 0 | L33: =OFFSET('ACCES - CALCULS'!K229,($A$18-1)*14,0) -> 0 | M33: =OFFSET('ACCES - CALCULS'!L229,($A$18-1)*14,0) -> 0 | N33: =OFFSET('ACCES - CALCULS'!M229,($A$18-1)*14,0) -> 0 | O33: =OFFSET('ACCES - CALCULS'!N229,($A$18-1)*14,0) -> 0 | P33: =OFFSET('ACCES - CALCULS'!O229,($A$18-1)*14,0) -> 0 | Q33: =OFFSET('ACCES - CALCULS'!P229,($A$18-1)*14,0) -> 0 | R33: =OFFSET('ACCES - CALCULS'!Q229,($A$18-1)*14,0) -> 0 | S33: =OFFSET('ACCES - CALCULS'!R229,($A$18-1)*14,0) -> 0 | T33: =OFFSET('ACCES - CALCULS'!S229,($A$18-1)*14,0) -> 0 | U33: =OFFSET('ACCES - CALCULS'!T229,($A$18-1)*14,0) -> 0 | V33: =OFFSET('ACCES - CALCULS'!U229,($A$18-1)*14,0) -> 0 | W33: =OFFSET('ACCES - CALCULS'!V229,($A$18-1)*14,0) -> 0 | X33: =OFFSET('ACCES - CALCULS'!W229,($A$18-1)*14,0) -> 0 | Y33: =OFFSET('ACCES - CALCULS'!X229,($A$18-1)*14,0) -> 0 | Z33: =OFFSET('ACCES - CALCULS'!Y229,($A$18-1)*14,0) -> 0 | AA33: =OFFSET('ACCES - CALCULS'!Z229,($A$18-1)*14,0) -> 0 | AB33: =OFFSET('ACCES - CALCULS'!AA229,($A$18-1)*14,0) -> 0 | AC33: =OFFSET('ACCES - CALCULS'!AB229,($A$18-1)*14,0) -> 0 | AD33: =OFFSET('ACCES - CALCULS'!AC229,($A$18-1)*14,0) -> 0 | AE33: =OFFSET('ACCES - CALCULS'!AD229,($A$18-1)*14,0) -> 0 | AF33: =OFFSET('ACCES - CALCULS'!AE229,($A$18-1)*14,0) -> 0 | AG33: =OFFSET('ACCES - CALCULS'!AF229,($A$18-1)*14,0) -> 0 | AH33: =OFFSET('ACCES - CALCULS'!AG229,($A$18-1)*14,0) -> 0 | AI33: =OFFSET('ACCES - CALCULS'!AH229,($A$18-1)*14,0) -> 0 | AJ33: =OFFSET('ACCES - CALCULS'!AI229,($A$18-1)*14,0) -> 0 | AK33: =OFFSET('ACCES - CALCULS'!AJ229,($A$18-1)*14,0) -> 0 | AL33: =OFFSET('ACCES - CALCULS'!AK229,($A$18-1)*14,0) -> 0 | AM33: =OFFSET('ACCES - CALCULS'!AL229,($A$18-1)*14,0) -> 0 | AN33: =OFFSET('ACCES - CALCULS'!AM229,($A$18-1)*14,0) -> 0 | AO33: =OFFSET('ACCES - CALCULS'!AN229,($A$18-1)*14,0) -> 0 | AP33: =OFFSET('ACCES - CALCULS'!AO229,($A$18-1)*14,0) -> 0 | AQ33: =OFFSET('ACCES - CALCULS'!AP229,($A$18-1)*14,0) -> 0 | AR33: =OFFSET('ACCES - CALCULS'!AQ229,($A$18-1)*14,0) -> 0 | AS33: =OFFSET('ACCES - CALCULS'!AR229,($A$18-1)*14,0) -> 0 | AT33: =OFFSET('ACCES - CALCULS'!AS229,($A$18-1)*14,0) -> 0 | AU33: =OFFSET('ACCES - CALCULS'!AT229,($A$18-1)*14,0) -> 0 | AV33: =OFFSET('ACCES - CALCULS'!AU229,($A$18-1)*14,0) -> 0 | AW33: =OFFSET('ACCES - CALCULS'!AV229,($A$18-1)*14,0) -> 0 | AX33: =OFFSET('ACCES - CALCULS'!AW229,($A$18-1)*14,0) -> 0 | AY33: =OFFSET('ACCES - CALCULS'!AX229,($A$18-1)*14,0) -> 0 | AZ33: =OFFSET('ACCES - CALCULS'!AY229,($A$18-1)*14,0) -> 0 | BA33: =OFFSET('ACCES - CALCULS'!AZ229,($A$18-1)*14,0) -> 0 | BB33: =OFFSET('ACCES - CALCULS'!BA229,($A$18-1)*14,0) -> 0 | BC33: =OFFSET('ACCES - CALCULS'!BB229,($A$18-1)*14,0) -> 0 | BD33: =OFFSET('ACCES - CALCULS'!BC229,($A$18-1)*14,0) -> 0 | BE33: =OFFSET('ACCES - CALCULS'!BD229,($A$18-1)*14,0) -> 0 | BF33: =OFFSET('ACCES - CALCULS'!BE229,($A$18-1)*14,0) -> 0 | BG33: =OFFSET('ACCES - CALCULS'!BF229,($A$18-1)*14,0) -> 0 | BH33: =OFFSET('ACCES - CALCULS'!BG229,($A$18-1)*14,0) -> 0 | BI33: =OFFSET('ACCES - CALCULS'!BH229,($A$18-1)*14,0) -> 0 | BJ33: =OFFSET('ACCES - CALCULS'!BI229,($A$18-1)*14,0) -> 0
D34: accès personnel autorisé | F34: =OFFSET('ACCES - CALCULS'!E230,($A$18-1)*14,0) -> 0 | G34: =OFFSET('ACCES - CALCULS'!F230,($A$18-1)*14,0) -> 0 | H34: =OFFSET('ACCES - CALCULS'!G230,($A$18-1)*14,0) -> 0 | I34: =OFFSET('ACCES - CALCULS'!H230,($A$18-1)*14,0) -> 0 | J34: =OFFSET('ACCES - CALCULS'!I230,($A$18-1)*14,0) -> 0 | K34: =OFFSET('ACCES - CALCULS'!J230,($A$18-1)*14,0) -> 0 | L34: =OFFSET('ACCES - CALCULS'!K230,($A$18-1)*14,0) -> 0 | M34: =OFFSET('ACCES - CALCULS'!L230,($A$18-1)*14,0) -> 0 | N34: =OFFSET('ACCES - CALCULS'!M230,($A$18-1)*14,0) -> 0 | O34: =OFFSET('ACCES - CALCULS'!N230,($A$18-1)*14,0) -> 0 | P34: =OFFSET('ACCES - CALCULS'!O230,($A$18-1)*14,0) -> 0 | Q34: =OFFSET('ACCES - CALCULS'!P230,($A$18-1)*14,0) -> 2.403846154 | R34: =OFFSET('ACCES - CALCULS'!Q230,($A$18-1)*14,0) -> 2.232142857 | S34: =OFFSET('ACCES - CALCULS'!R230,($A$18-1)*14,0) -> 1.969537815 | T34: =OFFSET('ACCES - CALCULS'!S230,($A$18-1)*14,0) -> 1.752216038 | U34: =OFFSET('ACCES - CALCULS'!T230,($A$18-1)*14,0) -> 1.486374897 | V34: =OFFSET('ACCES - CALCULS'!U230,($A$18-1)*14,0) -> 1.342326924 | W34: =OFFSET('ACCES - CALCULS'!V230,($A$18-1)*14,0) -> 1.168224299 | X34: =OFFSET('ACCES - CALCULS'!W230,($A$18-1)*14,0) -> 1.063829787 | Y34: =OFFSET('ACCES - CALCULS'!X230,($A$18-1)*14,0) -> 1.017105871 | Z34: =OFFSET('ACCES - CALCULS'!Y230,($A$18-1)*14,0) -> 0.9385632161 | AA34: =OFFSET('ACCES - CALCULS'!Z230,($A$18-1)*14,0) -> 0.5864414731 | AB34: =OFFSET('ACCES - CALCULS'!AA230,($A$18-1)*14,0) -> 0.547112462 | AC34: =OFFSET('ACCES - CALCULS'!AB230,($A$18-1)*14,0) -> 0.4943502825 | AD34: =OFFSET('ACCES - CALCULS'!AC230,($A$18-1)*14,0) -> 0.47823219 | AE34: =OFFSET('ACCES - CALCULS'!AD230,($A$18-1)*14,0) -> 0.4491945477 | AF34: =OFFSET('ACCES - CALCULS'!AE230,($A$18-1)*14,0) -> 0.4245702938 | AG34: =OFFSET('ACCES - CALCULS'!AF230,($A$18-1)*14,0) -> 0.3907203907 | AH34: =OFFSET('ACCES - CALCULS'!AG230,($A$18-1)*14,0) -> 0.3811503812 | AI34: =OFFSET('ACCES - CALCULS'!AH230,($A$18-1)*14,0) -> 0.3636930431 | AJ34: =OFFSET('ACCES - CALCULS'!AI230,($A$18-1)*14,0) -> 0.3465861267 | AK34: =OFFSET('ACCES - CALCULS'!AJ230,($A$18-1)*14,0) -> 0.3237410072 | AL34: =OFFSET('ACCES - CALCULS'!AK230,($A$18-1)*14,0) -> 0.3185840708 | AM34: =OFFSET('ACCES - CALCULS'!AL230,($A$18-1)*14,0) -> 0.3144104803 | AN34: =OFFSET('ACCES - CALCULS'!AM230,($A$18-1)*14,0) -> 0.3103448276 | AO34: =OFFSET('ACCES - CALCULS'!AN230,($A$18-1)*14,0) -> 0.3069053708 | AP34: =OFFSET('ACCES - CALCULS'!AO230,($A$18-1)*14,0) -> 0.3035413153 | AQ34: =OFFSET('ACCES - CALCULS'!AP230,($A$18-1)*14,0) -> 0.3007518797 | AR34: =OFFSET('ACCES - CALCULS'!AQ230,($A$18-1)*14,0) -> 0.306038048 | AS34: =OFFSET('ACCES - CALCULS'!AR230,($A$18-1)*14,0) -> 0.2966432475 | AT34: =OFFSET('ACCES - CALCULS'!AS230,($A$18-1)*14,0) -> 0.2947107182 | AU34: =OFFSET('ACCES - CALCULS'!AT230,($A$18-1)*14,0) -> 0.2928032054 | AV34: =OFFSET('ACCES - CALCULS'!AU230,($A$18-1)*14,0) -> 0.2909202266 | AW34: =OFFSET('ACCES - CALCULS'!AV230,($A$18-1)*14,0) -> 0.2892923756 | AX34: =OFFSET('ACCES - CALCULS'!AW230,($A$18-1)*14,0) -> 0.2879115051 | AY34: =OFFSET('ACCES - CALCULS'!AX230,($A$18-1)*14,0) -> 0.2865437545 | AZ34: =OFFSET('ACCES - CALCULS'!AY230,($A$18-1)*14,0) -> 0.2854138501 | BA34: =OFFSET('ACCES - CALCULS'!AZ230,($A$18-1)*14,0) -> 0.2845163223 | BB34: =OFFSET('ACCES - CALCULS'!BA230,($A$18-1)*14,0) -> 0.2834023194 | BC34: =OFFSET('ACCES - CALCULS'!BB230,($A$18-1)*14,0) -> 0.2825173785 | BD34: =OFFSET('ACCES - CALCULS'!BC230,($A$18-1)*14,0) -> 0.2818572912 | BE34: =OFFSET('ACCES - CALCULS'!BD230,($A$18-1)*14,0) -> 0.2812002812 | BF34: =OFFSET('ACCES - CALCULS'!BE230,($A$18-1)*14,0) -> 0.2805463271 | BG34: =OFFSET('ACCES - CALCULS'!BF230,($A$18-1)*14,0) -> 0.2798954075 | BH34: =OFFSET('ACCES - CALCULS'!BG230,($A$18-1)*14,0) -> 0.2794631366 | BI34: =OFFSET('ACCES - CALCULS'!BH230,($A$18-1)*14,0) -> 0.278817228 | BJ34: =OFFSET('ACCES - CALCULS'!BI230,($A$18-1)*14,0) -> 0.2783882784
B35: coûts propres opérateur | D35: équipements actifs | F35: =OFFSET('ACCES - CALCULS'!E231,($A$18-1)*14,0) -> 0 | G35: =OFFSET('ACCES - CALCULS'!F231,($A$18-1)*14,0) -> 0 | H35: =OFFSET('ACCES - CALCULS'!G231,($A$18-1)*14,0) -> 0 | I35: =OFFSET('ACCES - CALCULS'!H231,($A$18-1)*14,0) -> 0 | J35: =OFFSET('ACCES - CALCULS'!I231,($A$18-1)*14,0) -> 0 | K35: =OFFSET('ACCES - CALCULS'!J231,($A$18-1)*14,0) -> 0 | L35: =OFFSET('ACCES - CALCULS'!K231,($A$18-1)*14,0) -> 0 | M35: =OFFSET('ACCES - CALCULS'!L231,($A$18-1)*14,0) -> 0 | N35: =OFFSET('ACCES - CALCULS'!M231,($A$18-1)*14,0) -> 0 | O35: =OFFSET('ACCES - CALCULS'!N231,($A$18-1)*14,0) -> 0 | P35: =OFFSET('ACCES - CALCULS'!O231,($A$18-1)*14,0) -> 0 | Q35: =OFFSET('ACCES - CALCULS'!P231,($A$18-1)*14,0) -> 19.71361674 | R35: =OFFSET('ACCES - CALCULS'!Q231,($A$18-1)*14,0) -> 19.5720667 | S35: =OFFSET('ACCES - CALCULS'!R231,($A$18-1)*14,0) -> 19.43223273 | T35: =OFFSET('ACCES - CALCULS'!S231,($A$18-1)*14,0) -> 17.15030581 | U35: =OFFSET('ACCES - CALCULS'!T231,($A$18-1)*14,0) -> 15.32610404 | V35: =OFFSET('ACCES - CALCULS'!U231,($A$18-1)*14,0) -> 13.83477854 | W35: =OFFSET('ACCES - CALCULS'!V231,($A$18-1)*14,0) -> 12.59309686 | X35: =OFFSET('ACCES - CALCULS'!W231,($A$18-1)*14,0) -> 12.50538975 | Y35: =OFFSET('ACCES - CALCULS'!X231,($A$18-1)*14,0) -> 12.41874595 | Z35: =OFFSET('ACCES - CALCULS'!Y231,($A$18-1)*14,0) -> 11.38444853 | AA35: =OFFSET('ACCES - CALCULS'!Z231,($A$18-1)*14,0) -> 10.49879733 | AB35: =OFFSET('ACCES - CALCULS'!AA231,($A$18-1)*14,0) -> 9.732053048 | AC35: =OFFSET('ACCES - CALCULS'!AB231,($A$18-1)*14,0) -> 9.061911307 | AD35: =OFFSET('ACCES - CALCULS'!AC231,($A$18-1)*14,0) -> 9.000773183 | AE35: =OFFSET('ACCES - CALCULS'!AD231,($A$18-1)*14,0) -> 8.940376263 | AF35: =OFFSET('ACCES - CALCULS'!AE231,($A$18-1)*14,0) -> 12.70773922 | AG35: =OFFSET('ACCES - CALCULS'!AF231,($A$18-1)*14,0) -> 11.9255467 | AH35: =OFFSET('ACCES - CALCULS'!AG231,($A$18-1)*14,0) -> 13.46106618 | AI35: =OFFSET('ACCES - CALCULS'!AH231,($A$18-1)*14,0) -> 12.64253408 | AJ35: =OFFSET('ACCES - CALCULS'!AI231,($A$18-1)*14,0) -> 12.53512905 | AK35: =OFFSET('ACCES - CALCULS'!AJ231,($A$18-1)*14,0) -> 8.149367791 | AL35: =OFFSET('ACCES - CALCULS'!AK231,($A$18-1)*14,0) -> 8.10903755 | AM35: =OFFSET('ACCES - CALCULS'!AL231,($A$18-1)*14,0) -> 8.056335617 | AN35: =OFFSET('ACCES - CALCULS'!AM231,($A$18-1)*14,0) -> 8.016977332 | AO35: =OFFSET('ACCES - CALCULS'!AN231,($A$18-1)*14,0) -> 7.978096205 | AP35: =OFFSET('ACCES - CALCULS'!AO231,($A$18-1)*14,0) -> 7.927815098 | AQ35: =OFFSET('ACCES - CALCULS'!AP231,($A$18-1)*14,0) -> 10.99666688 | AR35: =OFFSET('ACCES - CALCULS'!AQ231,($A$18-1)*14,0) -> 7.725282219 | AS35: =OFFSET('ACCES - CALCULS'!AR231,($A$18-1)*14,0) -> 7.304512145 | AT35: =OFFSET('ACCES - CALCULS'!AS231,($A$18-1)*14,0) -> 7.252253978 | AU35: =OFFSET('ACCES - CALCULS'!AT231,($A$18-1)*14,0) -> 7.181187736 | AV35: =OFFSET('ACCES - CALCULS'!AU231,($A$18-1)*14,0) -> 7.130188986 | AW35: =OFFSET('ACCES - CALCULS'!AV231,($A$18-1)*14,0) -> 7.079808518 | AX35: =OFFSET('ACCES - CALCULS'!AW231,($A$18-1)*14,0) -> 7.030038835 | AY35: =OFFSET('ACCES - CALCULS'!AX231,($A$18-1)*14,0) -> 6.980872532 | AZ35: =OFFSET('ACCES - CALCULS'!AY231,($A$18-1)*14,0) -> 5.613057679 | BA35: =OFFSET('ACCES - CALCULS'!AZ231,($A$18-1)*14,0) -> 5.58107008 | BB35: =OFFSET('ACCES - CALCULS'!BA231,($A$18-1)*14,0) -> 4.262019365 | BC35: =OFFSET('ACCES - CALCULS'!BB231,($A$18-1)*14,0) -> 4.228310193 | BD35: =OFFSET('ACCES - CALCULS'!BC231,($A$18-1)*14,0) -> 4.21289107 | BE35: =OFFSET('ACCES - CALCULS'!BD231,($A$18-1)*14,0) -> 4.19765888 | BF35: =OFFSET('ACCES - CALCULS'!BE231,($A$18-1)*14,0) -> 4.182611357 | BG35: =OFFSET('ACCES - CALCULS'!BF231,($A$18-1)*14,0) -> 4.167746261 | BH35: =OFFSET('ACCES - CALCULS'!BG231,($A$18-1)*14,0) -> 4.153061382 | BI35: =OFFSET('ACCES - CALCULS'!BH231,($A$18-1)*14,0) -> 4.138554535 | BJ35: =OFFSET('ACCES - CALCULS'!BI231,($A$18-1)*14,0) -> 4.12422356
D36: localisation distante | F36: =OFFSET('ACCES - CALCULS'!E232,($A$18-1)*14,0) -> 0 | G36: =OFFSET('ACCES - CALCULS'!F232,($A$18-1)*14,0) -> 0 | H36: =OFFSET('ACCES - CALCULS'!G232,($A$18-1)*14,0) -> 0 | I36: =OFFSET('ACCES - CALCULS'!H232,($A$18-1)*14,0) -> 0 | J36: =OFFSET('ACCES - CALCULS'!I232,($A$18-1)*14,0) -> 0 | K36: =OFFSET('ACCES - CALCULS'!J232,($A$18-1)*14,0) -> 0 | L36: =OFFSET('ACCES - CALCULS'!K232,($A$18-1)*14,0) -> 0 | M36: =OFFSET('ACCES - CALCULS'!L232,($A$18-1)*14,0) -> 0 | N36: =OFFSET('ACCES - CALCULS'!M232,($A$18-1)*14,0) -> 0 | O36: =OFFSET('ACCES - CALCULS'!N232,($A$18-1)*14,0) -> 0 | P36: =OFFSET('ACCES - CALCULS'!O232,($A$18-1)*14,0) -> 0 | Q36: =OFFSET('ACCES - CALCULS'!P232,($A$18-1)*14,0) -> 0 | R36: =OFFSET('ACCES - CALCULS'!Q232,($A$18-1)*14,0) -> 0 | S36: =OFFSET('ACCES - CALCULS'!R232,($A$18-1)*14,0) -> 0 | T36: =OFFSET('ACCES - CALCULS'!S232,($A$18-1)*14,0) -> 0 | U36: =OFFSET('ACCES - CALCULS'!T232,($A$18-1)*14,0) -> 0 | V36: =OFFSET('ACCES - CALCULS'!U232,($A$18-1)*14,0) -> 0 | W36: =OFFSET('ACCES - CALCULS'!V232,($A$18-1)*14,0) -> 0 | X36: =OFFSET('ACCES - CALCULS'!W232,($A$18-1)*14,0) -> 0 | Y36: =OFFSET('ACCES - CALCULS'!X232,($A$18-1)*14,0) -> 0 | Z36: =OFFSET('ACCES - CALCULS'!Y232,($A$18-1)*14,0) -> 0 | AA36: =OFFSET('ACCES - CALCULS'!Z232,($A$18-1)*14,0) -> 0 | AB36: =OFFSET('ACCES - CALCULS'!AA232,($A$18-1)*14,0) -> 0 | AC36: =OFFSET('ACCES - CALCULS'!AB232,($A$18-1)*14,0) -> 0 | AD36: =OFFSET('ACCES - CALCULS'!AC232,($A$18-1)*14,0) -> 0 | AE36: =OFFSET('ACCES - CALCULS'!AD232,($A$18-1)*14,0) -> 0 | AF36: =OFFSET('ACCES - CALCULS'!AE232,($A$18-1)*14,0) -> 0 | AG36: =OFFSET('ACCES - CALCULS'!AF232,($A$18-1)*14,0) -> 0 | AH36: =OFFSET('ACCES - CALCULS'!AG232,($A$18-1)*14,0) -> 0 | AI36: =OFFSET('ACCES - CALCULS'!AH232,($A$18-1)*14,0) -> 0 | AJ36: =OFFSET('ACCES - CALCULS'!AI232,($A$18-1)*14,0) -> 0 | AK36: =OFFSET('ACCES - CALCULS'!AJ232,($A$18-1)*14,0) -> 0 | AL36: =OFFSET('ACCES - CALCULS'!AK232,($A$18-1)*14,0) -> 0 | AM36: =OFFSET('ACCES - CALCULS'!AL232,($A$18-1)*14,0) -> 0 | AN36: =OFFSET('ACCES - CALCULS'!AM232,($A$18-1)*14,0) -> 0 | AO36: =OFFSET('ACCES - CALCULS'!AN232,($A$18-1)*14,0) -> 0 | AP36: =OFFSET('ACCES - CALCULS'!AO232,($A$18-1)*14,0) -> 0 | AQ36: =OFFSET('ACCES - CALCULS'!AP232,($A$18-1)*14,0) -> 0 | AR36: =OFFSET('ACCES - CALCULS'!AQ232,($A$18-1)*14,0) -> 0 | AS36: =OFFSET('ACCES - CALCULS'!AR232,($A$18-1)*14,0) -> 0 | AT36: =OFFSET('ACCES - CALCULS'!AS232,($A$18-1)*14,0) -> 0 | AU36: =OFFSET('ACCES - CALCULS'!AT232,($A$18-1)*14,0) -> 0 | AV36: =OFFSET('ACCES - CALCULS'!AU232,($A$18-1)*14,0) -> 0 | AW36: =OFFSET('ACCES - CALCULS'!AV232,($A$18-1)*14,0) -> 0 | AX36: =OFFSET('ACCES - CALCULS'!AW232,($A$18-1)*14,0) -> 0 | AY36: =OFFSET('ACCES - CALCULS'!AX232,($A$18-1)*14,0) -> 0 | AZ36: =OFFSET('ACCES - CALCULS'!AY232,($A$18-1)*14,0) -> 0 | BA36: =OFFSET('ACCES - CALCULS'!AZ232,($A$18-1)*14,0) -> 0 | BB36: =OFFSET('ACCES - CALCULS'!BA232,($A$18-1)*14,0) -> 0 | BC36: =OFFSET('ACCES - CALCULS'!BB232,($A$18-1)*14,0) -> 0 | BD36: =OFFSET('ACCES - CALCULS'!BC232,($A$18-1)*14,0) -> 0 | BE36: =OFFSET('ACCES - CALCULS'!BD232,($A$18-1)*14,0) -> 0 | BF36: =OFFSET('ACCES - CALCULS'!BE232,($A$18-1)*14,0) -> 0 | BG36: =OFFSET('ACCES - CALCULS'!BF232,($A$18-1)*14,0) -> 0 | BH36: =OFFSET('ACCES - CALCULS'!BG232,($A$18-1)*14,0) -> 0 | BI36: =OFFSET('ACCES - CALCULS'!BH232,($A$18-1)*14,0) -> 0 | BJ36: =OFFSET('ACCES - CALCULS'!BI232,($A$18-1)*14,0) -> 0
D37: coûts techniques et coûts communs | F37: =OFFSET('ACCES - CALCULS'!E233,($A$18-1)*14,0) -> 0 | G37: =OFFSET('ACCES - CALCULS'!F233,($A$18-1)*14,0) -> 0 | H37: =OFFSET('ACCES - CALCULS'!G233,($A$18-1)*14,0) -> 0 | I37: =OFFSET('ACCES - CALCULS'!H233,($A$18-1)*14,0) -> 0 | J37: =OFFSET('ACCES - CALCULS'!I233,($A$18-1)*14,0) -> 0 | K37: =OFFSET('ACCES - CALCULS'!J233,($A$18-1)*14,0) -> 0 | L37: =OFFSET('ACCES - CALCULS'!K233,($A$18-1)*14,0) -> 0 | M37: =OFFSET('ACCES - CALCULS'!L233,($A$18-1)*14,0) -> 0 | N37: =OFFSET('ACCES - CALCULS'!M233,($A$18-1)*14,0) -> 0 | O37: =OFFSET('ACCES - CALCULS'!N233,($A$18-1)*14,0) -> 0 | P37: =OFFSET('ACCES - CALCULS'!O233,($A$18-1)*14,0) -> 0 | Q37: =OFFSET('ACCES - CALCULS'!P233,($A$18-1)*14,0) -> 12.8755899 | R37: =OFFSET('ACCES - CALCULS'!Q233,($A$18-1)*14,0) -> 13.53306907 | S37: =OFFSET('ACCES - CALCULS'!R233,($A$18-1)*14,0) -> 14.03389524 | T37: =OFFSET('ACCES - CALCULS'!S233,($A$18-1)*14,0) -> 13.9288413 | U37: =OFFSET('ACCES - CALCULS'!T233,($A$18-1)*14,0) -> 13.29634895 | V37: =OFFSET('ACCES - CALCULS'!U233,($A$18-1)*14,0) -> 12.9204871 | W37: =OFFSET('ACCES - CALCULS'!V233,($A$18-1)*14,0) -> 12.57082538 | X37: =OFFSET('ACCES - CALCULS'!W233,($A$18-1)*14,0) -> 12.66686812 | Y37: =OFFSET('ACCES - CALCULS'!X233,($A$18-1)*14,0) -> 13.27375012 | Z37: =OFFSET('ACCES - CALCULS'!Y233,($A$18-1)*14,0) -> 12.97316028 | AA37: =OFFSET('ACCES - CALCULS'!Z233,($A$18-1)*14,0) -> 12.66243756 | AB37: =OFFSET('ACCES - CALCULS'!AA233,($A$18-1)*14,0) -> 12.26658197 | AC37: =OFFSET('ACCES - CALCULS'!AB233,($A$18-1)*14,0) -> 9.654481692 | AD37: =OFFSET('ACCES - CALCULS'!AC233,($A$18-1)*14,0) -> 9.559289175 | AE37: =OFFSET('ACCES - CALCULS'!AD233,($A$18-1)*14,0) -> 9.468310817 | AF37: =OFFSET('ACCES - CALCULS'!AE233,($A$18-1)*14,0) -> 9.220528622 | AG37: =OFFSET('ACCES - CALCULS'!AF233,($A$18-1)*14,0) -> 8.952540182 | AH37: =OFFSET('ACCES - CALCULS'!AG233,($A$18-1)*14,0) -> 8.901853747 | AI37: =OFFSET('ACCES - CALCULS'!AH233,($A$18-1)*14,0) -> 8.67474779 | AJ37: =OFFSET('ACCES - CALCULS'!AI233,($A$18-1)*14,0) -> 8.682520105 | AK37: =OFFSET('ACCES - CALCULS'!AJ233,($A$18-1)*14,0) -> 8.20848268 | AL37: =OFFSET('ACCES - CALCULS'!AK233,($A$18-1)*14,0) -> 8.08748792 | AM37: =OFFSET('ACCES - CALCULS'!AL233,($A$18-1)*14,0) -> 7.910475327 | AN37: =OFFSET('ACCES - CALCULS'!AM233,($A$18-1)*14,0) -> 7.796635556 | AO37: =OFFSET('ACCES - CALCULS'!AN233,($A$18-1)*14,0) -> 7.640528322 | AP37: =OFFSET('ACCES - CALCULS'!AO233,($A$18-1)*14,0) -> 7.476145621 | AQ37: =OFFSET('ACCES - CALCULS'!AP233,($A$18-1)*14,0) -> 7.647629789 | AR37: =OFFSET('ACCES - CALCULS'!AQ233,($A$18-1)*14,0) -> 7.487030509 | AS37: =OFFSET('ACCES - CALCULS'!AR233,($A$18-1)*14,0) -> 7.293560196 | AT37: =OFFSET('ACCES - CALCULS'!AS233,($A$18-1)*14,0) -> 7.222148139 | AU37: =OFFSET('ACCES - CALCULS'!AT233,($A$18-1)*14,0) -> 7.12016093 | AV37: =OFFSET('ACCES - CALCULS'!AU233,($A$18-1)*14,0) -> 7.12100269 | AW37: =OFFSET('ACCES - CALCULS'!AV233,($A$18-1)*14,0) -> 7.020406844 | AX37: =OFFSET('ACCES - CALCULS'!AW233,($A$18-1)*14,0) -> 7.02179313 | AY37: =OFFSET('ACCES - CALCULS'!AX233,($A$18-1)*14,0) -> 6.996199091 | AZ37: =OFFSET('ACCES - CALCULS'!AY233,($A$18-1)*14,0) -> 6.926282061 | BA37: =OFFSET('ACCES - CALCULS'!AZ233,($A$18-1)*14,0) -> 6.929167467 | BB37: =OFFSET('ACCES - CALCULS'!BA233,($A$18-1)*14,0) -> 6.856529914 | BC37: =OFFSET('ACCES - CALCULS'!BB233,($A$18-1)*14,0) -> 6.885601797 | BD37: =OFFSET('ACCES - CALCULS'!BC233,($A$18-1)*14,0) -> 6.785424777 | BE37: =OFFSET('ACCES - CALCULS'!BD233,($A$18-1)*14,0) -> 6.679535689 | BF37: =OFFSET('ACCES - CALCULS'!BE233,($A$18-1)*14,0) -> 6.678163431 | BG37: =OFFSET('ACCES - CALCULS'!BF233,($A$18-1)*14,0) -> 6.676059148 | BH37: =OFFSET('ACCES - CALCULS'!BG233,($A$18-1)*14,0) -> 6.674898384 | BI37: =OFFSET('ACCES - CALCULS'!BH233,($A$18-1)*14,0) -> 6.673563848 | BJ37: =OFFSET('ACCES - CALCULS'!BI233,($A$18-1)*14,0) -> 6.672424967
B39: coût mensuel accès dégroupé | F39: =SUM(F26:F37) -> 0 | G39: 0 | H39: 0 | I39: 0 | J39: 0 | K39: 0 | L39: 0 | M39: 0 | N39: 0 | O39: 0 | P39: 0 | Q39: 112.389807 | R39: 111.6772753 | S39: 111.9625964 | T39: 107.9860818 | U39: 91.78392996 | V39: 88.74076012 | W39: 85.83759385 | X39: 84.98388398 | Y39: 86.64482998 | Z39: 84.58210015 | AA39: 82.27893278 | AB39: 79.75588634 | AC39: 75.90044383 | AD39: 75.54662457 | AE39: 75.67722466 | AF39: 78.91699472 | AG39: 77.39947104 | AH39: 77.64322415 | AI39: 76.3542264 | AJ39: 76.43212398 | AK39: 70.40844425 | AL39: =SUM(AL26:AL37) -> 70.1820704 | AM39: 69.3841029 | AN39: 69.17878468 | AO39: 68.5471932 | AP39: 68.01451151 | AQ39: 71.26213214 | AR39: 67.84019712 | AS39: 66.83648925 | AT39: 66.69616105 | AU39: 66.49958544 | AV39: 66.43324312 | AW39: 66.26127952 | AX39: 66.2010601 | AY39: 65.86889303 | AZ39: 64.4155439 | BA39: 64.37953986 | BB39: 62.97243259 | BC39: 63.24856654 | BD39: 62.88557356 | BE39: 62.75931046 | BF39: 62.73777278 | BG39: 62.70894154 | BH39: 62.68972335 | BI39: 62.66884265 | BJ39: 62.65002616
B49: sans GTR
B50: GTR 4H ouvrées
B51: GTR 4H 24/24 & 7/7
B54: accès résidentiel ADSL - dégroupage total
B55: accès "entreprises" ADSL
B56: accès "entreprises" SDSL mono-paire
B57: accès "entreprises" SDSL bi-paires
B58: accès "entreprises" SDSL quadri-paires
B60: <--- référence NRA
B61: 100
B62: 200
B63: 300
B64: 400
B65: 500
B66: 600
B67: 700
B68: 800
B69: 900
B70: 1000
B71: 1100
B72: 1200
B73: 1300
B74: 1400
B75: 1500
B76: 2000
B77: 2500
B78: 3000
B79: 3500
B80: 4000
B81: 4500
B82: 5000
B83: 6000
B84: 7000
B85: 8000
B86: 9000
B87: 10000
B88: 15000
B89: 20000
B90: 25000
B91: 30000
B92: 35000
B93: 40000
B94: 45000
B95: 50000
B96: 60000
B97: 70000
B98: 80000
B99: 90000
B100: 100000
B102: <--- référence NRA
B103: 2003-01-01
B104: 2003-07-01
B105: 2004-01-01
B106: 2004-07-01
B107: 2005-01-01
B108: 2005-07-01
B109: 2006-01-01
B110: 2006-07-01
B111: 2007-01-01
B112: 2007-07-01
B113: 2008-01-01
B114: 2008-07-01
B115: 2009-01-01
B116: 2009-07-01
B117: 2010-01-01
B118: 2010-07-01
B119: 2011-01-01
B120: 2011-07-01
B121: 2012-01-01
B122: 2012-07-01
B123: 2013-01-01
B125: <--- référence NRA
B126: =PARAMETRES!C74 -> salle cohab.
B127: =PARAMETRES!C75 -> esp. dédié
B128: =PARAMETRES!C76 -> esp. restreint
B129: =PARAMETRES!C77 -> TPS
B130: =PARAMETRES!C78 -> HPS
B131: =PARAMETRES!C79 -> NRA MeD
B132: =PARAMETRES!C80 -> NRA armoire
B133: =PARAMETRES!C81 -> NRA ZO
B134: =PARAMETRES!C82 -> loc. dist.
B136: <--- référence NRA
B137: 1
B138: 2
B139: 3
B140: 4
B141: 5
B143: <--- référence NRA
B144: pas de ventilation
B145: ventilation mécanique
B146: climatisation France Télécom
B147: climatisation opérateur
B149: <--- référence NRA
B150: 1
B151: 2 ou plus

Sheet ACCES - CALCULS
A3: NRA modélisé
C5: nb de lignes cuivre | D5: =IF('ACCES - RESULTATS'!E10='ACCES - RESULTATS'!B60,'ACCES - RESULTATS'!D10,'ACCES - RESULTATS'!E10) -> 7000
C6: date de dégroupage | D6: =IF('ACCES - RESULTATS'!E11='ACCES - RESULTATS'!B102,'ACCES - RESULTATS'!D11,'ACCES - RESULTATS'!E11) -> 2005-09-26
C7: type d'hébergement | D7: =IF('ACCES - RESULTATS'!E12='ACCES - RESULTATS'!B125,'ACCES - RESULTATS'!D12,'ACCES - RESULTATS'!E12) -> Esp. dédié
A8: =IF(ISNA(MATCH(D7,PARAMETRES!C74:C82,0)),CHOOSE(MATCH('ACCES - RESULTATS'!D9,{"-";"NRA HD";"NRA ZO";"NRA MeD"}),IF(D6<'ODR DEGROUPAGE'!T3,IF(D6<'ODR DEGROUPAGE'!F3,2,IF(D5<=PARAMETRES!B88,MATCH(PARAMETRES!E87,PARAMETRES!C74:C82,0),MATCH(PARAMETRES!E88,PARAMETRES!C74:C82,0))),IF(D5<=PARAMETRES!B88,IF(D5<=PARAMETRES!B87,MATCH(PARAMETRES!F86,PARAMETRES!C74:C82,0),MATCH(PARAMETRES!F87,PARAMETRES!C74:C82)),MATCH(PARAMETRES!F88,PARAMETRES!C74:C82))),4,8,6),MATCH(D7,PARAMETRES!C74:C82,0)) -> 2 | C8: zone de tarification emplacement | D8: =IF('ACCES - RESULTATS'!E13='ACCES - RESULTATS'!B136,'ACCES - RESULTATS'!D13,'ACCES - RESULTATS'!E13) -> 5
C9: type de climatisation | D9: =IF('ACCES - RESULTATS'!E14='ACCES - RESULTATS'!B143,'ACCES - RESULTATS'!D14,'ACCES - RESULTATS'!E14) -> ventilation mécanique
A10: =IF(ISNA(MATCH(D9,'ACCES - RESULTATS'!B144:B147,0)),1,MATCH(D9,'ACCES - RESULTATS'!B144:B147,0)) -> 2 | C10: nb de modules câbles de renvoi | D10: =IF('ACCES - RESULTATS'!E15='ACCES - RESULTATS'!B149,'ACCES - RESULTATS'!D15,IF('ACCES - RESULTATS'!E15='ACCES - RESULTATS'!B150,1,2)) -> 1
C11: nb de lignes résidentielles éligibles DSL | D11: =IF('ACCES - RESULTATS'!E10='ACCES - RESULTATS'!B60,INDEX('BASE NRA 2012'!K2:K15051,'ACCES - RESULTATS'!A8),CEILING('ACCES - RESULTATS'!E10*PARAMETRES!E6*(1-PARAMETRES!E7),1)) -> 6827
C12: nb de lignes "entreprises" | D12: =IF('ACCES - RESULTATS'!E10='ACCES - RESULTATS'!B60,INDEX('BASE NRA 2012'!L2:L15051,'ACCES - RESULTATS'!A8),CEILING('ACCES - RESULTATS'!E10*PARAMETRES!E6*PARAMETRES!E7,1)) -> 105
A14: caractéristiques du marché
C15: trimestre pour l'évaluation des coûts | E15: 2003-01-01 | F15: 2003-04-01 | G15: 2003-07-01 | H15: 2003-10-01 | I15: 2004-01-01 | J15: 2004-04-01 | K15: 2004-07-01 | L15: 2004-10-01 | M15: 2005-01-01 | N15: 2005-04-01 | O15: 2005-07-01 | P15: 2005-10-01 | Q15: 2006-01-01 | R15: 2006-04-01 | S15: 2006-07-01 | T15: 2006-10-01 | U15: 2007-01-01 | V15: 2007-04-01 | W15: 2007-07-01 | X15: 2007-10-01 | Y15: 2008-01-01 | Z15: 2008-04-01 | AA15: 2008-07-01 | AB15: 2008-10-01 | AC15: 2009-01-01 | AD15: 2009-04-01 | AE15: 2009-07-01 | AF15: 2009-10-01 | AG15: 2010-01-01 | AH15: 2010-04-01 | AI15: 2010-07-01 | AJ15: 2010-10-01 | AK15: 2011-01-01 | AL15: 2011-04-01 | AM15: 2011-07-01 | AN15: 2011-10-01 | AO15: 2012-01-01 | AP15: 2012-04-01 | AQ15: 2012-07-01 | AR15: 2012-10-01 | AS15: 2013-01-01 | AT15: 2013-04-01 | AU15: 2013-07-01 | AV15: 2013-10-01 | AW15: 2014-01-01 | AX15: 2014-04-01 | AY15: 2014-07-01 | AZ15: 2014-10-01 | BA15: 2015-01-01 | BB15: 2015-04-01 | BC15: 2015-07-01 | BD15: 2015-10-01 | BE15: 2016-01-01 | BF15: 2016-04-01 | BG15: 2016-07-01 | BH15: 2016-10-01 | BI15: 2017-01-01
C16: offre de référence en vigueur | E16: =MATCH(E15,'ODR DEGROUPAGE'!$E$3:$V$3,1) -> 1 | F16: =MATCH(F15,'ODR DEGROUPAGE'!$E$3:$V$3,1) -> 1 | G16: =MATCH(G15,'ODR DEGROUPAGE'!$E$3:$V$3,1) -> 1 | H16: =MATCH(H15,'ODR DEGROUPAGE'!$E$3:$V$3,1) -> 1 | I16: =MATCH(I15,'ODR DEGROUPAGE'!$E$3:$V$3,1) -> 2 | J16: =MATCH(J15,'ODR DEGROUPAGE'!$E$3:$V$3,1) -> 2 | K16: =MATCH(K15,'ODR DEGROUPAGE'!$E$3:$V$3,1) -> 2 | L16: =MATCH(L15,'ODR DEGROUPAGE'!$E$3:$V$3,1) -> 2 | M16: =MATCH(M15,'ODR DEGROUPAGE'!$E$3:$V$3,1) -> 3 | N16: =MATCH(N15,'ODR DEGROUPAGE'!$E$3:$V$3,1) -> 4 | O16: =MATCH(O15,'ODR DEGROUPAGE'!$E$3:$V$3,1) -> 5 | P16: =MATCH(P15,'ODR DEGROUPAGE'!$E$3:$V$3,1) -> 6 | Q16: =MATCH(Q15,'ODR DEGROUPAGE'!$E$3:$V$3,1) -> 6 | R16: =MATCH(R15,'ODR DEGROUPAGE'!$E$3:$V$3,1) -> 7 | S16: =MATCH(S15,'ODR DEGROUPAGE'!$E$3:$V$3,1) -> 7 | T16: =MATCH(T15,'ODR DEGROUPAGE'!$E$3:$V$3,1) -> 8 | U16: =MATCH(U15,'ODR DEGROUPAGE'!$E$3:$V$3,1) -> 9 | V16: =MATCH(V15,'ODR DEGROUPAGE'!$E$3:$V$3,1) -> 9 | W16: =MATCH(W15,'ODR DEGROUPAGE'!$E$3:$V$3,1) -> 9 | X16: =MATCH(X15,'ODR DEGROUPAGE'!$E$3:$V$3,1) -> 10 | Y16: =MATCH(Y15,'ODR DEGROUPAGE'!$E$3:$V$3,1) -> 10 | Z16: =MATCH(Z15,'ODR DEGROUPAGE'!$E$3:$V$3,1) -> 11 | AA16: =MATCH(AA15,'ODR DEGROUPAGE'!$E$3:$V$3,1) -> 12 | AB16: =MATCH(AB15,'ODR DEGROUPAGE'!$E$3:$V$3,1) -> 12 | AC16: =MATCH(AC15,'ODR DEGROUPAGE'!$E$3:$V$3,1) -> 12 | AD16: =MATCH(AD15,'ODR DEGROUPAGE'!$E$3:$V$3,1) -> 12 | AE16: =MATCH(AE15,'ODR DEGROUPAGE'!$E$3:$V$3,1) -> 12 | AF16: =MATCH(AF15,'ODR DEGROUPAGE'!$E$3:$V$3,1) -> 12 | AG16: =MATCH(AG15,'ODR DEGROUPAGE'!$E$3:$V$3,1) -> 13 | AH16: =MATCH(AH15,'ODR DEGROUPAGE'!$E$3:$V$3,1) -> 14 | AI16: =MATCH(AI15,'ODR DEGROUPAGE'!$E$3:$V$3,1) -> 14 | AJ16: =MATCH(AJ15,'ODR DEGROUPAGE'!$E$3:$V$3,1) -> 14 | AK16: =MATCH(AK15,'ODR DEGROUPAGE'!$E$3:$V$3,1) -> 14 | AL16: =MATCH(AL15,'ODR DEGROUPAGE'!$E$3:$V$3,1) -> 15 | AM16: =MATCH(AM15,'ODR DEGROUPAGE'!$E$3:$V$3,1) -> 15 | AN16: =MATCH(AN15,'ODR DEGROUPAGE'!$E$3:$V$3,1) -> 16 | AO16: =MATCH(AO15,'ODR DEGROUPAGE'!$E$3:$V$3,1) -> 17 | AP16: =MATCH(AP15,'ODR DEGROUPAGE'!$E$3:$V$3,1) -> 17 | AQ16: =MATCH(AQ15,'ODR DEGROUPAGE'!$E$3:$V$3,1) -> 18 | AR16: =MATCH(AR15,'ODR DEGROUPAGE'!$E$3:$V$3,1) -> 18 | AS16: =MATCH(AS15,'ODR DEGROUPAGE'!$E$3:$V$3,1) -> 18 | AT16: =MATCH(AT15,'ODR DEGROUPAGE'!$E$3:$V$3,1) -> 18 | AU16: =MATCH(AU15,'ODR DEGROUPAGE'!$E$3:$V$3,1) -> 18 | AV16: =MATCH(AV15,'ODR DEGROUPAGE'!$E$3:$V$3,1) -> 18 | AW16: =MATCH(AW15,'ODR DEGROUPAGE'!$E$3:$V$3,1) -> 18 | AX16: =MATCH(AX15,'ODR DEGROUPAGE'!$E$3:$V$3,1) -> 18 | AY16: =MATCH(AY15,'ODR DEGROUPAGE'!$E$3:$V$3,1) -> 18 | AZ16: =MATCH(AZ15,'ODR DEGROUPAGE'!$E$3:$V$3,1) -> 18 | BA16: =MATCH(BA15,'ODR DEGROUPAGE'!$E$3:$V$3,1) -> 18 | BB16: =MATCH(BB15,'ODR DEGROUPAGE'!$E$3:$V$3,1) -> 18 | BC16: =MATCH(BC15,'ODR DEGROUPAGE'!$E$3:$V$3,1) -> 18 | BD16: =MATCH(BD15,'ODR DEGROUPAGE'!$E$3:$V$3,1) -> 18 | BE16: =MATCH(BE15,'ODR DEGROUPAGE'!$E$3:$V$3,1) -> 18 | BF16: =MATCH(BF15,'ODR DEGROUPAGE'!$E$3:$V$3,1) -> 18 | BG16: =MATCH(BG15,'ODR DEGROUPAGE'!$E$3:$V$3,1) -> 18 | BH16: =MATCH(BH15,'ODR DEGROUPAGE'!$E$3:$V$3,1) -> 18 | BI16: =MATCH(BI15,'ODR DEGROUPAGE'!$E$3:$V$3,1) -> 18
C17: dégroupé | E17: =AND($D$6<=E15,$D$5>0)*1 -> 0 | F17: 0 | G17: 0 | H17: 0 | I17: 0 | J17: 0 | K17: 0 | L17: 0 | M17: 0 | N17: 0 | O17: 0 | P17: 1 | Q17: 1 | R17: 1 | S17: 1 | T17: 1 | U17: 1 | V17: 1 | W17: 1 | X17: 1 | Y17: 1 | Z17: 1 | AA17: 1 | AB17: 1 | AC17: 1 | AD17: 1 | AE17: 1 | AF17: 1 | AG17: 1 | AH17: 1 | AI17: 1 | AJ17: 1 | AK17: =AND($D$6<=AK15,$D$5>0)*1 -> 1 | AL17: 1 | AM17: 1 | AN17: 1 | AO17: 1 | AP17: 1 | AQ17: 1 | AR17: 1 | AS17: 1 | AT17: 1 | AU17: 1 | AV17: 1 | AW17: 1 | AX17: 1 | AY17: 1 | AZ17: 1 | BA17: 1 | BB17: 1 | BC17: 1 | BD17: 1 | BE17: 1 | BF17: 1 | BG17: 1 | BH17: 1 | BI17: 1
C18: pénétration marché résidentiel | E18: =PARAMETRES!$E$11/(1+EXP(-PARAMETRES!$E$12*(E15-DATE(2002,1,1)-PARAMETRES!$E$13)))-PARAMETRES!$E$14 -> 0.08154007769 | F18: =PARAMETRES!$E$11/(1+EXP(-PARAMETRES!$E$12*(F15-DATE(2002,1,1)-PARAMETRES!$E$13)))-PARAMETRES!$E$14 -> 0.09607431017 | G18: =PARAMETRES!$E$11/(1+EXP(-PARAMETRES!$E$12*(G15-DATE(2002,1,1)-PARAMETRES!$E$13)))-PARAMETRES!$E$14 -> 0.1115789188 | H18: =PARAMETRES!$E$11/(1+EXP(-PARAMETRES!$E$12*(H15-DATE(2002,1,1)-PARAMETRES!$E$13)))-PARAMETRES!$E$14 -> 0.1280658193 | I18: =PARAMETRES!$E$11/(1+EXP(-PARAMETRES!$E$12*(I15-DATE(2002,1,1)-PARAMETRES!$E$13)))-PARAMETRES!$E$14 -> 0.1453437197 | J18: =PARAMETRES!$E$11/(1+EXP(-PARAMETRES!$E$12*(J15-DATE(2002,1,1)-PARAMETRES!$E$13)))-PARAMETRES!$E$14 -> 0.1631763516 | K18: =PARAMETRES!$E$11/(1+EXP(-PARAMETRES!$E$12*(K15-DATE(2002,1,1)-PARAMETRES!$E$13)))-PARAMETRES!$E$14 -> 0.1817012757 | L18: =PARAMETRES!$E$11/(1+EXP(-PARAMETRES!$E$12*(L15-DATE(2002,1,1)-PARAMETRES!$E$13)))-PARAMETRES!$E$14 -> 0.2010754699 | M18: =PARAMETRES!$E$11/(1+EXP(-PARAMETRES!$E$12*(M15-DATE(2002,1,1)-PARAMETRES!$E$13)))-PARAMETRES!$E$14 -> 0.2210294292 | N18: =PARAMETRES!$E$11/(1+EXP(-PARAMETRES!$E$12*(N15-DATE(2002,1,1)-PARAMETRES!$E$13)))-PARAMETRES!$E$14 -> 0.2410338035 | O18: =PARAMETRES!$E$11/(1+EXP(-PARAMETRES!$E$12*(O15-DATE(2002,1,1)-PARAMETRES!$E$13)))-PARAMETRES!$E$14 -> 0.2616615252 | P18: =PARAMETRES!$E$11/(1+EXP(-PARAMETRES!$E$12*(P15-DATE(2002,1,1)-PARAMETRES!$E$13)))-PARAMETRES!$E$14 -> 0.2828304609 | Q18: =PARAMETRES!$E$11/(1+EXP(-PARAMETRES!$E$12*(Q15-DATE(2002,1,1)-PARAMETRES!$E$13)))-PARAMETRES!$E$14 -> 0.3042128501 | R18: =PARAMETRES!$E$11/(1+EXP(-PARAMETRES!$E$12*(R15-DATE(2002,1,1)-PARAMETRES!$E$13)))-PARAMETRES!$E$14 -> 0.32523375 | S18: =PARAMETRES!$E$11/(1+EXP(-PARAMETRES!$E$12*(S15-DATE(2002,1,1)-PARAMETRES!$E$13)))-PARAMETRES!$E$14 -> 0.3464866653 | T18: =PARAMETRES!$E$11/(1+EXP(-PARAMETRES!$E$12*(T15-DATE(2002,1,1)-PARAMETRES!$E$13)))-PARAMETRES!$E$14 -> 0.3678637709 | U18: =PARAMETRES!$E$11/(1+EXP(-PARAMETRES!$E$12*(U15-DATE(2002,1,1)-PARAMETRES!$E$13)))-PARAMETRES!$E$14 -> 0.3890239805 | V18: =PARAMETRES!$E$11/(1+EXP(-PARAMETRES!$E$12*(V15-DATE(2002,1,1)-PARAMETRES!$E$13)))-PARAMETRES!$E$14 -> 0.4094153508 | W18: =PARAMETRES!$E$11/(1+EXP(-PARAMETRES!$E$12*(W15-DATE(2002,1,1)-PARAMETRES!$E$13)))-PARAMETRES!$E$14 -> 0.4296295864 | X18: =PARAMETRES!$E$11/(1+EXP(-PARAMETRES!$E$12*(X15-DATE(2002,1,1)-PARAMETRES!$E$13)))-PARAMETRES!$E$14 -> 0.4495658485 | Y18: =PARAMETRES!$E$11/(1+EXP(-PARAMETRES!$E$12*(Y15-DATE(2002,1,1)-PARAMETRES!$E$13)))-PARAMETRES!$E$14 -> 0.4689199059 | Z18: =PARAMETRES!$E$11/(1+EXP(-PARAMETRES!$E$12*(Z15-DATE(2002,1,1)-PARAMETRES!$E$13)))-PARAMETRES!$E$14 -> 0.4874228546 | AA18: =PARAMETRES!$E$11/(1+EXP(-PARAMETRES!$E$12*(AA15-DATE(2002,1,1)-PARAMETRES!$E$13)))-PARAMETRES!$E$14 -> 0.5052318201 | AB18: =PARAMETRES!$E$11/(1+EXP(-PARAMETRES!$E$12*(AB15-DATE(2002,1,1)-PARAMETRES!$E$13)))-PARAMETRES!$E$14 -> 0.5224844399 | AC18: =PARAMETRES!$E$11/(1+EXP(-PARAMETRES!$E$12*(AC15-DATE(2002,1,1)-PARAMETRES!$E$13)))-PARAMETRES!$E$14 -> 0.538945061 | AD18: =PARAMETRES!$E$11/(1+EXP(-PARAMETRES!$E$12*(AD15-DATE(2002,1,1)-PARAMETRES!$E$13)))-PARAMETRES!$E$14 -> 0.5542573516 | AE18: =PARAMETRES!$E$11/(1+EXP(-PARAMETRES!$E$12*(AE15-DATE(2002,1,1)-PARAMETRES!$E$13)))-PARAMETRES!$E$14 -> 0.5689306093 | AF18: =PARAMETRES!$E$11/(1+EXP(-PARAMETRES!$E$12*(AF15-DATE(2002,1,1)-PARAMETRES!$E$13)))-PARAMETRES!$E$14 -> 0.5829327546 | AG18: =PARAMETRES!$E$11/(1+EXP(-PARAMETRES!$E$12*(AG15-DATE(2002,1,1)-PARAMETRES!$E$13)))-PARAMETRES!$E$14 -> 0.5961012241 | AH18: =PARAMETRES!$E$11/(1+EXP(-PARAMETRES!$E$12*(AH15-DATE(2002,1,1)-PARAMETRES!$E$13)))-PARAMETRES!$E$14 -> 0.6081871306 | AI18: =PARAMETRES!$E$11/(1+EXP(-PARAMETRES!$E$12*(AI15-DATE(2002,1,1)-PARAMETRES!$E$13)))-PARAMETRES!$E$14 -> 0.6196233079 | AJ18: =PARAMETRES!$E$11/(1+EXP(-PARAMETRES!$E$12*(AJ15-DATE(2002,1,1)-PARAMETRES!$E$13)))-PARAMETRES!$E$14 -> 0.6304062188 | AK18: =PARAMETRES!$E$11/(1+EXP(-PARAMETRES!$E$12*(AK15-DATE(2002,1,1)-PARAMETRES!$E$13)))-PARAMETRES!$E$14 -> 0.6404331035 | AL18: =PARAMETRES!$E$11/(1+EXP(-PARAMETRES!$E$12*(AL15-DATE(2002,1,1)-PARAMETRES!$E$13)))-PARAMETRES!$E$14 -> 0.6495399959 | AM18: =PARAMETRES!$E$11/(1+EXP(-PARAMETRES!$E$12*(AM15-DATE(2002,1,1)-PARAMETRES!$E$13)))-PARAMETRES!$E$14 -> 0.6580742377 | AN18: =PARAMETRES!$E$11/(1+EXP(-PARAMETRES!$E$12*(AN15-DATE(2002,1,1)-PARAMETRES!$E$13)))-PARAMETRES!$E$14 -> 0.6660480284 | AO18: =PARAMETRES!$E$11/(1+EXP(-PARAMETRES!$E$12*(AO15-DATE(2002,1,1)-PARAMETRES!$E$13)))-PARAMETRES!$E$14 -> 0.6734000486 | AP18: =PARAMETRES!$E$11/(1+EXP(-PARAMETRES!$E$12*(AP15-DATE(2002,1,1)-PARAMETRES!$E$13)))-PARAMETRES!$E$14 -> 0.6800963774 | AQ18: =PARAMETRES!$E$11/(1+EXP(-PARAMETRES!$E$12*(AQ15-DATE(2002,1,1)-PARAMETRES!$E$13)))-PARAMETRES!$E$14 -> 0.686255565 | AR18: =PARAMETRES!$E$11/(1+EXP(-PARAMETRES!$E$12*(AR15-DATE(2002,1,1)-PARAMETRES!$E$13)))-PARAMETRES!$E$14 -> 0.6919719792 | AS18: =PARAMETRES!$E$11/(1+EXP(-PARAMETRES!$E$12*(AS15-DATE(2002,1,1)-PARAMETRES!$E$13)))-PARAMETRES!$E$14 -> 0.6972101806 | AT18: =PARAMETRES!$E$11/(1+EXP(-PARAMETRES!$E$12*(AT15-DATE(2002,1,1)-PARAMETRES!$E$13)))-PARAMETRES!$E$14 -> 0.7019044589 | AU18: =PARAMETRES!$E$11/(1+EXP(-PARAMETRES!$E$12*(AU15-DATE(2002,1,1)-PARAMETRES!$E$13)))-PARAMETRES!$E$14 -> 0.7062499064 | AV18: =PARAMETRES!$E$11/(1+EXP(-PARAMETRES!$E$12*(AV15-DATE(2002,1,1)-PARAMETRES!$E$13)))-PARAMETRES!$E$14 -> 0.7102639037 | AW18: =PARAMETRES!$E$11/(1+EXP(-PARAMETRES!$E$12*(AW15-DATE(2002,1,1)-PARAMETRES!$E$13)))-PARAMETRES!$E$14 -> 0.7139261013 | AX18: =PARAMETRES!$E$11/(1+EXP(-PARAMETRES!$E$12*(AX15-DATE(2002,1,1)-PARAMETRES!$E$13)))-PARAMETRES!$E$14 -> 0.7171951009 | AY18: =PARAMETRES!$E$11/(1+EXP(-PARAMETRES!$E$12*(AY15-DATE(2002,1,1)-PARAMETRES!$E$13)))-PARAMETRES!$E$14 -> 0.7202103553 | AZ18: =PARAMETRES!$E$11/(1+EXP(-PARAMETRES!$E$12*(AZ15-DATE(2002,1,1)-PARAMETRES!$E$13)))-PARAMETRES!$E$14 -> 0.7229864201 | BA18: =PARAMETRES!$E$11/(1+EXP(-PARAMETRES!$E$12*(BA15-DATE(2002,1,1)-PARAMETRES!$E$13)))-PARAMETRES!$E$14 -> 0.7255115101 | BB18: =PARAMETRES!$E$11/(1+EXP(-PARAMETRES!$E$12*(BB15-DATE(2002,1,1)-PARAMETRES!$E$13)))-PARAMETRES!$E$14 -> 0.7277593332 | BC18: =PARAMETRES!$E$11/(1+EXP(-PARAMETRES!$E$12*(BC15-DATE(2002,1,1)-PARAMETRES!$E$13)))-PARAMETRES!$E$14 -> 0.7298275481 | BD18: =PARAMETRES!$E$11/(1+EXP(-PARAMETRES!$E$12*(BD15-DATE(2002,1,1)-PARAMETRES!$E$13)))-PARAMETRES!$E$14 -> 0.7317273629 | BE18: =PARAMETRES!$E$11/(1+EXP(-PARAMETRES!$E$12*(BE15-DATE(2002,1,1)-PARAMETRES!$E$13)))-PARAMETRES!$E$14 -> 0.7334518237 | BF18: =PARAMETRES!$E$11/(1+EXP(-PARAMETRES!$E$12*(BF15-DATE(2002,1,1)-PARAMETRES!$E$13)))-PARAMETRES!$E$14 -> 0.7350002723 | BG18: =PARAMETRES!$E$11/(1+EXP(-PARAMETRES!$E$12*(BG15-DATE(2002,1,1)-PARAMETRES!$E$13)))-PARAMETRES!$E$14 -> 0.7364061923 | BH18: =PARAMETRES!$E$11/(1+EXP(-PARAMETRES!$E$12*(BH15-DATE(2002,1,1)-PARAMETRES!$E$13)))-PARAMETRES!$E$14 -> 0.7376956259 | BI18: =PARAMETRES!$E$11/(1+EXP(-PARAMETRES!$E$12*(BI15-DATE(2002,1,1)-PARAMETRES!$E$13)))-PARAMETRES!$E$14 -> 0.7388643792
C19: pénétration marché "entreprises" | E19: =PARAMETRES!$F$11/(1+EXP(-PARAMETRES!$F$12*(E15-DATE(2002,1,1)-PARAMETRES!$F$13)))-PARAMETRES!$F$14 -> 0.6987810393 | F19: =PARAMETRES!$F$11/(1+EXP(-PARAMETRES!$F$12*(F15-DATE(2002,1,1)-PARAMETRES!$F$13)))-PARAMETRES!$F$14 -> 0.719200644 | G19: =PARAMETRES!$F$11/(1+EXP(-PARAMETRES!$F$12*(G15-DATE(2002,1,1)-PARAMETRES!$F$13)))-PARAMETRES!$F$14 -> 0.7389657599 | H19: =PARAMETRES!$F$11/(1+EXP(-PARAMETRES!$F$12*(H15-DATE(2002,1,1)-PARAMETRES!$F$13)))-PARAMETRES!$F$14 -> 0.7580099679 | I19: =PARAMETRES!$F$11/(1+EXP(-PARAMETRES!$F$12*(I15-DATE(2002,1,1)-PARAMETRES!$F$13)))-PARAMETRES!$F$14 -> 0.776085776 | J19: =PARAMETRES!$F$11/(1+EXP(-PARAMETRES!$F$12*(J15-DATE(2002,1,1)-PARAMETRES!$F$13)))-PARAMETRES!$F$14 -> 0.7929992731 | K19: =PARAMETRES!$F$11/(1+EXP(-PARAMETRES!$F$12*(K15-DATE(2002,1,1)-PARAMETRES!$F$13)))-PARAMETRES!$F$14 -> 0.8089497007 | L19: =PARAMETRES!$F$11/(1+EXP(-PARAMETRES!$F$12*(L15-DATE(2002,1,1)-PARAMETRES!$F$13)))-PARAMETRES!$F$14 -> 0.8241034456 | M19: =PARAMETRES!$F$11/(1+EXP(-PARAMETRES!$F$12*(M15-DATE(2002,1,1)-PARAMETRES!$F$13)))-PARAMETRES!$F$14 -> 0.8382954908 | N19: =PARAMETRES!$F$11/(1+EXP(-PARAMETRES!$F$12*(N15-DATE(2002,1,1)-PARAMETRES!$F$13)))-PARAMETRES!$F$14 -> 0.8512704089 | O19: =PARAMETRES!$F$11/(1+EXP(-PARAMETRES!$F$12*(O15-DATE(2002,1,1)-PARAMETRES!$F$13)))-PARAMETRES!$F$14 -> 0.8635036205 | P19: =PARAMETRES!$F$11/(1+EXP(-PARAMETRES!$F$12*(P15-DATE(2002,1,1)-PARAMETRES!$F$13)))-PARAMETRES!$F$14 -> 0.8749988899 | Q19: =PARAMETRES!$F$11/(1+EXP(-PARAMETRES!$F$12*(Q15-DATE(2002,1,1)-PARAMETRES!$F$13)))-PARAMETRES!$F$14 -> 0.8856542617 | R19: =PARAMETRES!$F$11/(1+EXP(-PARAMETRES!$F$12*(R15-DATE(2002,1,1)-PARAMETRES!$F$13)))-PARAMETRES!$F$14 -> 0.8953037739 | S19: =PARAMETRES!$F$11/(1+EXP(-PARAMETRES!$F$12*(S15-DATE(2002,1,1)-PARAMETRES!$F$13)))-PARAMETRES!$F$14 -> 0.9043222505 | T19: =PARAMETRES!$F$11/(1+EXP(-PARAMETRES!$F$12*(T15-DATE(2002,1,1)-PARAMETRES!$F$13)))-PARAMETRES!$F$14 -> 0.9127273437 | U19: =PARAMETRES!$F$11/(1+EXP(-PARAMETRES!$F$12*(U15-DATE(2002,1,1)-PARAMETRES!$F$13)))-PARAMETRES!$F$14 -> 0.9204590112 | V19: =PARAMETRES!$F$11/(1+EXP(-PARAMETRES!$F$12*(V15-DATE(2002,1,1)-PARAMETRES!$F$13)))-PARAMETRES!$F$14 -> 0.927412115 | W19: =PARAMETRES!$F$11/(1+EXP(-PARAMETRES!$F$12*(W15-DATE(2002,1,1)-PARAMETRES!$F$13)))-PARAMETRES!$F$14 -> 0.9338690897 | X19: =PARAMETRES!$F$11/(1+EXP(-PARAMETRES!$F$12*(X15-DATE(2002,1,1)-PARAMETRES!$F$13)))-PARAMETRES!$F$14 -> 0.9398511959 | Y19: =PARAMETRES!$F$11/(1+EXP(-PARAMETRES!$F$12*(Y15-DATE(2002,1,1)-PARAMETRES!$F$13)))-PARAMETRES!$F$14 -> 0.9453238517 | Z19: =PARAMETRES!$F$11/(1+EXP(-PARAMETRES!$F$12*(Z15-DATE(2002,1,1)-PARAMETRES!$F$13)))-PARAMETRES!$F$14 -> 0.9502729401 | AA19: =PARAMETRES!$F$11/(1+EXP(-PARAMETRES!$F$12*(AA15-DATE(2002,1,1)-PARAMETRES!$F$13)))-PARAMETRES!$F$14 -> 0.9547954766 | AB19: =PARAMETRES!$F$11/(1+EXP(-PARAMETRES!$F$12*(AB15-DATE(2002,1,1)-PARAMETRES!$F$13)))-PARAMETRES!$F$14 -> 0.9589677853 | AC19: =PARAMETRES!$F$11/(1+EXP(-PARAMETRES!$F$12*(AC15-DATE(2002,1,1)-PARAMETRES!$F$13)))-PARAMETRES!$F$14 -> 0.9627700122 | AD19: =PARAMETRES!$F$11/(1+EXP(-PARAMETRES!$F$12*(AD15-DATE(2002,1,1)-PARAMETRES!$F$13)))-PARAMETRES!$F$14 -> 0.9661604604 | AE19: =PARAMETRES!$F$11/(1+EXP(-PARAMETRES!$F$12*(AE15-DATE(2002,1,1)-PARAMETRES!$F$13)))-PARAMETRES!$F$14 -> 0.9692847752 | AF19: =PARAMETRES!$F$11/(1+EXP(-PARAMETRES!$F$12*(AF15-DATE(2002,1,1)-PARAMETRES!$F$13)))-PARAMETRES!$F$14 -> 0.9721587397 | AG19: =PARAMETRES!$F$11/(1+EXP(-PARAMETRES!$F$12*(AG15-DATE(2002,1,1)-PARAMETRES!$F$13)))-PARAMETRES!$F$14 -> 0.9747707923 | AH19: =PARAMETRES!$F$11/(1+EXP(-PARAMETRES!$F$12*(AH15-DATE(2002,1,1)-PARAMETRES!$F$13)))-PARAMETRES!$F$14 -> 0.9770943587 | AI19: =PARAMETRES!$F$11/(1+EXP(-PARAMETRES!$F$12*(AI15-DATE(2002,1,1)-PARAMETRES!$F$13)))-PARAMETRES!$F$14 -> 0.9792308764 | AJ19: =PARAMETRES!$F$11/(1+EXP(-PARAMETRES!$F$12*(AJ15-DATE(2002,1,1)-PARAMETRES!$F$13)))-PARAMETRES!$F$14 -> 0.9811922612 | AK19: =PARAMETRES!$F$11/(1+EXP(-PARAMETRES!$F$12*(AK15-DATE(2002,1,1)-PARAMETRES!$F$13)))-PARAMETRES!$F$14 -> 0.9829716387 | AL19: =PARAMETRES!$F$11/(1+EXP(-PARAMETRES!$F$12*(AL15-DATE(2002,1,1)-PARAMETRES!$F$13)))-PARAMETRES!$F$14 -> 0.9845518909 | AM19: =PARAMETRES!$F$11/(1+EXP(-PARAMETRES!$F$12*(AM15-DATE(2002,1,1)-PARAMETRES!$F$13)))-PARAMETRES!$F$14 -> 0.986002774 | AN19: =PARAMETRES!$F$11/(1+EXP(-PARAMETRES!$F$12*(AN15-DATE(2002,1,1)-PARAMETRES!$F$13)))-PARAMETRES!$F$14 -> 0.9873329102 | AO19: =PARAMETRES!$F$11/(1+EXP(-PARAMETRES!$F$12*(AO15-DATE(2002,1,1)-PARAMETRES!$F$13)))-PARAMETRES!$F$14 -> 0.9885381148 | AP19: =PARAMETRES!$F$11/(1+EXP(-PARAMETRES!$F$12*(AP15-DATE(2002,1,1)-PARAMETRES!$F$13)))-PARAMETRES!$F$14 -> 0.9896185602 | AQ19: =PARAMETRES!$F$11/(1+EXP(-PARAMETRES!$F$12*(AQ15-DATE(2002,1,1)-PARAMETRES!$F$13)))-PARAMETRES!$F$14 -> 0.990598127 | AR19: =PARAMETRES!$F$11/(1+EXP(-PARAMETRES!$F$12*(AR15-DATE(2002,1,1)-PARAMETRES!$F$13)))-PARAMETRES!$F$14 -> 0.99149534 | AS19: =PARAMETRES!$F$11/(1+EXP(-PARAMETRES!$F$12*(AS15-DATE(2002,1,1)-PARAMETRES!$F$13)))-PARAMETRES!$F$14 -> 0.9923075976 | AT19: =PARAMETRES!$F$11/(1+EXP(-PARAMETRES!$F$12*(AT15-DATE(2002,1,1)-PARAMETRES!$F$13)))-PARAMETRES!$F$14 -> 0.9930276072 | AU19: =PARAMETRES!$F$11/(1+EXP(-PARAMETRES!$F$12*(AU15-DATE(2002,1,1)-PARAMETRES!$F$13)))-PARAMETRES!$F$14 -> 0.9936875566 | AV19: =PARAMETRES!$F$11/(1+EXP(-PARAMETRES!$F$12*(AV15-DATE(2002,1,1)-PARAMETRES!$F$13)))-PARAMETRES!$F$14 -> 0.9942916468 | AW19: =PARAMETRES!$F$11/(1+EXP(-PARAMETRES!$F$12*(AW15-DATE(2002,1,1)-PARAMETRES!$F$13)))-PARAMETRES!$F$14 -> 0.9948382269 | AX19: =PARAMETRES!$F$11/(1+EXP(-PARAMETRES!$F$12*(AX15-DATE(2002,1,1)-PARAMETRES!$F$13)))-PARAMETRES!$F$14 -> 0.9953224859 | AY19: =PARAMETRES!$F$11/(1+EXP(-PARAMETRES!$F$12*(AY15-DATE(2002,1,1)-PARAMETRES!$F$13)))-PARAMETRES!$F$14 -> 0.9957661471 | AZ19: =PARAMETRES!$F$11/(1+EXP(-PARAMETRES!$F$12*(AZ15-DATE(2002,1,1)-PARAMETRES!$F$13)))-PARAMETRES!$F$14 -> 0.996172086 | BA19: =PARAMETRES!$F$11/(1+EXP(-PARAMETRES!$F$12*(BA15-DATE(2002,1,1)-PARAMETRES!$F$13)))-PARAMETRES!$F$14 -> 0.996539239 | BB19: =PARAMETRES!$F$11/(1+EXP(-PARAMETRES!$F$12*(BB15-DATE(2002,1,1)-PARAMETRES!$F$13)))-PARAMETRES!$F$14 -> 0.9968644181 | BC19: =PARAMETRES!$F$11/(1+EXP(-PARAMETRES!$F$12*(BC15-DATE(2002,1,1)-PARAMETRES!$F$13)))-PARAMETRES!$F$14 -> 0.9971622443 | BD19: =PARAMETRES!$F$11/(1+EXP(-PARAMETRES!$F$12*(BD15-DATE(2002,1,1)-PARAMETRES!$F$13)))-PARAMETRES!$F$14 -> 0.9974346712 | BE19: =PARAMETRES!$F$11/(1+EXP(-PARAMETRES!$F$12*(BE15-DATE(2002,1,1)-PARAMETRES!$F$13)))-PARAMETRES!$F$14 -> 0.9976810057 | BF19: =PARAMETRES!$F$11/(1+EXP(-PARAMETRES!$F$12*(BF15-DATE(2002,1,1)-PARAMETRES!$F$13)))-PARAMETRES!$F$14 -> 0.9979014335 | BG19: =PARAMETRES!$F$11/(1+EXP(-PARAMETRES!$F$12*(BG15-DATE(2002,1,1)-PARAMETRES!$F$13)))-PARAMETRES!$F$14 -> 0.9981009487 | BH19: =PARAMETRES!$F$11/(1+EXP(-PARAMETRES!$F$12*(BH15-DATE(2002,1,1)-PARAMETRES!$F$13)))-PARAMETRES!$F$14 -> 0.9982834144 | BI19: =PARAMETRES!$F$11/(1+EXP(-PARAMETRES!$F$12*(BI15-DATE(2002,1,1)-PARAMETRES!$F$13)))-PARAMETRES!$F$14 -> 0.9984483755
C20: part de marché | E20: =IF(E$15-$D$6<0,0,MIN(ENTREES!$B$13,ENTREES!$B$12+(E$15-$D$6)/(ENTREES!$B$10*365)*(ENTREES!$B$13-ENTREES!$B$12))) -> 0 | F20: =IF(F$15-$D$6<0,0,MIN(ENTREES!$B$13,ENTREES!$B$12+(F$15-$D$6)/(ENTREES!$B$10*365)*(ENTREES!$B$13-ENTREES!$B$12))) -> 0 | G20: =IF(G$15-$D$6<0,0,MIN(ENTREES!$B$13,ENTREES!$B$12+(G$15-$D$6)/(ENTREES!$B$10*365)*(ENTREES!$B$13-ENTREES!$B$12))) -> 0 | H20: =IF(H$15-$D$6<0,0,MIN(ENTREES!$B$13,ENTREES!$B$12+(H$15-$D$6)/(ENTREES!$B$10*365)*(ENTREES!$B$13-ENTREES!$B$12))) -> 0 | I20: =IF(I$15-$D$6<0,0,MIN(ENTREES!$B$13,ENTREES!$B$12+(I$15-$D$6)/(ENTREES!$B$10*365)*(ENTREES!$B$13-ENTREES!$B$12))) -> 0 | J20: =IF(J$15-$D$6<0,0,MIN(ENTREES!$B$13,ENTREES!$B$12+(J$15-$D$6)/(ENTREES!$B$10*365)*(ENTREES!$B$13-ENTREES!$B$12))) -> 0 | K20: =IF(K$15-$D$6<0,0,MIN(ENTREES!$B$13,ENTREES!$B$12+(K$15-$D$6)/(ENTREES!$B$10*365)*(ENTREES!$B$13-ENTREES!$B$12))) -> 0 | L20: =IF(L$15-$D$6<0,0,MIN(ENTREES!$B$13,ENTREES!$B$12+(L$15-$D$6)/(ENTREES!$B$10*365)*(ENTREES!$B$13-ENTREES!$B$12))) -> 0 | M20: =IF(M$15-$D$6<0,0,MIN(ENTREES!$B$13,ENTREES!$B$12+(M$15-$D$6)/(ENTREES!$B$10*365)*(ENTREES!$B$13-ENTREES!$B$12))) -> 0 | N20: =IF(N$15-$D$6<0,0,MIN(ENTREES!$B$13,ENTREES!$B$12+(N$15-$D$6)/(ENTREES!$B$10*365)*(ENTREES!$B$13-ENTREES!$B$12))) -> 0 | O20: =IF(O$15-$D$6<0,0,MIN(ENTREES!$B$13,ENTREES!$B$12+(O$15-$D$6)/(ENTREES!$B$10*365)*(ENTREES!$B$13-ENTREES!$B$12))) -> 0 | P20: =IF(P$15-$D$6<0,0,MIN(ENTREES!$B$13,ENTREES!$B$12+(P$15-$D$6)/(ENTREES!$B$10*365)*(ENTREES!$B$13-ENTREES!$B$12))) -> 0.1004109589 | Q20: =IF(Q$15-$D$6<0,0,MIN(ENTREES!$B$13,ENTREES!$B$12+(Q$15-$D$6)/(ENTREES!$B$10*365)*(ENTREES!$B$13-ENTREES!$B$12))) -> 0.1079726027 | R20: =IF(R$15-$D$6<0,0,MIN(ENTREES!$B$13,ENTREES!$B$12+(R$15-$D$6)/(ENTREES!$B$10*365)*(ENTREES!$B$13-ENTREES!$B$12))) -> 0.115369863 | S20: =IF(S$15-$D$6<0,0,MIN(ENTREES!$B$13,ENTREES!$B$12+(S$15-$D$6)/(ENTREES!$B$10*365)*(ENTREES!$B$13-ENTREES!$B$12))) -> 0.1228493151 | T20: =IF(T$15-$D$6<0,0,MIN(ENTREES!$B$13,ENTREES!$B$12+(T$15-$D$6)/(ENTREES!$B$10*365)*(ENTREES!$B$13-ENTREES!$B$12))) -> 0.1304109589 | U20: =IF(U$15-$D$6<0,0,MIN(ENTREES!$B$13,ENTREES!$B$12+(U$15-$D$6)/(ENTREES!$B$10*365)*(ENTREES!$B$13-ENTREES!$B$12))) -> 0.1379726027 | V20: =IF(V$15-$D$6<0,0,MIN(ENTREES!$B$13,ENTREES!$B$12+(V$15-$D$6)/(ENTREES!$B$10*365)*(ENTREES!$B$13-ENTREES!$B$12))) -> 0.145369863 | W20: =IF(W$15-$D$6<0,0,MIN(ENTREES!$B$13,ENTREES!$B$12+(W$15-$D$6)/(ENTREES!$B$10*365)*(ENTREES!$B$13-ENTREES!$B$12))) -> 0.1528493151 | X20: =IF(X$15-$D$6<0,0,MIN(ENTREES!$B$13,ENTREES!$B$12+(X$15-$D$6)/(ENTREES!$B$10*365)*(ENTREES!$B$13-ENTREES!$B$12))) -> 0.1604109589 | Y20: =IF(Y$15-$D$6<0,0,MIN(ENTREES!$B$13,ENTREES!$B$12+(Y$15-$D$6)/(ENTREES!$B$10*365)*(ENTREES!$B$13-ENTREES!$B$12))) -> 0.1679726027 | Z20: =IF(Z$15-$D$6<0,0,MIN(ENTREES!$B$13,ENTREES!$B$12+(Z$15-$D$6)/(ENTREES!$B$10*365)*(ENTREES!$B$13-ENTREES!$B$12))) -> 0.1754520548 | AA20: =IF(AA$15-$D$6<0,0,MIN(ENTREES!$B$13,ENTREES!$B$12+(AA$15-$D$6)/(ENTREES!$B$10*365)*(ENTREES!$B$13-ENTREES!$B$12))) -> 0.1829315068 | AB20: =IF(AB$15-$D$6<0,0,MIN(ENTREES!$B$13,ENTREES!$B$12+(AB$15-$D$6)/(ENTREES!$B$10*365)*(ENTREES!$B$13-ENTREES!$B$12))) -> 0.1904931507 | AC20: =IF(AC$15-$D$6<0,0,MIN(ENTREES!$B$13,ENTREES!$B$12+(AC$15-$D$6)/(ENTREES!$B$10*365)*(ENTREES!$B$13-ENTREES!$B$12))) -> 0.1980547945 | AD20: =IF(AD$15-$D$6<0,0,MIN(ENTREES!$B$13,ENTREES!$B$12+(AD$15-$D$6)/(ENTREES!$B$10*365)*(ENTREES!$B$13-ENTREES!$B$12))) -> 0.2054520548 | AE20: =IF(AE$15-$D$6<0,0,MIN(ENTREES!$B$13,ENTREES!$B$12+(AE$15-$D$6)/(ENTREES!$B$10*365)*(ENTREES!$B$13-ENTREES!$B$12))) -> 0.2129315068 | AF20: =IF(AF$15-$D$6<0,0,MIN(ENTREES!$B$13,ENTREES!$B$12+(AF$15-$D$6)/(ENTREES!$B$10*365)*(ENTREES!$B$13-ENTREES!$B$12))) -> 0.2204931507 | AG20: =IF(AG$15-$D$6<0,0,MIN(ENTREES!$B$13,ENTREES!$B$12+(AG$15-$D$6)/(ENTREES!$B$10*365)*(ENTREES!$B$13-ENTREES!$B$12))) -> 0.2280547945 | AH20: =IF(AH$15-$D$6<0,0,MIN(ENTREES!$B$13,ENTREES!$B$12+(AH$15-$D$6)/(ENTREES!$B$10*365)*(ENTREES!$B$13-ENTREES!$B$12))) -> 0.2354520548 | AI20: =IF(AI$15-$D$6<0,0,MIN(ENTREES!$B$13,ENTREES!$B$12+(AI$15-$D$6)/(ENTREES!$B$10*365)*(ENTREES!$B$13-ENTREES!$B$12))) -> 0.2429315068 | AJ20: =IF(AJ$15-$D$6<0,0,MIN(ENTREES!$B$13,ENTREES!$B$12+(AJ$15-$D$6)/(ENTREES!$B$10*365)*(ENTREES!$B$13-ENTREES!$B$12))) -> 0.25 | AK20: =IF(AK$15-$D$6<0,0,MIN(ENTREES!$B$13,ENTREES!$B$12+(AK$15-$D$6)/(ENTREES!$B$10*365)*(ENTREES!$B$13-ENTREES!$B$12))) -> 0.25 | AL20: =IF(AL$15-$D$6<0,0,MIN(ENTREES!$B$13,ENTREES!$B$12+(AL$15-$D$6)/(ENTREES!$B$10*365)*(ENTREES!$B$13-ENTREES!$B$12))) -> 0.25 | AM20: =IF(AM$15-$D$6<0,0,MIN(ENTREES!$B$13,ENTREES!$B$12+(AM$15-$D$6)/(ENTREES!$B$10*365)*(ENTREES!$B$13-ENTREES!$B$12))) -> 0.25 | AN20: =IF(AN$15-$D$6<0,0,MIN(ENTREES!$B$13,ENTREES!$B$12+(AN$15-$D$6)/(ENTREES!$B$10*365)*(ENTREES!$B$13-ENTREES!$B$12))) -> 0.25 | AO20: =IF(AO$15-$D$6<0,0,MIN(ENTREES!$B$13,ENTREES!$B$12+(AO$15-$D$6)/(ENTREES!$B$10*365)*(ENTREES!$B$13-ENTREES!$B$12))) -> 0.25 | AP20: =IF(AP$15-$D$6<0,0,MIN(ENTREES!$B$13,ENTREES!$B$12+(AP$15-$D$6)/(ENTREES!$B$10*365)*(ENTREES!$B$13-ENTREES!$B$12))) -> 0.25 | AQ20: =IF(AQ$15-$D$6<0,0,MIN(ENTREES!$B$13,ENTREES!$B$12+(AQ$15-$D$6)/(ENTREES!$B$10*365)*(ENTREES!$B$13-ENTREES!$B$12))) -> 0.25 | AR20: =IF(AR$15-$D$6<0,0,MIN(ENTREES!$B$13,ENTREES!$B$12+(AR$15-$D$6)/(ENTREES!$B$10*365)*(ENTREES!$B$13-ENTREES!$B$12))) -> 0.25 | AS20: =IF(AS$15-$D$6<0,0,MIN(ENTREES!$B$13,ENTREES!$B$12+(AS$15-$D$6)/(ENTREES!$B$10*365)*(ENTREES!$B$13-ENTREES!$B$12))) -> 0.25 | AT20: =IF(AT$15-$D$6<0,0,MIN(ENTREES!$B$13,ENTREES!$B$12+(AT$15-$D$6)/(ENTREES!$B$10*365)*(ENTREES!$B$13-ENTREES!$B$12))) -> 0.25 | AU20: =IF(AU$15-$D$6<0,0,MIN(ENTREES!$B$13,ENTREES!$B$12+(AU$15-$D$6)/(ENTREES!$B$10*365)*(ENTREES!$B$13-ENTREES!$B$12))) -> 0.25 | AV20: =IF(AV$15-$D$6<0,0,MIN(ENTREES!$B$13,ENTREES!$B$12+(AV$15-$D$6)/(ENTREES!$B$10*365)*(ENTREES!$B$13-ENTREES!$B$12))) -> 0.25 | AW20: =IF(AW$15-$D$6<0,0,MIN(ENTREES!$B$13,ENTREES!$B$12+(AW$15-$D$6)/(ENTREES!$B$10*365)*(ENTREES!$B$13-ENTREES!$B$12))) -> 0.25 | AX20: =IF(AX$15-$D$6<0,0,MIN(ENTREES!$B$13,ENTREES!$B$12+(AX$15-$D$6)/(ENTREES!$B$10*365)*(ENTREES!$B$13-ENTREES!$B$12))) -> 0.25 | AY20: =IF(AY$15-$D$6<0,0,MIN(ENTREES!$B$13,ENTREES!$B$12+(AY$15-$D$6)/(ENTREES!$B$10*365)*(ENTREES!$B$13-ENTREES!$B$12))) -> 0.25 | AZ20: =IF(AZ$15-$D$6<0,0,MIN(ENTREES!$B$13,ENTREES!$B$12+(AZ$15-$D$6)/(ENTREES!$B$10*365)*(ENTREES!$B$13-ENTREES!$B$12))) -> 0.25 | BA20: =IF(BA$15-$D$6<0,0,MIN(ENTREES!$B$13,ENTREES!$B$12+(BA$15-$D$6)/(ENTREES!$B$10*365)*(ENTREES!$B$13-ENTREES!$B$12))) -> 0.25 | BB20: =IF(BB$15-$D$6<0,0,MIN(ENTREES!$B$13,ENTREES!$B$12+(BB$15-$D$6)/(ENTREES!$B$10*365)*(ENTREES!$B$13-ENTREES!$B$12))) -> 0.25 | BC20: =IF(BC$15-$D$6<0,0,MIN(ENTREES!$B$13,ENTREES!$B$12+(BC$15-$D$6)/(ENTREES!$B$10*365)*(ENTREES!$B$13-ENTREES!$B$12))) -> 0.25 | BD20: =IF(BD$15-$D$6<0,0,MIN(ENTREES!$B$13,ENTREES!$B$12+(BD$15-$D$6)/(ENTREES!$B$10*365)*(ENTREES!$B$13-ENTREES!$B$12))) -> 0.25 | BE20: =IF(BE$15-$D$6<0,0,MIN(ENTREES!$B$13,ENTREES!$B$12+(BE$15-$D$6)/(ENTREES!$B$10*365)*(ENTREES!$B$13-ENTREES!$B$12))) -> 0.25 | BF20: =IF(BF$15-$D$6<0,0,MIN(ENTREES!$B$13,ENTREES!$B$12+(BF$15-$D$6)/(ENTREES!$B$10*365)*(ENTREES!$B$13-ENTREES!$B$12))) -> 0.25 | BG20: =IF(BG$15-$D$6<0,0,MIN(ENTREES!$B$13,ENTREES!$B$12+(BG$15-$D$6)/(ENTREES!$B$10*365)*(ENTREES!$B$13-ENTREES!$B$12))) -> 0.25 | BH20: =IF(BH$15-$D$6<0,0,MIN(ENTREES!$B$13,ENTREES!$B$12+(BH$15-$D$6)/(ENTREES!$B$10*365)*(ENTREES!$B$13-ENTREES!$B$12))) -> 0.25 | BI20: =IF(BI$15-$D$6<0,0,MIN(ENTREES!$B$13,ENTREES!$B$12+(BI$15-$D$6)/(ENTREES!$B$10*365)*(ENTREES!$B$13-ENTREES!$B$12))) -> 0.25
A22: dimensionnement des lignes
B23: parc accès résidentiel
C24: nb accès résidentiels | E24: =CEILING($D$11*E18*E20*ENTREES!$I$6,1) -> 0 | F24: =CEILING($D$11*F18*F20*ENTREES!$I$6,1) -> 0 | G24: =CEILING($D$11*G18*G20*ENTREES!$I$6,1) -> 0 | H24: =CEILING($D$11*H18*H20*ENTREES!$I$6,1) -> 0 | I24: =CEILING($D$11*I18*I20*ENTREES!$I$6,1) -> 0 | J24: =CEILING($D$11*J18*J20*ENTREES!$I$6,1) -> 0 | K24: =CEILING($D$11*K18*K20*ENTREES!$I$6,1) -> 0 | L24: =CEILING($D$11*L18*L20*ENTREES!$I$6,1) -> 0 | M24: =CEILING($D$11*M18*M20*ENTREES!$I$6,1) -> 0 | N24: =CEILING($D$11*N18*N20*ENTREES!$I$6,1) -> 0 | O24: =CEILING($D$11*O18*O20*ENTREES!$I$6,1) -> 0 | P24: =CEILING($D$11*P18*P20*ENTREES!$I$6,1) -> 194 | Q24: =CEILING($D$11*Q18*Q20*ENTREES!$I$6,1) -> 225 | R24: =CEILING($D$11*R18*R20*ENTREES!$I$6,1) -> 257 | S24: =CEILING($D$11*S18*S20*ENTREES!$I$6,1) -> 291 | T24: =CEILING($D$11*T18*T20*ENTREES!$I$6,1) -> 328 | U24: =CEILING($D$11*U18*U20*ENTREES!$I$6,1) -> 367 | V24: =CEILING($D$11*V18*V20*ENTREES!$I$6,1) -> 407 | W24: =CEILING($D$11*W18*W20*ENTREES!$I$6,1) -> 449 | X24: =CEILING($D$11*X18*X20*ENTREES!$I$6,1) -> 493 | Y24: =CEILING($D$11*Y18*Y20*ENTREES!$I$6,1) -> 538 | Z24: =CEILING($D$11*Z18*Z20*ENTREES!$I$6,1) -> 584 | AA24: =CEILING($D$11*AA18*AA20*ENTREES!$I$6,1) -> 631 | AB24: =CEILING($D$11*AB18*AB20*ENTREES!$I$6,1) -> 680 | AC24: =CEILING($D$11*AC18*AC20*ENTREES!$I$6,1) -> 729 | AD24: =CEILING($D$11*AD18*AD20*ENTREES!$I$6,1) -> 778 | AE24: =CEILING($D$11*AE18*AE20*ENTREES!$I$6,1) -> 828 | AF24: =CEILING($D$11*AF18*AF20*ENTREES!$I$6,1) -> 878 | AG24: =CEILING($D$11*AG18*AG20*ENTREES!$I$6,1) -> 929 | AH24: =CEILING($D$11*AH18*AH20*ENTREES!$I$6,1) -> 978 | AI24: =CEILING($D$11*AI18*AI20*ENTREES!$I$6,1) -> 1028 | AJ24: =CEILING($D$11*AJ18*AJ20*ENTREES!$I$6,1) -> 1076 | AK24: =CEILING($D$11*AK18*AK20*ENTREES!$I$6,1) -> 1094 | AL24: =CEILING($D$11*AL18*AL20*ENTREES!$I$6,1) -> 1109 | AM24: =CEILING($D$11*AM18*AM20*ENTREES!$I$6,1) -> 1124 | AN24: =CEILING($D$11*AN18*AN20*ENTREES!$I$6,1) -> 1137 | AO24: =CEILING($D$11*AO18*AO20*ENTREES!$I$6,1) -> 1150 | AP24: =CEILING($D$11*AP18*AP20*ENTREES!$I$6,1) -> 1161 | AQ24: =CEILING($D$11*AQ18*AQ20*ENTREES!$I$6,1) -> 1172 | AR24: =CEILING($D$11*AR18*AR20*ENTREES!$I$6,1) -> 1182 | AS24: =CEILING($D$11*AS18*AS20*ENTREES!$I$6,1) -> 1190 | AT24: =CEILING($D$11*AT18*AT20*ENTREES!$I$6,1) -> 1198 | AU24: =CEILING($D$11*AU18*AU20*ENTREES!$I$6,1) -> 1206 | AV24: =CEILING($D$11*AV18*AV20*ENTREES!$I$6,1) -> 1213 | AW24: =CEILING($D$11*AW18*AW20*ENTREES!$I$6,1) -> 1219 | AX24: =CEILING($D$11*AX18*AX20*ENTREES!$I$6,1) -> 1225 | AY24: =CEILING($D$11*AY18*AY20*ENTREES!$I$6,1) -> 1230 | AZ24: =CEILING($D$11*AZ18*AZ20*ENTREES!$I$6,1) -> 1234 | BA24: =CEILING($D$11*BA18*BA20*ENTREES!$I$6,1) -> 1239 | BB24: =CEILING($D$11*BB18*BB20*ENTREES!$I$6,1) -> 1243 | BC24: =CEILING($D$11*BC18*BC20*ENTREES!$I$6,1) -> 1246 | BD24: =CEILING($D$11*BD18*BD20*ENTREES!$I$6,1) -> 1249 | BE24: =CEILING($D$11*BE18*BE20*ENTREES!$I$6,1) -> 1252 | BF24: =CEILING($D$11*BF18*BF20*ENTREES!$I$6,1) -> 1255 | BG24: =CEILING($D$11*BG18*BG20*ENTREES!$I$6,1) -> 1257 | BH24: =CEILING($D$11*BH18*BH20*ENTREES!$I$6,1) -> 1260 | BI24: =CEILING($D$11*BI18*BI20*ENTREES!$I$6,1) -> 1262
B26: parc accès "entreprises"
C27: nb accès "entreprises" | E27: =E28+E29 -> 0 | F27: =F28+F29 -> 0 | G27: 0 | H27: 0 | I27: 0 | J27: 0 | K27: 0 | L27: 0 | M27: 0 | N27: 0 | O27: 0 | P27: 10 | Q27: 11 | R27: 11 | S27: 12 | T27: 13 | U27: 14 | V27: 15 | W27: 15 | X27: 16 | Y27: 17 | Z27: 18 | AA27: 19 | AB27: 20 | AC27: 21 | AD27: 21 | AE27: 22 | AF27: 23 | AG27: 24 | AH27: 25 | AI27: 25 | AJ27: 26 | AK27: 26 | AL27: 26 | AM27: 26 | AN27: 26 | AO27: 26 | AP27: 26 | AQ27: 27 | AR27: 27 | AS27: 27 | AT27: 27 | AU27: 27 | AV27: 27 | AW27: 27 | AX27: 27 | AY27: =AY28+AY29 -> 27 | AZ27: 27 | BA27: 27 | BB27: 27 | BC27: 27 | BD27: 27 | BE27: 27 | BF27: 27 | BG27: 27 | BH27: 27 | BI27: 27
C28: dont ADSL | E28: =E31+E34 -> 0 | F28: =F31+F34 -> 0 | G28: 0 | H28: 0 | I28: 0 | J28: 0 | K28: 0 | L28: 0 | M28: 0 | N28: 0 | O28: 0 | P28: 2 | Q28: 3 | R28: 3 | S28: 3 | T28: 3 | U28: 3 | V28: 3 | W28: 3 | X28: 4 | Y28: 4 | Z28: 4 | AA28: 4 | AB28: 4 | AC28: 5 | AD28: 5 | AE28: 5 | AF28: 5 | AG28: 6 | AH28: 6 | AI28: 6 | AJ28: 6 | AK28: 6 | AL28: 6 | AM28: 6 | AN28: 6 | AO28: 6 | AP28: 6 | AQ28: 7 | AR28: 6 | AS28: 6 | AT28: 6 | AU28: 6 | AV28: 6 | AW28: 6 | AX28: 6 | AY28: 6 | AZ28: 6 | BA28: 6 | BB28: 6 | BC28: 6 | BD28: 6 | BE28: 6 | BF28: 6 | BG28: 6 | BH28: 6 | BI28: 6
C29: dont SDSL | E29: =E32+E35 -> 0 | F29: =F32+F35 -> 0 | G29: 0 | H29: 0 | I29: 0 | J29: 0 | K29: 0 | L29: 0 | M29: 0 | N29: 0 | O29: 0 | P29: 8 | Q29: 8 | R29: 8 | S29: 9 | T29: 10 | U29: 11 | V29: 12 | W29: 12 | X29: 12 | Y29: 13 | Z29: 14 | AA29: 15 | AB29: 16 | AC29: 16 | AD29: 16 | AE29: 17 | AF29: 18 | AG29: 18 | AH29: 19 | AI29: 19 | AJ29: 20 | AK29: 20 | AL29: 20 | AM29: 20 | AN29: 20 | AO29: 20 | AP29: 20 | AQ29: 20 | AR29: 21 | AS29: 21 | AT29: 21 | AU29: 21 | AV29: 21 | AW29: 21 | AX29: 21 | AY29: 21 | AZ29: 21 | BA29: 21 | BB29: 21 | BC29: 21 | BD29: 21 | BE29: 21 | BF29: 21 | BG29: 21 | BH29: 21 | BI29: 21
C30: nb d'accès "entreprises" collecte ATM | E30: =IF(E15<PARAMETRES!$E$135,CEILING($D$12*E19*E20*ENTREES!$J$6,1),IF(E15<DATE(YEAR(PARAMETRES!$E$135)+PARAMETRES!$E$136,MONTH(PARAMETRES!$E$135),DAY(PARAMETRES!$E$135)),IF(D30>0,MAX(0,FLOOR(ABS(D30-INDEX($E30:$BI30,1,MATCH(PARAMETRES!$E$135,$E15:$BI15)-1)/PARAMETRES!$E$137),1)),0),0)) -> 0 | F30: =IF(F15<PARAMETRES!$E$135,CEILING($D$12*F19*F20*ENTREES!$J$6,1),IF(F15<DATE(YEAR(PARAMETRES!$E$135)+PARAMETRES!$E$136,MONTH(PARAMETRES!$E$135),DAY(PARAMETRES!$E$135)),IF(E30>0,MAX(0,FLOOR(ABS(E30-INDEX($E30:$BI30,1,MATCH(PARAMETRES!$E$135,$E15:$BI15)-1)/PARAMETRES!$E$137),1)),0),0)) -> 0 | G30: =IF(G15<PARAMETRES!$E$135,CEILING($D$12*G19*G20*ENTREES!$J$6,1),IF(G15<DATE(YEAR(PARAMETRES!$E$135)+PARAMETRES!$E$136,MONTH(PARAMETRES!$E$135),DAY(PARAMETRES!$E$135)),IF(F30>0,MAX(0,FLOOR(ABS(F30-INDEX($E30:$BI30,1,MATCH(PARAMETRES!$E$135,$E15:$BI15)-1)/PARAMETRES!$E$137),1)),0),0)) -> 0 | H30: =IF(H15<PARAMETRES!$E$135,CEILING($D$12*H19*H20*ENTREES!$J$6,1),IF(H15<DATE(YEAR(PARAMETRES!$E$135)+PARAMETRES!$E$136,MONTH(PARAMETRES!$E$135),DAY(PARAMETRES!$E$135)),IF(G30>0,MAX(0,FLOOR(ABS(G30-INDEX($E30:$BI30,1,MATCH(PARAMETRES!$E$135,$E15:$BI15)-1)/PARAMETRES!$E$137),1)),0),0)) -> 0 | I30: =IF(I15<PARAMETRES!$E$135,CEILING($D$12*I19*I20*ENTREES!$J$6,1),IF(I15<DATE(YEAR(PARAMETRES!$E$135)+PARAMETRES!$E$136,MONTH(PARAMETRES!$E$135),DAY(PARAMETRES!$E$135)),IF(H30>0,MAX(0,FLOOR(ABS(H30-INDEX($E30:$BI30,1,MATCH(PARAMETRES!$E$135,$E15:$BI15)-1)/PARAMETRES!$E$137),1)),0),0)) -> 0 | J30: =IF(J15<PARAMETRES!$E$135,CEILING($D$12*J19*J20*ENTREES!$J$6,1),IF(J15<DATE(YEAR(PARAMETRES!$E$135)+PARAMETRES!$E$136,MONTH(PARAMETRES!$E$135),DAY(PARAMETRES!$E$135)),IF(I30>0,MAX(0,FLOOR(ABS(I30-INDEX($E30:$BI30,1,MATCH(PARAMETRES!$E$135,$E15:$BI15)-1)/PARAMETRES!$E$137),1)),0),0)) -> 0 | K30: =IF(K15<PARAMETRES!$E$135,CEILING($D$12*K19*K20*ENTREES!$J$6,1),IF(K15<DATE(YEAR(PARAMETRES!$E$135)+PARAMETRES!$E$136,MONTH(PARAMETRES!$E$135),DAY(PARAMETRES!$E$135)),IF(J30>0,MAX(0,FLOOR(ABS(J30-INDEX($E30:$BI30,1,MATCH(PARAMETRES!$E$135,$E15:$BI15)-1)/PARAMETRES!$E$137),1)),0),0)) -> 0 | L30: =IF(L15<PARAMETRES!$E$135,CEILING($D$12*L19*L20*ENTREES!$J$6,1),IF(L15<DATE(YEAR(PARAMETRES!$E$135)+PARAMETRES!$E$136,MONTH(PARAMETRES!$E$135),DAY(PARAMETRES!$E$135)),IF(K30>0,MAX(0,FLOOR(ABS(K30-INDEX($E30:$BI30,1,MATCH(PARAMETRES!$E$135,$E15:$BI15)-1)/PARAMETRES!$E$137),1)),0),0)) -> 0 | M30: =IF(M15<PARAMETRES!$E$135,CEILING($D$12*M19*M20*ENTREES!$J$6,1),IF(M15<DATE(YEAR(PARAMETRES!$E$135)+PARAMETRES!$E$136,MONTH(PARAMETRES!$E$135),DAY(PARAMETRES!$E$135)),IF(L30>0,MAX(0,FLOOR(ABS(L30-INDEX($E30:$BI30,1,MATCH(PARAMETRES!$E$135,$E15:$BI15)-1)/PARAMETRES!$E$137),1)),0),0)) -> 0 | N30: =IF(N15<PARAMETRES!$E$135,CEILING($D$12*N19*N20*ENTREES!$J$6,1),IF(N15<DATE(YEAR(PARAMETRES!$E$135)+PARAMETRES!$E$136,MONTH(PARAMETRES!$E$135),DAY(PARAMETRES!$E$135)),IF(M30>0,MAX(0,FLOOR(ABS(M30-INDEX($E30:$BI30,1,MATCH(PARAMETRES!$E$135,$E15:$BI15)-1)/PARAMETRES!$E$137),1)),0),0)) -> 0 | O30: =IF(O15<PARAMETRES!$E$135,CEILING($D$12*O19*O20*ENTREES!$J$6,1),IF(O15<DATE(YEAR(PARAMETRES!$E$135)+PARAMETRES!$E$136,MONTH(PARAMETRES!$E$135),DAY(PARAMETRES!$E$135)),IF(N30>0,MAX(0,FLOOR(ABS(N30-INDEX($E30:$BI30,1,MATCH(PARAMETRES!$E$135,$E15:$BI15)-1)/PARAMETRES!$E$137),1)),0),0)) -> 0 | P30: =IF(P15<PARAMETRES!$E$135,CEILING($D$12*P19*P20*ENTREES!$J$6,1),IF(P15<DATE(YEAR(PARAMETRES!$E$135)+PARAMETRES!$E$136,MONTH(PARAMETRES!$E$135),DAY(PARAMETRES!$E$135)),IF(O30>0,MAX(0,FLOOR(ABS(O30-INDEX($E30:$BI30,1,MATCH(PARAMETRES!$E$135,$E15:$BI15)-1)/PARAMETRES!$E$137),1)),0),0)) -> 10 | Q30: =IF(Q15<PARAMETRES!$E$135,CEILING($D$12*Q19*Q20*ENTREES!$J$6,1),IF(Q15<DATE(YEAR(PARAMETRES!$E$135)+PARAMETRES!$E$136,MONTH(PARAMETRES!$E$135),DAY(PARAMETRES!$E$135)),IF(P30>0,MAX(0,FLOOR(ABS(P30-INDEX($E30:$BI30,1,MATCH(PARAMETRES!$E$135,$E15:$BI15)-1)/PARAMETRES!$E$137),1)),0),0)) -> 11 | R30: =IF(R15<PARAMETRES!$E$135,CEILING($D$12*R19*R20*ENTREES!$J$6,1),IF(R15<DATE(YEAR(PARAMETRES!$E$135)+PARAMETRES!$E$136,MONTH(PARAMETRES!$E$135),DAY(PARAMETRES!$E$135)),IF(Q30>0,MAX(0,FLOOR(ABS(Q30-INDEX($E30:$BI30,1,MATCH(PARAMETRES!$E$135,$E15:$BI15)-1)/PARAMETRES!$E$137),1)),0),0)) -> 11 | S30: =IF(S15<PARAMETRES!$E$135,CEILING($D$12*S19*S20*ENTREES!$J$6,1),IF(S15<DATE(YEAR(PARAMETRES!$E$135)+PARAMETRES!$E$136,MONTH(PARAMETRES!$E$135),DAY(PARAMETRES!$E$135)),IF(R30>0,MAX(0,FLOOR(ABS(R30-INDEX($E30:$BI30,1,MATCH(PARAMETRES!$E$135,$E15:$BI15)-1)/PARAMETRES!$E$137),1)),0),0)) -> 12 | T30: =IF(T15<PARAMETRES!$E$135,CEILING($D$12*T19*T20*ENTREES!$J$6,1),IF(T15<DATE(YEAR(PARAMETRES!$E$135)+PARAMETRES!$E$136,MONTH(PARAMETRES!$E$135),DAY(PARAMETRES!$E$135)),IF(S30>0,MAX(0,FLOOR(ABS(S30-INDEX($E30:$BI30,1,MATCH(PARAMETRES!$E$135,$E15:$BI15)-1)/PARAMETRES!$E$137),1)),0),0)) -> 13 | U30: =IF(U15<PARAMETRES!$E$135,CEILING($D$12*U19*U20*ENTREES!$J$6,1),IF(U15<DATE(YEAR(PARAMETRES!$E$135)+PARAMETRES!$E$136,MONTH(PARAMETRES!$E$135),DAY(PARAMETRES!$E$135)),IF(T30>0,MAX(0,FLOOR(ABS(T30-INDEX($E30:$BI30,1,MATCH(PARAMETRES!$E$135,$E15:$BI15)-1)/PARAMETRES!$E$137),1)),0),0)) -> 14 | V30: =IF(V15<PARAMETRES!$E$135,CEILING($D$12*V19*V20*ENTREES!$J$6,1),IF(V15<DATE(YEAR(PARAMETRES!$E$135)+PARAMETRES!$E$136,MONTH(PARAMETRES!$E$135),DAY(PARAMETRES!$E$135)),IF(U30>0,MAX(0,FLOOR(ABS(U30-INDEX($E30:$BI30,1,MATCH(PARAMETRES!$E$135,$E15:$BI15)-1)/PARAMETRES!$E$137),1)),0),0)) -> 15 | W30: =IF(W15<PARAMETRES!$E$135,CEILING($D$12*W19*W20*ENTREES!$J$6,1),IF(W15<DATE(YEAR(PARAMETRES!$E$135)+PARAMETRES!$E$136,MONTH(PARAMETRES!$E$135),DAY(PARAMETRES!$E$135)),IF(V30>0,MAX(0,FLOOR(ABS(V30-INDEX($E30:$BI30,1,MATCH(PARAMETRES!$E$135,$E15:$BI15)-1)/PARAMETRES!$E$137),1)),0),0)) -> 15 | X30: =IF(X15<PARAMETRES!$E$135,CEILING($D$12*X19*X20*ENTREES!$J$6,1),IF(X15<DATE(YEAR(PARAMETRES!$E$135)+PARAMETRES!$E$136,MONTH(PARAMETRES!$E$135),DAY(PARAMETRES!$E$135)),IF(W30>0,MAX(0,FLOOR(ABS(W30-INDEX($E30:$BI30,1,MATCH(PARAMETRES!$E$135,$E15:$BI15)-1)/PARAMETRES!$E$137),1)),0),0)) -> 16 | Y30: =IF(Y15<PARAMETRES!$E$135,CEILING($D$12*Y19*Y20*ENTREES!$J$6,1),IF(Y15<DATE(YEAR(PARAMETRES!$E$135)+PARAMETRES!$E$136,MONTH(PARAMETRES!$E$135),DAY(PARAMETRES!$E$135)),IF(X30>0,MAX(0,FLOOR(ABS(X30-INDEX($E30:$BI30,1,MATCH(PARAMETRES!$E$135,$E15:$BI15)-1)/PARAMETRES!$E$137),1)),0),0)) -> 17 | Z30: =IF(Z15<PARAMETRES!$E$135,CEILING($D$12*Z19*Z20*ENTREES!$J$6,1),IF(Z15<DATE(YEAR(PARAMETRES!$E$135)+PARAMETRES!$E$136,MONTH(PARAMETRES!$E$135),DAY(PARAMETRES!$E$135)),IF(Y30>0,MAX(0,FLOOR(ABS(Y30-INDEX($E30:$BI30,1,MATCH(PARAMETRES!$E$135,$E15:$BI15)-1)/PARAMETRES!$E$137),1)),0),0)) -> 18 | AA30: =IF(AA15<PARAMETRES!$E$135,CEILING($D$12*AA19*AA20*ENTREES!$J$6,1),IF(AA15<DATE(YEAR(PARAMETRES!$E$135)+PARAMETRES!$E$136,MONTH(PARAMETRES!$E$135),DAY(PARAMETRES!$E$135)),IF(Z30>0,MAX(0,FLOOR(ABS(Z30-INDEX($E30:$BI30,1,MATCH(PARAMETRES!$E$135,$E15:$BI15)-1)/PARAMETRES!$E$137),1)),0),0)) -> 19 | AB30: =IF(AB15<PARAMETRES!$E$135,CEILING($D$12*AB19*AB20*ENTREES!$J$6,1),IF(AB15<DATE(YEAR(PARAMETRES!$E$135)+PARAMETRES!$E$136,MONTH(PARAMETRES!$E$135),DAY(PARAMETRES!$E$135)),IF(AA30>0,MAX(0,FLOOR(ABS(AA30-INDEX($E30:$BI30,1,MATCH(PARAMETRES!$E$135,$E15:$BI15)-1)/PARAMETRES!$E$137),1)),0),0)) -> 20 | AC30: =IF(AC15<PARAMETRES!$E$135,CEILING($D$12*AC19*AC20*ENTREES!$J$6,1),IF(AC15<DATE(YEAR(PARAMETRES!$E$135)+PARAMETRES!$E$136,MONTH(PARAMETRES!$E$135),DAY(PARAMETRES!$E$135)),IF(AB30>0,MAX(0,FLOOR(ABS(AB30-INDEX($E30:$BI30,1,MATCH(PARAMETRES!$E$135,$E15:$BI15)-1)/PARAMETRES!$E$137),1)),0),0)) -> 21 | AD30: =IF(AD15<PARAMETRES!$E$135,CEILING($D$12*AD19*AD20*ENTREES!$J$6,1),IF(AD15<DATE(YEAR(PARAMETRES!$E$135)+PARAMETRES!$E$136,MONTH(PARAMETRES!$E$135),DAY(PARAMETRES!$E$135)),IF(AC30>0,MAX(0,FLOOR(ABS(AC30-INDEX($E30:$BI30,1,MATCH(PARAMETRES!$E$135,$E15:$BI15)-1)/PARAMETRES!$E$137),1)),0),0)) -> 21 | AE30: =IF(AE15<PARAMETRES!$E$135,CEILING($D$12*AE19*AE20*ENTREES!$J$6,1),IF(AE15<DATE(YEAR(PARAMETRES!$E$135)+PARAMETRES!$E$136,MONTH(PARAMETRES!$E$135),DAY(PARAMETRES!$E$135)),IF(AD30>0,MAX(0,FLOOR(ABS(AD30-INDEX($E30:$BI30,1,MATCH(PARAMETRES!$E$135,$E15:$BI15)-1)/PARAMETRES!$E$137),1)),0),0)) -> 22 | AF30: =IF(AF15<PARAMETRES!$E$135,CEILING($D$12*AF19*AF20*ENTREES!$J$6,1),IF(AF15<DATE(YEAR(PARAMETRES!$E$135)+PARAMETRES!$E$136,MONTH(PARAMETRES!$E$135),DAY(PARAMETRES!$E$135)),IF(AE30>0,MAX(0,FLOOR(ABS(AE30-INDEX($E30:$BI30,1,MATCH(PARAMETRES!$E$135,$E15:$BI15)-1)/PARAMETRES!$E$137),1)),0),0)) -> 23 | AG30: =IF(AG15<PARAMETRES!$E$135,CEILING($D$12*AG19*AG20*ENTREES!$J$6,1),IF(AG15<DATE(YEAR(PARAMETRES!$E$135)+PARAMETRES!$E$136,MONTH(PARAMETRES!$E$135),DAY(PARAMETRES!$E$135)),IF(AF30>0,MAX(0,FLOOR(ABS(AF30-INDEX($E30:$BI30,1,MATCH(PARAMETRES!$E$135,$E15:$BI15)-1)/PARAMETRES!$E$137),1)),0),0)) -> 21 | AH30: =IF(AH15<PARAMETRES!$E$135,CEILING($D$12*AH19*AH20*ENTREES!$J$6,1),IF(AH15<DATE(YEAR(PARAMETRES!$E$135)+PARAMETRES!$E$136,MONTH(PARAMETRES!$E$135),DAY(PARAMETRES!$E$135)),IF(AG30>0,MAX(0,FLOOR(ABS(AG30-INDEX($E30:$BI30,1,MATCH(PARAMETRES!$E$135,$E15:$BI15)-1)/PARAMETRES!$E$137),1)),0),0)) -> 19 | AI30: =IF(AI15<PARAMETRES!$E$135,CEILING($D$12*AI19*AI20*ENTREES!$J$6,1),IF(AI15<DATE(YEAR(PARAMETRES!$E$135)+PARAMETRES!$E$136,MONTH(PARAMETRES!$E$135),DAY(PARAMETRES!$E$135)),IF(AH30>0,MAX(0,FLOOR(ABS(AH30-INDEX($E30:$BI30,1,MATCH(PARAMETRES!$E$135,$E15:$BI15)-1)/PARAMETRES!$E$137),1)),0),0)) -> 17 | AJ30: =IF(AJ15<PARAMETRES!$E$135,CEILING($D$12*AJ19*AJ20*ENTREES!$J$6,1),IF(AJ15<DATE(YEAR(PARAMETRES!$E$135)+PARAMETRES!$E$136,MONTH(PARAMETRES!$E$135),DAY(PARAMETRES!$E$135)),IF(AI30>0,MAX(0,FLOOR(ABS(AI30-INDEX($E30:$BI30,1,MATCH(PARAMETRES!$E$135,$E15:$BI15)-1)/PARAMETRES!$E$137),1)),0),0)) -> 15 | AK30: =IF(AK15<PARAMETRES!$E$135,CEILING($D$12*AK19*AK20*ENTREES!$J$6,1),IF(AK15<DATE(YEAR(PARAMETRES!$E$135)+PARAMETRES!$E$136,MONTH(PARAMETRES!$E$135),DAY(PARAMETRES!$E$135)),IF(AJ30>0,MAX(0,FLOOR(ABS(AJ30-INDEX($E30:$BI30,1,MATCH(PARAMETRES!$E$135,$E15:$BI15)-1)/PARAMETRES!$E$137),1)),0),0)) -> 13 | AL30: =IF(AL15<PARAMETRES!$E$135,CEILING($D$12*AL19*AL20*ENTREES!$J$6,1),IF(AL15<DATE(YEAR(PARAMETRES!$E$135)+PARAMETRES!$E$136,MONTH(PARAMETRES!$E$135),DAY(PARAMETRES!$E$135)),IF(AK30>0,MAX(0,FLOOR(ABS(AK30-INDEX($E30:$BI30,1,MATCH(PARAMETRES!$E$135,$E15:$BI15)-1)/PARAMETRES!$E$137),1)),0),0)) -> 11 | AM30: =IF(AM15<PARAMETRES!$E$135,CEILING($D$12*AM19*AM20*ENTREES!$J$6,1),IF(AM15<DATE(YEAR(PARAMETRES!$E$135)+PARAMETRES!$E$136,MONTH(PARAMETRES!$E$135),DAY(PARAMETRES!$E$135)),IF(AL30>0,MAX(0,FLOOR(ABS(AL30-INDEX($E30:$BI30,1,MATCH(PARAMETRES!$E$135,$E15:$BI15)-1)/PARAMETRES!$E$137),1)),0),0)) -> 9 | AN30: =IF(AN15<PARAMETRES!$E$135,CEILING($D$12*AN19*AN20*ENTREES!$J$6,1),IF(AN15<DATE(YEAR(PARAMETRES!$E$135)+PARAMETRES!$E$136,MONTH(PARAMETRES!$E$135),DAY(PARAMETRES!$E$135)),IF(AM30>0,MAX(0,FLOOR(ABS(AM30-INDEX($E30:$BI30,1,MATCH(PARAMETRES!$E$135,$E15:$BI15)-1)/PARAMETRES!$E$137),1)),0),0)) -> 7 | AO30: =IF(AO15<PARAMETRES!$E$135,CEILING($D$12*AO19*AO20*ENTREES!$J$6,1),IF(AO15<DATE(YEAR(PARAMETRES!$E$135)+PARAMETRES!$E$136,MONTH(PARAMETRES!$E$135),DAY(PARAMETRES!$E$135)),IF(AN30>0,MAX(0,FLOOR(ABS(AN30-INDEX($E30:$BI30,1,MATCH(PARAMETRES!$E$135,$E15:$BI15)-1)/PARAMETRES!$E$137),1)),0),0)) -> 5 | AP30: =IF(AP15<PARAMETRES!$E$135,CEILING($D$12*AP19*AP20*ENTREES!$J$6,1),IF(AP15<DATE(YEAR(PARAMETRES!$E$135)+PARAMETRES!$E$136,MONTH(PARAMETRES!$E$135),DAY(PARAMETRES!$E$135)),IF(AO30>0,MAX(0,FLOOR(ABS(AO30-INDEX($E30:$BI30,1,MATCH(PARAMETRES!$E$135,$E15:$BI15)-1)/PARAMETRES!$E$137),1)),0),0)) -> 3 | AQ30: =IF(AQ15<PARAMETRES!$E$135,CEILING($D$12*AQ19*AQ20*ENTREES!$J$6,1),IF(AQ15<DATE(YEAR(PARAMETRES!$E$135)+PARAMETRES!$E$136,MONTH(PARAMETRES!$E$135),DAY(PARAMETRES!$E$135)),IF(AP30>0,MAX(0,FLOOR(ABS(AP30-INDEX($E30:$BI30,1,MATCH(PARAMETRES!$E$135,$E15:$BI15)-1)/PARAMETRES!$E$137),1)),0),0)) -> 1 | AR30: =IF(AR15<PARAMETRES!$E$135,CEILING($D$12*AR19*AR20*ENTREES!$J$6,1),IF(AR15<DATE(YEAR(PARAMETRES!$E$135)+PARAMETRES!$E$136,MONTH(PARAMETRES!$E$135),DAY(PARAMETRES!$E$135)),IF(AQ30>0,MAX(0,FLOOR(ABS(AQ30-INDEX($E30:$BI30,1,MATCH(PARAMETRES!$E$135,$E15:$BI15)-1)/PARAMETRES!$E$137),1)),0),0)) -> 0 | AS30: =IF(AS15<PARAMETRES!$E$135,CEILING($D$12*AS19*AS20*ENTREES!$J$6,1),IF(AS15<DATE(YEAR(PARAMETRES!$E$135)+PARAMETRES!$E$136,MONTH(PARAMETRES!$E$135),DAY(PARAMETRES!$E$135)),IF(AR30>0,MAX(0,FLOOR(ABS(AR30-INDEX($E30:$BI30,1,MATCH(PARAMETRES!$E$135,$E15:$BI15)-1)/PARAMETRES!$E$137),1)),0),0)) -> 0 | AT30: =IF(AT15<PARAMETRES!$E$135,CEILING($D$12*AT19*AT20*ENTREES!$J$6,1),IF(AT15<DATE(YEAR(PARAMETRES!$E$135)+PARAMETRES!$E$136,MONTH(PARAMETRES!$E$135),DAY(PARAMETRES!$E$135)),IF(AS30>0,MAX(0,FLOOR(ABS(AS30-INDEX($E30:$BI30,1,MATCH(PARAMETRES!$E$135,$E15:$BI15)-1)/PARAMETRES!$E$137),1)),0),0)) -> 0 | AU30: =IF(AU15<PARAMETRES!$E$135,CEILING($D$12*AU19*AU20*ENTREES!$J$6,1),IF(AU15<DATE(YEAR(PARAMETRES!$E$135)+PARAMETRES!$E$136,MONTH(PARAMETRES!$E$135),DAY(PARAMETRES!$E$135)),IF(AT30>0,MAX(0,FLOOR(ABS(AT30-INDEX($E30:$BI30,1,MATCH(PARAMETRES!$E$135,$E15:$BI15)-1)/PARAMETRES!$E$137),1)),0),0)) -> 0 | AV30: =IF(AV15<PARAMETRES!$E$135,CEILING($D$12*AV19*AV20*ENTREES!$J$6,1),IF(AV15<DATE(YEAR(PARAMETRES!$E$135)+PARAMETRES!$E$136,MONTH(PARAMETRES!$E$135),DAY(PARAMETRES!$E$135)),IF(AU30>0,MAX(0,FLOOR(ABS(AU30-INDEX($E30:$BI30,1,MATCH(PARAMETRES!$E$135,$E15:$BI15)-1)/PARAMETRES!$E$137),1)),0),0)) -> 0 | AW30: =IF(AW15<PARAMETRES!$E$135,CEILING($D$12*AW19*AW20*ENTREES!$J$6,1),IF(AW15<DATE(YEAR(PARAMETRES!$E$135)+PARAMETRES!$E$136,MONTH(PARAMETRES!$E$135),DAY(PARAMETRES!$E$135)),IF(AV30>0,MAX(0,FLOOR(ABS(AV30-INDEX($E30:$BI30,1,MATCH(PARAMETRES!$E$135,$E15:$BI15)-1)/PARAMETRES!$E$137),1)),0),0)) -> 0 | AX30: =IF(AX15<PARAMETRES!$E$135,CEILING($D$12*AX19*AX20*ENTREES!$J$6,1),IF(AX15<DATE(YEAR(PARAMETRES!$E$135)+PARAMETRES!$E$136,MONTH(PARAMETRES!$E$135),DAY(PARAMETRES!$E$135)),IF(AW30>0,MAX(0,FLOOR(ABS(AW30-INDEX($E30:$BI30,1,MATCH(PARAMETRES!$E$135,$E15:$BI15)-1)/PARAMETRES!$E$137),1)),0),0)) -> 0 | AY30: =IF(AY15<PARAMETRES!$E$135,CEILING($D$12*AY19*AY20*ENTREES!$J$6,1),IF(AY15<DATE(YEAR(PARAMETRES!$E$135)+PARAMETRES!$E$136,MONTH(PARAMETRES!$E$135),DAY(PARAMETRES!$E$135)),IF(AX30>0,MAX(0,FLOOR(ABS(AX30-INDEX($E30:$BI30,1,MATCH(PARAMETRES!$E$135,$E15:$BI15)-1)/PARAMETRES!$E$137),1)),0),0)) -> 0 | AZ30: =IF(AZ15<PARAMETRES!$E$135,CEILING($D$12*AZ19*AZ20*ENTREES!$J$6,1),IF(AZ15<DATE(YEAR(PARAMETRES!$E$135)+PARAMETRES!$E$136,MONTH(PARAMETRES!$E$135),DAY(PARAMETRES!$E$135)),IF(AY30>0,MAX(0,FLOOR(ABS(AY30-INDEX($E30:$BI30,1,MATCH(PARAMETRES!$E$135,$E15:$BI15)-1)/PARAMETRES!$E$137),1)),0),0)) -> 0 | BA30: =IF(BA15<PARAMETRES!$E$135,CEILING($D$12*BA19*BA20*ENTREES!$J$6,1),IF(BA15<DATE(YEAR(PARAMETRES!$E$135)+PARAMETRES!$E$136,MONTH(PARAMETRES!$E$135),DAY(PARAMETRES!$E$135)),IF(AZ30>0,MAX(0,FLOOR(ABS(AZ30-INDEX($E30:$BI30,1,MATCH(PARAMETRES!$E$135,$E15:$BI15)-1)/PARAMETRES!$E$137),1)),0),0)) -> 0 | BB30: =IF(BB15<PARAMETRES!$E$135,CEILING($D$12*BB19*BB20*ENTREES!$J$6,1),IF(BB15<DATE(YEAR(PARAMETRES!$E$135)+PARAMETRES!$E$136,MONTH(PARAMETRES!$E$135),DAY(PARAMETRES!$E$135)),IF(BA30>0,MAX(0,FLOOR(ABS(BA30-INDEX($E30:$BI30,1,MATCH(PARAMETRES!$E$135,$E15:$BI15)-1)/PARAMETRES!$E$137),1)),0),0)) -> 0 | BC30: =IF(BC15<PARAMETRES!$E$135,CEILING($D$12*BC19*BC20*ENTREES!$J$6,1),IF(BC15<DATE(YEAR(PARAMETRES!$E$135)+PARAMETRES!$E$136,MONTH(PARAMETRES!$E$135),DAY(PARAMETRES!$E$135)),IF(BB30>0,MAX(0,FLOOR(ABS(BB30-INDEX($E30:$BI30,1,MATCH(PARAMETRES!$E$135,$E15:$BI15)-1)/PARAMETRES!$E$137),1)),0),0)) -> 0 | BD30: =IF(BD15<PARAMETRES!$E$135,CEILING($D$12*BD19*BD20*ENTREES!$J$6,1),IF(BD15<DATE(YEAR(PARAMETRES!$E$135)+PARAMETRES!$E$136,MONTH(PARAMETRES!$E$135),DAY(PARAMETRES!$E$135)),IF(BC30>0,MAX(0,FLOOR(ABS(BC30-INDEX($E30:$BI30,1,MATCH(PARAMETRES!$E$135,$E15:$BI15)-1)/PARAMETRES!$E$137),1)),0),0)) -> 0 | BE30: =IF(BE15<PARAMETRES!$E$135,CEILING($D$12*BE19*BE20*ENTREES!$J$6,1),IF(BE15<DATE(YEAR(PARAMETRES!$E$135)+PARAMETRES!$E$136,MONTH(PARAMETRES!$E$135),DAY(PARAMETRES!$E$135)),IF(BD30>0,MAX(0,FLOOR(ABS(BD30-INDEX($E30:$BI30,1,MATCH(PARAMETRES!$E$135,$E15:$BI15)-1)/PARAMETRES!$E$137),1)),0),0)) -> 0 | BF30: =IF(BF15<PARAMETRES!$E$135,CEILING($D$12*BF19*BF20*ENTREES!$J$6,1),IF(BF15<DATE(YEAR(PARAMETRES!$E$135)+PARAMETRES!$E$136,MONTH(PARAMETRES!$E$135),DAY(PARAMETRES!$E$135)),IF(BE30>0,MAX(0,FLOOR(ABS(BE30-INDEX($E30:$BI30,1,MATCH(PARAMETRES!$E$135,$E15:$BI15)-1)/PARAMETRES!$E$137),1)),0),0)) -> 0 | BG30: =IF(BG15<PARAMETRES!$E$135,CEILING($D$12*BG19*BG20*ENTREES!$J$6,1),IF(BG15<DATE(YEAR(PARAMETRES!$E$135)+PARAMETRES!$E$136,MONTH(PARAMETRES!$E$135),DAY(PARAMETRES!$E$135)),IF(BF30>0,MAX(0,FLOOR(ABS(BF30-INDEX($E30:$BI30,1,MATCH(PARAMETRES!$E$135,$E15:$BI15)-1)/PARAMETRES!$E$137),1)),0),0)) -> 0 | BH30: =IF(BH15<PARAMETRES!$E$135,CEILING($D$12*BH19*BH20*ENTREES!$J$6,1),IF(BH15<DATE(YEAR(PARAMETRES!$E$135)+PARAMETRES!$E$136,MONTH(PARAMETRES!$E$135),DAY(PARAMETRES!$E$135)),IF(BG30>0,MAX(0,FLOOR(ABS(BG30-INDEX($E30:$BI30,1,MATCH(PARAMETRES!$E$135,$E15:$BI15)-1)/PARAMETRES!$E$137),1)),0),0)) -> 0 | BI30: =IF(BI15<PARAMETRES!$E$135,CEILING($D$12*BI19*BI20*ENTREES!$J$6,1),IF(BI15<DATE(YEAR(PARAMETRES!$E$135)+PARAMETRES!$E$136,MONTH(PARAMETRES!$E$135),DAY(PARAMETRES!$E$135)),IF(BH30>0,MAX(0,FLOOR(ABS(BH30-INDEX($E30:$BI30,1,MATCH(PARAMETRES!$E$135,$E15:$BI15)-1)/PARAMETRES!$E$137),1)),0),0)) -> 0
C31: dont ADSL - collecte ATM | E31: =CEILING(E30*PARAMETRES!$E$22,1) -> 0 | F31: =CEILING(F30*PARAMETRES!$E$22,1) -> 0 | G31: =CEILING(G30*PARAMETRES!$E$22,1) -> 0 | H31: =CEILING(H30*PARAMETRES!$E$22,1) -> 0 | I31: =CEILING(I30*PARAMETRES!$E$22,1) -> 0 | J31: =CEILING(J30*PARAMETRES!$E$22,1) -> 0 | K31: =CEILING(K30*PARAMETRES!$E$22,1) -> 0 | L31: =CEILING(L30*PARAMETRES!$E$22,1) -> 0 | M31: =CEILING(M30*PARAMETRES!$E$22,1) -> 0 | N31: =CEILING(N30*PARAMETRES!$E$22,1) -> 0 | O31: =CEILING(O30*PARAMETRES!$E$22,1) -> 0 | P31: =CEILING(P30*PARAMETRES!$E$22,1) -> 2 | Q31: =CEILING(Q30*PARAMETRES!$E$22,1) -> 3 | R31: =CEILING(R30*PARAMETRES!$E$22,1) -> 3 | S31: =CEILING(S30*PARAMETRES!$E$22,1) -> 3 | T31: =CEILING(T30*PARAMETRES!$E$22,1) -> 3 | U31: =CEILING(U30*PARAMETRES!$E$22,1) -> 3 | V31: =CEILING(V30*PARAMETRES!$E$22,1) -> 3 | W31: =CEILING(W30*PARAMETRES!$E$22,1) -> 3 | X31: =CEILING(X30*PARAMETRES!$E$22,1) -> 4 | Y31: =CEILING(Y30*PARAMETRES!$E$22,1) -> 4 | Z31: =CEILING(Z30*PARAMETRES!$E$22,1) -> 4 | AA31: =CEILING(AA30*PARAMETRES!$E$22,1) -> 4 | AB31: =CEILING(AB30*PARAMETRES!$E$22,1) -> 4 | AC31: =CEILING(AC30*PARAMETRES!$E$22,1) -> 5 | AD31: =CEILING(AD30*PARAMETRES!$E$22,1) -> 5 | AE31: =CEILING(AE30*PARAMETRES!$E$22,1) -> 5 | AF31: =CEILING(AF30*PARAMETRES!$E$22,1) -> 5 | AG31: =CEILING(AG30*PARAMETRES!$E$22,1) -> 5 | AH31: =CEILING(AH30*PARAMETRES!$E$22,1) -> 4 | AI31: =CEILING(AI30*PARAMETRES!$E$22,1) -> 4 | AJ31: =CEILING(AJ30*PARAMETRES!$E$22,1) -> 3 | AK31: =CEILING(AK30*PARAMETRES!$E$22,1) -> 3 | AL31: =CEILING(AL30*PARAMETRES!$E$22,1) -> 3 | AM31: =CEILING(AM30*PARAMETRES!$E$22,1) -> 2 | AN31: =CEILING(AN30*PARAMETRES!$E$22,1) -> 2 | AO31: =CEILING(AO30*PARAMETRES!$E$22,1) -> 1 | AP31: =CEILING(AP30*PARAMETRES!$E$22,1) -> 1 | AQ31: =CEILING(AQ30*PARAMETRES!$E$22,1) -> 1 | AR31: =CEILING(AR30*PARAMETRES!$E$22,1) -> 0 | AS31: =CEILING(AS30*PARAMETRES!$E$22,1) -> 0 | AT31: =CEILING(AT30*PARAMETRES!$E$22,1) -> 0 | AU31: =CEILING(AU30*PARAMETRES!$E$22,1) -> 0 | AV31: =CEILING(AV30*PARAMETRES!$E$22,1) -> 0 | AW31: =CEILING(AW30*PARAMETRES!$E$22,1) -> 0 | AX31: =CEILING(AX30*PARAMETRES!$E$22,1) -> 0 | AY31: =CEILING(AY30*PARAMETRES!$E$22,1) -> 0 | AZ31: =CEILING(AZ30*PARAMETRES!$E$22,1) -> 0 | BA31: =CEILING(BA30*PARAMETRES!$E$22,1) -> 0 | BB31: =CEILING(BB30*PARAMETRES!$E$22,1) -> 0 | BC31: =CEILING(BC30*PARAMETRES!$E$22,1) -> 0 | BD31: =CEILING(BD30*PARAMETRES!$E$22,1) -> 0 | BE31: =CEILING(BE30*PARAMETRES!$E$22,1) -> 0 | BF31: =CEILING(BF30*PARAMETRES!$E$22,1) -> 0 | BG31: =CEILING(BG30*PARAMETRES!$E$22,1) -> 0 | BH31: =CEILING(BH30*PARAMETRES!$E$22,1) -> 0 | BI31: =CEILING(BI30*PARAMETRES!$E$22,1) -> 0
C32: dont SDSL - collecte ATM | E32: =E30-E31 -> 0 | F32: =F30-F31 -> 0 | G32: 0 | H32: 0 | I32: 0 | J32: 0 | K32: 0 | L32: 0 | M32: 0 | N32: 0 | O32: 0 | P32: 8 | Q32: 8 | R32: 8 | S32: 9 | T32: 10 | U32: 11 | V32: 12 | W32: 12 | X32: 12 | Y32: 13 | Z32: 14 | AA32: 15 | AB32: 16 | AC32: 16 | AD32: 16 | AE32: 17 | AF32: 18 | AG32: 16 | AH32: 15 | AI32: 13 | AJ32: 12 | AK32: 10 | AL32: 8 | AM32: 7 | AN32: 5 | AO32: 4 | AP32: 2 | AQ32: 0 | AR32: 0 | AS32: 0 | AT32: 0 | AU32: 0 | AV32: 0 | AW32: 0 | AX32: 0 | AY32: =AY30-AY31 -> 0 | AZ32: =AZ30-AZ31 -> 0 | BA32: 0 | BB32: 0 | BC32: 0 | BD32: 0 | BE32: 0 | BF32: 0 | BG32: 0 | BH32: 0 | BI32: 0
C33: nb d'accès "entreprises" collecte Ethernet | E33: =CEILING($D$12*E19*E20*ENTREES!$J$6,1)-E30 -> 0 | F33: =CEILING($D$12*F19*F20*ENTREES!$J$6,1)-F30 -> 0 | G33: =CEILING($D$12*G19*G20*ENTREES!$J$6,1)-G30 -> 0 | H33: =CEILING($D$12*H19*H20*ENTREES!$J$6,1)-H30 -> 0 | I33: =CEILING($D$12*I19*I20*ENTREES!$J$6,1)-I30 -> 0 | J33: =CEILING($D$12*J19*J20*ENTREES!$J$6,1)-J30 -> 0 | K33: =CEILING($D$12*K19*K20*ENTREES!$J$6,1)-K30 -> 0 | L33: =CEILING($D$12*L19*L20*ENTREES!$J$6,1)-L30 -> 0 | M33: =CEILING($D$12*M19*M20*ENTREES!$J$6,1)-M30 -> 0 | N33: =CEILING($D$12*N19*N20*ENTREES!$J$6,1)-N30 -> 0 | O33: =CEILING($D$12*O19*O20*ENTREES!$J$6,1)-O30 -> 0 | P33: =CEILING($D$12*P19*P20*ENTREES!$J$6,1)-P30 -> 0 | Q33: =CEILING($D$12*Q19*Q20*ENTREES!$J$6,1)-Q30 -> 0 | R33: =CEILING($D$12*R19*R20*ENTREES!$J$6,1)-R30 -> 0 | S33: =CEILING($D$12*S19*S20*ENTREES!$J$6,1)-S30 -> 0 | T33: =CEILING($D$12*T19*T20*ENTREES!$J$6,1)-T30 -> 0 | U33: =CEILING($D$12*U19*U20*ENTREES!$J$6,1)-U30 -> 0 | V33: =CEILING($D$12*V19*V20*ENTREES!$J$6,1)-V30 -> 0 | W33: =CEILING($D$12*W19*W20*ENTREES!$J$6,1)-W30 -> 0 | X33: =CEILING($D$12*X19*X20*ENTREES!$J$6,1)-X30 -> 0 | Y33: =CEILING($D$12*Y19*Y20*ENTREES!$J$6,1)-Y30 -> 0 | Z33: =CEILING($D$12*Z19*Z20*ENTREES!$J$6,1)-Z30 -> 0 | AA33: =CEILING($D$12*AA19*AA20*ENTREES!$J$6,1)-AA30 -> 0 | AB33: =CEILING($D$12*AB19*AB20*ENTREES!$J$6,1)-AB30 -> 0 | AC33: =CEILING($D$12*AC19*AC20*ENTREES!$J$6,1)-AC30 -> 0 | AD33: =CEILING($D$12*AD19*AD20*ENTREES!$J$6,1)-AD30 -> 0 | AE33: =CEILING($D$12*AE19*AE20*ENTREES!$J$6,1)-AE30 -> 0 | AF33: =CEILING($D$12*AF19*AF20*ENTREES!$J$6,1)-AF30 -> 0 | AG33: =CEILING($D$12*AG19*AG20*ENTREES!$J$6,1)-AG30 -> 3 | AH33: =CEILING($D$12*AH19*AH20*ENTREES!$J$6,1)-AH30 -> 6 | AI33: =CEILING($D$12*AI19*AI20*ENTREES!$J$6,1)-AI30 -> 8 | AJ33: =CEILING($D$12*AJ19*AJ20*ENTREES!$J$6,1)-AJ30 -> 11 | AK33: =CEILING($D$12*AK19*AK20*ENTREES!$J$6,1)-AK30 -> 13 | AL33: =CEILING($D$12*AL19*AL20*ENTREES!$J$6,1)-AL30 -> 15 | AM33: =CEILING($D$12*AM19*AM20*ENTREES!$J$6,1)-AM30 -> 17 | AN33: =CEILING($D$12*AN19*AN20*ENTREES!$J$6,1)-AN30 -> 19 | AO33: =CEILING($D$12*AO19*AO20*ENTREES!$J$6,1)-AO30 -> 21 | AP33: =CEILING($D$12*AP19*AP20*ENTREES!$J$6,1)-AP30 -> 23 | AQ33: =CEILING($D$12*AQ19*AQ20*ENTREES!$J$6,1)-AQ30 -> 26 | AR33: =CEILING($D$12*AR19*AR20*ENTREES!$J$6,1)-AR30 -> 27 | AS33: =CEILING($D$12*AS19*AS20*ENTREES!$J$6,1)-AS30 -> 27 | AT33: =CEILING($D$12*AT19*AT20*ENTREES!$J$6,1)-AT30 -> 27 | AU33: =CEILING($D$12*AU19*AU20*ENTREES!$J$6,1)-AU30 -> 27 | AV33: =CEILING($D$12*AV19*AV20*ENTREES!$J$6,1)-AV30 -> 27 | AW33: =CEILING($D$12*AW19*AW20*ENTREES!$J$6,1)-AW30 -> 27 | AX33: =CEILING($D$12*AX19*AX20*ENTREES!$J$6,1)-AX30 -> 27 | AY33: =CEILING($D$12*AY19*AY20*ENTREES!$J$6,1)-AY30 -> 27 | AZ33: =CEILING($D$12*AZ19*AZ20*ENTREES!$J$6,1)-AZ30 -> 27 | BA33: =CEILING($D$12*BA19*BA20*ENTREES!$J$6,1)-BA30 -> 27 | BB33: =CEILING($D$12*BB19*BB20*ENTREES!$J$6,1)-BB30 -> 27 | BC33: =CEILING($D$12*BC19*BC20*ENTREES!$J$6,1)-BC30 -> 27 | BD33: =CEILING($D$12*BD19*BD20*ENTREES!$J$6,1)-BD30 -> 27 | BE33: =CEILING($D$12*BE19*BE20*ENTREES!$J$6,1)-BE30 -> 27 | BF33: =CEILING($D$12*BF19*BF20*ENTREES!$J$6,1)-BF30 -> 27 | BG33: =CEILING($D$12*BG19*BG20*ENTREES!$J$6,1)-BG30 -> 27 | BH33: =CEILING($D$12*BH19*BH20*ENTREES!$J$6,1)-BH30 -> 27 | BI33: =CEILING($D$12*BI19*BI20*ENTREES!$J$6,1)-BI30 -> 27
C34: dont ADSL - collecte Ethernet | E34: =CEILING(E33*PARAMETRES!$E$22,1) -> 0 | F34: =CEILING(F33*PARAMETRES!$E$22,1) -> 0 | G34: =CEILING(G33*PARAMETRES!$E$22,1) -> 0 | H34: =CEILING(H33*PARAMETRES!$E$22,1) -> 0 | I34: =CEILING(I33*PARAMETRES!$E$22,1) -> 0 | J34: =CEILING(J33*PARAMETRES!$E$22,1) -> 0 | K34: =CEILING(K33*PARAMETRES!$E$22,1) -> 0 | L34: =CEILING(L33*PARAMETRES!$E$22,1) -> 0 | M34: =CEILING(M33*PARAMETRES!$E$22,1) -> 0 | N34: =CEILING(N33*PARAMETRES!$E$22,1) -> 0 | O34: =CEILING(O33*PARAMETRES!$E$22,1) -> 0 | P34: =CEILING(P33*PARAMETRES!$E$22,1) -> 0 | Q34: =CEILING(Q33*PARAMETRES!$E$22,1) -> 0 | R34: =CEILING(R33*PARAMETRES!$E$22,1) -> 0 | S34: =CEILING(S33*PARAMETRES!$E$22,1) -> 0 | T34: =CEILING(T33*PARAMETRES!$E$22,1) -> 0 | U34: =CEILING(U33*PARAMETRES!$E$22,1) -> 0 | V34: =CEILING(V33*PARAMETRES!$E$22,1) -> 0 | W34: =CEILING(W33*PARAMETRES!$E$22,1) -> 0 | X34: =CEILING(X33*PARAMETRES!$E$22,1) -> 0 | Y34: =CEILING(Y33*PARAMETRES!$E$22,1) -> 0 | Z34: =CEILING(Z33*PARAMETRES!$E$22,1) -> 0 | AA34: =CEILING(AA33*PARAMETRES!$E$22,1) -> 0 | AB34: =CEILING(AB33*PARAMETRES!$E$22,1) -> 0 | AC34: =CEILING(AC33*PARAMETRES!$E$22,1) -> 0 | AD34: =CEILING(AD33*PARAMETRES!$E$22,1) -> 0 | AE34: =CEILING(AE33*PARAMETRES!$E$22,1) -> 0 | AF34: =CEILING(AF33*PARAMETRES!$E$22,1) -> 0 | AG34: =CEILING(AG33*PARAMETRES!$E$22,1) -> 1 | AH34: =CEILING(AH33*PARAMETRES!$E$22,1) -> 2 | AI34: =CEILING(AI33*PARAMETRES!$E$22,1) -> 2 | AJ34: =CEILING(AJ33*PARAMETRES!$E$22,1) -> 3 | AK34: =CEILING(AK33*PARAMETRES!$E$22,1) -> 3 | AL34: =CEILING(AL33*PARAMETRES!$E$22,1) -> 3 | AM34: =CEILING(AM33*PARAMETRES!$E$22,1) -> 4 | AN34: =CEILING(AN33*PARAMETRES!$E$22,1) -> 4 | AO34: =CEILING(AO33*PARAMETRES!$E$22,1) -> 5 | AP34: =CEILING(AP33*PARAMETRES!$E$22,1) -> 5 | AQ34: =CEILING(AQ33*PARAMETRES!$E$22,1) -> 6 | AR34: =CEILING(AR33*PARAMETRES!$E$22,1) -> 6 | AS34: =CEILING(AS33*PARAMETRES!$E$22,1) -> 6 | AT34: =CEILING(AT33*PARAMETRES!$E$22,1) -> 6 | AU34: =CEILING(AU33*PARAMETRES!$E$22,1) -> 6 | AV34: =CEILING(AV33*PARAMETRES!$E$22,1) -> 6 | AW34: =CEILING(AW33*PARAMETRES!$E$22,1) -> 6 | AX34: =CEILING(AX33*PARAMETRES!$E$22,1) -> 6 | AY34: =CEILING(AY33*PARAMETRES!$E$22,1) -> 6 | AZ34: =CEILING(AZ33*PARAMETRES!$E$22,1) -> 6 | BA34: =CEILING(BA33*PARAMETRES!$E$22,1) -> 6 | BB34: =CEILING(BB33*PARAMETRES!$E$22,1) -> 6 | BC34: =CEILING(BC33*PARAMETRES!$E$22,1) -> 6 | BD34: =CEILING(BD33*PARAMETRES!$E$22,1) -> 6 | BE34: =CEILING(BE33*PARAMETRES!$E$22,1) -> 6 | BF34: =CEILING(BF33*PARAMETRES!$E$22,1) -> 6 | BG34: =CEILING(BG33*PARAMETRES!$E$22,1) -> 6 | BH34: =CEILING(BH33*PARAMETRES!$E$22,1) -> 6 | BI34: =CEILING(BI33*PARAMETRES!$E$22,1) -> 6
C35: dont SDSL - collecte Ethernet | E35: =E33-E34 -> 0 | F35: =F33-F34 -> 0 | G35: 0 | H35: 0 | I35: 0 | J35: 0 | K35: 0 | L35: 0 | M35: 0 | N35: 0 | O35: 0 | P35: 0 | Q35: 0 | R35: 0 | S35: 0 | T35: 0 | U35: 0 | V35: 0 | W35: 0 | X35: 0 | Y35: 0 | Z35: 0 | AA35: 0 | AB35: 0 | AC35: 0 | AD35: 0 | AE35: 0 | AF35: 0 | AG35: 2 | AH35: 4 | AI35: 6 | AJ35: 8 | AK35: 10 | AL35: 12 | AM35: 13 | AN35: 15 | AO35: 16 | AP35: 18 | AQ35: 20 | AR35: 21 | AS35: 21 | AT35: 21 | AU35: 21 | AV35: 21 | AW35: 21 | AX35: 21 | AY35: 21 | AZ35: 21 | BA35: 21 | BB35: 21 | BC35: 21 | BD35: 21 | BE35: 21 | BF35: 21 | BG35: 21 | BH35: 21 | BI35: 21
B37: nb de lignes cuivre utilisées
C38: nb de LP utilisées | E38: =CEILING(E24+E28+E29*PARAMETRES!$E$28,1) -> 0 | F38: =CEILING(F24+F28+F29*PARAMETRES!$E$28,1) -> 0 | G38: =CEILING(G24+G28+G29*PARAMETRES!$E$28,1) -> 0 | H38: =CEILING(H24+H28+H29*PARAMETRES!$E$28,1) -> 0 | I38: =CEILING(I24+I28+I29*PARAMETRES!$E$28,1) -> 0 | J38: =CEILING(J24+J28+J29*PARAMETRES!$E$28,1) -> 0 | K38: =CEILING(K24+K28+K29*PARAMETRES!$E$28,1) -> 0 | L38: =CEILING(L24+L28+L29*PARAMETRES!$E$28,1) -> 0 | M38: =CEILING(M24+M28+M29*PARAMETRES!$E$28,1) -> 0 | N38: =CEILING(N24+N28+N29*PARAMETRES!$E$28,1) -> 0 | O38: =CEILING(O24+O28+O29*PARAMETRES!$E$28,1) -> 0 | P38: =CEILING(P24+P28+P29*PARAMETRES!$E$28,1) -> 208 | Q38: =CEILING(Q24+Q28+Q29*PARAMETRES!$E$28,1) -> 240 | R38: =CEILING(R24+R28+R29*PARAMETRES!$E$28,1) -> 272 | S38: =CEILING(S24+S28+S29*PARAMETRES!$E$28,1) -> 308 | T38: =CEILING(T24+T28+T29*PARAMETRES!$E$28,1) -> 346 | U38: =CEILING(U24+U28+U29*PARAMETRES!$E$28,1) -> 387 | V38: =CEILING(V24+V28+V29*PARAMETRES!$E$28,1) -> 428 | W38: =CEILING(W24+W28+W29*PARAMETRES!$E$28,1) -> 470 | X38: =CEILING(X24+X28+X29*PARAMETRES!$E$28,1) -> 515 | Y38: =CEILING(Y24+Y28+Y29*PARAMETRES!$E$28,1) -> 562 | Z38: =CEILING(Z24+Z28+Z29*PARAMETRES!$E$28,1) -> 609 | AA38: =CEILING(AA24+AA28+AA29*PARAMETRES!$E$28,1) -> 658 | AB38: =CEILING(AB24+AB28+AB29*PARAMETRES!$E$28,1) -> 708 | AC38: =CEILING(AC24+AC28+AC29*PARAMETRES!$E$28,1) -> 758 | AD38: =CEILING(AD24+AD28+AD29*PARAMETRES!$E$28,1) -> 807 | AE38: =CEILING(AE24+AE28+AE29*PARAMETRES!$E$28,1) -> 859 | AF38: =CEILING(AF24+AF28+AF29*PARAMETRES!$E$28,1) -> 910 | AG38: =CEILING(AG24+AG28+AG29*PARAMETRES!$E$28,1) -> 962 | AH38: =CEILING(AH24+AH28+AH29*PARAMETRES!$E$28,1) -> 1013 | AI38: =CEILING(AI24+AI28+AI29*PARAMETRES!$E$28,1) -> 1063 | AJ38: =CEILING(AJ24+AJ28+AJ29*PARAMETRES!$E$28,1) -> 1112 | AK38: =CEILING(AK24+AK28+AK29*PARAMETRES!$E$28,1) -> 1130 | AL38: =CEILING(AL24+AL28+AL29*PARAMETRES!$E$28,1) -> 1145 | AM38: =CEILING(AM24+AM28+AM29*PARAMETRES!$E$28,1) -> 1160 | AN38: =CEILING(AN24+AN28+AN29*PARAMETRES!$E$28,1) -> 1173 | AO38: =CEILING(AO24+AO28+AO29*PARAMETRES!$E$28,1) -> 1186 | AP38: =CEILING(AP24+AP28+AP29*PARAMETRES!$E$28,1) -> 1197 | AQ38: =CEILING(AQ24+AQ28+AQ29*PARAMETRES!$E$28,1) -> 1209 | AR38: =CEILING(AR24+AR28+AR29*PARAMETRES!$E$28,1) -> 1220 | AS38: =CEILING(AS24+AS28+AS29*PARAMETRES!$E$28,1) -> 1228 | AT38: =CEILING(AT24+AT28+AT29*PARAMETRES!$E$28,1) -> 1236 | AU38: =CEILING(AU24+AU28+AU29*PARAMETRES!$E$28,1) -> 1244 | AV38: =CEILING(AV24+AV28+AV29*PARAMETRES!$E$28,1) -> 1251 | AW38: =CEILING(AW24+AW28+AW29*PARAMETRES!$E$28,1) -> 1257 | AX38: =CEILING(AX24+AX28+AX29*PARAMETRES!$E$28,1) -> 1263 | AY38: =CEILING(AY24+AY28+AY29*PARAMETRES!$E$28,1) -> 1268 | AZ38: =CEILING(AZ24+AZ28+AZ29*PARAMETRES!$E$28,1) -> 1272 | BA38: =CEILING(BA24+BA28+BA29*PARAMETRES!$E$28,1) -> 1277 | BB38: =CEILING(BB24+BB28+BB29*PARAMETRES!$E$28,1) -> 1281 | BC38: =CEILING(BC24+BC28+BC29*PARAMETRES!$E$28,1) -> 1284 | BD38: =CEILING(BD24+BD28+BD29*PARAMETRES!$E$28,1) -> 1287 | BE38: =CEILING(BE24+BE28+BE29*PARAMETRES!$E$28,1) -> 1290 | BF38: =CEILING(BF24+BF28+BF29*PARAMETRES!$E$28,1) -> 1293 | BG38: =CEILING(BG24+BG28+BG29*PARAMETRES!$E$28,1) -> 1295 | BH38: =CEILING(BH24+BH28+BH29*PARAMETRES!$E$28,1) -> 1298 | BI38: =CEILING(BI24+BI28+BI29*PARAMETRES!$E$28,1) -> 1300
A40: dimensionnement des équipements actifs
B41: cartes DSL
C42: nb de cartes ADSL Ethernet | E42: =CEILING((E24+E34)/(PARAMETRES!$E$98),1) -> 0 | F42: =CEILING((F24+F34)/(PARAMETRES!$E$98),1) -> 0 | G42: =CEILING((G24+G34)/(PARAMETRES!$E$98),1) -> 0 | H42: =CEILING((H24+H34)/(PARAMETRES!$E$98),1) -> 0 | I42: =CEILING((I24+I34)/(PARAMETRES!$E$98),1) -> 0 | J42: =CEILING((J24+J34)/(PARAMETRES!$E$98),1) -> 0 | K42: =CEILING((K24+K34)/(PARAMETRES!$E$98),1) -> 0 | L42: =CEILING((L24+L34)/(PARAMETRES!$E$98),1) -> 0 | M42: =CEILING((M24+M34)/(PARAMETRES!$E$98),1) -> 0 | N42: =CEILING((N24+N34)/(PARAMETRES!$E$98),1) -> 0 | O42: =CEILING((O24+O34)/(PARAMETRES!$E$98),1) -> 0 | P42: =CEILING((P24+P34)/(PARAMETRES!$E$98),1) -> 5 | Q42: =CEILING((Q24+Q34)/(PARAMETRES!$E$98),1) -> 5 | R42: =CEILING((R24+R34)/(PARAMETRES!$E$98),1) -> 6 | S42: =CEILING((S24+S34)/(PARAMETRES!$E$98),1) -> 7 | T42: =CEILING((T24+T34)/(PARAMETRES!$E$98),1) -> 7 | U42: =CEILING((U24+U34)/(PARAMETRES!$E$98),1) -> 8 | V42: =CEILING((V24+V34)/(PARAMETRES!$E$98),1) -> 9 | W42: =CEILING((W24+W34)/(PARAMETRES!$E$98),1) -> 10 | X42: =CEILING((X24+X34)/(PARAMETRES!$E$98),1) -> 11 | Y42: =CEILING((Y24+Y34)/(PARAMETRES!$E$98),1) -> 12 | Z42: =CEILING((Z24+Z34)/(PARAMETRES!$E$98),1) -> 13 | AA42: =CEILING((AA24+AA34)/(PARAMETRES!$E$98),1) -> 14 | AB42: =CEILING((AB24+AB34)/(PARAMETRES!$E$98),1) -> 15 | AC42: =CEILING((AC24+AC34)/(PARAMETRES!$E$98),1) -> 16 | AD42: =CEILING((AD24+AD34)/(PARAMETRES!$E$98),1) -> 17 | AE42: =CEILING((AE24+AE34)/(PARAMETRES!$E$98),1) -> 18 | AF42: =CEILING((AF24+AF34)/(PARAMETRES!$E$98),1) -> 19 | AG42: =CEILING((AG24+AG34)/(PARAMETRES!$E$98),1) -> 20 | AH42: =CEILING((AH24+AH34)/(PARAMETRES!$E$98),1) -> 21 | AI42: =CEILING((AI24+AI34)/(PARAMETRES!$E$98),1) -> 22 | AJ42: =CEILING((AJ24+AJ34)/(PARAMETRES!$E$98),1) -> 23 | AK42: =CEILING((AK24+AK34)/(PARAMETRES!$E$98),1) -> 23 | AL42: =CEILING((AL24+AL34)/(PARAMETRES!$E$98),1) -> 24 | AM42: =CEILING((AM24+AM34)/(PARAMETRES!$E$98),1) -> 24 | AN42: =CEILING((AN24+AN34)/(PARAMETRES!$E$98),1) -> 24 | AO42: =CEILING((AO24+AO34)/(PARAMETRES!$E$98),1) -> 25 | AP42: =CEILING((AP24+AP34)/(PARAMETRES!$E$98),1) -> 25 | AQ42: =CEILING((AQ24+AQ34)/(PARAMETRES!$E$98),1) -> 25 | AR42: =CEILING((AR24+AR34)/(PARAMETRES!$E$98),1) -> 25 | AS42: =CEILING((AS24+AS34)/(PARAMETRES!$E$98),1) -> 25 | AT42: =CEILING((AT24+AT34)/(PARAMETRES!$E$98),1) -> 26 | AU42: =CEILING((AU24+AU34)/(PARAMETRES!$E$98),1) -> 26 | AV42: =CEILING((AV24+AV34)/(PARAMETRES!$E$98),1) -> 26 | AW42: =CEILING((AW24+AW34)/(PARAMETRES!$E$98),1) -> 26 | AX42: =CEILING((AX24+AX34)/(PARAMETRES!$E$98),1) -> 26 | AY42: =CEILING((AY24+AY34)/(PARAMETRES!$E$98),1) -> 26 | AZ42: =CEILING((AZ24+AZ34)/(PARAMETRES!$E$98),1) -> 26 | BA42: =CEILING((BA24+BA34)/(PARAMETRES!$E$98),1) -> 26 | BB42: =CEILING((BB24+BB34)/(PARAMETRES!$E$98),1) -> 27 | BC42: =CEILING((BC24+BC34)/(PARAMETRES!$E$98),1) -> 27 | BD42: =CEILING((BD24+BD34)/(PARAMETRES!$E$98),1) -> 27 | BE42: =CEILING((BE24+BE34)/(PARAMETRES!$E$98),1) -> 27 | BF42: =CEILING((BF24+BF34)/(PARAMETRES!$E$98),1) -> 27 | BG42: =CEILING((BG24+BG34)/(PARAMETRES!$E$98),1) -> 27 | BH42: =CEILING((BH24+BH34)/(PARAMETRES!$E$98),1) -> 27 | BI42: =CEILING((BI24+BI34)/(PARAMETRES!$E$98),1) -> 27
C43: nb de cartes ADSL ATM | E43: =CEILING(E31/(PARAMETRES!$E$98),1) -> 0 | F43: =CEILING(F31/(PARAMETRES!$E$98),1) -> 0 | G43: =CEILING(G31/(PARAMETRES!$E$98),1) -> 0 | H43: =CEILING(H31/(PARAMETRES!$E$98),1) -> 0 | I43: =CEILING(I31/(PARAMETRES!$E$98),1) -> 0 | J43: =CEILING(J31/(PARAMETRES!$E$98),1) -> 0 | K43: =CEILING(K31/(PARAMETRES!$E$98),1) -> 0 | L43: =CEILING(L31/(PARAMETRES!$E$98),1) -> 0 | M43: =CEILING(M31/(PARAMETRES!$E$98),1) -> 0 | N43: =CEILING(N31/(PARAMETRES!$E$98),1) -> 0 | O43: =CEILING(O31/(PARAMETRES!$E$98),1) -> 0 | P43: =CEILING(P31/(PARAMETRES!$E$98),1) -> 1 | Q43: =CEILING(Q31/(PARAMETRES!$E$98),1) -> 1 | R43: =CEILING(R31/(PARAMETRES!$E$98),1) -> 1 | S43: =CEILING(S31/(PARAMETRES!$E$98),1) -> 1 | T43: =CEILING(T31/(PARAMETRES!$E$98),1) -> 1 | U43: =CEILING(U31/(PARAMETRES!$E$98),1) -> 1 | V43: =CEILING(V31/(PARAMETRES!$E$98),1) -> 1 | W43: =CEILING(W31/(PARAMETRES!$E$98),1) -> 1 | X43: =CEILING(X31/(PARAMETRES!$E$98),1) -> 1 | Y43: =CEILING(Y31/(PARAMETRES!$E$98),1) -> 1 | Z43: =CEILING(Z31/(PARAMETRES!$E$98),1) -> 1 | AA43: =CEILING(AA31/(PARAMETRES!$E$98),1) -> 1 | AB43: =CEILING(AB31/(PARAMETRES!$E$98),1) -> 1 | AC43: =CEILING(AC31/(PARAMETRES!$E$98),1) -> 1 | AD43: =CEILING(AD31/(PARAMETRES!$E$98),1) -> 1 | AE43: =CEILING(AE31/(PARAMETRES!$E$98),1) -> 1 | AF43: =CEILING(AF31/(PARAMETRES!$E$98),1) -> 1 | AG43: =CEILING(AG31/(PARAMETRES!$E$98),1) -> 1 | AH43: =CEILING(AH31/(PARAMETRES!$E$98),1) -> 1 | AI43: =CEILING(AI31/(PARAMETRES!$E$98),1) -> 1 | AJ43: =CEILING(AJ31/(PARAMETRES!$E$98),1) -> 1 | AK43: =CEILING(AK31/(PARAMETRES!$E$98),1) -> 1 | AL43: =CEILING(AL31/(PARAMETRES!$E$98),1) -> 1 | AM43: =CEILING(AM31/(PARAMETRES!$E$98),1) -> 1 | AN43: =CEILING(AN31/(PARAMETRES!$E$98),1) -> 1 | AO43: =CEILING(AO31/(PARAMETRES!$E$98),1) -> 1 | AP43: =CEILING(AP31/(PARAMETRES!$E$98),1) -> 1 | AQ43: =CEILING(AQ31/(PARAMETRES!$E$98),1) -> 1 | AR43: =CEILING(AR31/(PARAMETRES!$E$98),1) -> 0 | AS43: =CEILING(AS31/(PARAMETRES!$E$98),1) -> 0 | AT43: =CEILING(AT31/(PARAMETRES!$E$98),1) -> 0 | AU43: =CEILING(AU31/(PARAMETRES!$E$98),1) -> 0 | AV43: =CEILING(AV31/(PARAMETRES!$E$98),1) -> 0 | AW43: =CEILING(AW31/(PARAMETRES!$E$98),1) -> 0 | AX43: =CEILING(AX31/(PARAMETRES!$E$98),1) -> 0 | AY43: =CEILING(AY31/(PARAMETRES!$E$98),1) -> 0 | AZ43: =CEILING(AZ31/(PARAMETRES!$E$98),1) -> 0 | BA43: =CEILING(BA31/(PARAMETRES!$E$98),1) -> 0 | BB43: =CEILING(BB31/(PARAMETRES!$E$98),1) -> 0 | BC43: =CEILING(BC31/(PARAMETRES!$E$98),1) -> 0 | BD43: =CEILING(BD31/(PARAMETRES!$E$98),1) -> 0 | BE43: =CEILING(BE31/(PARAMETRES!$E$98),1) -> 0 | BF43: =CEILING(BF31/(PARAMETRES!$E$98),1) -> 0 | BG43: =CEILING(BG31/(PARAMETRES!$E$98),1) -> 0 | BH43: =CEILING(BH31/(PARAMETRES!$E$98),1) -> 0 | BI43: =CEILING(BI31/(PARAMETRES!$E$98),1) -> 0
C44: nb de cartes SDSL Ethernet | E44: =CEILING(E35*PARAMETRES!$E$28/PARAMETRES!$E$99,1) -> 0 | F44: =CEILING(F35*PARAMETRES!$E$28/PARAMETRES!$E$99,1) -> 0 | G44: =CEILING(G35*PARAMETRES!$E$28/PARAMETRES!$E$99,1) -> 0 | H44: =CEILING(H35*PARAMETRES!$E$28/PARAMETRES!$E$99,1) -> 0 | I44: =CEILING(I35*PARAMETRES!$E$28/PARAMETRES!$E$99,1) -> 0 | J44: =CEILING(J35*PARAMETRES!$E$28/PARAMETRES!$E$99,1) -> 0 | K44: =CEILING(K35*PARAMETRES!$E$28/PARAMETRES!$E$99,1) -> 0 | L44: =CEILING(L35*PARAMETRES!$E$28/PARAMETRES!$E$99,1) -> 0 | M44: =CEILING(M35*PARAMETRES!$E$28/PARAMETRES!$E$99,1) -> 0 | N44: =CEILING(N35*PARAMETRES!$E$28/PARAMETRES!$E$99,1) -> 0 | O44: =CEILING(O35*PARAMETRES!$E$28/PARAMETRES!$E$99,1) -> 0 | P44: =CEILING(P35*PARAMETRES!$E$28/PARAMETRES!$E$99,1) -> 0 | Q44: =CEILING(Q35*PARAMETRES!$E$28/PARAMETRES!$E$99,1) -> 0 | R44: =CEILING(R35*PARAMETRES!$E$28/PARAMETRES!$E$99,1) -> 0 | S44: =CEILING(S35*PARAMETRES!$E$28/PARAMETRES!$E$99,1) -> 0 | T44: =CEILING(T35*PARAMETRES!$E$28/PARAMETRES!$E$99,1) -> 0 | U44: =CEILING(U35*PARAMETRES!$E$28/PARAMETRES!$E$99,1) -> 0 | V44: =CEILING(V35*PARAMETRES!$E$28/PARAMETRES!$E$99,1) -> 0 | W44: =CEILING(W35*PARAMETRES!$E$28/PARAMETRES!$E$99,1) -> 0 | X44: =CEILING(X35*PARAMETRES!$E$28/PARAMETRES!$E$99,1) -> 0 | Y44: =CEILING(Y35*PARAMETRES!$E$28/PARAMETRES!$E$99,1) -> 0 | Z44: =CEILING(Z35*PARAMETRES!$E$28/PARAMETRES!$E$99,1) -> 0 | AA44: =CEILING(AA35*PARAMETRES!$E$28/PARAMETRES!$E$99,1) -> 0 | AB44: =CEILING(AB35*PARAMETRES!$E$28/PARAMETRES!$E$99,1) -> 0 | AC44: =CEILING(AC35*PARAMETRES!$E$28/PARAMETRES!$E$99,1) -> 0 | AD44: =CEILING(AD35*PARAMETRES!$E$28/PARAMETRES!$E$99,1) -> 0 | AE44: =CEILING(AE35*PARAMETRES!$E$28/PARAMETRES!$E$99,1) -> 0 | AF44: =CEILING(AF35*PARAMETRES!$E$28/PARAMETRES!$E$99,1) -> 0 | AG44: =CEILING(AG35*PARAMETRES!$E$28/PARAMETRES!$E$99,1) -> 1 | AH44: =CEILING(AH35*PARAMETRES!$E$28/PARAMETRES!$E$99,1) -> 1 | AI44: =CEILING(AI35*PARAMETRES!$E$28/PARAMETRES!$E$99,1) -> 1 | AJ44: =CEILING(AJ35*PARAMETRES!$E$28/PARAMETRES!$E$99,1) -> 1 | AK44: =CEILING(AK35*PARAMETRES!$E$28/PARAMETRES!$E$99,1) -> 1 | AL44: =CEILING(AL35*PARAMETRES!$E$28/PARAMETRES!$E$99,1) -> 1 | AM44: =CEILING(AM35*PARAMETRES!$E$28/PARAMETRES!$E$99,1) -> 1 | AN44: =CEILING(AN35*PARAMETRES!$E$28/PARAMETRES!$E$99,1) -> 1 | AO44: =CEILING(AO35*PARAMETRES!$E$28/PARAMETRES!$E$99,1) -> 1 | AP44: =CEILING(AP35*PARAMETRES!$E$28/PARAMETRES!$E$99,1) -> 2 | AQ44: =CEILING(AQ35*PARAMETRES!$E$28/PARAMETRES!$E$99,1) -> 2 | AR44: =CEILING(AR35*PARAMETRES!$E$28/PARAMETRES!$E$99,1) -> 2 | AS44: =CEILING(AS35*PARAMETRES!$E$28/PARAMETRES!$E$99,1) -> 2 | AT44: =CEILING(AT35*PARAMETRES!$E$28/PARAMETRES!$E$99,1) -> 2 | AU44: =CEILING(AU35*PARAMETRES!$E$28/PARAMETRES!$E$99,1) -> 2 | AV44: =CEILING(AV35*PARAMETRES!$E$28/PARAMETRES!$E$99,1) -> 2 | AW44: =CEILING(AW35*PARAMETRES!$E$28/PARAMETRES!$E$99,1) -> 2 | AX44: =CEILING(AX35*PARAMETRES!$E$28/PARAMETRES!$E$99,1) -> 2 | AY44: =CEILING(AY35*PARAMETRES!$E$28/PARAMETRES!$E$99,1) -> 2 | AZ44: =CEILING(AZ35*PARAMETRES!$E$28/PARAMETRES!$E$99,1) -> 2 | BA44: =CEILING(BA35*PARAMETRES!$E$28/PARAMETRES!$E$99,1) -> 2 | BB44: =CEILING(BB35*PARAMETRES!$E$28/PARAMETRES!$E$99,1) -> 2 | BC44: =CEILING(BC35*PARAMETRES!$E$28/PARAMETRES!$E$99,1) -> 2 | BD44: =CEILING(BD35*PARAMETRES!$E$28/PARAMETRES!$E$99,1) -> 2 | BE44: =CEILING(BE35*PARAMETRES!$E$28/PARAMETRES!$E$99,1) -> 2 | BF44: =CEILING(BF35*PARAMETRES!$E$28/PARAMETRES!$E$99,1) -> 2 | BG44: =CEILING(BG35*PARAMETRES!$E$28/PARAMETRES!$E$99,1) -> 2 | BH44: =CEILING(BH35*PARAMETRES!$E$28/PARAMETRES!$E$99,1) -> 2 | BI44: =CEILING(BI35*PARAMETRES!$E$28/PARAMETRES!$E$99,1) -> 2
C45: nb de cartes SDSL ATM | E45: =CEILING(E32*PARAMETRES!$E$28/PARAMETRES!$E$99,1) -> 0 | F45: =CEILING(F32*PARAMETRES!$E$28/PARAMETRES!$E$99,1) -> 0 | G45: =CEILING(G32*PARAMETRES!$E$28/PARAMETRES!$E$99,1) -> 0 | H45: =CEILING(H32*PARAMETRES!$E$28/PARAMETRES!$E$99,1) -> 0 | I45: =CEILING(I32*PARAMETRES!$E$28/PARAMETRES!$E$99,1) -> 0 | J45: =CEILING(J32*PARAMETRES!$E$28/PARAMETRES!$E$99,1) -> 0 | K45: =CEILING(K32*PARAMETRES!$E$28/PARAMETRES!$E$99,1) -> 0 | L45: =CEILING(L32*PARAMETRES!$E$28/PARAMETRES!$E$99,1) -> 0 | M45: =CEILING(M32*PARAMETRES!$E$28/PARAMETRES!$E$99,1) -> 0 | N45: =CEILING(N32*PARAMETRES!$E$28/PARAMETRES!$E$99,1) -> 0 | O45: =CEILING(O32*PARAMETRES!$E$28/PARAMETRES!$E$99,1) -> 0 | P45: =CEILING(P32*PARAMETRES!$E$28/PARAMETRES!$E$99,1) -> 1 | Q45: =CEILING(Q32*PARAMETRES!$E$28/PARAMETRES!$E$99,1) -> 1 | R45: =CEILING(R32*PARAMETRES!$E$28/PARAMETRES!$E$99,1) -> 1 | S45: =CEILING(S32*PARAMETRES!$E$28/PARAMETRES!$E$99,1) -> 1 | T45: =CEILING(T32*PARAMETRES!$E$28/PARAMETRES!$E$99,1) -> 1 | U45: =CEILING(U32*PARAMETRES!$E$28/PARAMETRES!$E$99,1) -> 1 | V45: =CEILING(V32*PARAMETRES!$E$28/PARAMETRES!$E$99,1) -> 1 | W45: =CEILING(W32*PARAMETRES!$E$28/PARAMETRES!$E$99,1) -> 1 | X45: =CEILING(X32*PARAMETRES!$E$28/PARAMETRES!$E$99,1) -> 1 | Y45: =CEILING(Y32*PARAMETRES!$E$28/PARAMETRES!$E$99,1) -> 1 | Z45: =CEILING(Z32*PARAMETRES!$E$28/PARAMETRES!$E$99,1) -> 1 | AA45: =CEILING(AA32*PARAMETRES!$E$28/PARAMETRES!$E$99,1) -> 1 | AB45: =CEILING(AB32*PARAMETRES!$E$28/PARAMETRES!$E$99,1) -> 1 | AC45: =CEILING(AC32*PARAMETRES!$E$28/PARAMETRES!$E$99,1) -> 1 | AD45: =CEILING(AD32*PARAMETRES!$E$28/PARAMETRES!$E$99,1) -> 1 | AE45: =CEILING(AE32*PARAMETRES!$E$28/PARAMETRES!$E$99,1) -> 2 | AF45: =CEILING(AF32*PARAMETRES!$E$28/PARAMETRES!$E$99,1) -> 2 | AG45: =CEILING(AG32*PARAMETRES!$E$28/PARAMETRES!$E$99,1) -> 1 | AH45: =CEILING(AH32*PARAMETRES!$E$28/PARAMETRES!$E$99,1) -> 1 | AI45: =CEILING(AI32*PARAMETRES!$E$28/PARAMETRES!$E$99,1) -> 1 | AJ45: =CEILING(AJ32*PARAMETRES!$E$28/PARAMETRES!$E$99,1) -> 1 | AK45: =CEILING(AK32*PARAMETRES!$E$28/PARAMETRES!$E$99,1) -> 1 | AL45: =CEILING(AL32*PARAMETRES!$E$28/PARAMETRES!$E$99,1) -> 1 | AM45: =CEILING(AM32*PARAMETRES!$E$28/PARAMETRES!$E$99,1) -> 1 | AN45: =CEILING(AN32*PARAMETRES!$E$28/PARAMETRES!$E$99,1) -> 1 | AO45: =CEILING(AO32*PARAMETRES!$E$28/PARAMETRES!$E$99,1) -> 1 | AP45: =CEILING(AP32*PARAMETRES!$E$28/PARAMETRES!$E$99,1) -> 1 | AQ45: =CEILING(AQ32*PARAMETRES!$E$28/PARAMETRES!$E$99,1) -> 0 | AR45: =CEILING(AR32*PARAMETRES!$E$28/PARAMETRES!$E$99,1) -> 0 | AS45: =CEILING(AS32*PARAMETRES!$E$28/PARAMETRES!$E$99,1) -> 0 | AT45: =CEILING(AT32*PARAMETRES!$E$28/PARAMETRES!$E$99,1) -> 0 | AU45: =CEILING(AU32*PARAMETRES!$E$28/PARAMETRES!$E$99,1) -> 0 | AV45: =CEILING(AV32*PARAMETRES!$E$28/PARAMETRES!$E$99,1) -> 0 | AW45: =CEILING(AW32*PARAMETRES!$E$28/PARAMETRES!$E$99,1) -> 0 | AX45: =CEILING(AX32*PARAMETRES!$E$28/PARAMETRES!$E$99,1) -> 0 | AY45: =CEILING(AY32*PARAMETRES!$E$28/PARAMETRES!$E$99,1) -> 0 | AZ45: =CEILING(AZ32*PARAMETRES!$E$28/PARAMETRES!$E$99,1) -> 0 | BA45: =CEILING(BA32*PARAMETRES!$E$28/PARAMETRES!$E$99,1) -> 0 | BB45: =CEILING(BB32*PARAMETRES!$E$28/PARAMETRES!$E$99,1) -> 0 | BC45: =CEILING(BC32*PARAMETRES!$E$28/PARAMETRES!$E$99,1) -> 0 | BD45: =CEILING(BD32*PARAMETRES!$E$28/PARAMETRES!$E$99,1) -> 0 | BE45: =CEILING(BE32*PARAMETRES!$E$28/PARAMETRES!$E$99,1) -> 0 | BF45: =CEILING(BF32*PARAMETRES!$E$28/PARAMETRES!$E$99,1) -> 0 | BG45: =CEILING(BG32*PARAMETRES!$E$28/PARAMETRES!$E$99,1) -> 0 | BH45: =CEILING(BH32*PARAMETRES!$E$28/PARAMETRES!$E$99,1) -> 0 | BI45: =CEILING(BI32*PARAMETRES!$E$28/PARAMETRES!$E$99,1) -> 0
B47: châssis DSLAM
C48: nb de châssis DSLAM Ethernet | E48: =OR($A$8<=5,$A$8=9)*CEILING((E42+E44)/(PARAMETRES!$E$95),1) -> 0 | F48: =OR($A$8<=5,$A$8=9)*CEILING((F42+F44)/(PARAMETRES!$E$95),1) -> 0 | G48: =OR($A$8<=5,$A$8=9)*CEILING((G42+G44)/(PARAMETRES!$E$95),1) -> 0 | H48: =OR($A$8<=5,$A$8=9)*CEILING((H42+H44)/(PARAMETRES!$E$95),1) -> 0 | I48: =OR($A$8<=5,$A$8=9)*CEILING((I42+I44)/(PARAMETRES!$E$95),1) -> 0 | J48: =OR($A$8<=5,$A$8=9)*CEILING((J42+J44)/(PARAMETRES!$E$95),1) -> 0 | K48: =OR($A$8<=5,$A$8=9)*CEILING((K42+K44)/(PARAMETRES!$E$95),1) -> 0 | L48: =OR($A$8<=5,$A$8=9)*CEILING((L42+L44)/(PARAMETRES!$E$95),1) -> 0 | M48: =OR($A$8<=5,$A$8=9)*CEILING((M42+M44)/(PARAMETRES!$E$95),1) -> 0 | N48: =OR($A$8<=5,$A$8=9)*CEILING((N42+N44)/(PARAMETRES!$E$95),1) -> 0 | O48: =OR($A$8<=5,$A$8=9)*CEILING((O42+O44)/(PARAMETRES!$E$95),1) -> 0 | P48: =OR($A$8<=5,$A$8=9)*CEILING((P42+P44)/(PARAMETRES!$E$95),1) -> 1 | Q48: =OR($A$8<=5,$A$8=9)*CEILING((Q42+Q44)/(PARAMETRES!$E$95),1) -> 1 | R48: =OR($A$8<=5,$A$8=9)*CEILING((R42+R44)/(PARAMETRES!$E$95),1) -> 1 | S48: =OR($A$8<=5,$A$8=9)*CEILING((S42+S44)/(PARAMETRES!$E$95),1) -> 1 | T48: =OR($A$8<=5,$A$8=9)*CEILING((T42+T44)/(PARAMETRES!$E$95),1) -> 1 | U48: =OR($A$8<=5,$A$8=9)*CEILING((U42+U44)/(PARAMETRES!$E$95),1) -> 1 | V48: =OR($A$8<=5,$A$8=9)*CEILING((V42+V44)/(PARAMETRES!$E$95),1) -> 1 | W48: =OR($A$8<=5,$A$8=9)*CEILING((W42+W44)/(PARAMETRES!$E$95),1) -> 1 | X48: =OR($A$8<=5,$A$8=9)*CEILING((X42+X44)/(PARAMETRES!$E$95),1) -> 1 | Y48: =OR($A$8<=5,$A$8=9)*CEILING((Y42+Y44)/(PARAMETRES!$E$95),1) -> 1 | Z48: =OR($A$8<=5,$A$8=9)*CEILING((Z42+Z44)/(PARAMETRES!$E$95),1) -> 1 | AA48: =OR($A$8<=5,$A$8=9)*CEILING((AA42+AA44)/(PARAMETRES!$E$95),1) -> 1 | AB48: =OR($A$8<=5,$A$8=9)*CEILING((AB42+AB44)/(PARAMETRES!$E$95),1) -> 1 | AC48: =OR($A$8<=5,$A$8=9)*CEILING((AC42+AC44)/(PARAMETRES!$E$95),1) -> 1 | AD48: =OR($A$8<=5,$A$8=9)*CEILING((AD42+AD44)/(PARAMETRES!$E$95),1) -> 2 | AE48: =OR($A$8<=5,$A$8=9)*CEILING((AE42+AE44)/(PARAMETRES!$E$95),1) -> 2 | AF48: =OR($A$8<=5,$A$8=9)*CEILING((AF42+AF44)/(PARAMETRES!$E$95),1) -> 2 | AG48: =OR($A$8<=5,$A$8=9)*CEILING((AG42+AG44)/(PARAMETRES!$E$95),1) -> 2 | AH48: =OR($A$8<=5,$A$8=9)*CEILING((AH42+AH44)/(PARAMETRES!$E$95),1) -> 2 | AI48: =OR($A$8<=5,$A$8=9)*CEILING((AI42+AI44)/(PARAMETRES!$E$95),1) -> 2 | AJ48: =OR($A$8<=5,$A$8=9)*CEILING((AJ42+AJ44)/(PARAMETRES!$E$95),1) -> 2 | AK48: =OR($A$8<=5,$A$8=9)*CEILING((AK42+AK44)/(PARAMETRES!$E$95),1) -> 2 | AL48: =OR($A$8<=5,$A$8=9)*CEILING((AL42+AL44)/(PARAMETRES!$E$95),1) -> 2 | AM48: =OR($A$8<=5,$A$8=9)*CEILING((AM42+AM44)/(PARAMETRES!$E$95),1) -> 2 | AN48: =OR($A$8<=5,$A$8=9)*CEILING((AN42+AN44)/(PARAMETRES!$E$95),1) -> 2 | AO48: =OR($A$8<=5,$A$8=9)*CEILING((AO42+AO44)/(PARAMETRES!$E$95),1) -> 2 | AP48: =OR($A$8<=5,$A$8=9)*CEILING((AP42+AP44)/(PARAMETRES!$E$95),1) -> 2 | AQ48: =OR($A$8<=5,$A$8=9)*CEILING((AQ42+AQ44)/(PARAMETRES!$E$95),1) -> 2 | AR48: =OR($A$8<=5,$A$8=9)*CEILING((AR42+AR44)/(PARAMETRES!$E$95),1) -> 2 | AS48: =OR($A$8<=5,$A$8=9)*CEILING((AS42+AS44)/(PARAMETRES!$E$95),1) -> 2 | AT48: =OR($A$8<=5,$A$8=9)*CEILING((AT42+AT44)/(PARAMETRES!$E$95),1) -> 2 | AU48: =OR($A$8<=5,$A$8=9)*CEILING((AU42+AU44)/(PARAMETRES!$E$95),1) -> 2 | AV48: =OR($A$8<=5,$A$8=9)*CEILING((AV42+AV44)/(PARAMETRES!$E$95),1) -> 2 | AW48: =OR($A$8<=5,$A$8=9)*CEILING((AW42+AW44)/(PARAMETRES!$E$95),1) -> 2 | AX48: =OR($A$8<=5,$A$8=9)*CEILING((AX42+AX44)/(PARAMETRES!$E$95),1) -> 2 | AY48: =OR($A$8<=5,$A$8=9)*CEILING((AY42+AY44)/(PARAMETRES!$E$95),1) -> 2 | AZ48: =OR($A$8<=5,$A$8=9)*CEILING((AZ42+AZ44)/(PARAMETRES!$E$95),1) -> 2 | BA48: =OR($A$8<=5,$A$8=9)*CEILING((BA42+BA44)/(PARAMETRES!$E$95),1) -> 2 | BB48: =OR($A$8<=5,$A$8=9)*CEILING((BB42+BB44)/(PARAMETRES!$E$95),1) -> 2 | BC48: =OR($A$8<=5,$A$8=9)*CEILING((BC42+BC44)/(PARAMETRES!$E$95),1) -> 2 | BD48: =OR($A$8<=5,$A$8=9)*CEILING((BD42+BD44)/(PARAMETRES!$E$95),1) -> 2 | BE48: =OR($A$8<=5,$A$8=9)*CEILING((BE42+BE44)/(PARAMETRES!$E$95),1) -> 2 | BF48: =OR($A$8<=5,$A$8=9)*CEILING((BF42+BF44)/(PARAMETRES!$E$95),1) -> 2 | BG48: =OR($A$8<=5,$A$8=9)*CEILING((BG42+BG44)/(PARAMETRES!$E$95),1) -> 2 | BH48: =OR($A$8<=5,$A$8=9)*CEILING((BH42+BH44)/(PARAMETRES!$E$95),1) -> 2 | BI48: =OR($A$8<=5,$A$8=9)*CEILING((BI42+BI44)/(PARAMETRES!$E$95),1) -> 2
C49: nb de châssis DSLAM ATM | E49: =OR($A$8<=5,$A$8=9)*CEILING((E43+E45)/(PARAMETRES!$E$95),1) -> 0 | F49: =OR($A$8<=5,$A$8=9)*CEILING((F43+F45)/(PARAMETRES!$E$95),1) -> 0 | G49: =OR($A$8<=5,$A$8=9)*CEILING((G43+G45)/(PARAMETRES!$E$95),1) -> 0 | H49: =OR($A$8<=5,$A$8=9)*CEILING((H43+H45)/(PARAMETRES!$E$95),1) -> 0 | I49: =OR($A$8<=5,$A$8=9)*CEILING((I43+I45)/(PARAMETRES!$E$95),1) -> 0 | J49: =OR($A$8<=5,$A$8=9)*CEILING((J43+J45)/(PARAMETRES!$E$95),1) -> 0 | K49: =OR($A$8<=5,$A$8=9)*CEILING((K43+K45)/(PARAMETRES!$E$95),1) -> 0 | L49: =OR($A$8<=5,$A$8=9)*CEILING((L43+L45)/(PARAMETRES!$E$95),1) -> 0 | M49: =OR($A$8<=5,$A$8=9)*CEILING((M43+M45)/(PARAMETRES!$E$95),1) -> 0 | N49: =OR($A$8<=5,$A$8=9)*CEILING((N43+N45)/(PARAMETRES!$E$95),1) -> 0 | O49: =OR($A$8<=5,$A$8=9)*CEILING((O43+O45)/(PARAMETRES!$E$95),1) -> 0 | P49: =OR($A$8<=5,$A$8=9)*CEILING((P43+P45)/(PARAMETRES!$E$95),1) -> 1 | Q49: =OR($A$8<=5,$A$8=9)*CEILING((Q43+Q45)/(PARAMETRES!$E$95),1) -> 1 | R49: =OR($A$8<=5,$A$8=9)*CEILING((R43+R45)/(PARAMETRES!$E$95),1) -> 1 | S49: =OR($A$8<=5,$A$8=9)*CEILING((S43+S45)/(PARAMETRES!$E$95),1) -> 1 | T49: =OR($A$8<=5,$A$8=9)*CEILING((T43+T45)/(PARAMETRES!$E$95),1) -> 1 | U49: =OR($A$8<=5,$A$8=9)*CEILING((U43+U45)/(PARAMETRES!$E$95),1) -> 1 | V49: =OR($A$8<=5,$A$8=9)*CEILING((V43+V45)/(PARAMETRES!$E$95),1) -> 1 | W49: =OR($A$8<=5,$A$8=9)*CEILING((W43+W45)/(PARAMETRES!$E$95),1) -> 1 | X49: =OR($A$8<=5,$A$8=9)*CEILING((X43+X45)/(PARAMETRES!$E$95),1) -> 1 | Y49: =OR($A$8<=5,$A$8=9)*CEILING((Y43+Y45)/(PARAMETRES!$E$95),1) -> 1 | Z49: =OR($A$8<=5,$A$8=9)*CEILING((Z43+Z45)/(PARAMETRES!$E$95),1) -> 1 | AA49: =OR($A$8<=5,$A$8=9)*CEILING((AA43+AA45)/(PARAMETRES!$E$95),1) -> 1 | AB49: =OR($A$8<=5,$A$8=9)*CEILING((AB43+AB45)/(PARAMETRES!$E$95),1) -> 1 | AC49: =OR($A$8<=5,$A$8=9)*CEILING((AC43+AC45)/(PARAMETRES!$E$95),1) -> 1 | AD49: =OR($A$8<=5,$A$8=9)*CEILING((AD43+AD45)/(PARAMETRES!$E$95),1) -> 1 | AE49: =OR($A$8<=5,$A$8=9)*CEILING((AE43+AE45)/(PARAMETRES!$E$95),1) -> 1 | AF49: =OR($A$8<=5,$A$8=9)*CEILING((AF43+AF45)/(PARAMETRES!$E$95),1) -> 1 | AG49: =OR($A$8<=5,$A$8=9)*CEILING((AG43+AG45)/(PARAMETRES!$E$95),1) -> 1 | AH49: =OR($A$8<=5,$A$8=9)*CEILING((AH43+AH45)/(PARAMETRES!$E$95),1) -> 1 | AI49: =OR($A$8<=5,$A$8=9)*CEILING((AI43+AI45)/(PARAMETRES!$E$95),1) -> 1 | AJ49: =OR($A$8<=5,$A$8=9)*CEILING((AJ43+AJ45)/(PARAMETRES!$E$95),1) -> 1 | AK49: =OR($A$8<=5,$A$8=9)*CEILING((AK43+AK45)/(PARAMETRES!$E$95),1) -> 1 | AL49: =OR($A$8<=5,$A$8=9)*CEILING((AL43+AL45)/(PARAMETRES!$E$95),1) -> 1 | AM49: =OR($A$8<=5,$A$8=9)*CEILING((AM43+AM45)/(PARAMETRES!$E$95),1) -> 1 | AN49: =OR($A$8<=5,$A$8=9)*CEILING((AN43+AN45)/(PARAMETRES!$E$95),1) -> 1 | AO49: =OR($A$8<=5,$A$8=9)*CEILING((AO43+AO45)/(PARAMETRES!$E$95),1) -> 1 | AP49: =OR($A$8<=5,$A$8=9)*CEILING((AP43+AP45)/(PARAMETRES!$E$95),1) -> 1 | AQ49: =OR($A$8<=5,$A$8=9)*CEILING((AQ43+AQ45)/(PARAMETRES!$E$95),1) -> 1 | AR49: =OR($A$8<=5,$A$8=9)*CEILING((AR43+AR45)/(PARAMETRES!$E$95),1) -> 0 | AS49: =OR($A$8<=5,$A$8=9)*CEILING((AS43+AS45)/(PARAMETRES!$E$95),1) -> 0 | AT49: =OR($A$8<=5,$A$8=9)*CEILING((AT43+AT45)/(PARAMETRES!$E$95),1) -> 0 | AU49: =OR($A$8<=5,$A$8=9)*CEILING((AU43+AU45)/(PARAMETRES!$E$95),1) -> 0 | AV49: =OR($A$8<=5,$A$8=9)*CEILING((AV43+AV45)/(PARAMETRES!$E$95),1) -> 0 | AW49: =OR($A$8<=5,$A$8=9)*CEILING((AW43+AW45)/(PARAMETRES!$E$95),1) -> 0 | AX49: =OR($A$8<=5,$A$8=9)*CEILING((AX43+AX45)/(PARAMETRES!$E$95),1) -> 0 | AY49: =OR($A$8<=5,$A$8=9)*CEILING((AY43+AY45)/(PARAMETRES!$E$95),1) -> 0 | AZ49: =OR($A$8<=5,$A$8=9)*CEILING((AZ43+AZ45)/(PARAMETRES!$E$95),1) -> 0 | BA49: =OR($A$8<=5,$A$8=9)*CEILING((BA43+BA45)/(PARAMETRES!$E$95),1) -> 0 | BB49: =OR($A$8<=5,$A$8=9)*CEILING((BB43+BB45)/(PARAMETRES!$E$95),1) -> 0 | BC49: =OR($A$8<=5,$A$8=9)*CEILING((BC43+BC45)/(PARAMETRES!$E$95),1) -> 0 | BD49: =OR($A$8<=5,$A$8=9)*CEILING((BD43+BD45)/(PARAMETRES!$E$95),1) -> 0 | BE49: =OR($A$8<=5,$A$8=9)*CEILING((BE43+BE45)/(PARAMETRES!$E$95),1) -> 0 | BF49: =OR($A$8<=5,$A$8=9)*CEILING((BF43+BF45)/(PARAMETRES!$E$95),1) -> 0 | BG49: =OR($A$8<=5,$A$8=9)*CEILING((BG43+BG45)/(PARAMETRES!$E$95),1) -> 0 | BH49: =OR($A$8<=5,$A$8=9)*CEILING((BH43+BH45)/(PARAMETRES!$E$95),1) -> 0 | BI49: =OR($A$8<=5,$A$8=9)*CEILING((BI43+BI45)/(PARAMETRES!$E$95),1) -> 0
C50: nb de châssis micro-DSLAM Ethernet | E50: =OR($A$8=6,$A$8=7,$A$8=8)*CEILING((E42+E44)/(PARAMETRES!$E$96),1) -> 0 | F50: =OR($A$8=6,$A$8=7,$A$8=8)*CEILING((F42+F44)/(PARAMETRES!$E$96),1) -> 0 | G50: =OR($A$8=6,$A$8=7,$A$8=8)*CEILING((G42+G44)/(PARAMETRES!$E$96),1) -> 0 | H50: =OR($A$8=6,$A$8=7,$A$8=8)*CEILING((H42+H44)/(PARAMETRES!$E$96),1) -> 0 | I50: =OR($A$8=6,$A$8=7,$A$8=8)*CEILING((I42+I44)/(PARAMETRES!$E$96),1) -> 0 | J50: =OR($A$8=6,$A$8=7,$A$8=8)*CEILING((J42+J44)/(PARAMETRES!$E$96),1) -> 0 | K50: =OR($A$8=6,$A$8=7,$A$8=8)*CEILING((K42+K44)/(PARAMETRES!$E$96),1) -> 0 | L50: =OR($A$8=6,$A$8=7,$A$8=8)*CEILING((L42+L44)/(PARAMETRES!$E$96),1) -> 0 | M50: =OR($A$8=6,$A$8=7,$A$8=8)*CEILING((M42+M44)/(PARAMETRES!$E$96),1) -> 0 | N50: =OR($A$8=6,$A$8=7,$A$8=8)*CEILING((N42+N44)/(PARAMETRES!$E$96),1) -> 0 | O50: =OR($A$8=6,$A$8=7,$A$8=8)*CEILING((O42+O44)/(PARAMETRES!$E$96),1) -> 0 | P50: =OR($A$8=6,$A$8=7,$A$8=8)*CEILING((P42+P44)/(PARAMETRES!$E$96),1) -> 0 | Q50: =OR($A$8=6,$A$8=7,$A$8=8)*CEILING((Q42+Q44)/(PARAMETRES!$E$96),1) -> 0 | R50: =OR($A$8=6,$A$8=7,$A$8=8)*CEILING((R42+R44)/(PARAMETRES!$E$96),1) -> 0 | S50: =OR($A$8=6,$A$8=7,$A$8=8)*CEILING((S42+S44)/(PARAMETRES!$E$96),1) -> 0 | T50: =OR($A$8=6,$A$8=7,$A$8=8)*CEILING((T42+T44)/(PARAMETRES!$E$96),1) -> 0 | U50: =OR($A$8=6,$A$8=7,$A$8=8)*CEILING((U42+U44)/(PARAMETRES!$E$96),1) -> 0 | V50: =OR($A$8=6,$A$8=7,$A$8=8)*CEILING((V42+V44)/(PARAMETRES!$E$96),1) -> 0 | W50: =OR($A$8=6,$A$8=7,$A$8=8)*CEILING((W42+W44)/(PARAMETRES!$E$96),1) -> 0 | X50: =OR($A$8=6,$A$8=7,$A$8=8)*CEILING((X42+X44)/(PARAMETRES!$E$96),1) -> 0 | Y50: =OR($A$8=6,$A$8=7,$A$8=8)*CEILING((Y42+Y44)/(PARAMETRES!$E$96),1) -> 0 | Z50: =OR($A$8=6,$A$8=7,$A$8=8)*CEILING((Z42+Z44)/(PARAMETRES!$E$96),1) -> 0 | AA50: =OR($A$8=6,$A$8=7,$A$8=8)*CEILING((AA42+AA44)/(PARAMETRES!$E$96),1) -> 0 | AB50: =OR($A$8=6,$A$8=7,$A$8=8)*CEILING((AB42+AB44)/(PARAMETRES!$E$96),1) -> 0 | AC50: =OR($A$8=6,$A$8=7,$A$8=8)*CEILING((AC42+AC44)/(PARAMETRES!$E$96),1) -> 0 | AD50: =OR($A$8=6,$A$8=7,$A$8=8)*CEILING((AD42+AD44)/(PARAMETRES!$E$96),1) -> 0 | AE50: =OR($A$8=6,$A$8=7,$A$8=8)*CEILING((AE42+AE44)/(PARAMETRES!$E$96),1) -> 0 | AF50: =OR($A$8=6,$A$8=7,$A$8=8)*CEILING((AF42+AF44)/(PARAMETRES!$E$96),1) -> 0 | AG50: =OR($A$8=6,$A$8=7,$A$8=8)*CEILING((AG42+AG44)/(PARAMETRES!$E$96),1) -> 0 | AH50: =OR($A$8=6,$A$8=7,$A$8=8)*CEILING((AH42+AH44)/(PARAMETRES!$E$96),1) -> 0 | AI50: =OR($A$8=6,$A$8=7,$A$8=8)*CEILING((AI42+AI44)/(PARAMETRES!$E$96),1) -> 0 | AJ50: =OR($A$8=6,$A$8=7,$A$8=8)*CEILING((AJ42+AJ44)/(PARAMETRES!$E$96),1) -> 0 | AK50: =OR($A$8=6,$A$8=7,$A$8=8)*CEILING((AK42+AK44)/(PARAMETRES!$E$96),1) -> 0 | AL50: =OR($A$8=6,$A$8=7,$A$8=8)*CEILING((AL42+AL44)/(PARAMETRES!$E$96),1) -> 0 | AM50: =OR($A$8=6,$A$8=7,$A$8=8)*CEILING((AM42+AM44)/(PARAMETRES!$E$96),1) -> 0 | AN50: =OR($A$8=6,$A$8=7,$A$8=8)*CEILING((AN42+AN44)/(PARAMETRES!$E$96),1) -> 0 | AO50: =OR($A$8=6,$A$8=7,$A$8=8)*CEILING((AO42+AO44)/(PARAMETRES!$E$96),1) -> 0 | AP50: =OR($A$8=6,$A$8=7,$A$8=8)*CEILING((AP42+AP44)/(PARAMETRES!$E$96),1) -> 0 | AQ50: =OR($A$8=6,$A$8=7,$A$8=8)*CEILING((AQ42+AQ44)/(PARAMETRES!$E$96),1) -> 0 | AR50: =OR($A$8=6,$A$8=7,$A$8=8)*CEILING((AR42+AR44)/(PARAMETRES!$E$96),1) -> 0 | AS50: =OR($A$8=6,$A$8=7,$A$8=8)*CEILING((AS42+AS44)/(PARAMETRES!$E$96),1) -> 0 | AT50: =OR($A$8=6,$A$8=7,$A$8=8)*CEILING((AT42+AT44)/(PARAMETRES!$E$96),1) -> 0 | AU50: =OR($A$8=6,$A$8=7,$A$8=8)*CEILING((AU42+AU44)/(PARAMETRES!$E$96),1) -> 0 | AV50: =OR($A$8=6,$A$8=7,$A$8=8)*CEILING((AV42+AV44)/(PARAMETRES!$E$96),1) -> 0 | AW50: =OR($A$8=6,$A$8=7,$A$8=8)*CEILING((AW42+AW44)/(PARAMETRES!$E$96),1) -> 0 | AX50: =OR($A$8=6,$A$8=7,$A$8=8)*CEILING((AX42+AX44)/(PARAMETRES!$E$96),1) -> 0 | AY50: =OR($A$8=6,$A$8=7,$A$8=8)*CEILING((AY42+AY44)/(PARAMETRES!$E$96),1) -> 0 | AZ50: =OR($A$8=6,$A$8=7,$A$8=8)*CEILING((AZ42+AZ44)/(PARAMETRES!$E$96),1) -> 0 | BA50: =OR($A$8=6,$A$8=7,$A$8=8)*CEILING((BA42+BA44)/(PARAMETRES!$E$96),1) -> 0 | BB50: =OR($A$8=6,$A$8=7,$A$8=8)*CEILING((BB42+BB44)/(PARAMETRES!$E$96),1) -> 0 | BC50: =OR($A$8=6,$A$8=7,$A$8=8)*CEILING((BC42+BC44)/(PARAMETRES!$E$96),1) -> 0 | BD50: =OR($A$8=6,$A$8=7,$A$8=8)*CEILING((BD42+BD44)/(PARAMETRES!$E$96),1) -> 0 | BE50: =OR($A$8=6,$A$8=7,$A$8=8)*CEILING((BE42+BE44)/(PARAMETRES!$E$96),1) -> 0 | BF50: =OR($A$8=6,$A$8=7,$A$8=8)*CEILING((BF42+BF44)/(PARAMETRES!$E$96),1) -> 0 | BG50: =OR($A$8=6,$A$8=7,$A$8=8)*CEILING((BG42+BG44)/(PARAMETRES!$E$96),1) -> 0 | BH50: =OR($A$8=6,$A$8=7,$A$8=8)*CEILING((BH42+BH44)/(PARAMETRES!$E$96),1) -> 0 | BI50: =OR($A$8=6,$A$8=7,$A$8=8)*CEILING((BI42+BI44)/(PARAMETRES!$E$96),1) -> 0
C51: nb de châssis micro-DSLAM ATM | E51: =OR($A$8=6,$A$8=7,$A$8=8)*CEILING((E43+E45)/(PARAMETRES!$E$96),1) -> 0 | F51: =OR($A$8=6,$A$8=7,$A$8=8)*CEILING((F43+F45)/(PARAMETRES!$E$96),1) -> 0 | G51: =OR($A$8=6,$A$8=7,$A$8=8)*CEILING((G43+G45)/(PARAMETRES!$E$96),1) -> 0 | H51: =OR($A$8=6,$A$8=7,$A$8=8)*CEILING((H43+H45)/(PARAMETRES!$E$96),1) -> 0 | I51: =OR($A$8=6,$A$8=7,$A$8=8)*CEILING((I43+I45)/(PARAMETRES!$E$96),1) -> 0 | J51: =OR($A$8=6,$A$8=7,$A$8=8)*CEILING((J43+J45)/(PARAMETRES!$E$96),1) -> 0 | K51: =OR($A$8=6,$A$8=7,$A$8=8)*CEILING((K43+K45)/(PARAMETRES!$E$96),1) -> 0 | L51: =OR($A$8=6,$A$8=7,$A$8=8)*CEILING((L43+L45)/(PARAMETRES!$E$96),1) -> 0 | M51: =OR($A$8=6,$A$8=7,$A$8=8)*CEILING((M43+M45)/(PARAMETRES!$E$96),1) -> 0 | N51: =OR($A$8=6,$A$8=7,$A$8=8)*CEILING((N43+N45)/(PARAMETRES!$E$96),1) -> 0 | O51: =OR($A$8=6,$A$8=7,$A$8=8)*CEILING((O43+O45)/(PARAMETRES!$E$96),1) -> 0 | P51: =OR($A$8=6,$A$8=7,$A$8=8)*CEILING((P43+P45)/(PARAMETRES!$E$96),1) -> 0 | Q51: =OR($A$8=6,$A$8=7,$A$8=8)*CEILING((Q43+Q45)/(PARAMETRES!$E$96),1) -> 0 | R51: =OR($A$8=6,$A$8=7,$A$8=8)*CEILING((R43+R45)/(PARAMETRES!$E$96),1) -> 0 | S51: =OR($A$8=6,$A$8=7,$A$8=8)*CEILING((S43+S45)/(PARAMETRES!$E$96),1) -> 0 | T51: =OR($A$8=6,$A$8=7,$A$8=8)*CEILING((T43+T45)/(PARAMETRES!$E$96),1) -> 0 | U51: =OR($A$8=6,$A$8=7,$A$8=8)*CEILING((U43+U45)/(PARAMETRES!$E$96),1) -> 0 | V51: =OR($A$8=6,$A$8=7,$A$8=8)*CEILING((V43+V45)/(PARAMETRES!$E$96),1) -> 0 | W51: =OR($A$8=6,$A$8=7,$A$8=8)*CEILING((W43+W45)/(PARAMETRES!$E$96),1) -> 0 | X51: =OR($A$8=6,$A$8=7,$A$8=8)*CEILING((X43+X45)/(PARAMETRES!$E$96),1) -> 0 | Y51: =OR($A$8=6,$A$8=7,$A$8=8)*CEILING((Y43+Y45)/(PARAMETRES!$E$96),1) -> 0 | Z51: =OR($A$8=6,$A$8=7,$A$8=8)*CEILING((Z43+Z45)/(PARAMETRES!$E$96),1) -> 0 | AA51: =OR($A$8=6,$A$8=7,$A$8=8)*CEILING((AA43+AA45)/(PARAMETRES!$E$96),1) -> 0 | AB51: =OR($A$8=6,$A$8=7,$A$8=8)*CEILING((AB43+AB45)/(PARAMETRES!$E$96),1) -> 0 | AC51: =OR($A$8=6,$A$8=7,$A$8=8)*CEILING((AC43+AC45)/(PARAMETRES!$E$96),1) -> 0 | AD51: =OR($A$8=6,$A$8=7,$A$8=8)*CEILING((AD43+AD45)/(PARAMETRES!$E$96),1) -> 0 | AE51: =OR($A$8=6,$A$8=7,$A$8=8)*CEILING((AE43+AE45)/(PARAMETRES!$E$96),1) -> 0 | AF51: =OR($A$8=6,$A$8=7,$A$8=8)*CEILING((AF43+AF45)/(PARAMETRES!$E$96),1) -> 0 | AG51: =OR($A$8=6,$A$8=7,$A$8=8)*CEILING((AG43+AG45)/(PARAMETRES!$E$96),1) -> 0 | AH51: =OR($A$8=6,$A$8=7,$A$8=8)*CEILING((AH43+AH45)/(PARAMETRES!$E$96),1) -> 0 | AI51: =OR($A$8=6,$A$8=7,$A$8=8)*CEILING((AI43+AI45)/(PARAMETRES!$E$96),1) -> 0 | AJ51: =OR($A$8=6,$A$8=7,$A$8=8)*CEILING((AJ43+AJ45)/(PARAMETRES!$E$96),1) -> 0 | AK51: =OR($A$8=6,$A$8=7,$A$8=8)*CEILING((AK43+AK45)/(PARAMETRES!$E$96),1) -> 0 | AL51: =OR($A$8=6,$A$8=7,$A$8=8)*CEILING((AL43+AL45)/(PARAMETRES!$E$96),1) -> 0 | AM51: =OR($A$8=6,$A$8=7,$A$8=8)*CEILING((AM43+AM45)/(PARAMETRES!$E$96),1) -> 0 | AN51: =OR($A$8=6,$A$8=7,$A$8=8)*CEILING((AN43+AN45)/(PARAMETRES!$E$96),1) -> 0 | AO51: =OR($A$8=6,$A$8=7,$A$8=8)*CEILING((AO43+AO45)/(PARAMETRES!$E$96),1) -> 0 | AP51: =OR($A$8=6,$A$8=7,$A$8=8)*CEILING((AP43+AP45)/(PARAMETRES!$E$96),1) -> 0 | AQ51: =OR($A$8=6,$A$8=7,$A$8=8)*CEILING((AQ43+AQ45)/(PARAMETRES!$E$96),1) -> 0 | AR51: =OR($A$8=6,$A$8=7,$A$8=8)*CEILING((AR43+AR45)/(PARAMETRES!$E$96),1) -> 0 | AS51: =OR($A$8=6,$A$8=7,$A$8=8)*CEILING((AS43+AS45)/(PARAMETRES!$E$96),1) -> 0 | AT51: =OR($A$8=6,$A$8=7,$A$8=8)*CEILING((AT43+AT45)/(PARAMETRES!$E$96),1) -> 0 | AU51: =OR($A$8=6,$A$8=7,$A$8=8)*CEILING((AU43+AU45)/(PARAMETRES!$E$96),1) -> 0 | AV51: =OR($A$8=6,$A$8=7,$A$8=8)*CEILING((AV43+AV45)/(PARAMETRES!$E$96),1) -> 0 | AW51: =OR($A$8=6,$A$8=7,$A$8=8)*CEILING((AW43+AW45)/(PARAMETRES!$E$96),1) -> 0 | AX51: =OR($A$8=6,$A$8=7,$A$8=8)*CEILING((AX43+AX45)/(PARAMETRES!$E$96),1) -> 0 | AY51: =OR($A$8=6,$A$8=7,$A$8=8)*CEILING((AY43+AY45)/(PARAMETRES!$E$96),1) -> 0 | AZ51: =OR($A$8=6,$A$8=7,$A$8=8)*CEILING((AZ43+AZ45)/(PARAMETRES!$E$96),1) -> 0 | BA51: =OR($A$8=6,$A$8=7,$A$8=8)*CEILING((BA43+BA45)/(PARAMETRES!$E$96),1) -> 0 | BB51: =OR($A$8=6,$A$8=7,$A$8=8)*CEILING((BB43+BB45)/(PARAMETRES!$E$96),1) -> 0 | BC51: =OR($A$8=6,$A$8=7,$A$8=8)*CEILING((BC43+BC45)/(PARAMETRES!$E$96),1) -> 0 | BD51: =OR($A$8=6,$A$8=7,$A$8=8)*CEILING((BD43+BD45)/(PARAMETRES!$E$96),1) -> 0 | BE51: =OR($A$8=6,$A$8=7,$A$8=8)*CEILING((BE43+BE45)/(PARAMETRES!$E$96),1) -> 0 | BF51: =OR($A$8=6,$A$8=7,$A$8=8)*CEILING((BF43+BF45)/(PARAMETRES!$E$96),1) -> 0 | BG51: =OR($A$8=6,$A$8=7,$A$8=8)*CEILING((BG43+BG45)/(PARAMETRES!$E$96),1) -> 0 | BH51: =OR($A$8=6,$A$8=7,$A$8=8)*CEILING((BH43+BH45)/(PARAMETRES!$E$96),1) -> 0 | BI51: =OR($A$8=6,$A$8=7,$A$8=8)*CEILING((BI43+BI45)/(PARAMETRES!$E$96),1) -> 0
B53: évolution taux de progrès technique
C54: taux de progrès technique | E54: =(1+PARAMETRES!$F$204)^(COLUMN()-COLUMN($E$54)) -> 1 | F54: =(1+PARAMETRES!$F$204)^(COLUMN()-COLUMN($E$54)) -> 1.012272234 | G54: =(1+PARAMETRES!$F$204)^(COLUMN()-COLUMN($E$54)) -> 1.024695077 | H54: =(1+PARAMETRES!$F$204)^(COLUMN()-COLUMN($E$54)) -> 1.037270375 | I54: =(1+PARAMETRES!$F$204)^(COLUMN()-COLUMN($E$54)) -> 1.05 | J54: =(1+PARAMETRES!$F$204)^(COLUMN()-COLUMN($E$54)) -> 1.062885846 | K54: =(1+PARAMETRES!$F$204)^(COLUMN()-COLUMN($E$54)) -> 1.07592983 | L54: =(1+PARAMETRES!$F$204)^(COLUMN()-COLUMN($E$54)) -> 1.089133894 | M54: =(1+PARAMETRES!$F$204)^(COLUMN()-COLUMN($E$54)) -> 1.1025 | N54: =(1+PARAMETRES!$F$204)^(COLUMN()-COLUMN($E$54)) -> 1.116030138 | O54: =(1+PARAMETRES!$F$204)^(COLUMN()-COLUMN($E$54)) -> 1.129726322 | P54: =(1+PARAMETRES!$F$204)^(COLUMN()-COLUMN($E$54)) -> 1.143590588 | Q54: =(1+PARAMETRES!$F$204)^(COLUMN()-COLUMN($E$54)) -> 1.157625 | R54: =(1+PARAMETRES!$F$204)^(COLUMN()-COLUMN($E$54)) -> 1.171831645 | S54: =(1+PARAMETRES!$F$204)^(COLUMN()-COLUMN($E$54)) -> 1.186212638 | T54: =(1+PARAMETRES!$F$204)^(COLUMN()-COLUMN($E$54)) -> 1.200770118 | U54: =(1+PARAMETRES!$F$204)^(COLUMN()-COLUMN($E$54)) -> 1.21550625 | V54: =(1+PARAMETRES!$F$204)^(COLUMN()-COLUMN($E$54)) -> 1.230423228 | W54: =(1+PARAMETRES!$F$204)^(COLUMN()-COLUMN($E$54)) -> 1.24552327 | X54: =(1+PARAMETRES!$F$204)^(COLUMN()-COLUMN($E$54)) -> 1.260808624 | Y54: =(1+PARAMETRES!$F$204)^(COLUMN()-COLUMN($E$54)) -> 1.276281563 | Z54: =(1+PARAMETRES!$F$204)^(COLUMN()-COLUMN($E$54)) -> 1.291944389 | AA54: =(1+PARAMETRES!$F$204)^(COLUMN()-COLUMN($E$54)) -> 1.307799433 | AB54: =(1+PARAMETRES!$F$204)^(COLUMN()-COLUMN($E$54)) -> 1.323849055 | AC54: =(1+PARAMETRES!$F$204)^(COLUMN()-COLUMN($E$54)) -> 1.340095641 | AD54: =(1+PARAMETRES!$F$204)^(COLUMN()-COLUMN($E$54)) -> 1.356541608 | AE54: =(1+PARAMETRES!$F$204)^(COLUMN()-COLUMN($E$54)) -> 1.373189405 | AF54: =(1+PARAMETRES!$F$204)^(COLUMN()-COLUMN($E$54)) -> 1.390041507 | AG54: =(1+PARAMETRES!$F$204)^(COLUMN()-COLUMN($E$54)) -> 1.407100423 | AH54: =(1+PARAMETRES!$F$204)^(COLUMN()-COLUMN($E$54)) -> 1.424368689 | AI54: =(1+PARAMETRES!$F$204)^(COLUMN()-COLUMN($E$54)) -> 1.441848875 | AJ54: =(1+PARAMETRES!$F$204)^(COLUMN()-COLUMN($E$54)) -> 1.459543583 | AK54: =(1+PARAMETRES!$F$204)^(COLUMN()-COLUMN($E$54)) -> 1.477455444 | AL54: =(1+PARAMETRES!$F$204)^(COLUMN()-COLUMN($E$54)) -> 1.495587123 | AM54: =(1+PARAMETRES!$F$204)^(COLUMN()-COLUMN($E$54)) -> 1.513941319 | AN54: =(1+PARAMETRES!$F$204)^(COLUMN()-COLUMN($E$54)) -> 1.532520762 | AO54: =(1+PARAMETRES!$F$204)^(COLUMN()-COLUMN($E$54)) -> 1.551328216 | AP54: =(1+PARAMETRES!$F$204)^(COLUMN()-COLUMN($E$54)) -> 1.57036648 | AQ54: =(1+PARAMETRES!$F$204)^(COLUMN()-COLUMN($E$54)) -> 1.589638385 | AR54: =(1+PARAMETRES!$F$204)^(COLUMN()-COLUMN($E$54)) -> 1.6091468 | AS54: =(1+PARAMETRES!$F$204)^(COLUMN()-COLUMN($E$54)) -> 1.628894627 | AT54: =(1+PARAMETRES!$F$204)^(COLUMN()-COLUMN($E$54)) -> 1.648884803 | AU54: =(1+PARAMETRES!$F$204)^(COLUMN()-COLUMN($E$54)) -> 1.669120304 | AV54: =(1+PARAMETRES!$F$204)^(COLUMN()-COLUMN($E$54)) -> 1.68960414 | AW54: =(1+PARAMETRES!$F$204)^(COLUMN()-COLUMN($E$54)) -> 1.710339358 | AX54: =(1+PARAMETRES!$F$204)^(COLUMN()-COLUMN($E$54)) -> 1.731329044 | AY54: =(1+PARAMETRES!$F$204)^(COLUMN()-COLUMN($E$54)) -> 1.75257632 | AZ54: =(1+PARAMETRES!$F$204)^(COLUMN()-COLUMN($E$54)) -> 1.774084347 | BA54: =(1+PARAMETRES!$F$204)^(COLUMN()-COLUMN($E$54)) -> 1.795856326 | BB54: =(1+PARAMETRES!$F$204)^(COLUMN()-COLUMN($E$54)) -> 1.817895496 | BC54: =(1+PARAMETRES!$F$204)^(COLUMN()-COLUMN($E$54)) -> 1.840205136 | BD54: =(1+PARAMETRES!$F$204)^(COLUMN()-COLUMN($E$54)) -> 1.862788564 | BE54: =(1+PARAMETRES!$F$204)^(COLUMN()-COLUMN($E$54)) -> 1.885649142 | BF54: =(1+PARAMETRES!$F$204)^(COLUMN()-COLUMN($E$54)) -> 1.908790271 | BG54: =(1+PARAMETRES!$F$204)^(COLUMN()-COLUMN($E$54)) -> 1.932215392 | BH54: =(1+PARAMETRES!$F$204)^(COLUMN()-COLUMN($E$54)) -> 1.955927993 | BI54: =(1+PARAMETRES!$F$204)^(COLUMN()-COLUMN($E$54)) -> 1.979931599
A56: dimensionnement de l'hébergement
B57: salle de cohabitation
C58: nb d'emplacements 600x600 | E58: =($A$8=1)*CEILING((E48+E49)/PARAMETRES!$E$91,1) -> 0 | F58: =($A$8=1)*CEILING((F48+F49)/PARAMETRES!$E$91,1) -> 0 | G58: =($A$8=1)*CEILING((G48+G49)/PARAMETRES!$E$91,1) -> 0 | H58: =($A$8=1)*CEILING((H48+H49)/PARAMETRES!$E$91,1) -> 0 | I58: =($A$8=1)*CEILING((I48+I49)/PARAMETRES!$E$91,1) -> 0 | J58: =($A$8=1)*CEILING((J48+J49)/PARAMETRES!$E$91,1) -> 0 | K58: =($A$8=1)*CEILING((K48+K49)/PARAMETRES!$E$91,1) -> 0 | L58: =($A$8=1)*CEILING((L48+L49)/PARAMETRES!$E$91,1) -> 0 | M58: =($A$8=1)*CEILING((M48+M49)/PARAMETRES!$E$91,1) -> 0 | N58: =($A$8=1)*CEILING((N48+N49)/PARAMETRES!$E$91,1) -> 0 | O58: =($A$8=1)*CEILING((O48+O49)/PARAMETRES!$E$91,1) -> 0 | P58: =($A$8=1)*CEILING((P48+P49)/PARAMETRES!$E$91,1) -> 0 | Q58: =($A$8=1)*CEILING((Q48+Q49)/PARAMETRES!$E$91,1) -> 0 | R58: =($A$8=1)*CEILING((R48+R49)/PARAMETRES!$E$91,1) -> 0 | S58: =($A$8=1)*CEILING((S48+S49)/PARAMETRES!$E$91,1) -> 0 | T58: =($A$8=1)*CEILING((T48+T49)/PARAMETRES!$E$91,1) -> 0 | U58: =($A$8=1)*CEILING((U48+U49)/PARAMETRES!$E$91,1) -> 0 | V58: =($A$8=1)*CEILING((V48+V49)/PARAMETRES!$E$91,1) -> 0 | W58: =($A$8=1)*CEILING((W48+W49)/PARAMETRES!$E$91,1) -> 0 | X58: =($A$8=1)*CEILING((X48+X49)/PARAMETRES!$E$91,1) -> 0 | Y58: =($A$8=1)*CEILING((Y48+Y49)/PARAMETRES!$E$91,1) -> 0 | Z58: =($A$8=1)*CEILING((Z48+Z49)/PARAMETRES!$E$91,1) -> 0 | AA58: =($A$8=1)*CEILING((AA48+AA49)/PARAMETRES!$E$91,1) -> 0 | AB58: =($A$8=1)*CEILING((AB48+AB49)/PARAMETRES!$E$91,1) -> 0 | AC58: =($A$8=1)*CEILING((AC48+AC49)/PARAMETRES!$E$91,1) -> 0 | AD58: =($A$8=1)*CEILING((AD48+AD49)/PARAMETRES!$E$91,1) -> 0 | AE58: =($A$8=1)*CEILING((AE48+AE49)/PARAMETRES!$E$91,1) -> 0 | AF58: =($A$8=1)*CEILING((AF48+AF49)/PARAMETRES!$E$91,1) -> 0 | AG58: =($A$8=1)*CEILING((AG48+AG49)/PARAMETRES!$E$91,1) -> 0 | AH58: =($A$8=1)*CEILING((AH48+AH49)/PARAMETRES!$E$91,1) -> 0 | AI58: =($A$8=1)*CEILING((AI48+AI49)/PARAMETRES!$E$91,1) -> 0 | AJ58: =($A$8=1)*CEILING((AJ48+AJ49)/PARAMETRES!$E$91,1) -> 0 | AK58: =($A$8=1)*CEILING((AK48+AK49)/PARAMETRES!$E$91,1) -> 0 | AL58: =($A$8=1)*CEILING((AL48+AL49)/PARAMETRES!$E$91,1) -> 0 | AM58: =($A$8=1)*CEILING((AM48+AM49)/PARAMETRES!$E$91,1) -> 0 | AN58: =($A$8=1)*CEILING((AN48+AN49)/PARAMETRES!$E$91,1) -> 0 | AO58: =($A$8=1)*CEILING((AO48+AO49)/PARAMETRES!$E$91,1) -> 0 | AP58: =($A$8=1)*CEILING((AP48+AP49)/PARAMETRES!$E$91,1) -> 0 | AQ58: =($A$8=1)*CEILING((AQ48+AQ49)/PARAMETRES!$E$91,1) -> 0 | AR58: =($A$8=1)*CEILING((AR48+AR49)/PARAMETRES!$E$91,1) -> 0 | AS58: =($A$8=1)*CEILING((AS48+AS49)/PARAMETRES!$E$91,1) -> 0 | AT58: =($A$8=1)*CEILING((AT48+AT49)/PARAMETRES!$E$91,1) -> 0 | AU58: =($A$8=1)*CEILING((AU48+AU49)/PARAMETRES!$E$91,1) -> 0 | AV58: =($A$8=1)*CEILING((AV48+AV49)/PARAMETRES!$E$91,1) -> 0 | AW58: =($A$8=1)*CEILING((AW48+AW49)/PARAMETRES!$E$91,1) -> 0 | AX58: =($A$8=1)*CEILING((AX48+AX49)/PARAMETRES!$E$91,1) -> 0 | AY58: =($A$8=1)*CEILING((AY48+AY49)/PARAMETRES!$E$91,1) -> 0 | AZ58: =($A$8=1)*CEILING((AZ48+AZ49)/PARAMETRES!$E$91,1) -> 0 | BA58: =($A$8=1)*CEILING((BA48+BA49)/PARAMETRES!$E$91,1) -> 0 | BB58: =($A$8=1)*CEILING((BB48+BB49)/PARAMETRES!$E$91,1) -> 0 | BC58: =($A$8=1)*CEILING((BC48+BC49)/PARAMETRES!$E$91,1) -> 0 | BD58: =($A$8=1)*CEILING((BD48+BD49)/PARAMETRES!$E$91,1) -> 0 | BE58: =($A$8=1)*CEILING((BE48+BE49)/PARAMETRES!$E$91,1) -> 0 | BF58: =($A$8=1)*CEILING((BF48+BF49)/PARAMETRES!$E$91,1) -> 0 | BG58: =($A$8=1)*CEILING((BG48+BG49)/PARAMETRES!$E$91,1) -> 0 | BH58: =($A$8=1)*CEILING((BH48+BH49)/PARAMETRES!$E$91,1) -> 0 | BI58: =($A$8=1)*CEILING((BI48+BI49)/PARAMETRES!$E$91,1) -> 0
B60: espace dédié
C61: nb d'emplacements 600x600 | E61: =($A$8=2)*CEILING((E48+E49)/PARAMETRES!$E$91,1) -> 0 | F61: =($A$8=2)*CEILING((F48+F49)/PARAMETRES!$E$91,1) -> 0 | G61: =($A$8=2)*CEILING((G48+G49)/PARAMETRES!$E$91,1) -> 0 | H61: =($A$8=2)*CEILING((H48+H49)/PARAMETRES!$E$91,1) -> 0 | I61: =($A$8=2)*CEILING((I48+I49)/PARAMETRES!$E$91,1) -> 0 | J61: =($A$8=2)*CEILING((J48+J49)/PARAMETRES!$E$91,1) -> 0 | K61: =($A$8=2)*CEILING((K48+K49)/PARAMETRES!$E$91,1) -> 0 | L61: =($A$8=2)*CEILING((L48+L49)/PARAMETRES!$E$91,1) -> 0 | M61: =($A$8=2)*CEILING((M48+M49)/PARAMETRES!$E$91,1) -> 0 | N61: =($A$8=2)*CEILING((N48+N49)/PARAMETRES!$E$91,1) -> 0 | O61: =($A$8=2)*CEILING((O48+O49)/PARAMETRES!$E$91,1) -> 0 | P61: =($A$8=2)*CEILING((P48+P49)/PARAMETRES!$E$91,1) -> 1 | Q61: =($A$8=2)*CEILING((Q48+Q49)/PARAMETRES!$E$91,1) -> 1 | R61: =($A$8=2)*CEILING((R48+R49)/PARAMETRES!$E$91,1) -> 1 | S61: =($A$8=2)*CEILING((S48+S49)/PARAMETRES!$E$91,1) -> 1 | T61: =($A$8=2)*CEILING((T48+T49)/PARAMETRES!$E$91,1) -> 1 | U61: =($A$8=2)*CEILING((U48+U49)/PARAMETRES!$E$91,1) -> 1 | V61: =($A$8=2)*CEILING((V48+V49)/PARAMETRES!$E$91,1) -> 1 | W61: =($A$8=2)*CEILING((W48+W49)/PARAMETRES!$E$91,1) -> 1 | X61: =($A$8=2)*CEILING((X48+X49)/PARAMETRES!$E$91,1) -> 1 | Y61: =($A$8=2)*CEILING((Y48+Y49)/PARAMETRES!$E$91,1) -> 1 | Z61: =($A$8=2)*CEILING((Z48+Z49)/PARAMETRES!$E$91,1) -> 1 | AA61: =($A$8=2)*CEILING((AA48+AA49)/PARAMETRES!$E$91,1) -> 1 | AB61: =($A$8=2)*CEILING((AB48+AB49)/PARAMETRES!$E$91,1) -> 1 | AC61: =($A$8=2)*CEILING((AC48+AC49)/PARAMETRES!$E$91,1) -> 1 | AD61: =($A$8=2)*CEILING((AD48+AD49)/PARAMETRES!$E$91,1) -> 1 | AE61: =($A$8=2)*CEILING((AE48+AE49)/PARAMETRES!$E$91,1) -> 1 | AF61: =($A$8=2)*CEILING((AF48+AF49)/PARAMETRES!$E$91,1) -> 1 | AG61: =($A$8=2)*CEILING((AG48+AG49)/PARAMETRES!$E$91,1) -> 1 | AH61: =($A$8=2)*CEILING((AH48+AH49)/PARAMETRES!$E$91,1) -> 1 | AI61: =($A$8=2)*CEILING((AI48+AI49)/PARAMETRES!$E$91,1) -> 1 | AJ61: =($A$8=2)*CEILING((AJ48+AJ49)/PARAMETRES!$E$91,1) -> 1 | AK61: =($A$8=2)*CEILING((AK48+AK49)/PARAMETRES!$E$91,1) -> 1 | AL61: =($A$8=2)*CEILING((AL48+AL49)/PARAMETRES!$E$91,1) -> 1 | AM61: =($A$8=2)*CEILING((AM48+AM49)/PARAMETRES!$E$91,1) -> 1 | AN61: =($A$8=2)*CEILING((AN48+AN49)/PARAMETRES!$E$91,1) -> 1 | AO61: =($A$8=2)*CEILING((AO48+AO49)/PARAMETRES!$E$91,1) -> 1 | AP61: =($A$8=2)*CEILING((AP48+AP49)/PARAMETRES!$E$91,1) -> 1 | AQ61: =($A$8=2)*CEILING((AQ48+AQ49)/PARAMETRES!$E$91,1) -> 1 | AR61: =($A$8=2)*CEILING((AR48+AR49)/PARAMETRES!$E$91,1) -> 1 | AS61: =($A$8=2)*CEILING((AS48+AS49)/PARAMETRES!$E$91,1) -> 1 | AT61: =($A$8=2)*CEILING((AT48+AT49)/PARAMETRES!$E$91,1) -> 1 | AU61: =($A$8=2)*CEILING((AU48+AU49)/PARAMETRES!$E$91,1) -> 1 | AV61: =($A$8=2)*CEILING((AV48+AV49)/PARAMETRES!$E$91,1) -> 1 | AW61: =($A$8=2)*CEILING((AW48+AW49)/PARAMETRES!$E$91,1) -> 1 | AX61: =($A$8=2)*CEILING((AX48+AX49)/PARAMETRES!$E$91,1) -> 1 | AY61: =($A$8=2)*CEILING((AY48+AY49)/PARAMETRES!$E$91,1) -> 1 | AZ61: =($A$8=2)*CEILING((AZ48+AZ49)/PARAMETRES!$E$91,1) -> 1 | BA61: =($A$8=2)*CEILING((BA48+BA49)/PARAMETRES!$E$91,1) -> 1 | BB61: =($A$8=2)*CEILING((BB48+BB49)/PARAMETRES!$E$91,1) -> 1 | BC61: =($A$8=2)*CEILING((BC48+BC49)/PARAMETRES!$E$91,1) -> 1 | BD61: =($A$8=2)*CEILING((BD48+BD49)/PARAMETRES!$E$91,1) -> 1 | BE61: =($A$8=2)*CEILING((BE48+BE49)/PARAMETRES!$E$91,1) -> 1 | BF61: =($A$8=2)*CEILING((BF48+BF49)/PARAMETRES!$E$91,1) -> 1 | BG61: =($A$8=2)*CEILING((BG48+BG49)/PARAMETRES!$E$91,1) -> 1 | BH61: =($A$8=2)*CEILING((BH48+BH49)/PARAMETRES!$E$91,1) -> 1 | BI61: =($A$8=2)*CEILING((BI48+BI49)/PARAMETRES!$E$91,1) -> 1
C62: dont équipés en 4kW | E62: =($A$8=2)*INT((E48+E49)/PARAMETRES!$E$91) -> 0 | F62: =($A$8=2)*INT((F48+F49)/PARAMETRES!$E$91) -> 0 | G62: =($A$8=2)*INT((G48+G49)/PARAMETRES!$E$91) -> 0 | H62: =($A$8=2)*INT((H48+H49)/PARAMETRES!$E$91) -> 0 | I62: =($A$8=2)*INT((I48+I49)/PARAMETRES!$E$91) -> 0 | J62: =($A$8=2)*INT((J48+J49)/PARAMETRES!$E$91) -> 0 | K62: =($A$8=2)*INT((K48+K49)/PARAMETRES!$E$91) -> 0 | L62: =($A$8=2)*INT((L48+L49)/PARAMETRES!$E$91) -> 0 | M62: =($A$8=2)*INT((M48+M49)/PARAMETRES!$E$91) -> 0 | N62: =($A$8=2)*INT((N48+N49)/PARAMETRES!$E$91) -> 0 | O62: =($A$8=2)*INT((O48+O49)/PARAMETRES!$E$91) -> 0 | P62: =($A$8=2)*INT((P48+P49)/PARAMETRES!$E$91) -> 0 | Q62: =($A$8=2)*INT((Q48+Q49)/PARAMETRES!$E$91) -> 0 | R62: =($A$8=2)*INT((R48+R49)/PARAMETRES!$E$91) -> 0 | S62: =($A$8=2)*INT((S48+S49)/PARAMETRES!$E$91) -> 0 | T62: =($A$8=2)*INT((T48+T49)/PARAMETRES!$E$91) -> 0 | U62: =($A$8=2)*INT((U48+U49)/PARAMETRES!$E$91) -> 0 | V62: =($A$8=2)*INT((V48+V49)/PARAMETRES!$E$91) -> 0 | W62: =($A$8=2)*INT((W48+W49)/PARAMETRES!$E$91) -> 0 | X62: =($A$8=2)*INT((X48+X49)/PARAMETRES!$E$91) -> 0 | Y62: =($A$8=2)*INT((Y48+Y49)/PARAMETRES!$E$91) -> 0 | Z62: =($A$8=2)*INT((Z48+Z49)/PARAMETRES!$E$91) -> 0 | AA62: =($A$8=2)*INT((AA48+AA49)/PARAMETRES!$E$91) -> 0 | AB62: =($A$8=2)*INT((AB48+AB49)/PARAMETRES!$E$91) -> 0 | AC62: =($A$8=2)*INT((AC48+AC49)/PARAMETRES!$E$91) -> 0 | AD62: =($A$8=2)*INT((AD48+AD49)/PARAMETRES!$E$91) -> 0 | AE62: =($A$8=2)*INT((AE48+AE49)/PARAMETRES!$E$91) -> 0 | AF62: =($A$8=2)*INT((AF48+AF49)/PARAMETRES!$E$91) -> 0 | AG62: =($A$8=2)*INT((AG48+AG49)/PARAMETRES!$E$91) -> 0 | AH62: =($A$8=2)*INT((AH48+AH49)/PARAMETRES!$E$91) -> 0 | AI62: =($A$8=2)*INT((AI48+AI49)/PARAMETRES!$E$91) -> 0 | AJ62: =($A$8=2)*INT((AJ48+AJ49)/PARAMETRES!$E$91) -> 0 | AK62: =($A$8=2)*INT((AK48+AK49)/PARAMETRES!$E$91) -> 0 | AL62: =($A$8=2)*INT((AL48+AL49)/PARAMETRES!$E$91) -> 0 | AM62: =($A$8=2)*INT((AM48+AM49)/PARAMETRES!$E$91) -> 0 | AN62: =($A$8=2)*INT((AN48+AN49)/PARAMETRES!$E$91) -> 0 | AO62: =($A$8=2)*INT((AO48+AO49)/PARAMETRES!$E$91) -> 0 | AP62: =($A$8=2)*INT((AP48+AP49)/PARAMETRES!$E$91) -> 0 | AQ62: =($A$8=2)*INT((AQ48+AQ49)/PARAMETRES!$E$91) -> 0 | AR62: =($A$8=2)*INT((AR48+AR49)/PARAMETRES!$E$91) -> 0 | AS62: =($A$8=2)*INT((AS48+AS49)/PARAMETRES!$E$91) -> 0 | AT62: =($A$8=2)*INT((AT48+AT49)/PARAMETRES!$E$91) -> 0 | AU62: =($A$8=2)*INT((AU48+AU49)/PARAMETRES!$E$91) -> 0 | AV62: =($A$8=2)*INT((AV48+AV49)/PARAMETRES!$E$91) -> 0 | AW62: =($A$8=2)*INT((AW48+AW49)/PARAMETRES!$E$91) -> 0 | AX62: =($A$8=2)*INT((AX48+AX49)/PARAMETRES!$E$91) -> 0 | AY62: =($A$8=2)*INT((AY48+AY49)/PARAMETRES!$E$91) -> 0 | AZ62: =($A$8=2)*INT((AZ48+AZ49)/PARAMETRES!$E$91) -> 0 | BA62: =($A$8=2)*INT((BA48+BA49)/PARAMETRES!$E$91) -> 0 | BB62: =($A$8=2)*INT((BB48+BB49)/PARAMETRES!$E$91) -> 0 | BC62: =($A$8=2)*INT((BC48+BC49)/PARAMETRES!$E$91) -> 0 | BD62: =($A$8=2)*INT((BD48+BD49)/PARAMETRES!$E$91) -> 0 | BE62: =($A$8=2)*INT((BE48+BE49)/PARAMETRES!$E$91) -> 0 | BF62: =($A$8=2)*INT((BF48+BF49)/PARAMETRES!$E$91) -> 0 | BG62: =($A$8=2)*INT((BG48+BG49)/PARAMETRES!$E$91) -> 0 | BH62: =($A$8=2)*INT((BH48+BH49)/PARAMETRES!$E$91) -> 0 | BI62: =($A$8=2)*INT((BI48+BI49)/PARAMETRES!$E$91) -> 0
C63: dont équipés en 2kW | E63: =E61-E62 -> 0 | F63: =F61-F62 -> 0 | G63: 0 | H63: 0 | I63: 0 | J63: 0 | K63: 0 | L63: 0 | M63: 0 | N63: 0 | O63: 0 | P63: 1 | Q63: 1 | R63: 1 | S63: 1 | T63: 1 | U63: 1 | V63: 1 | W63: 1 | X63: 1 | Y63: 1 | Z63: 1 | AA63: 1 | AB63: 1 | AC63: 1 | AD63: 1 | AE63: 1 | AF63: 1 | AG63: 1 | AH63: 1 | AI63: 1 | AJ63: 1 | AK63: 1 | AL63: 1 | AM63: 1 | AN63: 1 | AO63: 1 | AP63: 1 | AQ63: 1 | AR63: 1 | AS63: 1 | AT63: 1 | AU63: 1 | AV63: 1 | AW63: 1 | AX63: 1 | AY63: 1 | AZ63: 1 | BA63: 1 | BB63: 1 | BC63: 1 | BD63: 1 | BE63: 1 | BF63: 1 | BG63: 1 | BH63: 1 | BI63: 1
B65: espace restreint
C66: nb d'emplacements 300x600 | E66: =($A$8=3)*CEILING((E48+E49)/PARAMETRES!$E$92,1) -> 0 | F66: =($A$8=3)*CEILING((F48+F49)/PARAMETRES!$E$92,1) -> 0 | G66: =($A$8=3)*CEILING((G48+G49)/PARAMETRES!$E$92,1) -> 0 | H66: =($A$8=3)*CEILING((H48+H49)/PARAMETRES!$E$92,1) -> 0 | I66: =($A$8=3)*CEILING((I48+I49)/PARAMETRES!$E$92,1) -> 0 | J66: =($A$8=3)*CEILING((J48+J49)/PARAMETRES!$E$92,1) -> 0 | K66: =($A$8=3)*CEILING((K48+K49)/PARAMETRES!$E$92,1) -> 0 | L66: =($A$8=3)*CEILING((L48+L49)/PARAMETRES!$E$92,1) -> 0 | M66: =($A$8=3)*CEILING((M48+M49)/PARAMETRES!$E$92,1) -> 0 | N66: =($A$8=3)*CEILING((N48+N49)/PARAMETRES!$E$92,1) -> 0 | O66: =($A$8=3)*CEILING((O48+O49)/PARAMETRES!$E$92,1) -> 0 | P66: =($A$8=3)*CEILING((P48+P49)/PARAMETRES!$E$92,1) -> 0 | Q66: =($A$8=3)*CEILING((Q48+Q49)/PARAMETRES!$E$92,1) -> 0 | R66: =($A$8=3)*CEILING((R48+R49)/PARAMETRES!$E$92,1) -> 0 | S66: =($A$8=3)*CEILING((S48+S49)/PARAMETRES!$E$92,1) -> 0 | T66: =($A$8=3)*CEILING((T48+T49)/PARAMETRES!$E$92,1) -> 0 | U66: =($A$8=3)*CEILING((U48+U49)/PARAMETRES!$E$92,1) -> 0 | V66: =($A$8=3)*CEILING((V48+V49)/PARAMETRES!$E$92,1) -> 0 | W66: =($A$8=3)*CEILING((W48+W49)/PARAMETRES!$E$92,1) -> 0 | X66: =($A$8=3)*CEILING((X48+X49)/PARAMETRES!$E$92,1) -> 0 | Y66: =($A$8=3)*CEILING((Y48+Y49)/PARAMETRES!$E$92,1) -> 0 | Z66: =($A$8=3)*CEILING((Z48+Z49)/PARAMETRES!$E$92,1) -> 0 | AA66: =($A$8=3)*CEILING((AA48+AA49)/PARAMETRES!$E$92,1) -> 0 | AB66: =($A$8=3)*CEILING((AB48+AB49)/PARAMETRES!$E$92,1) -> 0 | AC66: =($A$8=3)*CEILING((AC48+AC49)/PARAMETRES!$E$92,1) -> 0 | AD66: =($A$8=3)*CEILING((AD48+AD49)/PARAMETRES!$E$92,1) -> 0 | AE66: =($A$8=3)*CEILING((AE48+AE49)/PARAMETRES!$E$92,1) -> 0 | AF66: =($A$8=3)*CEILING((AF48+AF49)/PARAMETRES!$E$92,1) -> 0 | AG66: =($A$8=3)*CEILING((AG48+AG49)/PARAMETRES!$E$92,1) -> 0 | AH66: =($A$8=3)*CEILING((AH48+AH49)/PARAMETRES!$E$92,1) -> 0 | AI66: =($A$8=3)*CEILING((AI48+AI49)/PARAMETRES!$E$92,1) -> 0 | AJ66: =($A$8=3)*CEILING((AJ48+AJ49)/PARAMETRES!$E$92,1) -> 0 | AK66: =($A$8=3)*CEILING((AK48+AK49)/PARAMETRES!$E$92,1) -> 0 | AL66: =($A$8=3)*CEILING((AL48+AL49)/PARAMETRES!$E$92,1) -> 0 | AM66: =($A$8=3)*CEILING((AM48+AM49)/PARAMETRES!$E$92,1) -> 0 | AN66: =($A$8=3)*CEILING((AN48+AN49)/PARAMETRES!$E$92,1) -> 0 | AO66: =($A$8=3)*CEILING((AO48+AO49)/PARAMETRES!$E$92,1) -> 0 | AP66: =($A$8=3)*CEILING((AP48+AP49)/PARAMETRES!$E$92,1) -> 0 | AQ66: =($A$8=3)*CEILING((AQ48+AQ49)/PARAMETRES!$E$92,1) -> 0 | AR66: =($A$8=3)*CEILING((AR48+AR49)/PARAMETRES!$E$92,1) -> 0 | AS66: =($A$8=3)*CEILING((AS48+AS49)/PARAMETRES!$E$92,1) -> 0 | AT66: =($A$8=3)*CEILING((AT48+AT49)/PARAMETRES!$E$92,1) -> 0 | AU66: =($A$8=3)*CEILING((AU48+AU49)/PARAMETRES!$E$92,1) -> 0 | AV66: =($A$8=3)*CEILING((AV48+AV49)/PARAMETRES!$E$92,1) -> 0 | AW66: =($A$8=3)*CEILING((AW48+AW49)/PARAMETRES!$E$92,1) -> 0 | AX66: =($A$8=3)*CEILING((AX48+AX49)/PARAMETRES!$E$92,1) -> 0 | AY66: =($A$8=3)*CEILING((AY48+AY49)/PARAMETRES!$E$92,1) -> 0 | AZ66: =($A$8=3)*CEILING((AZ48+AZ49)/PARAMETRES!$E$92,1) -> 0 | BA66: =($A$8=3)*CEILING((BA48+BA49)/PARAMETRES!$E$92,1) -> 0 | BB66: =($A$8=3)*CEILING((BB48+BB49)/PARAMETRES!$E$92,1) -> 0 | BC66: =($A$8=3)*CEILING((BC48+BC49)/PARAMETRES!$E$92,1) -> 0 | BD66: =($A$8=3)*CEILING((BD48+BD49)/PARAMETRES!$E$92,1) -> 0 | BE66: =($A$8=3)*CEILING((BE48+BE49)/PARAMETRES!$E$92,1) -> 0 | BF66: =($A$8=3)*CEILING((BF48+BF49)/PARAMETRES!$E$92,1) -> 0 | BG66: =($A$8=3)*CEILING((BG48+BG49)/PARAMETRES!$E$92,1) -> 0 | BH66: =($A$8=3)*CEILING((BH48+BH49)/PARAMETRES!$E$92,1) -> 0 | BI66: =($A$8=3)*CEILING((BI48+BI49)/PARAMETRES!$E$92,1) -> 0
B68: espace Très Petit Site
C69: nb d'emplacements 300x600 | E69: =($A$8=4)*CEILING((E48+E49)/PARAMETRES!$E$92,1) -> 0 | F69: =($A$8=4)*CEILING((F48+F49)/PARAMETRES!$E$92,1) -> 0 | G69: =($A$8=4)*CEILING((G48+G49)/PARAMETRES!$E$92,1) -> 0 | H69: =($A$8=4)*CEILING((H48+H49)/PARAMETRES!$E$92,1) -> 0 | I69: =($A$8=4)*CEILING((I48+I49)/PARAMETRES!$E$92,1) -> 0 | J69: =($A$8=4)*CEILING((J48+J49)/PARAMETRES!$E$92,1) -> 0 | K69: =($A$8=4)*CEILING((K48+K49)/PARAMETRES!$E$92,1) -> 0 | L69: =($A$8=4)*CEILING((L48+L49)/PARAMETRES!$E$92,1) -> 0 | M69: =($A$8=4)*CEILING((M48+M49)/PARAMETRES!$E$92,1) -> 0 | N69: =($A$8=4)*CEILING((N48+N49)/PARAMETRES!$E$92,1) -> 0 | O69: =($A$8=4)*CEILING((O48+O49)/PARAMETRES!$E$92,1) -> 0 | P69: =($A$8=4)*CEILING((P48+P49)/PARAMETRES!$E$92,1) -> 0 | Q69: =($A$8=4)*CEILING((Q48+Q49)/PARAMETRES!$E$92,1) -> 0 | R69: =($A$8=4)*CEILING((R48+R49)/PARAMETRES!$E$92,1) -> 0 | S69: =($A$8=4)*CEILING((S48+S49)/PARAMETRES!$E$92,1) -> 0 | T69: =($A$8=4)*CEILING((T48+T49)/PARAMETRES!$E$92,1) -> 0 | U69: =($A$8=4)*CEILING((U48+U49)/PARAMETRES!$E$92,1) -> 0 | V69: =($A$8=4)*CEILING((V48+V49)/PARAMETRES!$E$92,1) -> 0 | W69: =($A$8=4)*CEILING((W48+W49)/PARAMETRES!$E$92,1) -> 0 | X69: =($A$8=4)*CEILING((X48+X49)/PARAMETRES!$E$92,1) -> 0 | Y69: =($A$8=4)*CEILING((Y48+Y49)/PARAMETRES!$E$92,1) -> 0 | Z69: =($A$8=4)*CEILING((Z48+Z49)/PARAMETRES!$E$92,1) -> 0 | AA69: =($A$8=4)*CEILING((AA48+AA49)/PARAMETRES!$E$92,1) -> 0 | AB69: =($A$8=4)*CEILING((AB48+AB49)/PARAMETRES!$E$92,1) -> 0 | AC69: =($A$8=4)*CEILING((AC48+AC49)/PARAMETRES!$E$92,1) -> 0 | AD69: =($A$8=4)*CEILING((AD48+AD49)/PARAMETRES!$E$92,1) -> 0 | AE69: =($A$8=4)*CEILING((AE48+AE49)/PARAMETRES!$E$92,1) -> 0 | AF69: =($A$8=4)*CEILING((AF48+AF49)/PARAMETRES!$E$92,1) -> 0 | AG69: =($A$8=4)*CEILING((AG48+AG49)/PARAMETRES!$E$92,1) -> 0 | AH69: =($A$8=4)*CEILING((AH48+AH49)/PARAMETRES!$E$92,1) -> 0 | AI69: =($A$8=4)*CEILING((AI48+AI49)/PARAMETRES!$E$92,1) -> 0 | AJ69: =($A$8=4)*CEILING((AJ48+AJ49)/PARAMETRES!$E$92,1) -> 0 | AK69: =($A$8=4)*CEILING((AK48+AK49)/PARAMETRES!$E$92,1) -> 0 | AL69: =($A$8=4)*CEILING((AL48+AL49)/PARAMETRES!$E$92,1) -> 0 | AM69: =($A$8=4)*CEILING((AM48+AM49)/PARAMETRES!$E$92,1) -> 0 | AN69: =($A$8=4)*CEILING((AN48+AN49)/PARAMETRES!$E$92,1) -> 0 | AO69: =($A$8=4)*CEILING((AO48+AO49)/PARAMETRES!$E$92,1) -> 0 | AP69: =($A$8=4)*CEILING((AP48+AP49)/PARAMETRES!$E$92,1) -> 0 | AQ69: =($A$8=4)*CEILING((AQ48+AQ49)/PARAMETRES!$E$92,1) -> 0 | AR69: =($A$8=4)*CEILING((AR48+AR49)/PARAMETRES!$E$92,1) -> 0 | AS69: =($A$8=4)*CEILING((AS48+AS49)/PARAMETRES!$E$92,1) -> 0 | AT69: =($A$8=4)*CEILING((AT48+AT49)/PARAMETRES!$E$92,1) -> 0 | AU69: =($A$8=4)*CEILING((AU48+AU49)/PARAMETRES!$E$92,1) -> 0 | AV69: =($A$8=4)*CEILING((AV48+AV49)/PARAMETRES!$E$92,1) -> 0 | AW69: =($A$8=4)*CEILING((AW48+AW49)/PARAMETRES!$E$92,1) -> 0 | AX69: =($A$8=4)*CEILING((AX48+AX49)/PARAMETRES!$E$92,1) -> 0 | AY69: =($A$8=4)*CEILING((AY48+AY49)/PARAMETRES!$E$92,1) -> 0 | AZ69: =($A$8=4)*CEILING((AZ48+AZ49)/PARAMETRES!$E$92,1) -> 0 | BA69: =($A$8=4)*CEILING((BA48+BA49)/PARAMETRES!$E$92,1) -> 0 | BB69: =($A$8=4)*CEILING((BB48+BB49)/PARAMETRES!$E$92,1) -> 0 | BC69: =($A$8=4)*CEILING((BC48+BC49)/PARAMETRES!$E$92,1) -> 0 | BD69: =($A$8=4)*CEILING((BD48+BD49)/PARAMETRES!$E$92,1) -> 0 | BE69: =($A$8=4)*CEILING((BE48+BE49)/PARAMETRES!$E$92,1) -> 0 | BF69: =($A$8=4)*CEILING((BF48+BF49)/PARAMETRES!$E$92,1) -> 0 | BG69: =($A$8=4)*CEILING((BG48+BG49)/PARAMETRES!$E$92,1) -> 0 | BH69: =($A$8=4)*CEILING((BH48+BH49)/PARAMETRES!$E$92,1) -> 0 | BI69: =($A$8=4)*CEILING((BI48+BI49)/PARAMETRES!$E$92,1) -> 0
C70: dont équipés en 2kW | E70: =($A$8=4)*INT((E48+E49)/PARAMETRES!$E$92) -> 0 | F70: =($A$8=4)*INT((F48+F49)/PARAMETRES!$E$92) -> 0 | G70: =($A$8=4)*INT((G48+G49)/PARAMETRES!$E$92) -> 0 | H70: =($A$8=4)*INT((H48+H49)/PARAMETRES!$E$92) -> 0 | I70: =($A$8=4)*INT((I48+I49)/PARAMETRES!$E$92) -> 0 | J70: =($A$8=4)*INT((J48+J49)/PARAMETRES!$E$92) -> 0 | K70: =($A$8=4)*INT((K48+K49)/PARAMETRES!$E$92) -> 0 | L70: =($A$8=4)*INT((L48+L49)/PARAMETRES!$E$92) -> 0 | M70: =($A$8=4)*INT((M48+M49)/PARAMETRES!$E$92) -> 0 | N70: =($A$8=4)*INT((N48+N49)/PARAMETRES!$E$92) -> 0 | O70: =($A$8=4)*INT((O48+O49)/PARAMETRES!$E$92) -> 0 | P70: =($A$8=4)*INT((P48+P49)/PARAMETRES!$E$92) -> 0 | Q70: =($A$8=4)*INT((Q48+Q49)/PARAMETRES!$E$92) -> 0 | R70: =($A$8=4)*INT((R48+R49)/PARAMETRES!$E$92) -> 0 | S70: =($A$8=4)*INT((S48+S49)/PARAMETRES!$E$92) -> 0 | T70: =($A$8=4)*INT((T48+T49)/PARAMETRES!$E$92) -> 0 | U70: =($A$8=4)*INT((U48+U49)/PARAMETRES!$E$92) -> 0 | V70: =($A$8=4)*INT((V48+V49)/PARAMETRES!$E$92) -> 0 | W70: =($A$8=4)*INT((W48+W49)/PARAMETRES!$E$92) -> 0 | X70: =($A$8=4)*INT((X48+X49)/PARAMETRES!$E$92) -> 0 | Y70: =($A$8=4)*INT((Y48+Y49)/PARAMETRES!$E$92) -> 0 | Z70: =($A$8=4)*INT((Z48+Z49)/PARAMETRES!$E$92) -> 0 | AA70: =($A$8=4)*INT((AA48+AA49)/PARAMETRES!$E$92) -> 0 | AB70: =($A$8=4)*INT((AB48+AB49)/PARAMETRES!$E$92) -> 0 | AC70: =($A$8=4)*INT((AC48+AC49)/PARAMETRES!$E$92) -> 0 | AD70: =($A$8=4)*INT((AD48+AD49)/PARAMETRES!$E$92) -> 0 | AE70: =($A$8=4)*INT((AE48+AE49)/PARAMETRES!$E$92) -> 0 | AF70: =($A$8=4)*INT((AF48+AF49)/PARAMETRES!$E$92) -> 0 | AG70: =($A$8=4)*INT((AG48+AG49)/PARAMETRES!$E$92) -> 0 | AH70: =($A$8=4)*INT((AH48+AH49)/PARAMETRES!$E$92) -> 0 | AI70: =($A$8=4)*INT((AI48+AI49)/PARAMETRES!$E$92) -> 0 | AJ70: =($A$8=4)*INT((AJ48+AJ49)/PARAMETRES!$E$92) -> 0 | AK70: =($A$8=4)*INT((AK48+AK49)/PARAMETRES!$E$92) -> 0 | AL70: =($A$8=4)*INT((AL48+AL49)/PARAMETRES!$E$92) -> 0 | AM70: =($A$8=4)*INT((AM48+AM49)/PARAMETRES!$E$92) -> 0 | AN70: =($A$8=4)*INT((AN48+AN49)/PARAMETRES!$E$92) -> 0 | AO70: =($A$8=4)*INT((AO48+AO49)/PARAMETRES!$E$92) -> 0 | AP70: =($A$8=4)*INT((AP48+AP49)/PARAMETRES!$E$92) -> 0 | AQ70: =($A$8=4)*INT((AQ48+AQ49)/PARAMETRES!$E$92) -> 0 | AR70: =($A$8=4)*INT((AR48+AR49)/PARAMETRES!$E$92) -> 0 | AS70: =($A$8=4)*INT((AS48+AS49)/PARAMETRES!$E$92) -> 0 | AT70: =($A$8=4)*INT((AT48+AT49)/PARAMETRES!$E$92) -> 0 | AU70: =($A$8=4)*INT((AU48+AU49)/PARAMETRES!$E$92) -> 0 | AV70: =($A$8=4)*INT((AV48+AV49)/PARAMETRES!$E$92) -> 0 | AW70: =($A$8=4)*INT((AW48+AW49)/PARAMETRES!$E$92) -> 0 | AX70: =($A$8=4)*INT((AX48+AX49)/PARAMETRES!$E$92) -> 0 | AY70: =($A$8=4)*INT((AY48+AY49)/PARAMETRES!$E$92) -> 0 | AZ70: =($A$8=4)*INT((AZ48+AZ49)/PARAMETRES!$E$92) -> 0 | BA70: =($A$8=4)*INT((BA48+BA49)/PARAMETRES!$E$92) -> 0 | BB70: =($A$8=4)*INT((BB48+BB49)/PARAMETRES!$E$92) -> 0 | BC70: =($A$8=4)*INT((BC48+BC49)/PARAMETRES!$E$92) -> 0 | BD70: =($A$8=4)*INT((BD48+BD49)/PARAMETRES!$E$92) -> 0 | BE70: =($A$8=4)*INT((BE48+BE49)/PARAMETRES!$E$92) -> 0 | BF70: =($A$8=4)*INT((BF48+BF49)/PARAMETRES!$E$92) -> 0 | BG70: =($A$8=4)*INT((BG48+BG49)/PARAMETRES!$E$92) -> 0 | BH70: =($A$8=4)*INT((BH48+BH49)/PARAMETRES!$E$92) -> 0 | BI70: =($A$8=4)*INT((BI48+BI49)/PARAMETRES!$E$92) -> 0
C71: dont équipés en 1kW | E71: =E69-E70 -> 0 | F71: =F69-F70 -> 0 | G71: 0 | H71: 0 | I71: 0 | J71: 0 | K71: 0 | L71: 0 | M71: 0 | N71: 0 | O71: 0 | P71: 0 | Q71: 0 | R71: 0 | S71: 0 | T71: 0 | U71: 0 | V71: 0 | W71: 0 | X71: 0 | Y71: 0 | Z71: 0 | AA71: 0 | AB71: 0 | AC71: 0 | AD71: 0 | AE71: 0 | AF71: 0 | AG71: 0 | AH71: 0 | AI71: 0 | AJ71: 0 | AK71: 0 | AL71: 0 | AM71: 0 | AN71: 0 | AO71: 0 | AP71: 0 | AQ71: 0 | AR71: 0 | AS71: 0 | AT71: 0 | AU71: 0 | AV71: 0 | AW71: 0 | AX71: 0 | AY71: 0 | AZ71: 0 | BA71: 0 | BB71: 0 | BC71: 0 | BD71: 0 | BE71: 0 | BF71: 0 | BG71: 0 | BH71: 0 | BI71: 0
B73: espace Hyper Petit Site
C74: nb d'emplacements 300x600 | E74: =($A$8=5)*CEILING((E48+E49)/PARAMETRES!$E$92,1) -> 0 | F74: =($A$8=5)*CEILING((F48+F49)/PARAMETRES!$E$92,1) -> 0 | G74: =($A$8=5)*CEILING((G48+G49)/PARAMETRES!$E$92,1) -> 0 | H74: =($A$8=5)*CEILING((H48+H49)/PARAMETRES!$E$92,1) -> 0 | I74: =($A$8=5)*CEILING((I48+I49)/PARAMETRES!$E$92,1) -> 0 | J74: =($A$8=5)*CEILING((J48+J49)/PARAMETRES!$E$92,1) -> 0 | K74: =($A$8=5)*CEILING((K48+K49)/PARAMETRES!$E$92,1) -> 0 | L74: =($A$8=5)*CEILING((L48+L49)/PARAMETRES!$E$92,1) -> 0 | M74: =($A$8=5)*CEILING((M48+M49)/PARAMETRES!$E$92,1) -> 0 | N74: =($A$8=5)*CEILING((N48+N49)/PARAMETRES!$E$92,1) -> 0 | O74: =($A$8=5)*CEILING((O48+O49)/PARAMETRES!$E$92,1) -> 0 | P74: =($A$8=5)*CEILING((P48+P49)/PARAMETRES!$E$92,1) -> 0 | Q74: =($A$8=5)*CEILING((Q48+Q49)/PARAMETRES!$E$92,1) -> 0 | R74: =($A$8=5)*CEILING((R48+R49)/PARAMETRES!$E$92,1) -> 0 | S74: =($A$8=5)*CEILING((S48+S49)/PARAMETRES!$E$92,1) -> 0 | T74: =($A$8=5)*CEILING((T48+T49)/PARAMETRES!$E$92,1) -> 0 | U74: =($A$8=5)*CEILING((U48+U49)/PARAMETRES!$E$92,1) -> 0 | V74: =($A$8=5)*CEILING((V48+V49)/PARAMETRES!$E$92,1) -> 0 | W74: =($A$8=5)*CEILING((W48+W49)/PARAMETRES!$E$92,1) -> 0 | X74: =($A$8=5)*CEILING((X48+X49)/PARAMETRES!$E$92,1) -> 0 | Y74: =($A$8=5)*CEILING((Y48+Y49)/PARAMETRES!$E$92,1) -> 0 | Z74: =($A$8=5)*CEILING((Z48+Z49)/PARAMETRES!$E$92,1) -> 0 | AA74: =($A$8=5)*CEILING((AA48+AA49)/PARAMETRES!$E$92,1) -> 0 | AB74: =($A$8=5)*CEILING((AB48+AB49)/PARAMETRES!$E$92,1) -> 0 | AC74: =($A$8=5)*CEILING((AC48+AC49)/PARAMETRES!$E$92,1) -> 0 | AD74: =($A$8=5)*CEILING((AD48+AD49)/PARAMETRES!$E$92,1) -> 0 | AE74: =($A$8=5)*CEILING((AE48+AE49)/PARAMETRES!$E$92,1) -> 0 | AF74: =($A$8=5)*CEILING((AF48+AF49)/PARAMETRES!$E$92,1) -> 0 | AG74: =($A$8=5)*CEILING((AG48+AG49)/PARAMETRES!$E$92,1) -> 0 | AH74: =($A$8=5)*CEILING((AH48+AH49)/PARAMETRES!$E$92,1) -> 0 | AI74: =($A$8=5)*CEILING((AI48+AI49)/PARAMETRES!$E$92,1) -> 0 | AJ74: =($A$8=5)*CEILING((AJ48+AJ49)/PARAMETRES!$E$92,1) -> 0 | AK74: =($A$8=5)*CEILING((AK48+AK49)/PARAMETRES!$E$92,1) -> 0 | AL74: =($A$8=5)*CEILING((AL48+AL49)/PARAMETRES!$E$92,1) -> 0 | AM74: =($A$8=5)*CEILING((AM48+AM49)/PARAMETRES!$E$92,1) -> 0 | AN74: =($A$8=5)*CEILING((AN48+AN49)/PARAMETRES!$E$92,1) -> 0 | AO74: =($A$8=5)*CEILING((AO48+AO49)/PARAMETRES!$E$92,1) -> 0 | AP74: =($A$8=5)*CEILING((AP48+AP49)/PARAMETRES!$E$92,1) -> 0 | AQ74: =($A$8=5)*CEILING((AQ48+AQ49)/PARAMETRES!$E$92,1) -> 0 | AR74: =($A$8=5)*CEILING((AR48+AR49)/PARAMETRES!$E$92,1) -> 0 | AS74: =($A$8=5)*CEILING((AS48+AS49)/PARAMETRES!$E$92,1) -> 0 | AT74: =($A$8=5)*CEILING((AT48+AT49)/PARAMETRES!$E$92,1) -> 0 | AU74: =($A$8=5)*CEILING((AU48+AU49)/PARAMETRES!$E$92,1) -> 0 | AV74: =($A$8=5)*CEILING((AV48+AV49)/PARAMETRES!$E$92,1) -> 0 | AW74: =($A$8=5)*CEILING((AW48+AW49)/PARAMETRES!$E$92,1) -> 0 | AX74: =($A$8=5)*CEILING((AX48+AX49)/PARAMETRES!$E$92,1) -> 0 | AY74: =($A$8=5)*CEILING((AY48+AY49)/PARAMETRES!$E$92,1) -> 0 | AZ74: =($A$8=5)*CEILING((AZ48+AZ49)/PARAMETRES!$E$92,1) -> 0 | BA74: =($A$8=5)*CEILING((BA48+BA49)/PARAMETRES!$E$92,1) -> 0 | BB74: =($A$8=5)*CEILING((BB48+BB49)/PARAMETRES!$E$92,1) -> 0 | BC74: =($A$8=5)*CEILING((BC48+BC49)/PARAMETRES!$E$92,1) -> 0 | BD74: =($A$8=5)*CEILING((BD48+BD49)/PARAMETRES!$E$92,1) -> 0 | BE74: =($A$8=5)*CEILING((BE48+BE49)/PARAMETRES!$E$92,1) -> 0 | BF74: =($A$8=5)*CEILING((BF48+BF49)/PARAMETRES!$E$92,1) -> 0 | BG74: =($A$8=5)*CEILING((BG48+BG49)/PARAMETRES!$E$92,1) -> 0 | BH74: =($A$8=5)*CEILING((BH48+BH49)/PARAMETRES!$E$92,1) -> 0 | BI74: =($A$8=5)*CEILING((BI48+BI49)/PARAMETRES!$E$92,1) -> 0
B76: NRA MeD
C77: nb d'emplacements | E77: =($A$8=6)*E17 -> 0 | F77: =($A$8=6)*F17 -> 0 | G77: 0 | H77: 0 | I77: 0 | J77: 0 | K77: 0 | L77: 0 | M77: 0 | N77: 0 | O77: 0 | P77: 0 | Q77: 0 | R77: 0 | S77: 0 | T77: 0 | U77: 0 | V77: 0 | W77: 0 | X77: 0 | Y77: 0 | Z77: 0 | AA77: 0 | AB77: 0 | AC77: 0 | AD77: 0 | AE77: 0 | AF77: 0 | AG77: 0 | AH77: 0 | AI77: 0 | AJ77: 0 | AK77: 0 | AL77: 0 | AM77: 0 | AN77: 0 | AO77: 0 | AP77: 0 | AQ77: 0 | AR77: 0 | AS77: 0 | AT77: 0 | AU77: 0 | AV77: 0 | AW77: 0 | AX77: 0 | AY77: 0 | AZ77: 0 | BA77: 0 | BB77: 0 | BC77: 0 | BD77: 0 | BE77: 0 | BF77: 0 | BG77: 0 | BH77: 0 | BI77: 0
B79: NRA Armoire
C80: nb d'emplacements | E80: =($A$8=7)*E17 -> 0 | F80: =($A$8=7)*F17 -> 0 | G80: 0 | H80: 0 | I80: 0 | J80: 0 | K80: 0 | L80: 0 | M80: 0 | N80: 0 | O80: 0 | P80: 0 | Q80: 0 | R80: 0 | S80: 0 | T80: 0 | U80: 0 | V80: 0 | W80: 0 | X80: 0 | Y80: 0 | Z80: 0 | AA80: 0 | AB80: 0 | AC80: 0 | AD80: 0 | AE80: 0 | AF80: 0 | AG80: 0 | AH80: 0 | AI80: 0 | AJ80: 0 | AK80: 0 | AL80: 0 | AM80: 0 | AN80: 0 | AO80: 0 | AP80: 0 | AQ80: 0 | AR80: 0 | AS80: 0 | AT80: 0 | AU80: 0 | AV80: 0 | AW80: 0 | AX80: 0 | AY80: 0 | AZ80: 0 | BA80: 0 | BB80: 0 | BC80: 0 | BD80: 0 | BE80: 0 | BF80: 0 | BG80: 0 | BH80: 0 | BI80: 0
C81: nb de SU | E81: =($A$8=7)*E50*PARAMETRES!$E$93 -> 0 | F81: =($A$8=7)*F50*PARAMETRES!$E$93 -> 0 | G81: =($A$8=7)*G50*PARAMETRES!$E$93 -> 0 | H81: =($A$8=7)*H50*PARAMETRES!$E$93 -> 0 | I81: =($A$8=7)*I50*PARAMETRES!$E$93 -> 0 | J81: =($A$8=7)*J50*PARAMETRES!$E$93 -> 0 | K81: =($A$8=7)*K50*PARAMETRES!$E$93 -> 0 | L81: =($A$8=7)*L50*PARAMETRES!$E$93 -> 0 | M81: =($A$8=7)*M50*PARAMETRES!$E$93 -> 0 | N81: =($A$8=7)*N50*PARAMETRES!$E$93 -> 0 | O81: =($A$8=7)*O50*PARAMETRES!$E$93 -> 0 | P81: =($A$8=7)*P50*PARAMETRES!$E$93 -> 0 | Q81: =($A$8=7)*Q50*PARAMETRES!$E$93 -> 0 | R81: =($A$8=7)*R50*PARAMETRES!$E$93 -> 0 | S81: =($A$8=7)*S50*PARAMETRES!$E$93 -> 0 | T81: =($A$8=7)*T50*PARAMETRES!$E$93 -> 0 | U81: =($A$8=7)*U50*PARAMETRES!$E$93 -> 0 | V81: =($A$8=7)*V50*PARAMETRES!$E$93 -> 0 | W81: =($A$8=7)*W50*PARAMETRES!$E$93 -> 0 | X81: =($A$8=7)*X50*PARAMETRES!$E$93 -> 0 | Y81: =($A$8=7)*Y50*PARAMETRES!$E$93 -> 0 | Z81: =($A$8=7)*Z50*PARAMETRES!$E$93 -> 0 | AA81: =($A$8=7)*AA50*PARAMETRES!$E$93 -> 0 | AB81: =($A$8=7)*AB50*PARAMETRES!$E$93 -> 0 | AC81: =($A$8=7)*AC50*PARAMETRES!$E$93 -> 0 | AD81: =($A$8=7)*AD50*PARAMETRES!$E$93 -> 0 | AE81: =($A$8=7)*AE50*PARAMETRES!$E$93 -> 0 | AF81: =($A$8=7)*AF50*PARAMETRES!$E$93 -> 0 | AG81: =($A$8=7)*AG50*PARAMETRES!$E$93 -> 0 | AH81: =($A$8=7)*AH50*PARAMETRES!$E$93 -> 0 | AI81: =($A$8=7)*AI50*PARAMETRES!$E$93 -> 0 | AJ81: =($A$8=7)*AJ50*PARAMETRES!$E$93 -> 0 | AK81: =($A$8=7)*AK50*PARAMETRES!$E$93 -> 0 | AL81: =($A$8=7)*AL50*PARAMETRES!$E$93 -> 0 | AM81: =($A$8=7)*AM50*PARAMETRES!$E$93 -> 0 | AN81: =($A$8=7)*AN50*PARAMETRES!$E$93 -> 0 | AO81: =($A$8=7)*AO50*PARAMETRES!$E$93 -> 0 | AP81: =($A$8=7)*AP50*PARAMETRES!$E$93 -> 0 | AQ81: =($A$8=7)*AQ50*PARAMETRES!$E$93 -> 0 | AR81: =($A$8=7)*AR50*PARAMETRES!$E$93 -> 0 | AS81: =($A$8=7)*AS50*PARAMETRES!$E$93 -> 0 | AT81: =($A$8=7)*AT50*PARAMETRES!$E$93 -> 0 | AU81: =($A$8=7)*AU50*PARAMETRES!$E$93 -> 0 | AV81: =($A$8=7)*AV50*PARAMETRES!$E$93 -> 0 | AW81: =($A$8=7)*AW50*PARAMETRES!$E$93 -> 0 | AX81: =($A$8=7)*AX50*PARAMETRES!$E$93 -> 0 | AY81: =($A$8=7)*AY50*PARAMETRES!$E$93 -> 0 | AZ81: =($A$8=7)*AZ50*PARAMETRES!$E$93 -> 0 | BA81: =($A$8=7)*BA50*PARAMETRES!$E$93 -> 0 | BB81: =($A$8=7)*BB50*PARAMETRES!$E$93 -> 0 | BC81: =($A$8=7)*BC50*PARAMETRES!$E$93 -> 0 | BD81: =($A$8=7)*BD50*PARAMETRES!$E$93 -> 0 | BE81: =($A$8=7)*BE50*PARAMETRES!$E$93 -> 0 | BF81: =($A$8=7)*BF50*PARAMETRES!$E$93 -> 0 | BG81: =($A$8=7)*BG50*PARAMETRES!$E$93 -> 0 | BH81: =($A$8=7)*BH50*PARAMETRES!$E$93 -> 0 | BI81: =($A$8=7)*BI50*PARAMETRES!$E$93 -> 0
B83: NRA ZO
C84: nb d'emplacements | E84: =($A$8=8)*E17 -> 0 | F84: =($A$8=8)*F17 -> 0 | G84: 0 | H84: 0 | I84: 0 | J84: 0 | K84: 0 | L84: 0 | M84: 0 | N84: 0 | O84: 0 | P84: 0 | Q84: 0 | R84: 0 | S84: 0 | T84: 0 | U84: 0 | V84: 0 | W84: 0 | X84: 0 | Y84: 0 | Z84: 0 | AA84: 0 | AB84: 0 | AC84: 0 | AD84: 0 | AE84: 0 | AF84: 0 | AG84: 0 | AH84: 0 | AI84: 0 | AJ84: 0 | AK84: 0 | AL84: 0 | AM84: 0 | AN84: 0 | AO84: 0 | AP84: 0 | AQ84: 0 | AR84: 0 | AS84: 0 | AT84: 0 | AU84: 0 | AV84: 0 | AW84: 0 | AX84: 0 | AY84: 0 | AZ84: 0 | BA84: 0 | BB84: 0 | BC84: 0 | BD84: 0 | BE84: 0 | BF84: 0 | BG84: 0 | BH84: 0 | BI84: 0
C85: nb de SU | E85: =($A$8=8)*E50*PARAMETRES!$E$93 -> 0 | F85: =($A$8=8)*F50*PARAMETRES!$E$93 -> 0 | G85: =($A$8=8)*G50*PARAMETRES!$E$93 -> 0 | H85: =($A$8=8)*H50*PARAMETRES!$E$93 -> 0 | I85: =($A$8=8)*I50*PARAMETRES!$E$93 -> 0 | J85: =($A$8=8)*J50*PARAMETRES!$E$93 -> 0 | K85: =($A$8=8)*K50*PARAMETRES!$E$93 -> 0 | L85: =($A$8=8)*L50*PARAMETRES!$E$93 -> 0 | M85: =($A$8=8)*M50*PARAMETRES!$E$93 -> 0 | N85: =($A$8=8)*N50*PARAMETRES!$E$93 -> 0 | O85: =($A$8=8)*O50*PARAMETRES!$E$93 -> 0 | P85: =($A$8=8)*P50*PARAMETRES!$E$93 -> 0 | Q85: =($A$8=8)*Q50*PARAMETRES!$E$93 -> 0 | R85: =($A$8=8)*R50*PARAMETRES!$E$93 -> 0 | S85: =($A$8=8)*S50*PARAMETRES!$E$93 -> 0 | T85: =($A$8=8)*T50*PARAMETRES!$E$93 -> 0 | U85: =($A$8=8)*U50*PARAMETRES!$E$93 -> 0 | V85: =($A$8=8)*V50*PARAMETRES!$E$93 -> 0 | W85: =($A$8=8)*W50*PARAMETRES!$E$93 -> 0 | X85: =($A$8=8)*X50*PARAMETRES!$E$93 -> 0 | Y85: =($A$8=8)*Y50*PARAMETRES!$E$93 -> 0 | Z85: =($A$8=8)*Z50*PARAMETRES!$E$93 -> 0 | AA85: =($A$8=8)*AA50*PARAMETRES!$E$93 -> 0 | AB85: =($A$8=8)*AB50*PARAMETRES!$E$93 -> 0 | AC85: =($A$8=8)*AC50*PARAMETRES!$E$93 -> 0 | AD85: =($A$8=8)*AD50*PARAMETRES!$E$93 -> 0 | AE85: =($A$8=8)*AE50*PARAMETRES!$E$93 -> 0 | AF85: =($A$8=8)*AF50*PARAMETRES!$E$93 -> 0 | AG85: =($A$8=8)*AG50*PARAMETRES!$E$93 -> 0 | AH85: =($A$8=8)*AH50*PARAMETRES!$E$93 -> 0 | AI85: =($A$8=8)*AI50*PARAMETRES!$E$93 -> 0 | AJ85: =($A$8=8)*AJ50*PARAMETRES!$E$93 -> 0 | AK85: =($A$8=8)*AK50*PARAMETRES!$E$93 -> 0 | AL85: =($A$8=8)*AL50*PARAMETRES!$E$93 -> 0 | AM85: =($A$8=8)*AM50*PARAMETRES!$E$93 -> 0 | AN85: =($A$8=8)*AN50*PARAMETRES!$E$93 -> 0 | AO85: =($A$8=8)*AO50*PARAMETRES!$E$93 -> 0 | AP85: =($A$8=8)*AP50*PARAMETRES!$E$93 -> 0 | AQ85: =($A$8=8)*AQ50*PARAMETRES!$E$93 -> 0 | AR85: =($A$8=8)*AR50*PARAMETRES!$E$93 -> 0 | AS85: =($A$8=8)*AS50*PARAMETRES!$E$93 -> 0 | AT85: =($A$8=8)*AT50*PARAMETRES!$E$93 -> 0 | AU85: =($A$8=8)*AU50*PARAMETRES!$E$93 -> 0 | AV85: =($A$8=8)*AV50*PARAMETRES!$E$93 -> 0 | AW85: =($A$8=8)*AW50*PARAMETRES!$E$93 -> 0 | AX85: =($A$8=8)*AX50*PARAMETRES!$E$93 -> 0 | AY85: =($A$8=8)*AY50*PARAMETRES!$E$93 -> 0 | AZ85: =($A$8=8)*AZ50*PARAMETRES!$E$93 -> 0 | BA85: =($A$8=8)*BA50*PARAMETRES!$E$93 -> 0 | BB85: =($A$8=8)*BB50*PARAMETRES!$E$93 -> 0 | BC85: =($A$8=8)*BC50*PARAMETRES!$E$93 -> 0 | BD85: =($A$8=8)*BD50*PARAMETRES!$E$93 -> 0 | BE85: =($A$8=8)*BE50*PARAMETRES!$E$93 -> 0 | BF85: =($A$8=8)*BF50*PARAMETRES!$E$93 -> 0 | BG85: =($A$8=8)*BG50*PARAMETRES!$E$93 -> 0 | BH85: =($A$8=8)*BH50*PARAMETRES!$E$93 -> 0 | BI85: =($A$8=8)*BI50*PARAMETRES!$E$93 -> 0
B87: Localisation Distante
C88: nb site loc. dist. | E88: =($A$8=9)*E17 -> 0 | F88: =($A$8=9)*F17 -> 0 | G88: 0 | H88: 0 | I88: 0 | J88: 0 | K88: 0 | L88: 0 | M88: 0 | N88: 0 | O88: 0 | P88: 0 | Q88: 0 | R88: 0 | S88: 0 | T88: 0 | U88: 0 | V88: 0 | W88: 0 | X88: 0 | Y88: 0 | Z88: 0 | AA88: 0 | AB88: 0 | AC88: 0 | AD88: 0 | AE88: 0 | AF88: 0 | AG88: 0 | AH88: 0 | AI88: 0 | AJ88: 0 | AK88: 0 | AL88: 0 | AM88: 0 | AN88: 0 | AO88: 0 | AP88: 0 | AQ88: 0 | AR88: 0 | AS88: 0 | AT88: 0 | AU88: 0 | AV88: 0 | AW88: 0 | AX88: 0 | AY88: 0 | AZ88: 0 | BA88: 0 | BB88: 0 | BC88: 0 | BD88: 0 | BE88: 0 | BF88: 0 | BG88: 0 | BH88: 0 | BI88: 0
C89: nb câbles 112 paires | E89: =($A$8=9)*E17*FLOOR($D$5*PARAMETRES!$E$115/112-2*E90-4*E91-8*E92,1) -> 0 | F89: =($A$8=9)*F17*FLOOR($D$5*PARAMETRES!$E$115/112-2*F90-4*F91-8*F92,1) -> 0 | G89: =($A$8=9)*G17*FLOOR($D$5*PARAMETRES!$E$115/112-2*G90-4*G91-8*G92,1) -> 0 | H89: =($A$8=9)*H17*FLOOR($D$5*PARAMETRES!$E$115/112-2*H90-4*H91-8*H92,1) -> 0 | I89: =($A$8=9)*I17*FLOOR($D$5*PARAMETRES!$E$115/112-2*I90-4*I91-8*I92,1) -> 0 | J89: =($A$8=9)*J17*FLOOR($D$5*PARAMETRES!$E$115/112-2*J90-4*J91-8*J92,1) -> 0 | K89: =($A$8=9)*K17*FLOOR($D$5*PARAMETRES!$E$115/112-2*K90-4*K91-8*K92,1) -> 0 | L89: =($A$8=9)*L17*FLOOR($D$5*PARAMETRES!$E$115/112-2*L90-4*L91-8*L92,1) -> 0 | M89: =($A$8=9)*M17*FLOOR($D$5*PARAMETRES!$E$115/112-2*M90-4*M91-8*M92,1) -> 0 | N89: =($A$8=9)*N17*FLOOR($D$5*PARAMETRES!$E$115/112-2*N90-4*N91-8*N92,1) -> 0 | O89: =($A$8=9)*O17*FLOOR($D$5*PARAMETRES!$E$115/112-2*O90-4*O91-8*O92,1) -> 0 | P89: =($A$8=9)*P17*FLOOR($D$5*PARAMETRES!$E$115/112-2*P90-4*P91-8*P92,1) -> 0 | Q89: =($A$8=9)*Q17*FLOOR($D$5*PARAMETRES!$E$115/112-2*Q90-4*Q91-8*Q92,1) -> 0 | R89: =($A$8=9)*R17*FLOOR($D$5*PARAMETRES!$E$115/112-2*R90-4*R91-8*R92,1) -> 0 | S89: =($A$8=9)*S17*FLOOR($D$5*PARAMETRES!$E$115/112-2*S90-4*S91-8*S92,1) -> 0 | T89: =($A$8=9)*T17*FLOOR($D$5*PARAMETRES!$E$115/112-2*T90-4*T91-8*T92,1) -> 0 | U89: =($A$8=9)*U17*FLOOR($D$5*PARAMETRES!$E$115/112-2*U90-4*U91-8*U92,1) -> 0 | V89: =($A$8=9)*V17*FLOOR($D$5*PARAMETRES!$E$115/112-2*V90-4*V91-8*V92,1) -> 0 | W89: =($A$8=9)*W17*FLOOR($D$5*PARAMETRES!$E$115/112-2*W90-4*W91-8*W92,1) -> 0 | X89: =($A$8=9)*X17*FLOOR($D$5*PARAMETRES!$E$115/112-2*X90-4*X91-8*X92,1) -> 0 | Y89: =($A$8=9)*Y17*FLOOR($D$5*PARAMETRES!$E$115/112-2*Y90-4*Y91-8*Y92,1) -> 0 | Z89: =($A$8=9)*Z17*FLOOR($D$5*PARAMETRES!$E$115/112-2*Z90-4*Z91-8*Z92,1) -> 0 | AA89: =($A$8=9)*AA17*FLOOR($D$5*PARAMETRES!$E$115/112-2*AA90-4*AA91-8*AA92,1) -> 0 | AB89: =($A$8=9)*AB17*FLOOR($D$5*PARAMETRES!$E$115/112-2*AB90-4*AB91-8*AB92,1) -> 0 | AC89: =($A$8=9)*AC17*FLOOR($D$5*PARAMETRES!$E$115/112-2*AC90-4*AC91-8*AC92,1) -> 0 | AD89: =($A$8=9)*AD17*FLOOR($D$5*PARAMETRES!$E$115/112-2*AD90-4*AD91-8*AD92,1) -> 0 | AE89: =($A$8=9)*AE17*FLOOR($D$5*PARAMETRES!$E$115/112-2*AE90-4*AE91-8*AE92,1) -> 0 | AF89: =($A$8=9)*AF17*FLOOR($D$5*PARAMETRES!$E$115/112-2*AF90-4*AF91-8*AF92,1) -> 0 | AG89: =($A$8=9)*AG17*FLOOR($D$5*PARAMETRES!$E$115/112-2*AG90-4*AG91-8*AG92,1) -> 0 | AH89: =($A$8=9)*AH17*FLOOR($D$5*PARAMETRES!$E$115/112-2*AH90-4*AH91-8*AH92,1) -> 0 | AI89: =($A$8=9)*AI17*FLOOR($D$5*PARAMETRES!$E$115/112-2*AI90-4*AI91-8*AI92,1) -> 0 | AJ89: =($A$8=9)*AJ17*FLOOR($D$5*PARAMETRES!$E$115/112-2*AJ90-4*AJ91-8*AJ92,1) -> 0 | AK89: =($A$8=9)*AK17*FLOOR($D$5*PARAMETRES!$E$115/112-2*AK90-4*AK91-8*AK92,1) -> 0 | AL89: =($A$8=9)*AL17*FLOOR($D$5*PARAMETRES!$E$115/112-2*AL90-4*AL91-8*AL92,1) -> 0 | AM89: =($A$8=9)*AM17*FLOOR($D$5*PARAMETRES!$E$115/112-2*AM90-4*AM91-8*AM92,1) -> 0 | AN89: =($A$8=9)*AN17*FLOOR($D$5*PARAMETRES!$E$115/112-2*AN90-4*AN91-8*AN92,1) -> 0 | AO89: =($A$8=9)*AO17*FLOOR($D$5*PARAMETRES!$E$115/112-2*AO90-4*AO91-8*AO92,1) -> 0 | AP89: =($A$8=9)*AP17*FLOOR($D$5*PARAMETRES!$E$115/112-2*AP90-4*AP91-8*AP92,1) -> 0 | AQ89: =($A$8=9)*AQ17*FLOOR($D$5*PARAMETRES!$E$115/112-2*AQ90-4*AQ91-8*AQ92,1) -> 0 | AR89: =($A$8=9)*AR17*FLOOR($D$5*PARAMETRES!$E$115/112-2*AR90-4*AR91-8*AR92,1) -> 0 | AS89: =($A$8=9)*AS17*FLOOR($D$5*PARAMETRES!$E$115/112-2*AS90-4*AS91-8*AS92,1) -> 0 | AT89: =($A$8=9)*AT17*FLOOR($D$5*PARAMETRES!$E$115/112-2*AT90-4*AT91-8*AT92,1) -> 0 | AU89: =($A$8=9)*AU17*FLOOR($D$5*PARAMETRES!$E$115/112-2*AU90-4*AU91-8*AU92,1) -> 0 | AV89: =($A$8=9)*AV17*FLOOR($D$5*PARAMETRES!$E$115/112-2*AV90-4*AV91-8*AV92,1) -> 0 | AW89: =($A$8=9)*AW17*FLOOR($D$5*PARAMETRES!$E$115/112-2*AW90-4*AW91-8*AW92,1) -> 0 | AX89: =($A$8=9)*AX17*FLOOR($D$5*PARAMETRES!$E$115/112-2*AX90-4*AX91-8*AX92,1) -> 0 | AY89: =($A$8=9)*AY17*FLOOR($D$5*PARAMETRES!$E$115/112-2*AY90-4*AY91-8*AY92,1) -> 0 | AZ89: =($A$8=9)*AZ17*FLOOR($D$5*PARAMETRES!$E$115/112-2*AZ90-4*AZ91-8*AZ92,1) -> 0 | BA89: =($A$8=9)*BA17*FLOOR($D$5*PARAMETRES!$E$115/112-2*BA90-4*BA91-8*BA92,1) -> 0 | BB89: =($A$8=9)*BB17*FLOOR($D$5*PARAMETRES!$E$115/112-2*BB90-4*BB91-8*BB92,1) -> 0 | BC89: =($A$8=9)*BC17*FLOOR($D$5*PARAMETRES!$E$115/112-2*BC90-4*BC91-8*BC92,1) -> 0 | BD89: =($A$8=9)*BD17*FLOOR($D$5*PARAMETRES!$E$115/112-2*BD90-4*BD91-8*BD92,1) -> 0 | BE89: =($A$8=9)*BE17*FLOOR($D$5*PARAMETRES!$E$115/112-2*BE90-4*BE91-8*BE92,1) -> 0 | BF89: =($A$8=9)*BF17*FLOOR($D$5*PARAMETRES!$E$115/112-2*BF90-4*BF91-8*BF92,1) -> 0 | BG89: =($A$8=9)*BG17*FLOOR($D$5*PARAMETRES!$E$115/112-2*BG90-4*BG91-8*BG92,1) -> 0 | BH89: =($A$8=9)*BH17*FLOOR($D$5*PARAMETRES!$E$115/112-2*BH90-4*BH91-8*BH92,1) -> 0 | BI89: =($A$8=9)*BI17*FLOOR($D$5*PARAMETRES!$E$115/112-2*BI90-4*BI91-8*BI92,1) -> 0
C90: nb câbles 224 paires | E90: =($A$8=9)*E17*FLOOR($D$5*PARAMETRES!$E$115/224-2*E91-4*E92,1) -> 0 | F90: =($A$8=9)*F17*FLOOR($D$5*PARAMETRES!$E$115/224-2*F91-4*F92,1) -> 0 | G90: =($A$8=9)*G17*FLOOR($D$5*PARAMETRES!$E$115/224-2*G91-4*G92,1) -> 0 | H90: =($A$8=9)*H17*FLOOR($D$5*PARAMETRES!$E$115/224-2*H91-4*H92,1) -> 0 | I90: =($A$8=9)*I17*FLOOR($D$5*PARAMETRES!$E$115/224-2*I91-4*I92,1) -> 0 | J90: =($A$8=9)*J17*FLOOR($D$5*PARAMETRES!$E$115/224-2*J91-4*J92,1) -> 0 | K90: =($A$8=9)*K17*FLOOR($D$5*PARAMETRES!$E$115/224-2*K91-4*K92,1) -> 0 | L90: =($A$8=9)*L17*FLOOR($D$5*PARAMETRES!$E$115/224-2*L91-4*L92,1) -> 0 | M90: =($A$8=9)*M17*FLOOR($D$5*PARAMETRES!$E$115/224-2*M91-4*M92,1) -> 0 | N90: =($A$8=9)*N17*FLOOR($D$5*PARAMETRES!$E$115/224-2*N91-4*N92,1) -> 0 | O90: =($A$8=9)*O17*FLOOR($D$5*PARAMETRES!$E$115/224-2*O91-4*O92,1) -> 0 | P90: =($A$8=9)*P17*FLOOR($D$5*PARAMETRES!$E$115/224-2*P91-4*P92,1) -> 0 | Q90: =($A$8=9)*Q17*FLOOR($D$5*PARAMETRES!$E$115/224-2*Q91-4*Q92,1) -> 0 | R90: =($A$8=9)*R17*FLOOR($D$5*PARAMETRES!$E$115/224-2*R91-4*R92,1) -> 0 | S90: =($A$8=9)*S17*FLOOR($D$5*PARAMETRES!$E$115/224-2*S91-4*S92,1) -> 0 | T90: =($A$8=9)*T17*FLOOR($D$5*PARAMETRES!$E$115/224-2*T91-4*T92,1) -> 0 | U90: =($A$8=9)*U17*FLOOR($D$5*PARAMETRES!$E$115/224-2*U91-4*U92,1) -> 0 | V90: =($A$8=9)*V17*FLOOR($D$5*PARAMETRES!$E$115/224-2*V91-4*V92,1) -> 0 | W90: =($A$8=9)*W17*FLOOR($D$5*PARAMETRES!$E$115/224-2*W91-4*W92,1) -> 0 | X90: =($A$8=9)*X17*FLOOR($D$5*PARAMETRES!$E$115/224-2*X91-4*X92,1) -> 0 | Y90: =($A$8=9)*Y17*FLOOR($D$5*PARAMETRES!$E$115/224-2*Y91-4*Y92,1) -> 0 | Z90: =($A$8=9)*Z17*FLOOR($D$5*PARAMETRES!$E$115/224-2*Z91-4*Z92,1) -> 0 | AA90: =($A$8=9)*AA17*FLOOR($D$5*PARAMETRES!$E$115/224-2*AA91-4*AA92,1) -> 0 | AB90: =($A$8=9)*AB17*FLOOR($D$5*PARAMETRES!$E$115/224-2*AB91-4*AB92,1) -> 0 | AC90: =($A$8=9)*AC17*FLOOR($D$5*PARAMETRES!$E$115/224-2*AC91-4*AC92,1) -> 0 | AD90: =($A$8=9)*AD17*FLOOR($D$5*PARAMETRES!$E$115/224-2*AD91-4*AD92,1) -> 0 | AE90: =($A$8=9)*AE17*FLOOR($D$5*PARAMETRES!$E$115/224-2*AE91-4*AE92,1) -> 0 | AF90: =($A$8=9)*AF17*FLOOR($D$5*PARAMETRES!$E$115/224-2*AF91-4*AF92,1) -> 0 | AG90: =($A$8=9)*AG17*FLOOR($D$5*PARAMETRES!$E$115/224-2*AG91-4*AG92,1) -> 0 | AH90: =($A$8=9)*AH17*FLOOR($D$5*PARAMETRES!$E$115/224-2*AH91-4*AH92,1) -> 0 | AI90: =($A$8=9)*AI17*FLOOR($D$5*PARAMETRES!$E$115/224-2*AI91-4*AI92,1) -> 0 | AJ90: =($A$8=9)*AJ17*FLOOR($D$5*PARAMETRES!$E$115/224-2*AJ91-4*AJ92,1) -> 0 | AK90: =($A$8=9)*AK17*FLOOR($D$5*PARAMETRES!$E$115/224-2*AK91-4*AK92,1) -> 0 | AL90: =($A$8=9)*AL17*FLOOR($D$5*PARAMETRES!$E$115/224-2*AL91-4*AL92,1) -> 0 | AM90: =($A$8=9)*AM17*FLOOR($D$5*PARAMETRES!$E$115/224-2*AM91-4*AM92,1) -> 0 | AN90: =($A$8=9)*AN17*FLOOR($D$5*PARAMETRES!$E$115/224-2*AN91-4*AN92,1) -> 0 | AO90: =($A$8=9)*AO17*FLOOR($D$5*PARAMETRES!$E$115/224-2*AO91-4*AO92,1) -> 0 | AP90: =($A$8=9)*AP17*FLOOR($D$5*PARAMETRES!$E$115/224-2*AP91-4*AP92,1) -> 0 | AQ90: =($A$8=9)*AQ17*FLOOR($D$5*PARAMETRES!$E$115/224-2*AQ91-4*AQ92,1) -> 0 | AR90: =($A$8=9)*AR17*FLOOR($D$5*PARAMETRES!$E$115/224-2*AR91-4*AR92,1) -> 0 | AS90: =($A$8=9)*AS17*FLOOR($D$5*PARAMETRES!$E$115/224-2*AS91-4*AS92,1) -> 0 | AT90: =($A$8=9)*AT17*FLOOR($D$5*PARAMETRES!$E$115/224-2*AT91-4*AT92,1) -> 0 | AU90: =($A$8=9)*AU17*FLOOR($D$5*PARAMETRES!$E$115/224-2*AU91-4*AU92,1) -> 0 | AV90: =($A$8=9)*AV17*FLOOR($D$5*PARAMETRES!$E$115/224-2*AV91-4*AV92,1) -> 0 | AW90: =($A$8=9)*AW17*FLOOR($D$5*PARAMETRES!$E$115/224-2*AW91-4*AW92,1) -> 0 | AX90: =($A$8=9)*AX17*FLOOR($D$5*PARAMETRES!$E$115/224-2*AX91-4*AX92,1) -> 0 | AY90: =($A$8=9)*AY17*FLOOR($D$5*PARAMETRES!$E$115/224-2*AY91-4*AY92,1) -> 0 | AZ90: =($A$8=9)*AZ17*FLOOR($D$5*PARAMETRES!$E$115/224-2*AZ91-4*AZ92,1) -> 0 | BA90: =($A$8=9)*BA17*FLOOR($D$5*PARAMETRES!$E$115/224-2*BA91-4*BA92,1) -> 0 | BB90: =($A$8=9)*BB17*FLOOR($D$5*PARAMETRES!$E$115/224-2*BB91-4*BB92,1) -> 0 | BC90: =($A$8=9)*BC17*FLOOR($D$5*PARAMETRES!$E$115/224-2*BC91-4*BC92,1) -> 0 | BD90: =($A$8=9)*BD17*FLOOR($D$5*PARAMETRES!$E$115/224-2*BD91-4*BD92,1) -> 0 | BE90: =($A$8=9)*BE17*FLOOR($D$5*PARAMETRES!$E$115/224-2*BE91-4*BE92,1) -> 0 | BF90: =($A$8=9)*BF17*FLOOR($D$5*PARAMETRES!$E$115/224-2*BF91-4*BF92,1) -> 0 | BG90: =($A$8=9)*BG17*FLOOR($D$5*PARAMETRES!$E$115/224-2*BG91-4*BG92,1) -> 0 | BH90: =($A$8=9)*BH17*FLOOR($D$5*PARAMETRES!$E$115/224-2*BH91-4*BH92,1) -> 0 | BI90: =($A$8=9)*BI17*FLOOR($D$5*PARAMETRES!$E$115/224-2*BI91-4*BI92,1) -> 0
C91: nb câbles 448 paires | E91: =($A$8=9)*E17*FLOOR($D$5*PARAMETRES!$E$115/448-2*E92,1) -> 0 | F91: =($A$8=9)*F17*FLOOR($D$5*PARAMETRES!$E$115/448-2*F92,1) -> 0 | G91: =($A$8=9)*G17*FLOOR($D$5*PARAMETRES!$E$115/448-2*G92,1) -> 0 | H91: =($A$8=9)*H17*FLOOR($D$5*PARAMETRES!$E$115/448-2*H92,1) -> 0 | I91: =($A$8=9)*I17*FLOOR($D$5*PARAMETRES!$E$115/448-2*I92,1) -> 0 | J91: =($A$8=9)*J17*FLOOR($D$5*PARAMETRES!$E$115/448-2*J92,1) -> 0 | K91: =($A$8=9)*K17*FLOOR($D$5*PARAMETRES!$E$115/448-2*K92,1) -> 0 | L91: =($A$8=9)*L17*FLOOR($D$5*PARAMETRES!$E$115/448-2*L92,1) -> 0 | M91: =($A$8=9)*M17*FLOOR($D$5*PARAMETRES!$E$115/448-2*M92,1) -> 0 | N91: =($A$8=9)*N17*FLOOR($D$5*PARAMETRES!$E$115/448-2*N92,1) -> 0 | O91: =($A$8=9)*O17*FLOOR($D$5*PARAMETRES!$E$115/448-2*O92,1) -> 0 | P91: =($A$8=9)*P17*FLOOR($D$5*PARAMETRES!$E$115/448-2*P92,1) -> 0 | Q91: =($A$8=9)*Q17*FLOOR($D$5*PARAMETRES!$E$115/448-2*Q92,1) -> 0 | R91: =($A$8=9)*R17*FLOOR($D$5*PARAMETRES!$E$115/448-2*R92,1) -> 0 | S91: =($A$8=9)*S17*FLOOR($D$5*PARAMETRES!$E$115/448-2*S92,1) -> 0 | T91: =($A$8=9)*T17*FLOOR($D$5*PARAMETRES!$E$115/448-2*T92,1) -> 0 | U91: =($A$8=9)*U17*FLOOR($D$5*PARAMETRES!$E$115/448-2*U92,1) -> 0 | V91: =($A$8=9)*V17*FLOOR($D$5*PARAMETRES!$E$115/448-2*V92,1) -> 0 | W91: =($A$8=9)*W17*FLOOR($D$5*PARAMETRES!$E$115/448-2*W92,1) -> 0 | X91: =($A$8=9)*X17*FLOOR($D$5*PARAMETRES!$E$115/448-2*X92,1) -> 0 | Y91: =($A$8=9)*Y17*FLOOR($D$5*PARAMETRES!$E$115/448-2*Y92,1) -> 0 | Z91: =($A$8=9)*Z17*FLOOR($D$5*PARAMETRES!$E$115/448-2*Z92,1) -> 0 | AA91: =($A$8=9)*AA17*FLOOR($D$5*PARAMETRES!$E$115/448-2*AA92,1) -> 0 | AB91: =($A$8=9)*AB17*FLOOR($D$5*PARAMETRES!$E$115/448-2*AB92,1) -> 0 | AC91: =($A$8=9)*AC17*FLOOR($D$5*PARAMETRES!$E$115/448-2*AC92,1) -> 0 | AD91: =($A$8=9)*AD17*FLOOR($D$5*PARAMETRES!$E$115/448-2*AD92,1) -> 0 | AE91: =($A$8=9)*AE17*FLOOR($D$5*PARAMETRES!$E$115/448-2*AE92,1) -> 0 | AF91: =($A$8=9)*AF17*FLOOR($D$5*PARAMETRES!$E$115/448-2*AF92,1) -> 0 | AG91: =($A$8=9)*AG17*FLOOR($D$5*PARAMETRES!$E$115/448-2*AG92,1) -> 0 | AH91: =($A$8=9)*AH17*FLOOR($D$5*PARAMETRES!$E$115/448-2*AH92,1) -> 0 | AI91: =($A$8=9)*AI17*FLOOR($D$5*PARAMETRES!$E$115/448-2*AI92,1) -> 0 | AJ91: =($A$8=9)*AJ17*FLOOR($D$5*PARAMETRES!$E$115/448-2*AJ92,1) -> 0 | AK91: =($A$8=9)*AK17*FLOOR($D$5*PARAMETRES!$E$115/448-2*AK92,1) -> 0 | AL91: =($A$8=9)*AL17*FLOOR($D$5*PARAMETRES!$E$115/448-2*AL92,1) -> 0 | AM91: =($A$8=9)*AM17*FLOOR($D$5*PARAMETRES!$E$115/448-2*AM92,1) -> 0 | AN91: =($A$8=9)*AN17*FLOOR($D$5*PARAMETRES!$E$115/448-2*AN92,1) -> 0 | AO91: =($A$8=9)*AO17*FLOOR($D$5*PARAMETRES!$E$115/448-2*AO92,1) -> 0 | AP91: =($A$8=9)*AP17*FLOOR($D$5*PARAMETRES!$E$115/448-2*AP92,1) -> 0 | AQ91: =($A$8=9)*AQ17*FLOOR($D$5*PARAMETRES!$E$115/448-2*AQ92,1) -> 0 | AR91: =($A$8=9)*AR17*FLOOR($D$5*PARAMETRES!$E$115/448-2*AR92,1) -> 0 | AS91: =($A$8=9)*AS17*FLOOR($D$5*PARAMETRES!$E$115/448-2*AS92,1) -> 0 | AT91: =($A$8=9)*AT17*FLOOR($D$5*PARAMETRES!$E$115/448-2*AT92,1) -> 0 | AU91: =($A$8=9)*AU17*FLOOR($D$5*PARAMETRES!$E$115/448-2*AU92,1) -> 0 | AV91: =($A$8=9)*AV17*FLOOR($D$5*PARAMETRES!$E$115/448-2*AV92,1) -> 0 | AW91: =($A$8=9)*AW17*FLOOR($D$5*PARAMETRES!$E$115/448-2*AW92,1) -> 0 | AX91: =($A$8=9)*AX17*FLOOR($D$5*PARAMETRES!$E$115/448-2*AX92,1) -> 0 | AY91: =($A$8=9)*AY17*FLOOR($D$5*PARAMETRES!$E$115/448-2*AY92,1) -> 0 | AZ91: =($A$8=9)*AZ17*FLOOR($D$5*PARAMETRES!$E$115/448-2*AZ92,1) -> 0 | BA91: =($A$8=9)*BA17*FLOOR($D$5*PARAMETRES!$E$115/448-2*BA92,1) -> 0 | BB91: =($A$8=9)*BB17*FLOOR($D$5*PARAMETRES!$E$115/448-2*BB92,1) -> 0 | BC91: =($A$8=9)*BC17*FLOOR($D$5*PARAMETRES!$E$115/448-2*BC92,1) -> 0 | BD91: =($A$8=9)*BD17*FLOOR($D$5*PARAMETRES!$E$115/448-2*BD92,1) -> 0 | BE91: =($A$8=9)*BE17*FLOOR($D$5*PARAMETRES!$E$115/448-2*BE92,1) -> 0 | BF91: =($A$8=9)*BF17*FLOOR($D$5*PARAMETRES!$E$115/448-2*BF92,1) -> 0 | BG91: =($A$8=9)*BG17*FLOOR($D$5*PARAMETRES!$E$115/448-2*BG92,1) -> 0 | BH91: =($A$8=9)*BH17*FLOOR($D$5*PARAMETRES!$E$115/448-2*BH92,1) -> 0 | BI91: =($A$8=9)*BI17*FLOOR($D$5*PARAMETRES!$E$115/448-2*BI92,1) -> 0
C92: nb câbles 896 paires | E92: =($A$8=9)*E17*FLOOR($D$5*PARAMETRES!$E$115/896,1) -> 0 | F92: =($A$8=9)*F17*FLOOR($D$5*PARAMETRES!$E$115/896,1) -> 0 | G92: =($A$8=9)*G17*FLOOR($D$5*PARAMETRES!$E$115/896,1) -> 0 | H92: =($A$8=9)*H17*FLOOR($D$5*PARAMETRES!$E$115/896,1) -> 0 | I92: =($A$8=9)*I17*FLOOR($D$5*PARAMETRES!$E$115/896,1) -> 0 | J92: =($A$8=9)*J17*FLOOR($D$5*PARAMETRES!$E$115/896,1) -> 0 | K92: =($A$8=9)*K17*FLOOR($D$5*PARAMETRES!$E$115/896,1) -> 0 | L92: =($A$8=9)*L17*FLOOR($D$5*PARAMETRES!$E$115/896,1) -> 0 | M92: =($A$8=9)*M17*FLOOR($D$5*PARAMETRES!$E$115/896,1) -> 0 | N92: =($A$8=9)*N17*FLOOR($D$5*PARAMETRES!$E$115/896,1) -> 0 | O92: =($A$8=9)*O17*FLOOR($D$5*PARAMETRES!$E$115/896,1) -> 0 | P92: =($A$8=9)*P17*FLOOR($D$5*PARAMETRES!$E$115/896,1) -> 0 | Q92: =($A$8=9)*Q17*FLOOR($D$5*PARAMETRES!$E$115/896,1) -> 0 | R92: =($A$8=9)*R17*FLOOR($D$5*PARAMETRES!$E$115/896,1) -> 0 | S92: =($A$8=9)*S17*FLOOR($D$5*PARAMETRES!$E$115/896,1) -> 0 | T92: =($A$8=9)*T17*FLOOR($D$5*PARAMETRES!$E$115/896,1) -> 0 | U92: =($A$8=9)*U17*FLOOR($D$5*PARAMETRES!$E$115/896,1) -> 0 | V92: =($A$8=9)*V17*FLOOR($D$5*PARAMETRES!$E$115/896,1) -> 0 | W92: =($A$8=9)*W17*FLOOR($D$5*PARAMETRES!$E$115/896,1) -> 0 | X92: =($A$8=9)*X17*FLOOR($D$5*PARAMETRES!$E$115/896,1) -> 0 | Y92: =($A$8=9)*Y17*FLOOR($D$5*PARAMETRES!$E$115/896,1) -> 0 | Z92: =($A$8=9)*Z17*FLOOR($D$5*PARAMETRES!$E$115/896,1) -> 0 | AA92: =($A$8=9)*AA17*FLOOR($D$5*PARAMETRES!$E$115/896,1) -> 0 | AB92: =($A$8=9)*AB17*FLOOR($D$5*PARAMETRES!$E$115/896,1) -> 0 | AC92: =($A$8=9)*AC17*FLOOR($D$5*PARAMETRES!$E$115/896,1) -> 0 | AD92: =($A$8=9)*AD17*FLOOR($D$5*PARAMETRES!$E$115/896,1) -> 0 | AE92: =($A$8=9)*AE17*FLOOR($D$5*PARAMETRES!$E$115/896,1) -> 0 | AF92: =($A$8=9)*AF17*FLOOR($D$5*PARAMETRES!$E$115/896,1) -> 0 | AG92: =($A$8=9)*AG17*FLOOR($D$5*PARAMETRES!$E$115/896,1) -> 0 | AH92: =($A$8=9)*AH17*FLOOR($D$5*PARAMETRES!$E$115/896,1) -> 0 | AI92: =($A$8=9)*AI17*FLOOR($D$5*PARAMETRES!$E$115/896,1) -> 0 | AJ92: =($A$8=9)*AJ17*FLOOR($D$5*PARAMETRES!$E$115/896,1) -> 0 | AK92: =($A$8=9)*AK17*FLOOR($D$5*PARAMETRES!$E$115/896,1) -> 0 | AL92: =($A$8=9)*AL17*FLOOR($D$5*PARAMETRES!$E$115/896,1) -> 0 | AM92: =($A$8=9)*AM17*FLOOR($D$5*PARAMETRES!$E$115/896,1) -> 0 | AN92: =($A$8=9)*AN17*FLOOR($D$5*PARAMETRES!$E$115/896,1) -> 0 | AO92: =($A$8=9)*AO17*FLOOR($D$5*PARAMETRES!$E$115/896,1) -> 0 | AP92: =($A$8=9)*AP17*FLOOR($D$5*PARAMETRES!$E$115/896,1) -> 0 | AQ92: =($A$8=9)*AQ17*FLOOR($D$5*PARAMETRES!$E$115/896,1) -> 0 | AR92: =($A$8=9)*AR17*FLOOR($D$5*PARAMETRES!$E$115/896,1) -> 0 | AS92: =($A$8=9)*AS17*FLOOR($D$5*PARAMETRES!$E$115/896,1) -> 0 | AT92: =($A$8=9)*AT17*FLOOR($D$5*PARAMETRES!$E$115/896,1) -> 0 | AU92: =($A$8=9)*AU17*FLOOR($D$5*PARAMETRES!$E$115/896,1) -> 0 | AV92: =($A$8=9)*AV17*FLOOR($D$5*PARAMETRES!$E$115/896,1) -> 0 | AW92: =($A$8=9)*AW17*FLOOR($D$5*PARAMETRES!$E$115/896,1) -> 0 | AX92: =($A$8=9)*AX17*FLOOR($D$5*PARAMETRES!$E$115/896,1) -> 0 | AY92: =($A$8=9)*AY17*FLOOR($D$5*PARAMETRES!$E$115/896,1) -> 0 | AZ92: =($A$8=9)*AZ17*FLOOR($D$5*PARAMETRES!$E$115/896,1) -> 0 | BA92: =($A$8=9)*BA17*FLOOR($D$5*PARAMETRES!$E$115/896,1) -> 0 | BB92: =($A$8=9)*BB17*FLOOR($D$5*PARAMETRES!$E$115/896,1) -> 0 | BC92: =($A$8=9)*BC17*FLOOR($D$5*PARAMETRES!$E$115/896,1) -> 0 | BD92: =($A$8=9)*BD17*FLOOR($D$5*PARAMETRES!$E$115/896,1) -> 0 | BE92: =($A$8=9)*BE17*FLOOR($D$5*PARAMETRES!$E$115/896,1) -> 0 | BF92: =($A$8=9)*BF17*FLOOR($D$5*PARAMETRES!$E$115/896,1) -> 0 | BG92: =($A$8=9)*BG17*FLOOR($D$5*PARAMETRES!$E$115/896,1) -> 0 | BH92: =($A$8=9)*BH17*FLOOR($D$5*PARAMETRES!$E$115/896,1) -> 0 | BI92: =($A$8=9)*BI17*FLOOR($D$5*PARAMETRES!$E$115/896,1) -> 0
B94: Cäbles de renvoi / réglettes de renvoi
C95: nb de CdR mono-module | E95: =AND($A$8<=3,$D$10=1)*2*CEILING(CEILING(E38/128,1)/2,1) -> 0 | F95: =AND($A$8<=3,$D$10=1)*2*CEILING(CEILING(F38/128,1)/2,1) -> 0 | G95: 0 | H95: 0 | I95: 0 | J95: 0 | K95: 0 | L95: 0 | M95: 0 | N95: 0 | O95: 0 | P95: 2 | Q95: 2 | R95: 4 | S95: 4 | T95: 4 | U95: 4 | V95: 4 | W95: 4 | X95: 6 | Y95: 6 | Z95: 6 | AA95: 6 | AB95: 6 | AC95: 6 | AD95: 8 | AE95: 8 | AF95: 8 | AG95: 8 | AH95: 8 | AI95: 10 | AJ95: 10 | AK95: 10 | AL95: 10 | AM95: 10 | AN95: 10 | AO95: 10 | AP95: 10 | AQ95: 10 | AR95: 10 | AS95: 10 | AT95: 10 | AU95: 10 | AV95: 10 | AW95: 10 | AX95: 10 | AY95: 10 | AZ95: 10 | BA95: 10 | BB95: 12 | BC95: 12 | BD95: 12 | BE95: 12 | BF95: 12 | BG95: 12 | BH95: 12 | BI95: 12
C96: nb de CdR multi-modules | E96: =AND($A$8<=3,$D$10>1)*2*CEILING(CEILING(E38/128,1)/2,1) -> 0 | F96: =AND($A$8<=3,$D$10>1)*2*CEILING(CEILING(F38/128,1)/2,1) -> 0 | G96: 0 | H96: 0 | I96: 0 | J96: 0 | K96: 0 | L96: 0 | M96: 0 | N96: 0 | O96: 0 | P96: 0 | Q96: 0 | R96: 0 | S96: 0 | T96: 0 | U96: 0 | V96: 0 | W96: 0 | X96: 0 | Y96: 0 | Z96: 0 | AA96: 0 | AB96: 0 | AC96: 0 | AD96: 0 | AE96: 0 | AF96: 0 | AG96: 0 | AH96: 0 | AI96: 0 | AJ96: 0 | AK96: 0 | AL96: 0 | AM96: 0 | AN96: 0 | AO96: 0 | AP96: 0 | AQ96: 0 | AR96: 0 | AS96: 0 | AT96: 0 | AU96: 0 | AV96: 0 | AW96: 0 | AX96: 0 | AY96: 0 | AZ96: 0 | BA96: 0 | BB96: 0 | BC96: 0 | BD96: 0 | BE96: 0 | BF96: 0 | BG96: 0 | BH96: 0 | BI96: 0
C97: nb de réglettes de renvoi | E97: =CHOOSE($A$8,0,0,0,CEILING(E38/128,1),CEILING(E38/64,1),CEILING(E38/64,1),CEILING(E38/64,1),0,0) -> 0 | F97: =CHOOSE($A$8,0,0,0,CEILING(F38/128,1),CEILING(F38/64,1),CEILING(F38/64,1),CEILING(F38/64,1),0,0) -> 0 | G97: 0 | H97: 0 | I97: 0 | J97: 0 | K97: 0 | L97: 0 | M97: 0 | N97: 0 | O97: 0 | P97: 0 | Q97: 0 | R97: 0 | S97: 0 | T97: 0 | U97: 0 | V97: 0 | W97: 0 | X97: 0 | Y97: 0 | Z97: 0 | AA97: 0 | AB97: 0 | AC97: 0 | AD97: 0 | AE97: 0 | AF97: 0 | AG97: 0 | AH97: 0 | AI97: 0 | AJ97: 0 | AK97: 0 | AL97: 0 | AM97: 0 | AN97: 0 | AO97: 0 | AP97: 0 | AQ97: 0 | AR97: 0 | AS97: 0 | AT97: 0 | AU97: 0 | AV97: 0 | AW97: 0 | AX97: 0 | AY97: 0 | AZ97: 0 | BA97: 0 | BB97: 0 | BC97: 0 | BD97: 0 | BE97: 0 | BF97: 0 | BG97: 0 | BH97: 0 | BI97: 0
B99: Lien Intra Bâtiment
C100: nb de LIB | E100: =($A$8<=4)*PARAMETRES!$E$105*E17 -> 0 | F100: =($A$8<=4)*PARAMETRES!$E$105*F17 -> 0 | G100: =($A$8<=4)*PARAMETRES!$E$105*G17 -> 0 | H100: =($A$8<=4)*PARAMETRES!$E$105*H17 -> 0 | I100: =($A$8<=4)*PARAMETRES!$E$105*I17 -> 0 | J100: =($A$8<=4)*PARAMETRES!$E$105*J17 -> 0 | K100: =($A$8<=4)*PARAMETRES!$E$105*K17 -> 0 | L100: =($A$8<=4)*PARAMETRES!$E$105*L17 -> 0 | M100: =($A$8<=4)*PARAMETRES!$E$105*M17 -> 0 | N100: =($A$8<=4)*PARAMETRES!$E$105*N17 -> 0 | O100: =($A$8<=4)*PARAMETRES!$E$105*O17 -> 0 | P100: =($A$8<=4)*PARAMETRES!$E$105*P17 -> 2 | Q100: =($A$8<=4)*PARAMETRES!$E$105*Q17 -> 2 | R100: =($A$8<=4)*PARAMETRES!$E$105*R17 -> 2 | S100: =($A$8<=4)*PARAMETRES!$E$105*S17 -> 2 | T100: =($A$8<=4)*PARAMETRES!$E$105*T17 -> 2 | U100: =($A$8<=4)*PARAMETRES!$E$105*U17 -> 2 | V100: =($A$8<=4)*PARAMETRES!$E$105*V17 -> 2 | W100: =($A$8<=4)*PARAMETRES!$E$105*W17 -> 2 | X100: =($A$8<=4)*PARAMETRES!$E$105*X17 -> 2 | Y100: =($A$8<=4)*PARAMETRES!$E$105*Y17 -> 2 | Z100: =($A$8<=4)*PARAMETRES!$E$105*Z17 -> 2 | AA100: =($A$8<=4)*PARAMETRES!$E$105*AA17 -> 2 | AB100: =($A$8<=4)*PARAMETRES!$E$105*AB17 -> 2 | AC100: =($A$8<=4)*PARAMETRES!$E$105*AC17 -> 2 | AD100: =($A$8<=4)*PARAMETRES!$E$105*AD17 -> 2 | AE100: =($A$8<=4)*PARAMETRES!$E$105*AE17 -> 2 | AF100: =($A$8<=4)*PARAMETRES!$E$105*AF17 -> 2 | AG100: =($A$8<=4)*PARAMETRES!$E$105*AG17 -> 2 | AH100: =($A$8<=4)*PARAMETRES!$E$105*AH17 -> 2 | AI100: =($A$8<=4)*PARAMETRES!$E$105*AI17 -> 2 | AJ100: =($A$8<=4)*PARAMETRES!$E$105*AJ17 -> 2 | AK100: =($A$8<=4)*PARAMETRES!$E$105*AK17 -> 2 | AL100: =($A$8<=4)*PARAMETRES!$E$105*AL17 -> 2 | AM100: =($A$8<=4)*PARAMETRES!$E$105*AM17 -> 2 | AN100: =($A$8<=4)*PARAMETRES!$E$105*AN17 -> 2 | AO100: =($A$8<=4)*PARAMETRES!$E$105*AO17 -> 2 | AP100: =($A$8<=4)*PARAMETRES!$E$105*AP17 -> 2 | AQ100: =($A$8<=4)*PARAMETRES!$E$105*AQ17 -> 2 | AR100: =($A$8<=4)*PARAMETRES!$E$105*AR17 -> 2 | AS100: =($A$8<=4)*PARAMETRES!$E$105*AS17 -> 2 | AT100: =($A$8<=4)*PARAMETRES!$E$105*AT17 -> 2 | AU100: =($A$8<=4)*PARAMETRES!$E$105*AU17 -> 2 | AV100: =($A$8<=4)*PARAMETRES!$E$105*AV17 -> 2 | AW100: =($A$8<=4)*PARAMETRES!$E$105*AW17 -> 2 | AX100: =($A$8<=4)*PARAMETRES!$E$105*AX17 -> 2 | AY100: =($A$8<=4)*PARAMETRES!$E$105*AY17 -> 2 | AZ100: =($A$8<=4)*PARAMETRES!$E$105*AZ17 -> 2 | BA100: =($A$8<=4)*PARAMETRES!$E$105*BA17 -> 2 | BB100: =($A$8<=4)*PARAMETRES!$E$105*BB17 -> 2 | BC100: =($A$8<=4)*PARAMETRES!$E$105*BC17 -> 2 | BD100: =($A$8<=4)*PARAMETRES!$E$105*BD17 -> 2 | BE100: =($A$8<=4)*PARAMETRES!$E$105*BE17 -> 2 | BF100: =($A$8<=4)*PARAMETRES!$E$105*BF17 -> 2 | BG100: =($A$8<=4)*PARAMETRES!$E$105*BG17 -> 2 | BH100: =($A$8<=4)*PARAMETRES!$E$105*BH17 -> 2 | BI100: =($A$8<=4)*PARAMETRES!$E$105*BI17 -> 2
B102: Energie
C103: puissance effective (W) | E103: =(E48+E49)*PARAMETRES!$E$108+PARAMETRES!$E$110*(E42+E43+E44+E45)+E50*PARAMETRES!$E$109 -> 0 | F103: =(F48+F49)*PARAMETRES!$E$108+PARAMETRES!$E$110*(F42+F43+F44+F45)+F50*PARAMETRES!$E$109 -> 0 | G103: =(G48+G49)*PARAMETRES!$E$108+PARAMETRES!$E$110*(G42+G43+G44+G45)+G50*PARAMETRES!$E$109 -> 0 | H103: =(H48+H49)*PARAMETRES!$E$108+PARAMETRES!$E$110*(H42+H43+H44+H45)+H50*PARAMETRES!$E$109 -> 0 | I103: =(I48+I49)*PARAMETRES!$E$108+PARAMETRES!$E$110*(I42+I43+I44+I45)+I50*PARAMETRES!$E$109 -> 0 | J103: =(J48+J49)*PARAMETRES!$E$108+PARAMETRES!$E$110*(J42+J43+J44+J45)+J50*PARAMETRES!$E$109 -> 0 | K103: =(K48+K49)*PARAMETRES!$E$108+PARAMETRES!$E$110*(K42+K43+K44+K45)+K50*PARAMETRES!$E$109 -> 0 | L103: =(L48+L49)*PARAMETRES!$E$108+PARAMETRES!$E$110*(L42+L43+L44+L45)+L50*PARAMETRES!$E$109 -> 0 | M103: =(M48+M49)*PARAMETRES!$E$108+PARAMETRES!$E$110*(M42+M43+M44+M45)+M50*PARAMETRES!$E$109 -> 0 | N103: =(N48+N49)*PARAMETRES!$E$108+PARAMETRES!$E$110*(N42+N43+N44+N45)+N50*PARAMETRES!$E$109 -> 0 | O103: =(O48+O49)*PARAMETRES!$E$108+PARAMETRES!$E$110*(O42+O43+O44+O45)+O50*PARAMETRES!$E$109 -> 0 | P103: =(P48+P49)*PARAMETRES!$E$108+PARAMETRES!$E$110*(P42+P43+P44+P45)+P50*PARAMETRES!$E$109 -> 750 | Q103: =(Q48+Q49)*PARAMETRES!$E$108+PARAMETRES!$E$110*(Q42+Q43+Q44+Q45)+Q50*PARAMETRES!$E$109 -> 750 | R103: =(R48+R49)*PARAMETRES!$E$108+PARAMETRES!$E$110*(R42+R43+R44+R45)+R50*PARAMETRES!$E$109 -> 800 | S103: =(S48+S49)*PARAMETRES!$E$108+PARAMETRES!$E$110*(S42+S43+S44+S45)+S50*PARAMETRES!$E$109 -> 850 | T103: =(T48+T49)*PARAMETRES!$E$108+PARAMETRES!$E$110*(T42+T43+T44+T45)+T50*PARAMETRES!$E$109 -> 850 | U103: =(U48+U49)*PARAMETRES!$E$108+PARAMETRES!$E$110*(U42+U43+U44+U45)+U50*PARAMETRES!$E$109 -> 900 | V103: =(V48+V49)*PARAMETRES!$E$108+PARAMETRES!$E$110*(V42+V43+V44+V45)+V50*PARAMETRES!$E$109 -> 950 | W103: =(W48+W49)*PARAMETRES!$E$108+PARAMETRES!$E$110*(W42+W43+W44+W45)+W50*PARAMETRES!$E$109 -> 1000 | X103: =(X48+X49)*PARAMETRES!$E$108+PARAMETRES!$E$110*(X42+X43+X44+X45)+X50*PARAMETRES!$E$109 -> 1050 | Y103: =(Y48+Y49)*PARAMETRES!$E$108+PARAMETRES!$E$110*(Y42+Y43+Y44+Y45)+Y50*PARAMETRES!$E$109 -> 1100 | Z103: =(Z48+Z49)*PARAMETRES!$E$108+PARAMETRES!$E$110*(Z42+Z43+Z44+Z45)+Z50*PARAMETRES!$E$109 -> 1150 | AA103: =(AA48+AA49)*PARAMETRES!$E$108+PARAMETRES!$E$110*(AA42+AA43+AA44+AA45)+AA50*PARAMETRES!$E$109 -> 1200 | AB103: =(AB48+AB49)*PARAMETRES!$E$108+PARAMETRES!$E$110*(AB42+AB43+AB44+AB45)+AB50*PARAMETRES!$E$109 -> 1250 | AC103: =(AC48+AC49)*PARAMETRES!$E$108+PARAMETRES!$E$110*(AC42+AC43+AC44+AC45)+AC50*PARAMETRES!$E$109 -> 1300 | AD103: =(AD48+AD49)*PARAMETRES!$E$108+PARAMETRES!$E$110*(AD42+AD43+AD44+AD45)+AD50*PARAMETRES!$E$109 -> 1550 | AE103: =(AE48+AE49)*PARAMETRES!$E$108+PARAMETRES!$E$110*(AE42+AE43+AE44+AE45)+AE50*PARAMETRES!$E$109 -> 1650 | AF103: =(AF48+AF49)*PARAMETRES!$E$108+PARAMETRES!$E$110*(AF42+AF43+AF44+AF45)+AF50*PARAMETRES!$E$109 -> 1700 | AG103: =(AG48+AG49)*PARAMETRES!$E$108+PARAMETRES!$E$110*(AG42+AG43+AG44+AG45)+AG50*PARAMETRES!$E$109 -> 1750 | AH103: =(AH48+AH49)*PARAMETRES!$E$108+PARAMETRES!$E$110*(AH42+AH43+AH44+AH45)+AH50*PARAMETRES!$E$109 -> 1800 | AI103: =(AI48+AI49)*PARAMETRES!$E$108+PARAMETRES!$E$110*(AI42+AI43+AI44+AI45)+AI50*PARAMETRES!$E$109 -> 1850 | AJ103: =(AJ48+AJ49)*PARAMETRES!$E$108+PARAMETRES!$E$110*(AJ42+AJ43+AJ44+AJ45)+AJ50*PARAMETRES!$E$109 -> 1900 | AK103: =(AK48+AK49)*PARAMETRES!$E$108+PARAMETRES!$E$110*(AK42+AK43+AK44+AK45)+AK50*PARAMETRES!$E$109 -> 1900 | AL103: =(AL48+AL49)*PARAMETRES!$E$108+PARAMETRES!$E$110*(AL42+AL43+AL44+AL45)+AL50*PARAMETRES!$E$109 -> 1950 | AM103: =(AM48+AM49)*PARAMETRES!$E$108+PARAMETRES!$E$110*(AM42+AM43+AM44+AM45)+AM50*PARAMETRES!$E$109 -> 1950 | AN103: =(AN48+AN49)*PARAMETRES!$E$108+PARAMETRES!$E$110*(AN42+AN43+AN44+AN45)+AN50*PARAMETRES!$E$109 -> 1950 | AO103: =(AO48+AO49)*PARAMETRES!$E$108+PARAMETRES!$E$110*(AO42+AO43+AO44+AO45)+AO50*PARAMETRES!$E$109 -> 2000 | AP103: =(AP48+AP49)*PARAMETRES!$E$108+PARAMETRES!$E$110*(AP42+AP43+AP44+AP45)+AP50*PARAMETRES!$E$109 -> 2050 | AQ103: =(AQ48+AQ49)*PARAMETRES!$E$108+PARAMETRES!$E$110*(AQ42+AQ43+AQ44+AQ45)+AQ50*PARAMETRES!$E$109 -> 2000 | AR103: =(AR48+AR49)*PARAMETRES!$E$108+PARAMETRES!$E$110*(AR42+AR43+AR44+AR45)+AR50*PARAMETRES!$E$109 -> 1750 | AS103: =(AS48+AS49)*PARAMETRES!$E$108+PARAMETRES!$E$110*(AS42+AS43+AS44+AS45)+AS50*PARAMETRES!$E$109 -> 1750 | AT103: =(AT48+AT49)*PARAMETRES!$E$108+PARAMETRES!$E$110*(AT42+AT43+AT44+AT45)+AT50*PARAMETRES!$E$109 -> 1800 | AU103: =(AU48+AU49)*PARAMETRES!$E$108+PARAMETRES!$E$110*(AU42+AU43+AU44+AU45)+AU50*PARAMETRES!$E$109 -> 1800 | AV103: =(AV48+AV49)*PARAMETRES!$E$108+PARAMETRES!$E$110*(AV42+AV43+AV44+AV45)+AV50*PARAMETRES!$E$109 -> 1800 | AW103: =(AW48+AW49)*PARAMETRES!$E$108+PARAMETRES!$E$110*(AW42+AW43+AW44+AW45)+AW50*PARAMETRES!$E$109 -> 1800 | AX103: =(AX48+AX49)*PARAMETRES!$E$108+PARAMETRES!$E$110*(AX42+AX43+AX44+AX45)+AX50*PARAMETRES!$E$109 -> 1800 | AY103: =(AY48+AY49)*PARAMETRES!$E$108+PARAMETRES!$E$110*(AY42+AY43+AY44+AY45)+AY50*PARAMETRES!$E$109 -> 1800 | AZ103: =(AZ48+AZ49)*PARAMETRES!$E$108+PARAMETRES!$E$110*(AZ42+AZ43+AZ44+AZ45)+AZ50*PARAMETRES!$E$109 -> 1800 | BA103: =(BA48+BA49)*PARAMETRES!$E$108+PARAMETRES!$E$110*(BA42+BA43+BA44+BA45)+BA50*PARAMETRES!$E$109 -> 1800 | BB103: =(BB48+BB49)*PARAMETRES!$E$108+PARAMETRES!$E$110*(BB42+BB43+BB44+BB45)+BB50*PARAMETRES!$E$109 -> 1850 | BC103: =(BC48+BC49)*PARAMETRES!$E$108+PARAMETRES!$E$110*(BC42+BC43+BC44+BC45)+BC50*PARAMETRES!$E$109 -> 1850 | BD103: =(BD48+BD49)*PARAMETRES!$E$108+PARAMETRES!$E$110*(BD42+BD43+BD44+BD45)+BD50*PARAMETRES!$E$109 -> 1850 | BE103: =(BE48+BE49)*PARAMETRES!$E$108+PARAMETRES!$E$110*(BE42+BE43+BE44+BE45)+BE50*PARAMETRES!$E$109 -> 1850 | BF103: =(BF48+BF49)*PARAMETRES!$E$108+PARAMETRES!$E$110*(BF42+BF43+BF44+BF45)+BF50*PARAMETRES!$E$109 -> 1850 | BG103: =(BG48+BG49)*PARAMETRES!$E$108+PARAMETRES!$E$110*(BG42+BG43+BG44+BG45)+BG50*PARAMETRES!$E$109 -> 1850 | BH103: =(BH48+BH49)*PARAMETRES!$E$108+PARAMETRES!$E$110*(BH42+BH43+BH44+BH45)+BH50*PARAMETRES!$E$109 -> 1850 | BI103: =(BI48+BI49)*PARAMETRES!$E$108+PARAMETRES!$E$110*(BI42+BI43+BI44+BI45)+BI50*PARAMETRES!$E$109 -> 1850
C104: puissance commandée (W) | E104: =CEILING(E103/100,1)*100 -> 0 | F104: =CEILING(F103/100,1)*100 -> 0 | G104: 0 | H104: 0 | I104: 0 | J104: 0 | K104: 0 | L104: 0 | M104: 0 | N104: 0 | O104: 0 | P104: 800 | Q104: 800 | R104: 800 | S104: 900 | T104: 900 | U104: 900 | V104: 1000 | W104: 1000 | X104: 1100 | Y104: 1100 | Z104: 1200 | AA104: 1200 | AB104: 1300 | AC104: 1300 | AD104: 1600 | AE104: 1700 | AF104: 1700 | AG104: 1800 | AH104: 1800 | AI104: 1900 | AJ104: 1900 | AK104: 1900 | AL104: 2000 | AM104: 2000 | AN104: 2000 | AO104: 2000 | AP104: 2100 | AQ104: 2000 | AR104: 1800 | AS104: 1800 | AT104: 1800 | AU104: 1800 | AV104: 1800 | AW104: 1800 | AX104: 1800 | AY104: 1800 | AZ104: 1800 | BA104: 1800 | BB104: 1900 | BC104: 1900 | BD104: 1900 | BE104: 1900 | BF104: 1900 | BG104: 1900 | BH104: 1900 | BI104: 1900
C105: nb de climatiseurs opérateur tiers | E105: =AND($A$8<=2,$A$10=4)*E17 -> 0 | F105: =AND($A$8<=2,$A$10=4)*F17 -> 0 | G105: 0 | H105: 0 | I105: 0 | J105: 0 | K105: 0 | L105: 0 | M105: 0 | N105: 0 | O105: 0 | P105: 0 | Q105: 0 | R105: 0 | S105: 0 | T105: 0 | U105: 0 | V105: 0 | W105: 0 | X105: 0 | Y105: 0 | Z105: 0 | AA105: 0 | AB105: 0 | AC105: 0 | AD105: 0 | AE105: 0 | AF105: 0 | AG105: 0 | AH105: 0 | AI105: 0 | AJ105: 0 | AK105: 0 | AL105: 0 | AM105: 0 | AN105: 0 | AO105: 0 | AP105: 0 | AQ105: 0 | AR105: 0 | AS105: 0 | AT105: 0 | AU105: 0 | AV105: 0 | AW105: 0 | AX105: 0 | AY105: 0 | AZ105: 0 | BA105: 0 | BB105: 0 | BC105: 0 | BD105: 0 | BE105: 0 | BF105: 0 | BG105: 0 | BH105: 0 | BI105: 0
A107: CAPEX
B108: CAPEX - lignes
C109: FAS - résidentiel | E109: =CEILING(MAX(0,E24-D24)+PARAMETRES!$E$32*E24,1)*(PARAMETRES!$E$17*INDEX('ODR DEGROUPAGE'!$E$6:$V$6,1,E$16)+PARAMETRES!$E$18*INDEX('ODR DEGROUPAGE'!$E$9:$V$9,1,E$16)) -> 0 | F109: =CEILING(MAX(0,F24-E24)+PARAMETRES!$E$32*F24,1)*(PARAMETRES!$E$17*INDEX('ODR DEGROUPAGE'!$E$6:$V$6,1,F$16)+PARAMETRES!$E$18*INDEX('ODR DEGROUPAGE'!$E$9:$V$9,1,F$16)) -> 0 | G109: =CEILING(MAX(0,G24-F24)+PARAMETRES!$E$32*G24,1)*(PARAMETRES!$E$17*INDEX('ODR DEGROUPAGE'!$E$6:$V$6,1,G$16)+PARAMETRES!$E$18*INDEX('ODR DEGROUPAGE'!$E$9:$V$9,1,G$16)) -> 0 | H109: =CEILING(MAX(0,H24-G24)+PARAMETRES!$E$32*H24,1)*(PARAMETRES!$E$17*INDEX('ODR DEGROUPAGE'!$E$6:$V$6,1,H$16)+PARAMETRES!$E$18*INDEX('ODR DEGROUPAGE'!$E$9:$V$9,1,H$16)) -> 0 | I109: =CEILING(MAX(0,I24-H24)+PARAMETRES!$E$32*I24,1)*(PARAMETRES!$E$17*INDEX('ODR DEGROUPAGE'!$E$6:$V$6,1,I$16)+PARAMETRES!$E$18*INDEX('ODR DEGROUPAGE'!$E$9:$V$9,1,I$16)) -> 0 | J109: =CEILING(MAX(0,J24-I24)+PARAMETRES!$E$32*J24,1)*(PARAMETRES!$E$17*INDEX('ODR DEGROUPAGE'!$E$6:$V$6,1,J$16)+PARAMETRES!$E$18*INDEX('ODR DEGROUPAGE'!$E$9:$V$9,1,J$16)) -> 0 | K109: =CEILING(MAX(0,K24-J24)+PARAMETRES!$E$32*K24,1)*(PARAMETRES!$E$17*INDEX('ODR DEGROUPAGE'!$E$6:$V$6,1,K$16)+PARAMETRES!$E$18*INDEX('ODR DEGROUPAGE'!$E$9:$V$9,1,K$16)) -> 0 | L109: =CEILING(MAX(0,L24-K24)+PARAMETRES!$E$32*L24,1)*(PARAMETRES!$E$17*INDEX('ODR DEGROUPAGE'!$E$6:$V$6,1,L$16)+PARAMETRES!$E$18*INDEX('ODR DEGROUPAGE'!$E$9:$V$9,1,L$16)) -> 0 | M109: =CEILING(MAX(0,M24-L24)+PARAMETRES!$E$32*M24,1)*(PARAMETRES!$E$17*INDEX('ODR DEGROUPAGE'!$E$6:$V$6,1,M$16)+PARAMETRES!$E$18*INDEX('ODR DEGROUPAGE'!$E$9:$V$9,1,M$16)) -> 0 | N109: =CEILING(MAX(0,N24-M24)+PARAMETRES!$E$32*N24,1)*(PARAMETRES!$E$17*INDEX('ODR DEGROUPAGE'!$E$6:$V$6,1,N$16)+PARAMETRES!$E$18*INDEX('ODR DEGROUPAGE'!$E$9:$V$9,1,N$16)) -> 0 | O109: =CEILING(MAX(0,O24-N24)+PARAMETRES!$E$32*O24,1)*(PARAMETRES!$E$17*INDEX('ODR DEGROUPAGE'!$E$6:$V$6,1,O$16)+PARAMETRES!$E$18*INDEX('ODR DEGROUPAGE'!$E$9:$V$9,1,O$16)) -> 0 | P109: =CEILING(MAX(0,P24-O24)+PARAMETRES!$E$32*P24,1)*(PARAMETRES!$E$17*INDEX('ODR DEGROUPAGE'!$E$6:$V$6,1,P$16)+PARAMETRES!$E$18*INDEX('ODR DEGROUPAGE'!$E$9:$V$9,1,P$16)) -> 9950 | Q109: =CEILING(MAX(0,Q24-P24)+PARAMETRES!$E$32*Q24,1)*(PARAMETRES!$E$17*INDEX('ODR DEGROUPAGE'!$E$6:$V$6,1,Q$16)+PARAMETRES!$E$18*INDEX('ODR DEGROUPAGE'!$E$9:$V$9,1,Q$16)) -> 1850 | R109: =CEILING(MAX(0,R24-Q24)+PARAMETRES!$E$32*R24,1)*(PARAMETRES!$E$17*INDEX('ODR DEGROUPAGE'!$E$6:$V$6,1,R$16)+PARAMETRES!$E$18*INDEX('ODR DEGROUPAGE'!$E$9:$V$9,1,R$16)) -> 1950 | S109: =CEILING(MAX(0,S24-R24)+PARAMETRES!$E$32*S24,1)*(PARAMETRES!$E$17*INDEX('ODR DEGROUPAGE'!$E$6:$V$6,1,S$16)+PARAMETRES!$E$18*INDEX('ODR DEGROUPAGE'!$E$9:$V$9,1,S$16)) -> 2100 | T109: =CEILING(MAX(0,T24-S24)+PARAMETRES!$E$32*T24,1)*(PARAMETRES!$E$17*INDEX('ODR DEGROUPAGE'!$E$6:$V$6,1,T$16)+PARAMETRES!$E$18*INDEX('ODR DEGROUPAGE'!$E$9:$V$9,1,T$16)) -> 2250 | U109: =CEILING(MAX(0,U24-T24)+PARAMETRES!$E$32*U24,1)*(PARAMETRES!$E$17*INDEX('ODR DEGROUPAGE'!$E$6:$V$6,1,U$16)+PARAMETRES!$E$18*INDEX('ODR DEGROUPAGE'!$E$9:$V$9,1,U$16)) -> 2400 | V109: =CEILING(MAX(0,V24-U24)+PARAMETRES!$E$32*V24,1)*(PARAMETRES!$E$17*INDEX('ODR DEGROUPAGE'!$E$6:$V$6,1,V$16)+PARAMETRES!$E$18*INDEX('ODR DEGROUPAGE'!$E$9:$V$9,1,V$16)) -> 2500 | W109: =CEILING(MAX(0,W24-V24)+PARAMETRES!$E$32*W24,1)*(PARAMETRES!$E$17*INDEX('ODR DEGROUPAGE'!$E$6:$V$6,1,W$16)+PARAMETRES!$E$18*INDEX('ODR DEGROUPAGE'!$E$9:$V$9,1,W$16)) -> 2650 | X109: =CEILING(MAX(0,X24-W24)+PARAMETRES!$E$32*X24,1)*(PARAMETRES!$E$17*INDEX('ODR DEGROUPAGE'!$E$6:$V$6,1,X$16)+PARAMETRES!$E$18*INDEX('ODR DEGROUPAGE'!$E$9:$V$9,1,X$16)) -> 2800 | Y109: =CEILING(MAX(0,Y24-X24)+PARAMETRES!$E$32*Y24,1)*(PARAMETRES!$E$17*INDEX('ODR DEGROUPAGE'!$E$6:$V$6,1,Y$16)+PARAMETRES!$E$18*INDEX('ODR DEGROUPAGE'!$E$9:$V$9,1,Y$16)) -> 2900 | Z109: =CEILING(MAX(0,Z24-Y24)+PARAMETRES!$E$32*Z24,1)*(PARAMETRES!$E$17*INDEX('ODR DEGROUPAGE'!$E$6:$V$6,1,Z$16)+PARAMETRES!$E$18*INDEX('ODR DEGROUPAGE'!$E$9:$V$9,1,Z$16)) -> 3050 | AA109: =CEILING(MAX(0,AA24-Z24)+PARAMETRES!$E$32*AA24,1)*(PARAMETRES!$E$17*INDEX('ODR DEGROUPAGE'!$E$6:$V$6,1,AA$16)+PARAMETRES!$E$18*INDEX('ODR DEGROUPAGE'!$E$9:$V$9,1,AA$16)) -> 3150 | AB109: =CEILING(MAX(0,AB24-AA24)+PARAMETRES!$E$32*AB24,1)*(PARAMETRES!$E$17*INDEX('ODR DEGROUPAGE'!$E$6:$V$6,1,AB$16)+PARAMETRES!$E$18*INDEX('ODR DEGROUPAGE'!$E$9:$V$9,1,AB$16)) -> 3300 | AC109: =CEILING(MAX(0,AC24-AB24)+PARAMETRES!$E$32*AC24,1)*(PARAMETRES!$E$17*INDEX('ODR DEGROUPAGE'!$E$6:$V$6,1,AC$16)+PARAMETRES!$E$18*INDEX('ODR DEGROUPAGE'!$E$9:$V$9,1,AC$16)) -> 3350 | AD109: =CEILING(MAX(0,AD24-AC24)+PARAMETRES!$E$32*AD24,1)*(PARAMETRES!$E$17*INDEX('ODR DEGROUPAGE'!$E$6:$V$6,1,AD$16)+PARAMETRES!$E$18*INDEX('ODR DEGROUPAGE'!$E$9:$V$9,1,AD$16)) -> 3400 | AE109: =CEILING(MAX(0,AE24-AD24)+PARAMETRES!$E$32*AE24,1)*(PARAMETRES!$E$17*INDEX('ODR DEGROUPAGE'!$E$6:$V$6,1,AE$16)+PARAMETRES!$E$18*INDEX('ODR DEGROUPAGE'!$E$9:$V$9,1,AE$16)) -> 3500 | AF109: =CEILING(MAX(0,AF24-AE24)+PARAMETRES!$E$32*AF24,1)*(PARAMETRES!$E$17*INDEX('ODR DEGROUPAGE'!$E$6:$V$6,1,AF$16)+PARAMETRES!$E$18*INDEX('ODR DEGROUPAGE'!$E$9:$V$9,1,AF$16)) -> 3600 | AG109: =CEILING(MAX(0,AG24-AF24)+PARAMETRES!$E$32*AG24,1)*(PARAMETRES!$E$17*INDEX('ODR DEGROUPAGE'!$E$6:$V$6,1,AG$16)+PARAMETRES!$E$18*INDEX('ODR DEGROUPAGE'!$E$9:$V$9,1,AG$16)) -> 3700 | AH109: =CEILING(MAX(0,AH24-AG24)+PARAMETRES!$E$32*AH24,1)*(PARAMETRES!$E$17*INDEX('ODR DEGROUPAGE'!$E$6:$V$6,1,AH$16)+PARAMETRES!$E$18*INDEX('ODR DEGROUPAGE'!$E$9:$V$9,1,AH$16)) -> 3650 | AI109: =CEILING(MAX(0,AI24-AH24)+PARAMETRES!$E$32*AI24,1)*(PARAMETRES!$E$17*INDEX('ODR DEGROUPAGE'!$E$6:$V$6,1,AI$16)+PARAMETRES!$E$18*INDEX('ODR DEGROUPAGE'!$E$9:$V$9,1,AI$16)) -> 3750 | AJ109: =CEILING(MAX(0,AJ24-AI24)+PARAMETRES!$E$32*AJ24,1)*(PARAMETRES!$E$17*INDEX('ODR DEGROUPAGE'!$E$6:$V$6,1,AJ$16)+PARAMETRES!$E$18*INDEX('ODR DEGROUPAGE'!$E$9:$V$9,1,AJ$16)) -> 3700 | AK109: =CEILING(MAX(0,AK24-AJ24)+PARAMETRES!$E$32*AK24,1)*(PARAMETRES!$E$17*INDEX('ODR DEGROUPAGE'!$E$6:$V$6,1,AK$16)+PARAMETRES!$E$18*INDEX('ODR DEGROUPAGE'!$E$9:$V$9,1,AK$16)) -> 2250 | AL109: =CEILING(MAX(0,AL24-AK24)+PARAMETRES!$E$32*AL24,1)*(PARAMETRES!$E$17*INDEX('ODR DEGROUPAGE'!$E$6:$V$6,1,AL$16)+PARAMETRES!$E$18*INDEX('ODR DEGROUPAGE'!$E$9:$V$9,1,AL$16)) -> 2100 | AM109: =CEILING(MAX(0,AM24-AL24)+PARAMETRES!$E$32*AM24,1)*(PARAMETRES!$E$17*INDEX('ODR DEGROUPAGE'!$E$6:$V$6,1,AM$16)+PARAMETRES!$E$18*INDEX('ODR DEGROUPAGE'!$E$9:$V$9,1,AM$16)) -> 2150 | AN109: =CEILING(MAX(0,AN24-AM24)+PARAMETRES!$E$32*AN24,1)*(PARAMETRES!$E$17*INDEX('ODR DEGROUPAGE'!$E$6:$V$6,1,AN$16)+PARAMETRES!$E$18*INDEX('ODR DEGROUPAGE'!$E$9:$V$9,1,AN$16)) -> 2050 | AO109: =CEILING(MAX(0,AO24-AN24)+PARAMETRES!$E$32*AO24,1)*(PARAMETRES!$E$17*INDEX('ODR DEGROUPAGE'!$E$6:$V$6,1,AO$16)+PARAMETRES!$E$18*INDEX('ODR DEGROUPAGE'!$E$9:$V$9,1,AO$16)) -> 2296 | AP109: =CEILING(MAX(0,AP24-AO24)+PARAMETRES!$E$32*AP24,1)*(PARAMETRES!$E$17*INDEX('ODR DEGROUPAGE'!$E$6:$V$6,1,AP$16)+PARAMETRES!$E$18*INDEX('ODR DEGROUPAGE'!$E$9:$V$9,1,AP$16)) -> 2184 | AQ109: =CEILING(MAX(0,AQ24-AP24)+PARAMETRES!$E$32*AQ24,1)*(PARAMETRES!$E$17*INDEX('ODR DEGROUPAGE'!$E$6:$V$6,1,AQ$16)+PARAMETRES!$E$18*INDEX('ODR DEGROUPAGE'!$E$9:$V$9,1,AQ$16)) -> 2240 | AR109: =CEILING(MAX(0,AR24-AQ24)+PARAMETRES!$E$32*AR24,1)*(PARAMETRES!$E$17*INDEX('ODR DEGROUPAGE'!$E$6:$V$6,1,AR$16)+PARAMETRES!$E$18*INDEX('ODR DEGROUPAGE'!$E$9:$V$9,1,AR$16)) -> 2184 | AS109: =CEILING(MAX(0,AS24-AR24)+PARAMETRES!$E$32*AS24,1)*(PARAMETRES!$E$17*INDEX('ODR DEGROUPAGE'!$E$6:$V$6,1,AS$16)+PARAMETRES!$E$18*INDEX('ODR DEGROUPAGE'!$E$9:$V$9,1,AS$16)) -> 2072 | AT109: =CEILING(MAX(0,AT24-AS24)+PARAMETRES!$E$32*AT24,1)*(PARAMETRES!$E$17*INDEX('ODR DEGROUPAGE'!$E$6:$V$6,1,AT$16)+PARAMETRES!$E$18*INDEX('ODR DEGROUPAGE'!$E$9:$V$9,1,AT$16)) -> 2072 | AU109: =CEILING(MAX(0,AU24-AT24)+PARAMETRES!$E$32*AU24,1)*(PARAMETRES!$E$17*INDEX('ODR DEGROUPAGE'!$E$6:$V$6,1,AU$16)+PARAMETRES!$E$18*INDEX('ODR DEGROUPAGE'!$E$9:$V$9,1,AU$16)) -> 2128 | AV109: =CEILING(MAX(0,AV24-AU24)+PARAMETRES!$E$32*AV24,1)*(PARAMETRES!$E$17*INDEX('ODR DEGROUPAGE'!$E$6:$V$6,1,AV$16)+PARAMETRES!$E$18*INDEX('ODR DEGROUPAGE'!$E$9:$V$9,1,AV$16)) -> 2072 | AW109: =CEILING(MAX(0,AW24-AV24)+PARAMETRES!$E$32*AW24,1)*(PARAMETRES!$E$17*INDEX('ODR DEGROUPAGE'!$E$6:$V$6,1,AW$16)+PARAMETRES!$E$18*INDEX('ODR DEGROUPAGE'!$E$9:$V$9,1,AW$16)) -> 2016 | AX109: =CEILING(MAX(0,AX24-AW24)+PARAMETRES!$E$32*AX24,1)*(PARAMETRES!$E$17*INDEX('ODR DEGROUPAGE'!$E$6:$V$6,1,AX$16)+PARAMETRES!$E$18*INDEX('ODR DEGROUPAGE'!$E$9:$V$9,1,AX$16)) -> 2016 | AY109: =CEILING(MAX(0,AY24-AX24)+PARAMETRES!$E$32*AY24,1)*(PARAMETRES!$E$17*INDEX('ODR DEGROUPAGE'!$E$6:$V$6,1,AY$16)+PARAMETRES!$E$18*INDEX('ODR DEGROUPAGE'!$E$9:$V$9,1,AY$16)) -> 1960 | AZ109: =CEILING(MAX(0,AZ24-AY24)+PARAMETRES!$E$32*AZ24,1)*(PARAMETRES!$E$17*INDEX('ODR DEGROUPAGE'!$E$6:$V$6,1,AZ$16)+PARAMETRES!$E$18*INDEX('ODR DEGROUPAGE'!$E$9:$V$9,1,AZ$16)) -> 1904 | BA109: =CEILING(MAX(0,BA24-AZ24)+PARAMETRES!$E$32*BA24,1)*(PARAMETRES!$E$17*INDEX('ODR DEGROUPAGE'!$E$6:$V$6,1,BA$16)+PARAMETRES!$E$18*INDEX('ODR DEGROUPAGE'!$E$9:$V$9,1,BA$16)) -> 1960 | BB109: =CEILING(MAX(0,BB24-BA24)+PARAMETRES!$E$32*BB24,1)*(PARAMETRES!$E$17*INDEX('ODR DEGROUPAGE'!$E$6:$V$6,1,BB$16)+PARAMETRES!$E$18*INDEX('ODR DEGROUPAGE'!$E$9:$V$9,1,BB$16)) -> 1904 | BC109: =CEILING(MAX(0,BC24-BB24)+PARAMETRES!$E$32*BC24,1)*(PARAMETRES!$E$17*INDEX('ODR DEGROUPAGE'!$E$6:$V$6,1,BC$16)+PARAMETRES!$E$18*INDEX('ODR DEGROUPAGE'!$E$9:$V$9,1,BC$16)) -> 1904 | BD109: =CEILING(MAX(0,BD24-BC24)+PARAMETRES!$E$32*BD24,1)*(PARAMETRES!$E$17*INDEX('ODR DEGROUPAGE'!$E$6:$V$6,1,BD$16)+PARAMETRES!$E$18*INDEX('ODR DEGROUPAGE'!$E$9:$V$9,1,BD$16)) -> 1904 | BE109: =CEILING(MAX(0,BE24-BD24)+PARAMETRES!$E$32*BE24,1)*(PARAMETRES!$E$17*INDEX('ODR DEGROUPAGE'!$E$6:$V$6,1,BE$16)+PARAMETRES!$E$18*INDEX('ODR DEGROUPAGE'!$E$9:$V$9,1,BE$16)) -> 1904 | BF109: =CEILING(MAX(0,BF24-BE24)+PARAMETRES!$E$32*BF24,1)*(PARAMETRES!$E$17*INDEX('ODR DEGROUPAGE'!$E$6:$V$6,1,BF$16)+PARAMETRES!$E$18*INDEX('ODR DEGROUPAGE'!$E$9:$V$9,1,BF$16)) -> 1904 | BG109: =CEILING(MAX(0,BG24-BF24)+PARAMETRES!$E$32*BG24,1)*(PARAMETRES!$E$17*INDEX('ODR DEGROUPAGE'!$E$6:$V$6,1,BG$16)+PARAMETRES!$E$18*INDEX('ODR DEGROUPAGE'!$E$9:$V$9,1,BG$16)) -> 1848 | BH109: =CEILING(MAX(0,BH24-BG24)+PARAMETRES!$E$32*BH24,1)*(PARAMETRES!$E$17*INDEX('ODR DEGROUPAGE'!$E$6:$V$6,1,BH$16)+PARAMETRES!$E$18*INDEX('ODR DEGROUPAGE'!$E$9:$V$9,1,BH$16)) -> 1904 | BI109: =CEILING(MAX(0,BI24-BH24)+PARAMETRES!$E$32*BI24,1)*(PARAMETRES!$E$17*INDEX('ODR DEGROUPAGE'!$E$6:$V$6,1,BI$16)+PARAMETRES!$E$18*INDEX('ODR DEGROUPAGE'!$E$9:$V$9,1,BI$16)) -> 1848
C110: frais de résilliation - résidentiel | E110: =CEILING(E24*PARAMETRES!$E$32*PARAMETRES!$E$35,1)*(PARAMETRES!$E$17*INDEX('ODR DEGROUPAGE'!$E$12:$V$12,1,E$16)+PARAMETRES!$E$18*INDEX('ODR DEGROUPAGE'!$E$13:$V$13,1,E$16)) -> 0 | F110: =CEILING(F24*PARAMETRES!$E$32*PARAMETRES!$E$35,1)*(PARAMETRES!$E$17*INDEX('ODR DEGROUPAGE'!$E$12:$V$12,1,F$16)+PARAMETRES!$E$18*INDEX('ODR DEGROUPAGE'!$E$13:$V$13,1,F$16)) -> 0 | G110: =CEILING(G24*PARAMETRES!$E$32*PARAMETRES!$E$35,1)*(PARAMETRES!$E$17*INDEX('ODR DEGROUPAGE'!$E$12:$V$12,1,G$16)+PARAMETRES!$E$18*INDEX('ODR DEGROUPAGE'!$E$13:$V$13,1,G$16)) -> 0 | H110: =CEILING(H24*PARAMETRES!$E$32*PARAMETRES!$E$35,1)*(PARAMETRES!$E$17*INDEX('ODR DEGROUPAGE'!$E$12:$V$12,1,H$16)+PARAMETRES!$E$18*INDEX('ODR DEGROUPAGE'!$E$13:$V$13,1,H$16)) -> 0 | I110: =CEILING(I24*PARAMETRES!$E$32*PARAMETRES!$E$35,1)*(PARAMETRES!$E$17*INDEX('ODR DEGROUPAGE'!$E$12:$V$12,1,I$16)+PARAMETRES!$E$18*INDEX('ODR DEGROUPAGE'!$E$13:$V$13,1,I$16)) -> 0 | J110: =CEILING(J24*PARAMETRES!$E$32*PARAMETRES!$E$35,1)*(PARAMETRES!$E$17*INDEX('ODR DEGROUPAGE'!$E$12:$V$12,1,J$16)+PARAMETRES!$E$18*INDEX('ODR DEGROUPAGE'!$E$13:$V$13,1,J$16)) -> 0 | K110: =CEILING(K24*PARAMETRES!$E$32*PARAMETRES!$E$35,1)*(PARAMETRES!$E$17*INDEX('ODR DEGROUPAGE'!$E$12:$V$12,1,K$16)+PARAMETRES!$E$18*INDEX('ODR DEGROUPAGE'!$E$13:$V$13,1,K$16)) -> 0 | L110: =CEILING(L24*PARAMETRES!$E$32*PARAMETRES!$E$35,1)*(PARAMETRES!$E$17*INDEX('ODR DEGROUPAGE'!$E$12:$V$12,1,L$16)+PARAMETRES!$E$18*INDEX('ODR DEGROUPAGE'!$E$13:$V$13,1,L$16)) -> 0 | M110: =CEILING(M24*PARAMETRES!$E$32*PARAMETRES!$E$35,1)*(PARAMETRES!$E$17*INDEX('ODR DEGROUPAGE'!$E$12:$V$12,1,M$16)+PARAMETRES!$E$18*INDEX('ODR DEGROUPAGE'!$E$13:$V$13,1,M$16)) -> 0 | N110: =CEILING(N24*PARAMETRES!$E$32*PARAMETRES!$E$35,1)*(PARAMETRES!$E$17*INDEX('ODR DEGROUPAGE'!$E$12:$V$12,1,N$16)+PARAMETRES!$E$18*INDEX('ODR DEGROUPAGE'!$E$13:$V$13,1,N$16)) -> 0 | O110: =CEILING(O24*PARAMETRES!$E$32*PARAMETRES!$E$35,1)*(PARAMETRES!$E$17*INDEX('ODR DEGROUPAGE'!$E$12:$V$12,1,O$16)+PARAMETRES!$E$18*INDEX('ODR DEGROUPAGE'!$E$13:$V$13,1,O$16)) -> 0 | P110: =CEILING(P24*PARAMETRES!$E$32*PARAMETRES!$E$35,1)*(PARAMETRES!$E$17*INDEX('ODR DEGROUPAGE'!$E$12:$V$12,1,P$16)+PARAMETRES!$E$18*INDEX('ODR DEGROUPAGE'!$E$13:$V$13,1,P$16)) -> 30 | Q110: =CEILING(Q24*PARAMETRES!$E$32*PARAMETRES!$E$35,1)*(PARAMETRES!$E$17*INDEX('ODR DEGROUPAGE'!$E$12:$V$12,1,Q$16)+PARAMETRES!$E$18*INDEX('ODR DEGROUPAGE'!$E$13:$V$13,1,Q$16)) -> 30 | R110: =CEILING(R24*PARAMETRES!$E$32*PARAMETRES!$E$35,1)*(PARAMETRES!$E$17*INDEX('ODR DEGROUPAGE'!$E$12:$V$12,1,R$16)+PARAMETRES!$E$18*INDEX('ODR DEGROUPAGE'!$E$13:$V$13,1,R$16)) -> 30 | S110: =CEILING(S24*PARAMETRES!$E$32*PARAMETRES!$E$35,1)*(PARAMETRES!$E$17*INDEX('ODR DEGROUPAGE'!$E$12:$V$12,1,S$16)+PARAMETRES!$E$18*INDEX('ODR DEGROUPAGE'!$E$13:$V$13,1,S$16)) -> 60 | T110: =CEILING(T24*PARAMETRES!$E$32*PARAMETRES!$E$35,1)*(PARAMETRES!$E$17*INDEX('ODR DEGROUPAGE'!$E$12:$V$12,1,T$16)+PARAMETRES!$E$18*INDEX('ODR DEGROUPAGE'!$E$13:$V$13,1,T$16)) -> 60 | U110: =CEILING(U24*PARAMETRES!$E$32*PARAMETRES!$E$35,1)*(PARAMETRES!$E$17*INDEX('ODR DEGROUPAGE'!$E$12:$V$12,1,U$16)+PARAMETRES!$E$18*INDEX('ODR DEGROUPAGE'!$E$13:$V$13,1,U$16)) -> 60 | V110: =CEILING(V24*PARAMETRES!$E$32*PARAMETRES!$E$35,1)*(PARAMETRES!$E$17*INDEX('ODR DEGROUPAGE'!$E$12:$V$12,1,V$16)+PARAMETRES!$E$18*INDEX('ODR DEGROUPAGE'!$E$13:$V$13,1,V$16)) -> 60 | W110: =CEILING(W24*PARAMETRES!$E$32*PARAMETRES!$E$35,1)*(PARAMETRES!$E$17*INDEX('ODR DEGROUPAGE'!$E$12:$V$12,1,W$16)+PARAMETRES!$E$18*INDEX('ODR DEGROUPAGE'!$E$13:$V$13,1,W$16)) -> 60 | X110: =CEILING(X24*PARAMETRES!$E$32*PARAMETRES!$E$35,1)*(PARAMETRES!$E$17*INDEX('ODR DEGROUPAGE'!$E$12:$V$12,1,X$16)+PARAMETRES!$E$18*INDEX('ODR DEGROUPAGE'!$E$13:$V$13,1,X$16)) -> 60 | Y110: =CEILING(Y24*PARAMETRES!$E$32*PARAMETRES!$E$35,1)*(PARAMETRES!$E$17*INDEX('ODR DEGROUPAGE'!$E$12:$V$12,1,Y$16)+PARAMETRES!$E$18*INDEX('ODR DEGROUPAGE'!$E$13:$V$13,1,Y$16)) -> 60 | Z110: =CEILING(Z24*PARAMETRES!$E$32*PARAMETRES!$E$35,1)*(PARAMETRES!$E$17*INDEX('ODR DEGROUPAGE'!$E$12:$V$12,1,Z$16)+PARAMETRES!$E$18*INDEX('ODR DEGROUPAGE'!$E$13:$V$13,1,Z$16)) -> 90 | AA110: =CEILING(AA24*PARAMETRES!$E$32*PARAMETRES!$E$35,1)*(PARAMETRES!$E$17*INDEX('ODR DEGROUPAGE'!$E$12:$V$12,1,AA$16)+PARAMETRES!$E$18*INDEX('ODR DEGROUPAGE'!$E$13:$V$13,1,AA$16)) -> 45 | AB110: =CEILING(AB24*PARAMETRES!$E$32*PARAMETRES!$E$35,1)*(PARAMETRES!$E$17*INDEX('ODR DEGROUPAGE'!$E$12:$V$12,1,AB$16)+PARAMETRES!$E$18*INDEX('ODR DEGROUPAGE'!$E$13:$V$13,1,AB$16)) -> 45 | AC110: =CEILING(AC24*PARAMETRES!$E$32*PARAMETRES!$E$35,1)*(PARAMETRES!$E$17*INDEX('ODR DEGROUPAGE'!$E$12:$V$12,1,AC$16)+PARAMETRES!$E$18*INDEX('ODR DEGROUPAGE'!$E$13:$V$13,1,AC$16)) -> 45 | AD110: =CEILING(AD24*PARAMETRES!$E$32*PARAMETRES!$E$35,1)*(PARAMETRES!$E$17*INDEX('ODR DEGROUPAGE'!$E$12:$V$12,1,AD$16)+PARAMETRES!$E$18*INDEX('ODR DEGROUPAGE'!$E$13:$V$13,1,AD$16)) -> 45 | AE110: =CEILING(AE24*PARAMETRES!$E$32*PARAMETRES!$E$35,1)*(PARAMETRES!$E$17*INDEX('ODR DEGROUPAGE'!$E$12:$V$12,1,AE$16)+PARAMETRES!$E$18*INDEX('ODR DEGROUPAGE'!$E$13:$V$13,1,AE$16)) -> 45 | AF110: =CEILING(AF24*PARAMETRES!$E$32*PARAMETRES!$E$35,1)*(PARAMETRES!$E$17*INDEX('ODR DEGROUPAGE'!$E$12:$V$12,1,AF$16)+PARAMETRES!$E$18*INDEX('ODR DEGROUPAGE'!$E$13:$V$13,1,AF$16)) -> 60 | AG110: =CEILING(AG24*PARAMETRES!$E$32*PARAMETRES!$E$35,1)*(PARAMETRES!$E$17*INDEX('ODR DEGROUPAGE'!$E$12:$V$12,1,AG$16)+PARAMETRES!$E$18*INDEX('ODR DEGROUPAGE'!$E$13:$V$13,1,AG$16)) -> 60 | AH110: =CEILING(AH24*PARAMETRES!$E$32*PARAMETRES!$E$35,1)*(PARAMETRES!$E$17*INDEX('ODR DEGROUPAGE'!$E$12:$V$12,1,AH$16)+PARAMETRES!$E$18*INDEX('ODR DEGROUPAGE'!$E$13:$V$13,1,AH$16)) -> 60 | AI110: =CEILING(AI24*PARAMETRES!$E$32*PARAMETRES!$E$35,1)*(PARAMETRES!$E$17*INDEX('ODR DEGROUPAGE'!$E$12:$V$12,1,AI$16)+PARAMETRES!$E$18*INDEX('ODR DEGROUPAGE'!$E$13:$V$13,1,AI$16)) -> 60 | AJ110: =CEILING(AJ24*PARAMETRES!$E$32*PARAMETRES!$E$35,1)*(PARAMETRES!$E$17*INDEX('ODR DEGROUPAGE'!$E$12:$V$12,1,AJ$16)+PARAMETRES!$E$18*INDEX('ODR DEGROUPAGE'!$E$13:$V$13,1,AJ$16)) -> 60 | AK110: =CEILING(AK24*PARAMETRES!$E$32*PARAMETRES!$E$35,1)*(PARAMETRES!$E$17*INDEX('ODR DEGROUPAGE'!$E$12:$V$12,1,AK$16)+PARAMETRES!$E$18*INDEX('ODR DEGROUPAGE'!$E$13:$V$13,1,AK$16)) -> 60 | AL110: =CEILING(AL24*PARAMETRES!$E$32*PARAMETRES!$E$35,1)*(PARAMETRES!$E$17*INDEX('ODR DEGROUPAGE'!$E$12:$V$12,1,AL$16)+PARAMETRES!$E$18*INDEX('ODR DEGROUPAGE'!$E$13:$V$13,1,AL$16)) -> 75 | AM110: =CEILING(AM24*PARAMETRES!$E$32*PARAMETRES!$E$35,1)*(PARAMETRES!$E$17*INDEX('ODR DEGROUPAGE'!$E$12:$V$12,1,AM$16)+PARAMETRES!$E$18*INDEX('ODR DEGROUPAGE'!$E$13:$V$13,1,AM$16)) -> 75 | AN110: =CEILING(AN24*PARAMETRES!$E$32*PARAMETRES!$E$35,1)*(PARAMETRES!$E$17*INDEX('ODR DEGROUPAGE'!$E$12:$V$12,1,AN$16)+PARAMETRES!$E$18*INDEX('ODR DEGROUPAGE'!$E$13:$V$13,1,AN$16)) -> 75 | AO110: =CEILING(AO24*PARAMETRES!$E$32*PARAMETRES!$E$35,1)*(PARAMETRES!$E$17*INDEX('ODR DEGROUPAGE'!$E$12:$V$12,1,AO$16)+PARAMETRES!$E$18*INDEX('ODR DEGROUPAGE'!$E$13:$V$13,1,AO$16)) -> 100 | AP110: =CEILING(AP24*PARAMETRES!$E$32*PARAMETRES!$E$35,1)*(PARAMETRES!$E$17*INDEX('ODR DEGROUPAGE'!$E$12:$V$12,1,AP$16)+PARAMETRES!$E$18*INDEX('ODR DEGROUPAGE'!$E$13:$V$13,1,AP$16)) -> 100 | AQ110: =CEILING(AQ24*PARAMETRES!$E$32*PARAMETRES!$E$35,1)*(PARAMETRES!$E$17*INDEX('ODR DEGROUPAGE'!$E$12:$V$12,1,AQ$16)+PARAMETRES!$E$18*INDEX('ODR DEGROUPAGE'!$E$13:$V$13,1,AQ$16)) -> 100 | AR110: =CEILING(AR24*PARAMETRES!$E$32*PARAMETRES!$E$35,1)*(PARAMETRES!$E$17*INDEX('ODR DEGROUPAGE'!$E$12:$V$12,1,AR$16)+PARAMETRES!$E$18*INDEX('ODR DEGROUPAGE'!$E$13:$V$13,1,AR$16)) -> 100 | AS110: =CEILING(AS24*PARAMETRES!$E$32*PARAMETRES!$E$35,1)*(PARAMETRES!$E$17*INDEX('ODR DEGROUPAGE'!$E$12:$V$12,1,AS$16)+PARAMETRES!$E$18*INDEX('ODR DEGROUPAGE'!$E$13:$V$13,1,AS$16)) -> 100 | AT110: =CEILING(AT24*PARAMETRES!$E$32*PARAMETRES!$E$35,1)*(PARAMETRES!$E$17*INDEX('ODR DEGROUPAGE'!$E$12:$V$12,1,AT$16)+PARAMETRES!$E$18*INDEX('ODR DEGROUPAGE'!$E$13:$V$13,1,AT$16)) -> 100 | AU110: =CEILING(AU24*PARAMETRES!$E$32*PARAMETRES!$E$35,1)*(PARAMETRES!$E$17*INDEX('ODR DEGROUPAGE'!$E$12:$V$12,1,AU$16)+PARAMETRES!$E$18*INDEX('ODR DEGROUPAGE'!$E$13:$V$13,1,AU$16)) -> 100 | AV110: =CEILING(AV24*PARAMETRES!$E$32*PARAMETRES!$E$35,1)*(PARAMETRES!$E$17*INDEX('ODR DEGROUPAGE'!$E$12:$V$12,1,AV$16)+PARAMETRES!$E$18*INDEX('ODR DEGROUPAGE'!$E$13:$V$13,1,AV$16)) -> 100 | AW110: =CEILING(AW24*PARAMETRES!$E$32*PARAMETRES!$E$35,1)*(PARAMETRES!$E$17*INDEX('ODR DEGROUPAGE'!$E$12:$V$12,1,AW$16)+PARAMETRES!$E$18*INDEX('ODR DEGROUPAGE'!$E$13:$V$13,1,AW$16)) -> 100 | AX110: =CEILING(AX24*PARAMETRES!$E$32*PARAMETRES!$E$35,1)*(PARAMETRES!$E$17*INDEX('ODR DEGROUPAGE'!$E$12:$V$12,1,AX$16)+PARAMETRES!$E$18*INDEX('ODR DEGROUPAGE'!$E$13:$V$13,1,AX$16)) -> 100 | AY110: =CEILING(AY24*PARAMETRES!$E$32*PARAMETRES!$E$35,1)*(PARAMETRES!$E$17*INDEX('ODR DEGROUPAGE'!$E$12:$V$12,1,AY$16)+PARAMETRES!$E$18*INDEX('ODR DEGROUPAGE'!$E$13:$V$13,1,AY$16)) -> 100 | AZ110: =CEILING(AZ24*PARAMETRES!$E$32*PARAMETRES!$E$35,1)*(PARAMETRES!$E$17*INDEX('ODR DEGROUPAGE'!$E$12:$V$12,1,AZ$16)+PARAMETRES!$E$18*INDEX('ODR DEGROUPAGE'!$E$13:$V$13,1,AZ$16)) -> 100 | BA110: =CEILING(BA24*PARAMETRES!$E$32*PARAMETRES!$E$35,1)*(PARAMETRES!$E$17*INDEX('ODR DEGROUPAGE'!$E$12:$V$12,1,BA$16)+PARAMETRES!$E$18*INDEX('ODR DEGROUPAGE'!$E$13:$V$13,1,BA$16)) -> 100 | BB110: =CEILING(BB24*PARAMETRES!$E$32*PARAMETRES!$E$35,1)*(PARAMETRES!$E$17*INDEX('ODR DEGROUPAGE'!$E$12:$V$12,1,BB$16)+PARAMETRES!$E$18*INDEX('ODR DEGROUPAGE'!$E$13:$V$13,1,BB$16)) -> 100 | BC110: =CEILING(BC24*PARAMETRES!$E$32*PARAMETRES!$E$35,1)*(PARAMETRES!$E$17*INDEX('ODR DEGROUPAGE'!$E$12:$V$12,1,BC$16)+PARAMETRES!$E$18*INDEX('ODR DEGROUPAGE'!$E$13:$V$13,1,BC$16)) -> 100 | BD110: =CEILING(BD24*PARAMETRES!$E$32*PARAMETRES!$E$35,1)*(PARAMETRES!$E$17*INDEX('ODR DEGROUPAGE'!$E$12:$V$12,1,BD$16)+PARAMETRES!$E$18*INDEX('ODR DEGROUPAGE'!$E$13:$V$13,1,BD$16)) -> 100 | BE110: =CEILING(BE24*PARAMETRES!$E$32*PARAMETRES!$E$35,1)*(PARAMETRES!$E$17*INDEX('ODR DEGROUPAGE'!$E$12:$V$12,1,BE$16)+PARAMETRES!$E$18*INDEX('ODR DEGROUPAGE'!$E$13:$V$13,1,BE$16)) -> 100 | BF110: =CEILING(BF24*PARAMETRES!$E$32*PARAMETRES!$E$35,1)*(PARAMETRES!$E$17*INDEX('ODR DEGROUPAGE'!$E$12:$V$12,1,BF$16)+PARAMETRES!$E$18*INDEX('ODR DEGROUPAGE'!$E$13:$V$13,1,BF$16)) -> 100 | BG110: =CEILING(BG24*PARAMETRES!$E$32*PARAMETRES!$E$35,1)*(PARAMETRES!$E$17*INDEX('ODR DEGROUPAGE'!$E$12:$V$12,1,BG$16)+PARAMETRES!$E$18*INDEX('ODR DEGROUPAGE'!$E$13:$V$13,1,BG$16)) -> 100 | BH110: =CEILING(BH24*PARAMETRES!$E$32*PARAMETRES!$E$35,1)*(PARAMETRES!$E$17*INDEX('ODR DEGROUPAGE'!$E$12:$V$12,1,BH$16)+PARAMETRES!$E$18*INDEX('ODR DEGROUPAGE'!$E$13:$V$13,1,BH$16)) -> 100 | BI110: =CEILING(BI24*PARAMETRES!$E$32*PARAMETRES!$E$35,1)*(PARAMETRES!$E$17*INDEX('ODR DEGROUPAGE'!$E$12:$V$12,1,BI$16)+PARAMETRES!$E$18*INDEX('ODR DEGROUPAGE'!$E$13:$V$13,1,BI$16)) -> 100
